{"text_format":"1","workbook":"xlsx","n_sheets":2,"sheets":["様式第1-6号","地域活動指針（資源向上・長寿命化）"],"not_rendered":{"charts":0,"images":0,"macros":1,"external_links":0,"defined_names":3,"comments":0,"pivot_tables":0},"unopened":[],"bounds":{"document_bytes":16777216,"sheet_cells":100000,"rows_first":2000,"rows_last":500,"rows_between":2000,"halvings":0,"cell_chars":16384,"cell_head_chars":4096},"cells_cut":0,"cells_raw":0,"read":"whole","date_system":"1900"}

{"sheet":"様式第1-6号","index":0,"n_rows":597,"n_cols":45,"rows_kept":597,"cut":false,"hidden":false,"merged":[[513,15,515,15],[516,16,518,16],[513,17,515,17],[513,18,515,18],[513,19,515,19],[513,30,515,30],[513,31,515,31],[513,32,515,32],[513,33,515,33],[513,34,515,34],[516,17,518,17],[516,18,518,18],[516,19,518,19],[516,30,518,30],[516,31,518,31],[516,32,518,32],[516,33,518,33],[516,34,518,34],[513,16,515,16],[510,34,512,34],[516,0,518,0],[516,1,518,1],[516,2,518,2],[516,3,518,3],[516,4,518,4],[516,5,518,5],[516,6,518,6],[516,7,518,7],[516,8,518,8],[516,9,518,9],[516,10,518,10],[516,11,518,11],[516,12,518,12],[516,13,518,13],[516,14,518,14],[516,15,518,15],[513,0,515,0],[513,1,515,1],[513,2,515,2],[513,3,515,3],[513,4,515,4],[513,5,515,5],[513,6,515,6],[513,7,515,7],[513,8,515,8],[513,9,515,9],[513,10,515,10],[513,11,515,11],[513,12,515,12],[513,13,515,13],[513,14,515,14],[507,17,509,17],[507,18,509,18],[507,19,509,19],[507,30,509,30],[507,31,509,31],[507,32,509,32],[507,33,509,33],[507,34,509,34],[510,18,512,18],[510,0,512,0],[510,1,512,1],[510,2,512,2],[510,3,512,3],[510,4,512,4],[510,5,512,5],[510,6,512,6],[510,7,512,7],[510,8,512,8],[510,9,512,9],[510,10,512,10],[510,11,512,11],[510,12,512,12],[510,13,512,13],[510,14,512,14],[510,15,512,15],[510,16,512,16],[510,17,512,17],[510,19,512,19],[510,30,512,30],[510,31,512,31],[510,32,512,32],[510,33,512,33],[507,0,509,0],[507,1,509,1],[507,2,509,2],[507,3,509,3],[507,4,509,4],[507,5,509,5],[507,6,509,6],[507,7,509,7],[507,8,509,8],[507,9,509,9],[507,10,509,10],[507,11,509,11],[507,12,509,12],[507,13,509,13],[507,14,509,14],[507,15,509,15],[507,16,509,16],[501,34,503,34],[504,0,506,0],[504,1,506,1],[504,2,506,2],[504,3,506,3],[504,4,506,4],[504,5,506,5],[504,6,506,6],[504,7,506,7],[504,8,506,8],[504,9,506,9],[504,10,506,10],[504,11,506,11],[504,12,506,12],[504,13,506,13],[504,14,506,14],[504,15,506,15],[504,16,506,16],[504,17,506,17],[504,18,506,18],[504,19,506,19],[504,30,506,30],[504,31,506,31],[504,32,506,32],[504,33,506,33],[504,34,506,34],[498,17,500,17],[498,18,500,18],[498,19,500,19],[498,30,500,30],[498,31,500,31],[498,32,500,32],[498,33,500,33],[498,34,500,34],[501,0,503,0],[501,1,503,1],[501,2,503,2],[501,3,503,3],[501,4,503,4],[501,5,503,5],[501,6,503,6],[501,7,503,7],[501,8,503,8],[501,9,503,9],[501,10,503,10],[501,11,503,11],[501,12,503,12],[501,13,503,13],[501,14,503,14],[501,15,503,15],[501,16,503,16],[501,17,503,17],[501,18,503,18],[501,19,503,19],[501,30,503,30],[501,31,503,31],[501,32,503,32],[501,33,503,33],[498,0,500,0],[498,1,500,1],[498,2,500,2],[498,3,500,3],[498,4,500,4],[498,5,500,5],[498,6,500,6],[498,7,500,7],[498,8,500,8],[498,9,500,9],[498,10,500,10],[498,11,500,11],[498,12,500,12],[498,13,500,13],[498,14,500,14],[498,15,500,15],[498,16,500,16],[492,34,494,34],[495,12,497,12],[495,13,497,13],[495,14,497,14],[495,15,497,15],[495,0,497,0],[495,1,497,1],[495,2,497,2],[495,3,497,3],[495,4,497,4],[495,5,497,5],[495,6,497,6],[495,7,497,7],[495,8,497,8],[495,9,497,9],[495,10,497,10],[495,11,497,11],[495,16,497,16],[495,17,497,17],[495,18,497,18],[495,19,497,19],[495,30,497,30],[495,31,497,31],[495,32,497,32],[495,33,497,33],[495,34,497,34],[489,17,491,17],[489,18,491,18],[489,19,491,19],[489,30,491,30],[489,31,491,31],[489,32,491,32],[489,33,491,33],[489,34,491,34],[492,0,494,0],[492,1,494,1],[492,2,494,2],[492,3,494,3],[492,4,494,4],[492,5,494,5],[492,6,494,6],[492,7,494,7],[492,8,494,8],[492,9,494,9],[492,10,494,10],[492,11,494,11],[492,12,494,12],[492,13,494,13],[492,14,494,14],[492,15,494,15],[492,16,494,16],[492,17,494,17],[492,18,494,18],[492,19,494,19],[492,30,494,30],[492,31,494,31],[492,32,494,32],[492,33,494,33],[489,0,491,0],[489,1,491,1],[489,2,491,2],[489,3,491,3],[489,4,491,4],[489,5,491,5],[489,6,491,6],[489,7,491,7],[489,8,491,8],[489,9,491,9],[489,10,491,10],[489,11,491,11],[489,12,491,12],[489,13,491,13],[489,14,491,14],[489,15,491,15],[489,16,491,16],[483,34,485,34],[486,0,488,0],[486,1,488,1],[486,2,488,2],[486,3,488,3],[486,4,488,4],[486,5,488,5],[486,6,488,6],[486,7,488,7],[486,8,488,8],[486,9,488,9],[486,10,488,10],[486,11,488,11],[486,12,488,12],[486,13,488,13],[486,14,488,14],[486,15,488,15],[486,16,488,16],[486,17,488,17],[486,18,488,18],[486,19,488,19],[486,30,488,30],[486,31,488,31],[486,32,488,32],[486,33,488,33],[486,34,488,34],[480,17,482,17],[480,18,482,18],[480,19,482,19],[480,30,482,30],[480,31,482,31],[480,32,482,32],[480,33,482,33],[480,34,482,34],[483,0,485,0],[483,1,485,1],[483,2,485,2],[483,3,485,3],[483,4,485,4],[483,5,485,5],[483,6,485,6],[483,7,485,7],[483,8,485,8],[483,9,485,9],[483,10,485,10],[483,11,485,11],[483,12,485,12],[483,13,485,13],[483,14,485,14],[483,15,485,15],[483,16,485,16],[483,17,485,17],[483,18,485,18],[483,19,485,19],[483,30,485,30],[483,31,485,31],[483,32,485,32],[483,33,485,33],[480,0,482,0],[480,1,482,1],[480,2,482,2],[480,3,482,3],[480,4,482,4],[480,5,482,5],[480,6,482,6],[480,7,482,7],[480,8,482,8],[480,9,482,9],[480,10,482,10],[480,11,482,11],[480,12,482,12],[480,13,482,13],[480,14,482,14],[480,15,482,15],[480,16,482,16],[474,34,476,34],[477,12,479,12],[477,13,479,13],[477,14,479,14],[477,15,479,15],[477,0,479,0],[477,1,479,1],[477,2,479,2],[477,3,479,3],[477,4,479,4],[477,5,479,5],[477,6,479,6],[477,7,479,7],[477,8,479,8],[477,9,479,9],[477,10,479,10],[477,11,479,11],[477,16,479,16],[477,17,479,17],[477,18,479,18],[477,19,479,19],[477,30,479,30],[477,31,479,31],[477,32,479,32],[477,33,479,33],[477,34,479,34],[471,17,473,17],[471,18,473,18],[471,19,473,19],[471,30,473,30],[471,31,473,31],[471,32,473,32],[471,33,473,33],[471,34,473,34],[474,0,476,0],[474,1,476,1],[474,2,476,2],[474,3,476,3],[474,4,476,4],[474,5,476,5],[474,6,476,6],[474,7,476,7],[474,8,476,8],[474,9,476,9],[474,10,476,10],[474,11,476,11],[474,12,476,12],[474,13,476,13],[474,14,476,14],[474,15,476,15],[474,16,476,16],[474,17,476,17],[474,18,476,18],[474,19,476,19],[474,30,476,30],[474,31,476,31],[474,32,476,32],[474,33,476,33],[471,0,473,0],[471,1,473,1],[471,2,473,2],[471,3,473,3],[471,4,473,4],[471,5,473,5],[471,6,473,6],[471,7,473,7],[471,8,473,8],[471,9,473,9],[471,10,473,10],[471,11,473,11],[471,12,473,12],[471,13,473,13],[471,14,473,14],[471,15,473,15],[471,16,473,16],[465,34,467,34],[468,0,470,0],[468,1,470,1],[468,2,470,2],[468,3,470,3],[468,4,470,4],[468,5,470,5],[468,6,470,6],[468,7,470,7],[468,8,470,8],[468,9,470,9],[468,10,470,10],[468,11,470,11],[468,12,470,12],[468,13,470,13],[468,14,470,14],[468,15,470,15],[468,16,470,16],[468,17,470,17],[468,18,470,18],[468,19,470,19],[468,30,470,30],[468,31,470,31],[468,32,470,32],[468,33,470,33],[468,34,470,34],[462,17,464,17],[462,18,464,18],[462,19,464,19],[462,30,464,30],[462,31,464,31],[462,32,464,32],[462,33,464,33],[462,34,464,34],[465,0,467,0],[465,1,467,1],[465,2,467,2],[465,3,467,3],[465,4,467,4],[465,5,467,5],[465,6,467,6],[465,7,467,7],[465,8,467,8],[465,9,467,9],[465,10,467,10],[465,11,467,11],[465,12,467,12],[465,13,467,13],[465,14,467,14],[465,15,467,15],[465,16,467,16],[465,17,467,17],[465,18,467,18],[465,19,467,19],[465,30,467,30],[465,31,467,31],[465,32,467,32],[465,33,467,33],[462,0,464,0],[462,1,464,1],[462,2,464,2],[462,3,464,3],[462,4,464,4],[462,5,464,5],[462,6,464,6],[462,7,464,7],[462,8,464,8],[462,9,464,9],[462,10,464,10],[462,11,464,11],[462,12,464,12],[462,13,464,13],[462,14,464,14],[462,15,464,15],[462,16,464,16],[456,34,458,34],[459,12,461,12],[459,13,461,13],[459,14,461,14],[459,15,461,15],[459,0,461,0],[459,1,461,1],[459,2,461,2],[459,3,461,3],[459,4,461,4],[459,5,461,5],[459,6,461,6],[459,7,461,7],[459,8,461,8],[459,9,461,9],[459,10,461,10],[459,11,461,11],[459,16,461,16],[459,17,461,17],[459,18,461,18],[459,19,461,19],[459,30,461,30],[459,31,461,31],[459,32,461,32],[459,33,461,33],[459,34,461,34],[453,17,455,17],[453,18,455,18],[453,19,455,19],[453,30,455,30],[453,31,455,31],[453,32,455,32],[453,33,455,33],[453,34,455,34],[456,0,458,0],[456,1,458,1],[456,2,458,2],[456,3,458,3],[456,4,458,4],[456,5,458,5],[456,6,458,6],[456,7,458,7],[456,8,458,8],[456,9,458,9],[456,10,458,10],[456,11,458,11],[456,12,458,12],[456,13,458,13],[456,14,458,14],[456,15,458,15],[456,16,458,16],[456,17,458,17],[456,18,458,18],[456,19,458,19],[456,30,458,30],[456,31,458,31],[456,32,458,32],[456,33,458,33],[453,0,455,0],[453,1,455,1],[453,2,455,2],[453,3,455,3],[453,4,455,4],[453,5,455,5],[453,6,455,6],[453,7,455,7],[453,8,455,8],[453,9,455,9],[453,10,455,10],[453,11,455,11],[453,12,455,12],[453,13,455,13],[453,14,455,14],[453,15,455,15],[453,16,455,16],[447,34,449,34],[450,0,452,0],[450,1,452,1],[450,2,452,2],[450,3,452,3],[450,4,452,4],[450,5,452,5],[450,6,452,6],[450,7,452,7],[450,8,452,8],[450,9,452,9],[450,10,452,10],[450,11,452,11],[450,12,452,12],[450,13,452,13],[450,14,452,14],[450,15,452,15],[450,16,452,16],[450,17,452,17],[450,18,452,18],[450,19,452,19],[450,30,452,30],[450,31,452,31],[450,32,452,32],[450,33,452,33],[450,34,452,34],[444,17,446,17],[444,18,446,18],[444,19,446,19],[444,30,446,30],[444,31,446,31],[444,32,446,32],[444,33,446,33],[444,34,446,34],[447,0,449,0],[447,1,449,1],[447,2,449,2],[447,3,449,3],[447,4,449,4],[447,5,449,5],[447,6,449,6],[447,7,449,7],[447,8,449,8],[447,9,449,9],[447,10,449,10],[447,11,449,11],[447,12,449,12],[447,13,449,13],[447,14,449,14],[447,15,449,15],[447,16,449,16],[447,17,449,17],[447,18,449,18],[447,19,449,19],[447,30,449,30],[447,31,449,31],[447,32,449,32],[447,33,449,33],[444,0,446,0],[444,1,446,1],[444,2,446,2],[444,3,446,3],[444,4,446,4],[444,5,446,5],[444,6,446,6],[444,7,446,7],[444,8,446,8],[444,9,446,9],[444,10,446,10],[444,11,446,11],[444,12,446,12],[444,13,446,13],[444,14,446,14],[444,15,446,15],[444,16,446,16],[438,34,440,34],[441,12,443,12],[441,13,443,13],[441,14,443,14],[441,15,443,15],[441,0,443,0],[441,1,443,1],[441,2,443,2],[441,3,443,3],[441,4,443,4],[441,5,443,5],[441,6,443,6],[441,7,443,7],[441,8,443,8],[441,9,443,9],[441,10,443,10],[441,11,443,11],[441,16,443,16],[441,17,443,17],[441,18,443,18],[441,19,443,19],[441,30,443,30],[441,31,443,31],[441,32,443,32],[441,33,443,33],[441,34,443,34],[435,17,437,17],[435,18,437,18],[435,19,437,19],[435,30,437,30],[435,31,437,31],[435,32,437,32],[435,33,437,33],[435,34,437,34],[438,0,440,0],[438,1,440,1],[438,2,440,2],[438,3,440,3],[438,4,440,4],[438,5,440,5],[438,6,440,6],[438,7,440,7],[438,8,440,8],[438,9,440,9],[438,10,440,10],[438,11,440,11],[438,12,440,12],[438,13,440,13],[438,14,440,14],[438,15,440,15],[438,16,440,16],[438,17,440,17],[438,18,440,18],[438,19,440,19],[438,30,440,30],[438,31,440,31],[438,32,440,32],[438,33,440,33],[435,0,437,0],[435,1,437,1],[435,2,437,2],[435,3,437,3],[435,4,437,4],[435,5,437,5],[435,6,437,6],[435,7,437,7],[435,8,437,8],[435,9,437,9],[435,10,437,10],[435,11,437,11],[435,12,437,12],[435,13,437,13],[435,14,437,14],[435,15,437,15],[435,16,437,16],[429,34,431,34],[432,0,434,0],[432,1,434,1],[432,2,434,2],[432,3,434,3],[432,4,434,4],[432,5,434,5],[432,6,434,6],[432,7,434,7],[432,8,434,8],[432,9,434,9],[432,10,434,10],[432,11,434,11],[432,12,434,12],[432,13,434,13],[432,14,434,14],[432,15,434,15],[432,16,434,16],[432,17,434,17],[432,18,434,18],[432,19,434,19],[432,30,434,30],[432,31,434,31],[432,32,434,32],[432,33,434,33],[432,34,434,34],[426,17,428,17],[426,18,428,18],[426,19,428,19],[426,30,428,30],[426,31,428,31],[426,32,428,32],[426,33,428,33],[426,34,428,34],[429,0,431,0],[429,1,431,1],[429,2,431,2],[429,3,431,3],[429,4,431,4],[429,5,431,5],[429,6,431,6],[429,7,431,7],[429,8,431,8],[429,9,431,9],[429,10,431,10],[429,11,431,11],[429,12,431,12],[429,13,431,13],[429,14,431,14],[429,15,431,15],[429,16,431,16],[429,17,431,17],[429,18,431,18],[429,19,431,19],[429,30,431,30],[429,31,431,31],[429,32,431,32],[429,33,431,33],[426,0,428,0],[426,1,428,1],[426,2,428,2],[426,3,428,3],[426,4,428,4],[426,5,428,5],[426,6,428,6],[426,7,428,7],[426,8,428,8],[426,9,428,9],[426,10,428,10],[426,11,428,11],[426,12,428,12],[426,13,428,13],[426,14,428,14],[426,15,428,15],[426,16,428,16],[420,19,422,19],[420,30,422,30],[420,34,422,34],[420,31,422,31],[420,32,422,32],[420,33,422,33],[423,12,425,12],[423,13,425,13],[423,14,425,14],[423,15,425,15],[423,0,425,0],[423,1,425,1],[423,2,425,2],[423,3,425,3],[423,4,425,4],[423,5,425,5],[423,6,425,6],[423,7,425,7],[423,8,425,8],[423,9,425,9],[423,10,425,10],[423,11,425,11],[423,16,425,16],[423,17,425,17],[423,18,425,18],[423,19,425,19],[423,30,425,30],[423,31,425,31],[423,32,425,32],[423,33,425,33],[423,34,425,34],[417,17,419,17],[417,18,419,18],[417,14,419,14],[417,15,419,15],[417,16,419,16],[417,19,419,19],[417,30,419,30],[417,31,419,31],[411,6,413,6],[411,7,413,7],[417,32,419,32],[417,33,419,33],[417,34,419,34],[420,0,422,0],[420,1,422,1],[420,2,422,2],[420,3,422,3],[420,4,422,4],[420,5,422,5],[420,6,422,6],[420,7,422,7],[420,8,422,8],[420,9,422,9],[420,10,422,10],[420,11,422,11],[420,12,422,12],[420,13,422,13],[420,14,422,14],[420,15,422,15],[420,16,422,16],[420,17,422,17],[420,18,422,18],[417,0,419,0],[417,1,419,1],[417,2,419,2],[417,3,419,3],[417,4,419,4],[417,5,419,5],[417,6,419,6],[417,7,419,7],[417,8,419,8],[417,9,419,9],[417,10,419,10],[417,11,419,11],[417,12,419,12],[417,13,419,13],[414,6,416,6],[414,7,416,7],[414,8,416,8],[414,9,416,9],[414,10,416,10],[414,11,416,11],[282,31,284,31],[348,31,350,31],[351,31,353,31],[363,31,365,31],[366,31,368,31],[249,31,251,31],[252,31,254,31],[255,31,257,31],[258,31,260,31],[261,31,263,31],[288,31,290,31],[291,31,293,31],[303,31,305,31],[306,31,308,31],[369,31,371,31],[372,31,374,31],[375,31,377,31],[369,16,371,16],[369,17,371,17],[363,18,365,18],[402,31,404,31],[405,31,407,31],[195,31,197,31],[198,31,200,31],[201,31,203,31],[267,31,269,31],[222,31,224,31],[225,31,227,31],[228,31,230,31],[231,31,233,31],[243,31,245,31],[246,31,248,31],[366,30,368,30],[345,17,347,17],[339,31,341,31],[318,17,320,17],[318,18,320,18],[318,19,320,19],[318,30,320,30],[312,18,314,18],[312,19,314,19],[312,30,314,30],[288,30,290,30],[294,19,296,19],[309,31,311,31],[312,31,314,31],[315,31,317,31],[318,31,320,31],[321,31,323,31],[162,31,164,31],[129,31,131,31],[132,31,134,31],[135,31,137,31],[138,31,140,31],[141,31,143,31],[144,31,146,31],[168,31,170,31],[171,31,173,31],[183,31,185,31],[186,31,188,31],[105,31,107,31],[108,31,110,31],[111,31,113,31],[123,31,125,31],[126,31,128,31],[15,31,17,31],[60,31,62,31],[87,31,89,31],[90,31,92,31],[81,31,83,31],[7,31,7,34],[18,31,20,31],[21,31,23,31],[24,31,26,31],[27,31,29,31],[15,33,17,33],[15,34,17,34],[30,31,32,31],[33,31,35,31],[36,31,38,31],[39,31,41,31],[42,31,44,31],[45,31,47,31],[48,31,50,31],[51,31,53,31],[54,31,56,31],[57,31,59,31],[33,34,35,34],[54,34,56,34],[39,32,41,32],[39,33,41,33],[30,32,32,32],[9,34,11,34],[12,33,14,33],[12,34,14,34],[60,34,62,34],[42,34,44,34],[39,34,41,34],[30,34,32,34],[24,34,26,34],[21,33,23,33],[21,34,23,34],[24,32,26,32],[24,33,26,33],[27,33,29,33],[27,34,29,34],[36,34,38,34],[33,32,35,32],[414,34,416,34],[414,12,416,12],[414,13,416,13],[414,14,416,14],[414,15,416,15],[414,16,416,16],[414,17,416,17],[411,19,413,19],[405,17,407,17],[402,32,404,32],[402,33,404,33],[402,34,404,34],[405,33,407,33],[402,12,404,12],[402,13,404,13],[402,14,404,14],[402,15,404,15],[402,16,404,16],[396,30,398,30],[411,30,413,30],[411,32,413,32],[411,33,413,33],[411,34,413,34],[411,12,413,12],[411,13,413,13],[411,14,413,14],[411,15,413,15],[411,16,413,16],[411,17,413,17],[414,31,416,31],[411,0,413,0],[411,1,413,1],[411,2,413,2],[411,3,413,3]],"merged_total":4270,"flags":["merged_cut"]}
[]
[]
[]
[]
["（様式第１－６号）"]
[null,null,null,null,null,null,null,null,null,null,null,null,null,null,null,null,"平成",null,null,null,"年度　　　多面的機能支払交付金　　　活動記録"]
[null,null,null,null,null,null,null,null,null,null,null,null,null,null,null,null,null,null,null,null,"【 資源向上支払（施設の長寿命化）】"]
[null,null,null,null,null,null,null,null,null,null,null,null,null,null,null,null,null,null,null,null,null,null,null,null,null,null,null,null,null,null,"組織名"]
[]
["活動実施日時",null,null,null,null,null,null,null,null,null,null,null,null,null,"活動参加人数",null,null,null,null,null,"活動内容",null,null,null,null,null,null,null,null,null,null,null,null,null,"備考\n（活動の詳細、場所等）"]
["実施月日","実施時間",null,null,null,null,null,null,null,null,null,null,null,null,"総参加\n人　数",null,"農業者",null,"農業者\n以　外",null,"活動区分",null,null,null,null,null,null,null,null,null,"施設","活動\n番号","具体的な活動内容"]
[null,"時間帯",null,null,null,null,null,null,null,null,"実施時間",null,null,null,null,null,null,null,null,null,null,null,null,null,null,null,null,null,null,null,null,null,"対象活動","取組内容"]
[null,null,"時",null,"分","～",null,"時",null,"分",{"$f":"+IF(AND(ISNUMBER(B13),ISNUMBER(G13),INT((G13-B13)+(I13-D13)/60)>=0),INT((G13-B13)+(I13-D13)/60),\"\")","v":""},"時間",{"$f":"IF(AND(ISNUMBER(D13),ISNUMBER(I13)),ABS(D13-I13),\"\")","v":""},"分",{"$f":"IF(Q13+S13=0,\"\",Q13+S13)","v":""},"人",null,"人",null,"人","☐","農地維持","☐","資源向上(共同)","☐","調査・計画","☐","実践活動","☐","事務処理等",null,null,{"$f":"IF(ISNUMBER(AF13),VLOOKUP(AF13,$AQ$548:$AR$597,2,0),\"\")","v":""},null,null,"← 会議等で、活動項目と取組に［－」を記入\n　　するときは、活動番号に「0」を入力する。",{"$f":"IF(AND(ISBLANK(A13),ISBLANK(B13),ISBLANK(D13),ISBLANK(G13),ISBLANK(I13),ISBLANK(Q13),ISBLANK(S13),ISBLANK(AE13),ISBLANK(AF13),ISBLANK(AH13),ISBLANK(AI13)),1,\"\")","v":1}]
[null,null,null,null,null,null,null,null,null,null,null,null,null,null,null,null,null,null,null,null,"☐","資源向上(長寿命化)","☐","広域化・体制強化",null,null,"☐","啓発・普及","☐","研修・会議",null,null,null,null,null,null,{"$f":"IF(AND(ISBLANK(A13),ISBLANK(B13),ISBLANK(D13),ISBLANK(G13),ISBLANK(I13),ISBLANK(Q13),ISBLANK(S13),ISBLANK(AE13),ISBLANK(AF13),ISBLANK(AH13),ISBLANK(AI13)),1,\"\")","v":1}]
[null,null,null,null,null,null,null,null,null,null,null,null,null,null,null,null,null,null,null,null,"☐","資源保全プラン","☐","特例措置を適用した活動",null,null,"☐","設置等","☐","発注事務",null,null,null,null,null,null,{"$f":"IF(AND(ISBLANK(A13),ISBLANK(B13),ISBLANK(D13),ISBLANK(G13),ISBLANK(I13),ISBLANK(Q13),ISBLANK(S13),ISBLANK(AE13),ISBLANK(AF13),ISBLANK(AH13),ISBLANK(AI13)),1,\"\")","v":1}]
[null,null,"時",null,"分","～",null,"時",null,"分",{"$f":"+IF(AND(ISNUMBER(B16),ISNUMBER(G16),INT((G16-B16)+(I16-D16)/60)>=0),INT((G16-B16)+(I16-D16)/60),\"\")","v":""},"時間",{"$f":"IF(AND(ISNUMBER(D16),ISNUMBER(I16)),ABS(D16-I16),\"\")","v":""},"分",{"$f":"IF(Q16+S16=0,\"\",Q16+S16)","v":""},"人",null,"人",null,"人","☐","農地維持","☐","資源向上(共同)","☐","調査・計画","☐","実践活動","☐","事務処理等",null,null,{"$f":"IF(ISNUMBER(AF16),VLOOKUP(AF16,$AQ$548:$AR$597,2,0),\"\")","v":""},null,null,null,{"$f":"IF(AND(ISBLANK(A16),ISBLANK(B16),ISBLANK(D16),ISBLANK(G16),ISBLANK(I16),ISBLANK(Q16),ISBLANK(S16),ISBLANK(AE16),ISBLANK(AF16),ISBLANK(AH16),ISBLANK(AI16)),1,\"\")","v":1}]
[null,null,null,null,null,null,null,null,null,null,null,null,null,null,null,null,null,null,null,null,"☐","資源向上(長寿命化)","☐","広域化・体制強化",null,null,"☐","啓発・普及","☐","研修・会議",null,null,null,null,null,null,{"$f":"IF(AND(ISBLANK(A16),ISBLANK(B16),ISBLANK(D16),ISBLANK(G16),ISBLANK(I16),ISBLANK(Q16),ISBLANK(S16),ISBLANK(AE16),ISBLANK(AF16),ISBLANK(AH16),ISBLANK(AI16)),1,\"\")","v":1}]
[null,null,null,null,null,null,null,null,null,null,null,null,null,null,null,null,null,null,null,null,"☐","資源保全プラン","☐","特例措置を適用した活動",null,null,"☐","設置等","☐","発注事務",null,null,null,null,null,null,{"$f":"IF(AND(ISBLANK(A16),ISBLANK(B16),ISBLANK(D16),ISBLANK(G16),ISBLANK(I16),ISBLANK(Q16),ISBLANK(S16),ISBLANK(AE16),ISBLANK(AF16),ISBLANK(AH16),ISBLANK(AI16)),1,\"\")","v":1}]
[null,null,"時",null,"分","～",null,"時",null,"分",{"$f":"+IF(AND(ISNUMBER(B19),ISNUMBER(G19),INT((G19-B19)+(I19-D19)/60)>=0),INT((G19-B19)+(I19-D19)/60),\"\")","v":""},"時間",{"$f":"IF(AND(ISNUMBER(D19),ISNUMBER(I19)),ABS(D19-I19),\"\")","v":""},"分",{"$f":"IF(Q19+S19=0,\"\",Q19+S19)","v":""},"人",null,"人",null,"人","☐","農地維持","☐","資源向上(共同)","☐","調査・計画","☐","実践活動","☐","事務処理等",null,null,{"$f":"IF(ISNUMBER(AF19),VLOOKUP(AF19,$AQ$548:$AR$597,2,0),\"\")","v":""},null,null,null,{"$f":"IF(AND(ISBLANK(A19),ISBLANK(B19),ISBLANK(D19),ISBLANK(G19),ISBLANK(I19),ISBLANK(Q19),ISBLANK(S19),ISBLANK(AE19),ISBLANK(AF19),ISBLANK(AH19),ISBLANK(AI19)),1,\"\")","v":1}]
[null,null,null,null,null,null,null,null,null,null,null,null,null,null,null,null,null,null,null,null,"☐","資源向上(長寿命化)","☐","広域化・体制強化",null,null,"☐","啓発・普及","☐","研修・会議",null,null,null,null,null,null,{"$f":"IF(AND(ISBLANK(A19),ISBLANK(B19),ISBLANK(D19),ISBLANK(G19),ISBLANK(I19),ISBLANK(Q19),ISBLANK(S19),ISBLANK(AE19),ISBLANK(AF19),ISBLANK(AH19),ISBLANK(AI19)),1,\"\")","v":1}]
[null,null,null,null,null,null,null,null,null,null,null,null,null,null,null,null,null,null,null,null,"☐","資源保全プラン","☐","特例措置を適用した活動",null,null,"☐","設置等","☐","発注事務",null,null,null,null,null,null,{"$f":"IF(AND(ISBLANK(A19),ISBLANK(B19),ISBLANK(D19),ISBLANK(G19),ISBLANK(I19),ISBLANK(Q19),ISBLANK(S19),ISBLANK(AE19),ISBLANK(AF19),ISBLANK(AH19),ISBLANK(AI19)),1,\"\")","v":1}]
[null,null,"時",null,"分","～",null,"時",null,"分",{"$f":"+IF(AND(ISNUMBER(B22),ISNUMBER(G22),INT((G22-B22)+(I22-D22)/60)>=0),INT((G22-B22)+(I22-D22)/60),\"\")","v":""},"時間",{"$f":"IF(AND(ISNUMBER(D22),ISNUMBER(I22)),ABS(D22-I22),\"\")","v":""},"分",{"$f":"IF(Q22+S22=0,\"\",Q22+S22)","v":""},"人",null,"人",null,"人","☐","農地維持","☐","資源向上(共同)","☐","調査・計画","☐","実践活動","☐","事務処理等",null,null,{"$f":"IF(ISNUMBER(AF22),VLOOKUP(AF22,$AQ$548:$AR$597,2,0),\"\")","v":""},null,null,null,{"$f":"IF(AND(ISBLANK(A22),ISBLANK(B22),ISBLANK(D22),ISBLANK(G22),ISBLANK(I22),ISBLANK(Q22),ISBLANK(S22),ISBLANK(AE22),ISBLANK(AF22),ISBLANK(AH22),ISBLANK(AI22)),1,\"\")","v":1}]
[null,null,null,null,null,null,null,null,null,null,null,null,null,null,null,null,null,null,null,null,"☐","資源向上(長寿命化)","☐","広域化・体制強化",null,null,"☐","啓発・普及","☐","研修・会議",null,null,null,null,null,null,{"$f":"IF(AND(ISBLANK(A22),ISBLANK(B22),ISBLANK(D22),ISBLANK(G22),ISBLANK(I22),ISBLANK(Q22),ISBLANK(S22),ISBLANK(AE22),ISBLANK(AF22),ISBLANK(AH22),ISBLANK(AI22)),1,\"\")","v":1}]
[null,null,null,null,null,null,null,null,null,null,null,null,null,null,null,null,null,null,null,null,"☐","資源保全プラン","☐","特例措置を適用した活動",null,null,"☐","設置等","☐","発注事務",null,null,null,null,null,null,{"$f":"IF(AND(ISBLANK(A22),ISBLANK(B22),ISBLANK(D22),ISBLANK(G22),ISBLANK(I22),ISBLANK(Q22),ISBLANK(S22),ISBLANK(AE22),ISBLANK(AF22),ISBLANK(AH22),ISBLANK(AI22)),1,\"\")","v":1}]
[null,null,"時",null,"分","～",null,"時",null,"分",{"$f":"+IF(AND(ISNUMBER(B25),ISNUMBER(G25),INT((G25-B25)+(I25-D25)/60)>=0),INT((G25-B25)+(I25-D25)/60),\"\")","v":""},"時間",{"$f":"IF(AND(ISNUMBER(D25),ISNUMBER(I25)),ABS(D25-I25),\"\")","v":""},"分",{"$f":"IF(Q25+S25=0,\"\",Q25+S25)","v":""},"人",null,"人",null,"人","☐","農地維持","☐","資源向上(共同)","☐","調査・計画","☐","実践活動","☐","事務処理等",null,null,{"$f":"IF(ISNUMBER(AF25),VLOOKUP(AF25,$AQ$548:$AR$597,2,0),\"\")","v":""},null,null,null,{"$f":"IF(AND(ISBLANK(A25),ISBLANK(B25),ISBLANK(D25),ISBLANK(G25),ISBLANK(I25),ISBLANK(Q25),ISBLANK(S25),ISBLANK(AE25),ISBLANK(AF25),ISBLANK(AH25),ISBLANK(AI25)),1,\"\")","v":1}]
[null,null,null,null,null,null,null,null,null,null,null,null,null,null,null,null,null,null,null,null,"☐","資源向上(長寿命化)","☐","広域化・体制強化",null,null,"☐","啓発・普及","☐","研修・会議",null,null,null,null,null,null,{"$f":"IF(AND(ISBLANK(A25),ISBLANK(B25),ISBLANK(D25),ISBLANK(G25),ISBLANK(I25),ISBLANK(Q25),ISBLANK(S25),ISBLANK(AE25),ISBLANK(AF25),ISBLANK(AH25),ISBLANK(AI25)),1,\"\")","v":1}]
[null,null,null,null,null,null,null,null,null,null,null,null,null,null,null,null,null,null,null,null,"☐","資源保全プラン","☐","特例措置を適用した活動",null,null,"☐","設置等","☐","発注事務",null,null,null,null,null,null,{"$f":"IF(AND(ISBLANK(A25),ISBLANK(B25),ISBLANK(D25),ISBLANK(G25),ISBLANK(I25),ISBLANK(Q25),ISBLANK(S25),ISBLANK(AE25),ISBLANK(AF25),ISBLANK(AH25),ISBLANK(AI25)),1,\"\")","v":1}]
[null,null,"時",null,"分","～",null,"時",null,"分",{"$f":"+IF(AND(ISNUMBER(B28),ISNUMBER(G28),INT((G28-B28)+(I28-D28)/60)>=0),INT((G28-B28)+(I28-D28)/60),\"\")","v":""},"時間",{"$f":"IF(AND(ISNUMBER(D28),ISNUMBER(I28)),ABS(D28-I28),\"\")","v":""},"分",{"$f":"IF(Q28+S28=0,\"\",Q28+S28)","v":""},"人",null,"人",null,"人","☐","農地維持","☐","資源向上(共同)","☐","調査・計画","☐","実践活動","☐","事務処理等",null,null,{"$f":"IF(ISNUMBER(AF28),VLOOKUP(AF28,$AQ$548:$AR$597,2,0),\"\")","v":""},null,null,null,{"$f":"IF(AND(ISBLANK(A28),ISBLANK(B28),ISBLANK(D28),ISBLANK(G28),ISBLANK(I28),ISBLANK(Q28),ISBLANK(S28),ISBLANK(AE28),ISBLANK(AF28),ISBLANK(AH28),ISBLANK(AI28)),1,\"\")","v":1}]
[null,null,null,null,null,null,null,null,null,null,null,null,null,null,null,null,null,null,null,null,"☐","資源向上(長寿命化)","☐","広域化・体制強化",null,null,"☐","啓発・普及","☐","研修・会議",null,null,null,null,null,null,{"$f":"IF(AND(ISBLANK(A28),ISBLANK(B28),ISBLANK(D28),ISBLANK(G28),ISBLANK(I28),ISBLANK(Q28),ISBLANK(S28),ISBLANK(AE28),ISBLANK(AF28),ISBLANK(AH28),ISBLANK(AI28)),1,\"\")","v":1}]
[null,null,null,null,null,null,null,null,null,null,null,null,null,null,null,null,null,null,null,null,"☐","資源保全プラン","☐","特例措置を適用した活動",null,null,"☐","設置等","☐","発注事務",null,null,null,null,null,null,{"$f":"IF(AND(ISBLANK(A28),ISBLANK(B28),ISBLANK(D28),ISBLANK(G28),ISBLANK(I28),ISBLANK(Q28),ISBLANK(S28),ISBLANK(AE28),ISBLANK(AF28),ISBLANK(AH28),ISBLANK(AI28)),1,\"\")","v":1}]
[null,null,"時",null,"分","～",null,"時",null,"分",{"$f":"+IF(AND(ISNUMBER(B31),ISNUMBER(G31),INT((G31-B31)+(I31-D31)/60)>=0),INT((G31-B31)+(I31-D31)/60),\"\")","v":""},"時間",{"$f":"IF(AND(ISNUMBER(D31),ISNUMBER(I31)),ABS(D31-I31),\"\")","v":""},"分",{"$f":"IF(Q31+S31=0,\"\",Q31+S31)","v":""},"人",null,"人",null,"人","☐","農地維持","☐","資源向上(共同)","☐","調査・計画","☐","実践活動","☐","事務処理等",null,null,{"$f":"IF(ISNUMBER(AF31),VLOOKUP(AF31,$AQ$548:$AR$597,2,0),\"\")","v":""},null,null,null,{"$f":"IF(AND(ISBLANK(A31),ISBLANK(B31),ISBLANK(D31),ISBLANK(G31),ISBLANK(I31),ISBLANK(Q31),ISBLANK(S31),ISBLANK(AE31),ISBLANK(AF31),ISBLANK(AH31),ISBLANK(AI31)),1,\"\")","v":1}]
[null,null,null,null,null,null,null,null,null,null,null,null,null,null,null,null,null,null,null,null,"☐","資源向上(長寿命化)","☐","広域化・体制強化",null,null,"☐","啓発・普及","☐","研修・会議",null,null,null,null,null,null,{"$f":"IF(AND(ISBLANK(A31),ISBLANK(B31),ISBLANK(D31),ISBLANK(G31),ISBLANK(I31),ISBLANK(Q31),ISBLANK(S31),ISBLANK(AE31),ISBLANK(AF31),ISBLANK(AH31),ISBLANK(AI31)),1,\"\")","v":1}]
[null,null,null,null,null,null,null,null,null,null,null,null,null,null,null,null,null,null,null,null,"☐","資源保全プラン","☐","特例措置を適用した活動",null,null,"☐","設置等","☐","発注事務",null,null,null,null,null,null,{"$f":"IF(AND(ISBLANK(A31),ISBLANK(B31),ISBLANK(D31),ISBLANK(G31),ISBLANK(I31),ISBLANK(Q31),ISBLANK(S31),ISBLANK(AE31),ISBLANK(AF31),ISBLANK(AH31),ISBLANK(AI31)),1,\"\")","v":1}]
[null,null,"時",null,"分","～",null,"時",null,"分",{"$f":"+IF(AND(ISNUMBER(B34),ISNUMBER(G34),INT((G34-B34)+(I34-D34)/60)>=0),INT((G34-B34)+(I34-D34)/60),\"\")","v":""},"時間",{"$f":"IF(AND(ISNUMBER(D34),ISNUMBER(I34)),ABS(D34-I34),\"\")","v":""},"分",{"$f":"IF(Q34+S34=0,\"\",Q34+S34)","v":""},"人",null,"人",null,"人","☐","農地維持","☐","資源向上(共同)","☐","調査・計画","☐","実践活動","☐","事務処理等",null,null,{"$f":"IF(ISNUMBER(AF34),VLOOKUP(AF34,$AQ$548:$AR$597,2,0),\"\")","v":""},null,null,null,{"$f":"IF(AND(ISBLANK(A34),ISBLANK(B34),ISBLANK(D34),ISBLANK(G34),ISBLANK(I34),ISBLANK(Q34),ISBLANK(S34),ISBLANK(AE34),ISBLANK(AF34),ISBLANK(AH34),ISBLANK(AI34)),1,\"\")","v":1}]
[null,null,null,null,null,null,null,null,null,null,null,null,null,null,null,null,null,null,null,null,"☐","資源向上(長寿命化)","☐","広域化・体制強化",null,null,"☐","啓発・普及","☐","研修・会議",null,null,null,null,null,null,{"$f":"IF(AND(ISBLANK(A34),ISBLANK(B34),ISBLANK(D34),ISBLANK(G34),ISBLANK(I34),ISBLANK(Q34),ISBLANK(S34),ISBLANK(AE34),ISBLANK(AF34),ISBLANK(AH34),ISBLANK(AI34)),1,\"\")","v":1}]
[null,null,null,null,null,null,null,null,null,null,null,null,null,null,null,null,null,null,null,null,"☐","資源保全プラン","☐","特例措置を適用した活動",null,null,"☐","設置等","☐","発注事務",null,null,null,null,null,null,{"$f":"IF(AND(ISBLANK(A34),ISBLANK(B34),ISBLANK(D34),ISBLANK(G34),ISBLANK(I34),ISBLANK(Q34),ISBLANK(S34),ISBLANK(AE34),ISBLANK(AF34),ISBLANK(AH34),ISBLANK(AI34)),1,\"\")","v":1}]
[null,null,"時",null,"分","～",null,"時",null,"分",{"$f":"+IF(AND(ISNUMBER(B37),ISNUMBER(G37),INT((G37-B37)+(I37-D37)/60)>=0),INT((G37-B37)+(I37-D37)/60),\"\")","v":""},"時間",{"$f":"IF(AND(ISNUMBER(D37),ISNUMBER(I37)),ABS(D37-I37),\"\")","v":""},"分",{"$f":"IF(Q37+S37=0,\"\",Q37+S37)","v":""},"人",null,"人",null,"人","☐","農地維持","☐","資源向上(共同)","☐","調査・計画","☐","実践活動","☐","事務処理等",null,null,{"$f":"IF(ISNUMBER(AF37),VLOOKUP(AF37,$AQ$548:$AR$597,2,0),\"\")","v":""},null,null,null,{"$f":"IF(AND(ISBLANK(A37),ISBLANK(B37),ISBLANK(D37),ISBLANK(G37),ISBLANK(I37),ISBLANK(Q37),ISBLANK(S37),ISBLANK(AE37),ISBLANK(AF37),ISBLANK(AH37),ISBLANK(AI37)),1,\"\")","v":1}]
[null,null,null,null,null,null,null,null,null,null,null,null,null,null,null,null,null,null,null,null,"☐","資源向上(長寿命化)","☐","広域化・体制強化",null,null,"☐","啓発・普及","☐","研修・会議",null,null,null,null,null,null,{"$f":"IF(AND(ISBLANK(A37),ISBLANK(B37),ISBLANK(D37),ISBLANK(G37),ISBLANK(I37),ISBLANK(Q37),ISBLANK(S37),ISBLANK(AE37),ISBLANK(AF37),ISBLANK(AH37),ISBLANK(AI37)),1,\"\")","v":1}]
[null,null,null,null,null,null,null,null,null,null,null,null,null,null,null,null,null,null,null,null,"☐","資源保全プラン","☐","特例措置を適用した活動",null,null,"☐","設置等","☐","発注事務",null,null,null,null,null,null,{"$f":"IF(AND(ISBLANK(A37),ISBLANK(B37),ISBLANK(D37),ISBLANK(G37),ISBLANK(I37),ISBLANK(Q37),ISBLANK(S37),ISBLANK(AE37),ISBLANK(AF37),ISBLANK(AH37),ISBLANK(AI37)),1,\"\")","v":1}]
[null,null,"時",null,"分","～",null,"時",null,"分",{"$f":"+IF(AND(ISNUMBER(B40),ISNUMBER(G40),INT((G40-B40)+(I40-D40)/60)>=0),INT((G40-B40)+(I40-D40)/60),\"\")","v":""},"時間",{"$f":"IF(AND(ISNUMBER(D40),ISNUMBER(I40)),ABS(D40-I40),\"\")","v":""},"分",{"$f":"IF(Q40+S40=0,\"\",Q40+S40)","v":""},"人",null,"人",null,"人","☐","農地維持","☐","資源向上(共同)","☐","調査・計画","☐","実践活動","☐","事務処理等",null,null,{"$f":"IF(ISNUMBER(AF40),VLOOKUP(AF40,$AQ$548:$AR$597,2,0),\"\")","v":""},null,null,null,{"$f":"IF(AND(ISBLANK(A40),ISBLANK(B40),ISBLANK(D40),ISBLANK(G40),ISBLANK(I40),ISBLANK(Q40),ISBLANK(S40),ISBLANK(AE40),ISBLANK(AF40),ISBLANK(AH40),ISBLANK(AI40)),1,\"\")","v":1}]
[null,null,null,null,null,null,null,null,null,null,null,null,null,null,null,null,null,null,null,null,"☐","資源向上(長寿命化)","☐","広域化・体制強化",null,null,"☐","啓発・普及","☐","研修・会議",null,null,null,null,null,null,{"$f":"IF(AND(ISBLANK(A40),ISBLANK(B40),ISBLANK(D40),ISBLANK(G40),ISBLANK(I40),ISBLANK(Q40),ISBLANK(S40),ISBLANK(AE40),ISBLANK(AF40),ISBLANK(AH40),ISBLANK(AI40)),1,\"\")","v":1}]
[null,null,null,null,null,null,null,null,null,null,null,null,null,null,null,null,null,null,null,null,"☐","資源保全プラン","☐","特例措置を適用した活動",null,null,"☐","設置等","☐","発注事務",null,null,null,null,null,null,{"$f":"IF(AND(ISBLANK(A40),ISBLANK(B40),ISBLANK(D40),ISBLANK(G40),ISBLANK(I40),ISBLANK(Q40),ISBLANK(S40),ISBLANK(AE40),ISBLANK(AF40),ISBLANK(AH40),ISBLANK(AI40)),1,\"\")","v":1}]
[null,null,"時",null,"分","～",null,"時",null,"分",{"$f":"+IF(AND(ISNUMBER(B43),ISNUMBER(G43),INT((G43-B43)+(I43-D43)/60)>=0),INT((G43-B43)+(I43-D43)/60),\"\")","v":""},"時間",{"$f":"IF(AND(ISNUMBER(D43),ISNUMBER(I43)),ABS(D43-I43),\"\")","v":""},"分",{"$f":"IF(Q43+S43=0,\"\",Q43+S43)","v":""},"人",null,"人",null,"人","☐","農地維持","☐","資源向上(共同)","☐","調査・計画","☐","実践活動","☐","事務処理等",null,null,{"$f":"IF(ISNUMBER(AF43),VLOOKUP(AF43,$AQ$548:$AR$597,2,0),\"\")","v":""},null,null,null,{"$f":"IF(AND(ISBLANK(A43),ISBLANK(B43),ISBLANK(D43),ISBLANK(G43),ISBLANK(I43),ISBLANK(Q43),ISBLANK(S43),ISBLANK(AE43),ISBLANK(AF43),ISBLANK(AH43),ISBLANK(AI43)),1,\"\")","v":1}]
[null,null,null,null,null,null,null,null,null,null,null,null,null,null,null,null,null,null,null,null,"☐","資源向上(長寿命化)","☐","広域化・体制強化",null,null,"☐","啓発・普及","☐","研修・会議",null,null,null,null,null,null,{"$f":"IF(AND(ISBLANK(A43),ISBLANK(B43),ISBLANK(D43),ISBLANK(G43),ISBLANK(I43),ISBLANK(Q43),ISBLANK(S43),ISBLANK(AE43),ISBLANK(AF43),ISBLANK(AH43),ISBLANK(AI43)),1,\"\")","v":1}]
[null,null,null,null,null,null,null,null,null,null,null,null,null,null,null,null,null,null,null,null,"☐","資源保全プラン","☐","特例措置を適用した活動",null,null,"☐","設置等","☐","発注事務",null,null,null,null,null,null,{"$f":"IF(AND(ISBLANK(A43),ISBLANK(B43),ISBLANK(D43),ISBLANK(G43),ISBLANK(I43),ISBLANK(Q43),ISBLANK(S43),ISBLANK(AE43),ISBLANK(AF43),ISBLANK(AH43),ISBLANK(AI43)),1,\"\")","v":1}]
[null,null,"時",null,"分","～",null,"時",null,"分",{"$f":"+IF(AND(ISNUMBER(B46),ISNUMBER(G46),INT((G46-B46)+(I46-D46)/60)>=0),INT((G46-B46)+(I46-D46)/60),\"\")","v":""},"時間",{"$f":"IF(AND(ISNUMBER(D46),ISNUMBER(I46)),ABS(D46-I46),\"\")","v":""},"分",{"$f":"IF(Q46+S46=0,\"\",Q46+S46)","v":""},"人",null,"人",null,"人","☐","農地維持","☐","資源向上(共同)","☐","調査・計画","☐","実践活動","☐","事務処理等",null,null,{"$f":"IF(ISNUMBER(AF46),VLOOKUP(AF46,$AQ$548:$AR$597,2,0),\"\")","v":""},null,null,null,{"$f":"IF(AND(ISBLANK(A46),ISBLANK(B46),ISBLANK(D46),ISBLANK(G46),ISBLANK(I46),ISBLANK(Q46),ISBLANK(S46),ISBLANK(AE46),ISBLANK(AF46),ISBLANK(AH46),ISBLANK(AI46)),1,\"\")","v":1}]
[null,null,null,null,null,null,null,null,null,null,null,null,null,null,null,null,null,null,null,null,"☐","資源向上(長寿命化)","☐","広域化・体制強化",null,null,"☐","啓発・普及","☐","研修・会議",null,null,null,null,null,null,{"$f":"IF(AND(ISBLANK(A46),ISBLANK(B46),ISBLANK(D46),ISBLANK(G46),ISBLANK(I46),ISBLANK(Q46),ISBLANK(S46),ISBLANK(AE46),ISBLANK(AF46),ISBLANK(AH46),ISBLANK(AI46)),1,\"\")","v":1}]
[null,null,null,null,null,null,null,null,null,null,null,null,null,null,null,null,null,null,null,null,"☐","資源保全プラン","☐","特例措置を適用した活動",null,null,"☐","設置等","☐","発注事務",null,null,null,null,null,null,{"$f":"IF(AND(ISBLANK(A46),ISBLANK(B46),ISBLANK(D46),ISBLANK(G46),ISBLANK(I46),ISBLANK(Q46),ISBLANK(S46),ISBLANK(AE46),ISBLANK(AF46),ISBLANK(AH46),ISBLANK(AI46)),1,\"\")","v":1}]
[null,null,"時",null,"分","～",null,"時",null,"分",{"$f":"+IF(AND(ISNUMBER(B49),ISNUMBER(G49),INT((G49-B49)+(I49-D49)/60)>=0),INT((G49-B49)+(I49-D49)/60),\"\")","v":""},"時間",{"$f":"IF(AND(ISNUMBER(D49),ISNUMBER(I49)),ABS(D49-I49),\"\")","v":""},"分",{"$f":"IF(Q49+S49=0,\"\",Q49+S49)","v":""},"人",null,"人",null,"人","☐","農地維持","☐","資源向上(共同)","☐","調査・計画","☐","実践活動","☐","事務処理等",null,null,{"$f":"IF(ISNUMBER(AF49),VLOOKUP(AF49,$AQ$548:$AR$597,2,0),\"\")","v":""},null,null,null,{"$f":"IF(AND(ISBLANK(A49),ISBLANK(B49),ISBLANK(D49),ISBLANK(G49),ISBLANK(I49),ISBLANK(Q49),ISBLANK(S49),ISBLANK(AE49),ISBLANK(AF49),ISBLANK(AH49),ISBLANK(AI49)),1,\"\")","v":1}]
[null,null,null,null,null,null,null,null,null,null,null,null,null,null,null,null,null,null,null,null,"☐","資源向上(長寿命化)","☐","広域化・体制強化",null,null,"☐","啓発・普及","☐","研修・会議",null,null,null,null,null,null,{"$f":"IF(AND(ISBLANK(A49),ISBLANK(B49),ISBLANK(D49),ISBLANK(G49),ISBLANK(I49),ISBLANK(Q49),ISBLANK(S49),ISBLANK(AE49),ISBLANK(AF49),ISBLANK(AH49),ISBLANK(AI49)),1,\"\")","v":1}]
[null,null,null,null,null,null,null,null,null,null,null,null,null,null,null,null,null,null,null,null,"☐","資源保全プラン","☐","特例措置を適用した活動",null,null,"☐","設置等","☐","発注事務",null,null,null,null,null,null,{"$f":"IF(AND(ISBLANK(A49),ISBLANK(B49),ISBLANK(D49),ISBLANK(G49),ISBLANK(I49),ISBLANK(Q49),ISBLANK(S49),ISBLANK(AE49),ISBLANK(AF49),ISBLANK(AH49),ISBLANK(AI49)),1,\"\")","v":1}]
[null,null,"時",null,"分","～",null,"時",null,"分",{"$f":"+IF(AND(ISNUMBER(B52),ISNUMBER(G52),INT((G52-B52)+(I52-D52)/60)>=0),INT((G52-B52)+(I52-D52)/60),\"\")","v":""},"時間",{"$f":"IF(AND(ISNUMBER(D52),ISNUMBER(I52)),ABS(D52-I52),\"\")","v":""},"分",{"$f":"IF(Q52+S52=0,\"\",Q52+S52)","v":""},"人",null,"人",null,"人","☐","農地維持","☐","資源向上(共同)","☐","調査・計画","☐","実践活動","☐","事務処理等",null,null,{"$f":"IF(ISNUMBER(AF52),VLOOKUP(AF52,$AQ$548:$AR$597,2,0),\"\")","v":""},null,null,null,{"$f":"IF(AND(ISBLANK(A52),ISBLANK(B52),ISBLANK(D52),ISBLANK(G52),ISBLANK(I52),ISBLANK(Q52),ISBLANK(S52),ISBLANK(AE52),ISBLANK(AF52),ISBLANK(AH52),ISBLANK(AI52)),1,\"\")","v":1}]
[null,null,null,null,null,null,null,null,null,null,null,null,null,null,null,null,null,null,null,null,"☐","資源向上(長寿命化)","☐","広域化・体制強化",null,null,"☐","啓発・普及","☐","研修・会議",null,null,null,null,null,null,{"$f":"IF(AND(ISBLANK(A52),ISBLANK(B52),ISBLANK(D52),ISBLANK(G52),ISBLANK(I52),ISBLANK(Q52),ISBLANK(S52),ISBLANK(AE52),ISBLANK(AF52),ISBLANK(AH52),ISBLANK(AI52)),1,\"\")","v":1}]
[null,null,null,null,null,null,null,null,null,null,null,null,null,null,null,null,null,null,null,null,"☐","資源保全プラン","☐","特例措置を適用した活動",null,null,"☐","設置等","☐","発注事務",null,null,null,null,null,null,{"$f":"IF(AND(ISBLANK(A52),ISBLANK(B52),ISBLANK(D52),ISBLANK(G52),ISBLANK(I52),ISBLANK(Q52),ISBLANK(S52),ISBLANK(AE52),ISBLANK(AF52),ISBLANK(AH52),ISBLANK(AI52)),1,\"\")","v":1}]
[null,null,"時",null,"分","～",null,"時",null,"分",{"$f":"+IF(AND(ISNUMBER(B55),ISNUMBER(G55),INT((G55-B55)+(I55-D55)/60)>=0),INT((G55-B55)+(I55-D55)/60),\"\")","v":""},"時間",{"$f":"IF(AND(ISNUMBER(D55),ISNUMBER(I55)),ABS(D55-I55),\"\")","v":""},"分",{"$f":"IF(Q55+S55=0,\"\",Q55+S55)","v":""},"人",null,"人",null,"人","☐","農地維持","☐","資源向上(共同)","☐","調査・計画","☐","実践活動","☐","事務処理等",null,null,{"$f":"IF(ISNUMBER(AF55),VLOOKUP(AF55,$AQ$548:$AR$597,2,0),\"\")","v":""},null,null,null,{"$f":"IF(AND(ISBLANK(A55),ISBLANK(B55),ISBLANK(D55),ISBLANK(G55),ISBLANK(I55),ISBLANK(Q55),ISBLANK(S55),ISBLANK(AE55),ISBLANK(AF55),ISBLANK(AH55),ISBLANK(AI55)),1,\"\")","v":1}]
[null,null,null,null,null,null,null,null,null,null,null,null,null,null,null,null,null,null,null,null,"☐","資源向上(長寿命化)","☐","広域化・体制強化",null,null,"☐","啓発・普及","☐","研修・会議",null,null,null,null,null,null,{"$f":"IF(AND(ISBLANK(A55),ISBLANK(B55),ISBLANK(D55),ISBLANK(G55),ISBLANK(I55),ISBLANK(Q55),ISBLANK(S55),ISBLANK(AE55),ISBLANK(AF55),ISBLANK(AH55),ISBLANK(AI55)),1,\"\")","v":1}]
[null,null,null,null,null,null,null,null,null,null,null,null,null,null,null,null,null,null,null,null,"☐","資源保全プラン","☐","特例措置を適用した活動",null,null,"☐","設置等","☐","発注事務",null,null,null,null,null,null,{"$f":"IF(AND(ISBLANK(A55),ISBLANK(B55),ISBLANK(D55),ISBLANK(G55),ISBLANK(I55),ISBLANK(Q55),ISBLANK(S55),ISBLANK(AE55),ISBLANK(AF55),ISBLANK(AH55),ISBLANK(AI55)),1,\"\")","v":1}]
[null,null,"時",null,"分","～",null,"時",null,"分",{"$f":"+IF(AND(ISNUMBER(B58),ISNUMBER(G58),INT((G58-B58)+(I58-D58)/60)>=0),INT((G58-B58)+(I58-D58)/60),\"\")","v":""},"時間",{"$f":"IF(AND(ISNUMBER(D58),ISNUMBER(I58)),ABS(D58-I58),\"\")","v":""},"分",{"$f":"IF(Q58+S58=0,\"\",Q58+S58)","v":""},"人",null,"人",null,"人","☐","農地維持","☐","資源向上(共同)","☐","調査・計画","☐","実践活動","☐","事務処理等",null,null,{"$f":"IF(ISNUMBER(AF58),VLOOKUP(AF58,$AQ$548:$AR$597,2,0),\"\")","v":""},null,null,null,{"$f":"IF(AND(ISBLANK(A58),ISBLANK(B58),ISBLANK(D58),ISBLANK(G58),ISBLANK(I58),ISBLANK(Q58),ISBLANK(S58),ISBLANK(AE58),ISBLANK(AF58),ISBLANK(AH58),ISBLANK(AI58)),1,\"\")","v":1}]
[null,null,null,null,null,null,null,null,null,null,null,null,null,null,null,null,null,null,null,null,"☐","資源向上(長寿命化)","☐","広域化・体制強化",null,null,"☐","啓発・普及","☐","研修・会議",null,null,null,null,null,null,{"$f":"IF(AND(ISBLANK(A58),ISBLANK(B58),ISBLANK(D58),ISBLANK(G58),ISBLANK(I58),ISBLANK(Q58),ISBLANK(S58),ISBLANK(AE58),ISBLANK(AF58),ISBLANK(AH58),ISBLANK(AI58)),1,\"\")","v":1}]
[null,null,null,null,null,null,null,null,null,null,null,null,null,null,null,null,null,null,null,null,"☐","資源保全プラン","☐","特例措置を適用した活動",null,null,"☐","設置等","☐","発注事務",null,null,null,null,null,null,{"$f":"IF(AND(ISBLANK(A58),ISBLANK(B58),ISBLANK(D58),ISBLANK(G58),ISBLANK(I58),ISBLANK(Q58),ISBLANK(S58),ISBLANK(AE58),ISBLANK(AF58),ISBLANK(AH58),ISBLANK(AI58)),1,\"\")","v":1}]
[null,null,"時",null,"分","～",null,"時",null,"分",{"$f":"+IF(AND(ISNUMBER(B61),ISNUMBER(G61),INT((G61-B61)+(I61-D61)/60)>=0),INT((G61-B61)+(I61-D61)/60),\"\")","v":""},"時間",{"$f":"IF(AND(ISNUMBER(D61),ISNUMBER(I61)),ABS(D61-I61),\"\")","v":""},"分",{"$f":"IF(Q61+S61=0,\"\",Q61+S61)","v":""},"人",null,"人",null,"人","☐","農地維持","☐","資源向上(共同)","☐","調査・計画","☐","実践活動","☐","事務処理等",null,null,{"$f":"IF(ISNUMBER(AF61),VLOOKUP(AF61,$AQ$548:$AR$597,2,0),\"\")","v":""},null,null,null,{"$f":"IF(AND(ISBLANK(A61),ISBLANK(B61),ISBLANK(D61),ISBLANK(G61),ISBLANK(I61),ISBLANK(Q61),ISBLANK(S61),ISBLANK(AE61),ISBLANK(AF61),ISBLANK(AH61),ISBLANK(AI61)),1,\"\")","v":1}]
[null,null,null,null,null,null,null,null,null,null,null,null,null,null,null,null,null,null,null,null,"☐","資源向上(長寿命化)","☐","広域化・体制強化",null,null,"☐","啓発・普及","☐","研修・会議",null,null,null,null,null,null,{"$f":"IF(AND(ISBLANK(A61),ISBLANK(B61),ISBLANK(D61),ISBLANK(G61),ISBLANK(I61),ISBLANK(Q61),ISBLANK(S61),ISBLANK(AE61),ISBLANK(AF61),ISBLANK(AH61),ISBLANK(AI61)),1,\"\")","v":1}]
[null,null,null,null,null,null,null,null,null,null,null,null,null,null,null,null,null,null,null,null,"☐","資源保全プラン","☐","特例措置を適用した活動",null,null,"☐","設置等","☐","発注事務",null,null,null,null,null,null,{"$f":"IF(AND(ISBLANK(A61),ISBLANK(B61),ISBLANK(D61),ISBLANK(G61),ISBLANK(I61),ISBLANK(Q61),ISBLANK(S61),ISBLANK(AE61),ISBLANK(AF61),ISBLANK(AH61),ISBLANK(AI61)),1,\"\")","v":1}]
[null,null,"時",null,"分","～",null,"時",null,"分",{"$f":"+IF(AND(ISNUMBER(B64),ISNUMBER(G64),INT((G64-B64)+(I64-D64)/60)>=0),INT((G64-B64)+(I64-D64)/60),\"\")","v":""},"時間",{"$f":"IF(AND(ISNUMBER(D64),ISNUMBER(I64)),ABS(D64-I64),\"\")","v":""},"分",{"$f":"IF(Q64+S64=0,\"\",Q64+S64)","v":""},"人",null,"人",null,"人","☐","農地維持","☐","資源向上(共同)","☐","調査・計画","☐","実践活動","☐","事務処理等",null,null,{"$f":"IF(ISNUMBER(AF64),VLOOKUP(AF64,$AQ$548:$AR$597,2,0),\"\")","v":""},null,null,null,{"$f":"IF(AND(ISBLANK(A64),ISBLANK(B64),ISBLANK(D64),ISBLANK(G64),ISBLANK(I64),ISBLANK(Q64),ISBLANK(S64),ISBLANK(AE64),ISBLANK(AF64),ISBLANK(AH64),ISBLANK(AI64)),1,\"\")","v":1}]
[null,null,null,null,null,null,null,null,null,null,null,null,null,null,null,null,null,null,null,null,"☐","資源向上(長寿命化)","☐","広域化・体制強化",null,null,"☐","啓発・普及","☐","研修・会議",null,null,null,null,null,null,{"$f":"IF(AND(ISBLANK(A64),ISBLANK(B64),ISBLANK(D64),ISBLANK(G64),ISBLANK(I64),ISBLANK(Q64),ISBLANK(S64),ISBLANK(AE64),ISBLANK(AF64),ISBLANK(AH64),ISBLANK(AI64)),1,\"\")","v":1}]
[null,null,null,null,null,null,null,null,null,null,null,null,null,null,null,null,null,null,null,null,"☐","資源保全プラン","☐","特例措置を適用した活動",null,null,"☐","設置等","☐","発注事務",null,null,null,null,null,null,{"$f":"IF(AND(ISBLANK(A64),ISBLANK(B64),ISBLANK(D64),ISBLANK(G64),ISBLANK(I64),ISBLANK(Q64),ISBLANK(S64),ISBLANK(AE64),ISBLANK(AF64),ISBLANK(AH64),ISBLANK(AI64)),1,\"\")","v":1}]
[null,null,"時",null,"分","～",null,"時",null,"分",{"$f":"+IF(AND(ISNUMBER(B67),ISNUMBER(G67),INT((G67-B67)+(I67-D67)/60)>=0),INT((G67-B67)+(I67-D67)/60),\"\")","v":""},"時間",{"$f":"IF(AND(ISNUMBER(D67),ISNUMBER(I67)),ABS(D67-I67),\"\")","v":""},"分",{"$f":"IF(Q67+S67=0,\"\",Q67+S67)","v":""},"人",null,"人",null,"人","☐","農地維持","☐","資源向上(共同)","☐","調査・計画","☐","実践活動","☐","事務処理等",null,null,{"$f":"IF(ISNUMBER(AF67),VLOOKUP(AF67,$AQ$548:$AR$597,2,0),\"\")","v":""},null,null,null,{"$f":"IF(AND(ISBLANK(A67),ISBLANK(B67),ISBLANK(D67),ISBLANK(G67),ISBLANK(I67),ISBLANK(Q67),ISBLANK(S67),ISBLANK(AE67),ISBLANK(AF67),ISBLANK(AH67),ISBLANK(AI67)),1,\"\")","v":1}]
[null,null,null,null,null,null,null,null,null,null,null,null,null,null,null,null,null,null,null,null,"☐","資源向上(長寿命化)","☐","広域化・体制強化",null,null,"☐","啓発・普及","☐","研修・会議",null,null,null,null,null,null,{"$f":"IF(AND(ISBLANK(A67),ISBLANK(B67),ISBLANK(D67),ISBLANK(G67),ISBLANK(I67),ISBLANK(Q67),ISBLANK(S67),ISBLANK(AE67),ISBLANK(AF67),ISBLANK(AH67),ISBLANK(AI67)),1,\"\")","v":1}]
[null,null,null,null,null,null,null,null,null,null,null,null,null,null,null,null,null,null,null,null,"☐","資源保全プラン","☐","特例措置を適用した活動",null,null,"☐","設置等","☐","発注事務",null,null,null,null,null,null,{"$f":"IF(AND(ISBLANK(A67),ISBLANK(B67),ISBLANK(D67),ISBLANK(G67),ISBLANK(I67),ISBLANK(Q67),ISBLANK(S67),ISBLANK(AE67),ISBLANK(AF67),ISBLANK(AH67),ISBLANK(AI67)),1,\"\")","v":1}]
[null,null,"時",null,"分","～",null,"時",null,"分",{"$f":"+IF(AND(ISNUMBER(B70),ISNUMBER(G70),INT((G70-B70)+(I70-D70)/60)>=0),INT((G70-B70)+(I70-D70)/60),\"\")","v":""},"時間",{"$f":"IF(AND(ISNUMBER(D70),ISNUMBER(I70)),ABS(D70-I70),\"\")","v":""},"分",{"$f":"IF(Q70+S70=0,\"\",Q70+S70)","v":""},"人",null,"人",null,"人","☐","農地維持","☐","資源向上(共同)","☐","調査・計画","☐","実践活動","☐","事務処理等",null,null,{"$f":"IF(ISNUMBER(AF70),VLOOKUP(AF70,$AQ$548:$AR$597,2,0),\"\")","v":""},null,null,null,{"$f":"IF(AND(ISBLANK(A70),ISBLANK(B70),ISBLANK(D70),ISBLANK(G70),ISBLANK(I70),ISBLANK(Q70),ISBLANK(S70),ISBLANK(AE70),ISBLANK(AF70),ISBLANK(AH70),ISBLANK(AI70)),1,\"\")","v":1}]
[null,null,null,null,null,null,null,null,null,null,null,null,null,null,null,null,null,null,null,null,"☐","資源向上(長寿命化)","☐","広域化・体制強化",null,null,"☐","啓発・普及","☐","研修・会議",null,null,null,null,null,null,{"$f":"IF(AND(ISBLANK(A70),ISBLANK(B70),ISBLANK(D70),ISBLANK(G70),ISBLANK(I70),ISBLANK(Q70),ISBLANK(S70),ISBLANK(AE70),ISBLANK(AF70),ISBLANK(AH70),ISBLANK(AI70)),1,\"\")","v":1}]
[null,null,null,null,null,null,null,null,null,null,null,null,null,null,null,null,null,null,null,null,"☐","資源保全プラン","☐","特例措置を適用した活動",null,null,"☐","設置等","☐","発注事務",null,null,null,null,null,null,{"$f":"IF(AND(ISBLANK(A70),ISBLANK(B70),ISBLANK(D70),ISBLANK(G70),ISBLANK(I70),ISBLANK(Q70),ISBLANK(S70),ISBLANK(AE70),ISBLANK(AF70),ISBLANK(AH70),ISBLANK(AI70)),1,\"\")","v":1}]
[null,null,"時",null,"分","～",null,"時",null,"分",{"$f":"+IF(AND(ISNUMBER(B73),ISNUMBER(G73),INT((G73-B73)+(I73-D73)/60)>=0),INT((G73-B73)+(I73-D73)/60),\"\")","v":""},"時間",{"$f":"IF(AND(ISNUMBER(D73),ISNUMBER(I73)),ABS(D73-I73),\"\")","v":""},"分",{"$f":"IF(Q73+S73=0,\"\",Q73+S73)","v":""},"人",null,"人",null,"人","☐","農地維持","☐","資源向上(共同)","☐","調査・計画","☐","実践活動","☐","事務処理等",null,null,{"$f":"IF(ISNUMBER(AF73),VLOOKUP(AF73,$AQ$548:$AR$597,2,0),\"\")","v":""},null,null,null,{"$f":"IF(AND(ISBLANK(A73),ISBLANK(B73),ISBLANK(D73),ISBLANK(G73),ISBLANK(I73),ISBLANK(Q73),ISBLANK(S73),ISBLANK(AE73),ISBLANK(AF73),ISBLANK(AH73),ISBLANK(AI73)),1,\"\")","v":1}]
[null,null,null,null,null,null,null,null,null,null,null,null,null,null,null,null,null,null,null,null,"☐","資源向上(長寿命化)","☐","広域化・体制強化",null,null,"☐","啓発・普及","☐","研修・会議",null,null,null,null,null,null,{"$f":"IF(AND(ISBLANK(A73),ISBLANK(B73),ISBLANK(D73),ISBLANK(G73),ISBLANK(I73),ISBLANK(Q73),ISBLANK(S73),ISBLANK(AE73),ISBLANK(AF73),ISBLANK(AH73),ISBLANK(AI73)),1,\"\")","v":1}]
[null,null,null,null,null,null,null,null,null,null,null,null,null,null,null,null,null,null,null,null,"☐","資源保全プラン","☐","特例措置を適用した活動",null,null,"☐","設置等","☐","発注事務",null,null,null,null,null,null,{"$f":"IF(AND(ISBLANK(A73),ISBLANK(B73),ISBLANK(D73),ISBLANK(G73),ISBLANK(I73),ISBLANK(Q73),ISBLANK(S73),ISBLANK(AE73),ISBLANK(AF73),ISBLANK(AH73),ISBLANK(AI73)),1,\"\")","v":1}]
[null,null,"時",null,"分","～",null,"時",null,"分",{"$f":"+IF(AND(ISNUMBER(B76),ISNUMBER(G76),INT((G76-B76)+(I76-D76)/60)>=0),INT((G76-B76)+(I76-D76)/60),\"\")","v":""},"時間",{"$f":"IF(AND(ISNUMBER(D76),ISNUMBER(I76)),ABS(D76-I76),\"\")","v":""},"分",{"$f":"IF(Q76+S76=0,\"\",Q76+S76)","v":""},"人",null,"人",null,"人","☐","農地維持","☐","資源向上(共同)","☐","調査・計画","☐","実践活動","☐","事務処理等",null,null,{"$f":"IF(ISNUMBER(AF76),VLOOKUP(AF76,$AQ$548:$AR$597,2,0),\"\")","v":""},null,null,null,{"$f":"IF(AND(ISBLANK(A76),ISBLANK(B76),ISBLANK(D76),ISBLANK(G76),ISBLANK(I76),ISBLANK(Q76),ISBLANK(S76),ISBLANK(AE76),ISBLANK(AF76),ISBLANK(AH76),ISBLANK(AI76)),1,\"\")","v":1}]
[null,null,null,null,null,null,null,null,null,null,null,null,null,null,null,null,null,null,null,null,"☐","資源向上(長寿命化)","☐","広域化・体制強化",null,null,"☐","啓発・普及","☐","研修・会議",null,null,null,null,null,null,{"$f":"IF(AND(ISBLANK(A76),ISBLANK(B76),ISBLANK(D76),ISBLANK(G76),ISBLANK(I76),ISBLANK(Q76),ISBLANK(S76),ISBLANK(AE76),ISBLANK(AF76),ISBLANK(AH76),ISBLANK(AI76)),1,\"\")","v":1}]
[null,null,null,null,null,null,null,null,null,null,null,null,null,null,null,null,null,null,null,null,"☐","資源保全プラン","☐","特例措置を適用した活動",null,null,"☐","設置等","☐","発注事務",null,null,null,null,null,null,{"$f":"IF(AND(ISBLANK(A76),ISBLANK(B76),ISBLANK(D76),ISBLANK(G76),ISBLANK(I76),ISBLANK(Q76),ISBLANK(S76),ISBLANK(AE76),ISBLANK(AF76),ISBLANK(AH76),ISBLANK(AI76)),1,\"\")","v":1}]
[null,null,"時",null,"分","～",null,"時",null,"分",{"$f":"+IF(AND(ISNUMBER(B79),ISNUMBER(G79),INT((G79-B79)+(I79-D79)/60)>=0),INT((G79-B79)+(I79-D79)/60),\"\")","v":""},"時間",{"$f":"IF(AND(ISNUMBER(D79),ISNUMBER(I79)),ABS(D79-I79),\"\")","v":""},"分",{"$f":"IF(Q79+S79=0,\"\",Q79+S79)","v":""},"人",null,"人",null,"人","☐","農地維持","☐","資源向上(共同)","☐","調査・計画","☐","実践活動","☐","事務処理等",null,null,{"$f":"IF(ISNUMBER(AF79),VLOOKUP(AF79,$AQ$548:$AR$597,2,0),\"\")","v":""},null,null,null,{"$f":"IF(AND(ISBLANK(A79),ISBLANK(B79),ISBLANK(D79),ISBLANK(G79),ISBLANK(I79),ISBLANK(Q79),ISBLANK(S79),ISBLANK(AE79),ISBLANK(AF79),ISBLANK(AH79),ISBLANK(AI79)),1,\"\")","v":1}]
[null,null,null,null,null,null,null,null,null,null,null,null,null,null,null,null,null,null,null,null,"☐","資源向上(長寿命化)","☐","広域化・体制強化",null,null,"☐","啓発・普及","☐","研修・会議",null,null,null,null,null,null,{"$f":"IF(AND(ISBLANK(A79),ISBLANK(B79),ISBLANK(D79),ISBLANK(G79),ISBLANK(I79),ISBLANK(Q79),ISBLANK(S79),ISBLANK(AE79),ISBLANK(AF79),ISBLANK(AH79),ISBLANK(AI79)),1,\"\")","v":1}]
[null,null,null,null,null,null,null,null,null,null,null,null,null,null,null,null,null,null,null,null,"☐","資源保全プラン","☐","特例措置を適用した活動",null,null,"☐","設置等","☐","発注事務",null,null,null,null,null,null,{"$f":"IF(AND(ISBLANK(A79),ISBLANK(B79),ISBLANK(D79),ISBLANK(G79),ISBLANK(I79),ISBLANK(Q79),ISBLANK(S79),ISBLANK(AE79),ISBLANK(AF79),ISBLANK(AH79),ISBLANK(AI79)),1,\"\")","v":1}]
[null,null,"時",null,"分","～",null,"時",null,"分",{"$f":"+IF(AND(ISNUMBER(B82),ISNUMBER(G82),INT((G82-B82)+(I82-D82)/60)>=0),INT((G82-B82)+(I82-D82)/60),\"\")","v":""},"時間",{"$f":"IF(AND(ISNUMBER(D82),ISNUMBER(I82)),ABS(D82-I82),\"\")","v":""},"分",{"$f":"IF(Q82+S82=0,\"\",Q82+S82)","v":""},"人",null,"人",null,"人","☐","農地維持","☐","資源向上(共同)","☐","調査・計画","☐","実践活動","☐","事務処理等",null,null,{"$f":"IF(ISNUMBER(AF82),VLOOKUP(AF82,$AQ$548:$AR$597,2,0),\"\")","v":""},null,null,null,{"$f":"IF(AND(ISBLANK(A82),ISBLANK(B82),ISBLANK(D82),ISBLANK(G82),ISBLANK(I82),ISBLANK(Q82),ISBLANK(S82),ISBLANK(AE82),ISBLANK(AF82),ISBLANK(AH82),ISBLANK(AI82)),1,\"\")","v":1}]
[null,null,null,null,null,null,null,null,null,null,null,null,null,null,null,null,null,null,null,null,"☐","資源向上(長寿命化)","☐","広域化・体制強化",null,null,"☐","啓発・普及","☐","研修・会議",null,null,null,null,null,null,{"$f":"IF(AND(ISBLANK(A82),ISBLANK(B82),ISBLANK(D82),ISBLANK(G82),ISBLANK(I82),ISBLANK(Q82),ISBLANK(S82),ISBLANK(AE82),ISBLANK(AF82),ISBLANK(AH82),ISBLANK(AI82)),1,\"\")","v":1}]
[null,null,null,null,null,null,null,null,null,null,null,null,null,null,null,null,null,null,null,null,"☐","資源保全プラン","☐","特例措置を適用した活動",null,null,"☐","設置等","☐","発注事務",null,null,null,null,null,null,{"$f":"IF(AND(ISBLANK(A82),ISBLANK(B82),ISBLANK(D82),ISBLANK(G82),ISBLANK(I82),ISBLANK(Q82),ISBLANK(S82),ISBLANK(AE82),ISBLANK(AF82),ISBLANK(AH82),ISBLANK(AI82)),1,\"\")","v":1}]
[null,null,"時",null,"分","～",null,"時",null,"分",{"$f":"+IF(AND(ISNUMBER(B85),ISNUMBER(G85),INT((G85-B85)+(I85-D85)/60)>=0),INT((G85-B85)+(I85-D85)/60),\"\")","v":""},"時間",{"$f":"IF(AND(ISNUMBER(D85),ISNUMBER(I85)),ABS(D85-I85),\"\")","v":""},"分",{"$f":"IF(Q85+S85=0,\"\",Q85+S85)","v":""},"人",null,"人",null,"人","☐","農地維持","☐","資源向上(共同)","☐","調査・計画","☐","実践活動","☐","事務処理等",null,null,{"$f":"IF(ISNUMBER(AF85),VLOOKUP(AF85,$AQ$548:$AR$597,2,0),\"\")","v":""},null,null,null,{"$f":"IF(AND(ISBLANK(A85),ISBLANK(B85),ISBLANK(D85),ISBLANK(G85),ISBLANK(I85),ISBLANK(Q85),ISBLANK(S85),ISBLANK(AE85),ISBLANK(AF85),ISBLANK(AH85),ISBLANK(AI85)),1,\"\")","v":1}]
[null,null,null,null,null,null,null,null,null,null,null,null,null,null,null,null,null,null,null,null,"☐","資源向上(長寿命化)","☐","広域化・体制強化",null,null,"☐","啓発・普及","☐","研修・会議",null,null,null,null,null,null,{"$f":"IF(AND(ISBLANK(A85),ISBLANK(B85),ISBLANK(D85),ISBLANK(G85),ISBLANK(I85),ISBLANK(Q85),ISBLANK(S85),ISBLANK(AE85),ISBLANK(AF85),ISBLANK(AH85),ISBLANK(AI85)),1,\"\")","v":1}]
[null,null,null,null,null,null,null,null,null,null,null,null,null,null,null,null,null,null,null,null,"☐","資源保全プラン","☐","特例措置を適用した活動",null,null,"☐","設置等","☐","発注事務",null,null,null,null,null,null,{"$f":"IF(AND(ISBLANK(A85),ISBLANK(B85),ISBLANK(D85),ISBLANK(G85),ISBLANK(I85),ISBLANK(Q85),ISBLANK(S85),ISBLANK(AE85),ISBLANK(AF85),ISBLANK(AH85),ISBLANK(AI85)),1,\"\")","v":1}]
[null,null,"時",null,"分","～",null,"時",null,"分",{"$f":"+IF(AND(ISNUMBER(B88),ISNUMBER(G88),INT((G88-B88)+(I88-D88)/60)>=0),INT((G88-B88)+(I88-D88)/60),\"\")","v":""},"時間",{"$f":"IF(AND(ISNUMBER(D88),ISNUMBER(I88)),ABS(D88-I88),\"\")","v":""},"分",{"$f":"IF(Q88+S88=0,\"\",Q88+S88)","v":""},"人",null,"人",null,"人","☐","農地維持","☐","資源向上(共同)","☐","調査・計画","☐","実践活動","☐","事務処理等",null,null,{"$f":"IF(ISNUMBER(AF88),VLOOKUP(AF88,$AQ$548:$AR$597,2,0),\"\")","v":""},null,null,null,{"$f":"IF(AND(ISBLANK(A88),ISBLANK(B88),ISBLANK(D88),ISBLANK(G88),ISBLANK(I88),ISBLANK(Q88),ISBLANK(S88),ISBLANK(AE88),ISBLANK(AF88),ISBLANK(AH88),ISBLANK(AI88)),1,\"\")","v":1}]
[null,null,null,null,null,null,null,null,null,null,null,null,null,null,null,null,null,null,null,null,"☐","資源向上(長寿命化)","☐","広域化・体制強化",null,null,"☐","啓発・普及","☐","研修・会議",null,null,null,null,null,null,{"$f":"IF(AND(ISBLANK(A88),ISBLANK(B88),ISBLANK(D88),ISBLANK(G88),ISBLANK(I88),ISBLANK(Q88),ISBLANK(S88),ISBLANK(AE88),ISBLANK(AF88),ISBLANK(AH88),ISBLANK(AI88)),1,\"\")","v":1}]
[null,null,null,null,null,null,null,null,null,null,null,null,null,null,null,null,null,null,null,null,"☐","資源保全プラン","☐","特例措置を適用した活動",null,null,"☐","設置等","☐","発注事務",null,null,null,null,null,null,{"$f":"IF(AND(ISBLANK(A88),ISBLANK(B88),ISBLANK(D88),ISBLANK(G88),ISBLANK(I88),ISBLANK(Q88),ISBLANK(S88),ISBLANK(AE88),ISBLANK(AF88),ISBLANK(AH88),ISBLANK(AI88)),1,\"\")","v":1}]
[null,null,"時",null,"分","～",null,"時",null,"分",{"$f":"+IF(AND(ISNUMBER(B91),ISNUMBER(G91),INT((G91-B91)+(I91-D91)/60)>=0),INT((G91-B91)+(I91-D91)/60),\"\")","v":""},"時間",{"$f":"IF(AND(ISNUMBER(D91),ISNUMBER(I91)),ABS(D91-I91),\"\")","v":""},"分",{"$f":"IF(Q91+S91=0,\"\",Q91+S91)","v":""},"人",null,"人",null,"人","☐","農地維持","☐","資源向上(共同)","☐","調査・計画","☐","実践活動","☐","事務処理等",null,null,{"$f":"IF(ISNUMBER(AF91),VLOOKUP(AF91,$AQ$548:$AR$597,2,0),\"\")","v":""},null,null,null,{"$f":"IF(AND(ISBLANK(A91),ISBLANK(B91),ISBLANK(D91),ISBLANK(G91),ISBLANK(I91),ISBLANK(Q91),ISBLANK(S91),ISBLANK(AE91),ISBLANK(AF91),ISBLANK(AH91),ISBLANK(AI91)),1,\"\")","v":1}]
[null,null,null,null,null,null,null,null,null,null,null,null,null,null,null,null,null,null,null,null,"☐","資源向上(長寿命化)","☐","広域化・体制強化",null,null,"☐","啓発・普及","☐","研修・会議",null,null,null,null,null,null,{"$f":"IF(AND(ISBLANK(A91),ISBLANK(B91),ISBLANK(D91),ISBLANK(G91),ISBLANK(I91),ISBLANK(Q91),ISBLANK(S91),ISBLANK(AE91),ISBLANK(AF91),ISBLANK(AH91),ISBLANK(AI91)),1,\"\")","v":1}]
[null,null,null,null,null,null,null,null,null,null,null,null,null,null,null,null,null,null,null,null,"☐","資源保全プラン","☐","特例措置を適用した活動",null,null,"☐","設置等","☐","発注事務",null,null,null,null,null,null,{"$f":"IF(AND(ISBLANK(A91),ISBLANK(B91),ISBLANK(D91),ISBLANK(G91),ISBLANK(I91),ISBLANK(Q91),ISBLANK(S91),ISBLANK(AE91),ISBLANK(AF91),ISBLANK(AH91),ISBLANK(AI91)),1,\"\")","v":1}]
[null,null,"時",null,"分","～",null,"時",null,"分",{"$f":"+IF(AND(ISNUMBER(B94),ISNUMBER(G94),INT((G94-B94)+(I94-D94)/60)>=0),INT((G94-B94)+(I94-D94)/60),\"\")","v":""},"時間",{"$f":"IF(AND(ISNUMBER(D94),ISNUMBER(I94)),ABS(D94-I94),\"\")","v":""},"分",{"$f":"IF(Q94+S94=0,\"\",Q94+S94)","v":""},"人",null,"人",null,"人","☐","農地維持","☐","資源向上(共同)","☐","調査・計画","☐","実践活動","☐","事務処理等",null,null,{"$f":"IF(ISNUMBER(AF94),VLOOKUP(AF94,$AQ$548:$AR$597,2,0),\"\")","v":""},null,null,null,{"$f":"IF(AND(ISBLANK(A94),ISBLANK(B94),ISBLANK(D94),ISBLANK(G94),ISBLANK(I94),ISBLANK(Q94),ISBLANK(S94),ISBLANK(AE94),ISBLANK(AF94),ISBLANK(AH94),ISBLANK(AI94)),1,\"\")","v":1}]
[null,null,null,null,null,null,null,null,null,null,null,null,null,null,null,null,null,null,null,null,"☐","資源向上(長寿命化)","☐","広域化・体制強化",null,null,"☐","啓発・普及","☐","研修・会議",null,null,null,null,null,null,{"$f":"IF(AND(ISBLANK(A94),ISBLANK(B94),ISBLANK(D94),ISBLANK(G94),ISBLANK(I94),ISBLANK(Q94),ISBLANK(S94),ISBLANK(AE94),ISBLANK(AF94),ISBLANK(AH94),ISBLANK(AI94)),1,\"\")","v":1}]
[null,null,null,null,null,null,null,null,null,null,null,null,null,null,null,null,null,null,null,null,"☐","資源保全プラン","☐","特例措置を適用した活動",null,null,"☐","設置等","☐","発注事務",null,null,null,null,null,null,{"$f":"IF(AND(ISBLANK(A94),ISBLANK(B94),ISBLANK(D94),ISBLANK(G94),ISBLANK(I94),ISBLANK(Q94),ISBLANK(S94),ISBLANK(AE94),ISBLANK(AF94),ISBLANK(AH94),ISBLANK(AI94)),1,\"\")","v":1}]
[null,null,"時",null,"分","～",null,"時",null,"分",{"$f":"+IF(AND(ISNUMBER(B97),ISNUMBER(G97),INT((G97-B97)+(I97-D97)/60)>=0),INT((G97-B97)+(I97-D97)/60),\"\")","v":""},"時間",{"$f":"IF(AND(ISNUMBER(D97),ISNUMBER(I97)),ABS(D97-I97),\"\")","v":""},"分",{"$f":"IF(Q97+S97=0,\"\",Q97+S97)","v":""},"人",null,"人",null,"人","☐","農地維持","☐","資源向上(共同)","☐","調査・計画","☐","実践活動","☐","事務処理等",null,null,{"$f":"IF(ISNUMBER(AF97),VLOOKUP(AF97,$AQ$548:$AR$597,2,0),\"\")","v":""},null,null,null,{"$f":"IF(AND(ISBLANK(A97),ISBLANK(B97),ISBLANK(D97),ISBLANK(G97),ISBLANK(I97),ISBLANK(Q97),ISBLANK(S97),ISBLANK(AE97),ISBLANK(AF97),ISBLANK(AH97),ISBLANK(AI97)),1,\"\")","v":1}]
[null,null,null,null,null,null,null,null,null,null,null,null,null,null,null,null,null,null,null,null,"☐","資源向上(長寿命化)","☐","広域化・体制強化",null,null,"☐","啓発・普及","☐","研修・会議",null,null,null,null,null,null,{"$f":"IF(AND(ISBLANK(A97),ISBLANK(B97),ISBLANK(D97),ISBLANK(G97),ISBLANK(I97),ISBLANK(Q97),ISBLANK(S97),ISBLANK(AE97),ISBLANK(AF97),ISBLANK(AH97),ISBLANK(AI97)),1,\"\")","v":1}]
[null,null,null,null,null,null,null,null,null,null,null,null,null,null,null,null,null,null,null,null,"☐","資源保全プラン","☐","特例措置を適用した活動",null,null,"☐","設置等","☐","発注事務",null,null,null,null,null,null,{"$f":"IF(AND(ISBLANK(A97),ISBLANK(B97),ISBLANK(D97),ISBLANK(G97),ISBLANK(I97),ISBLANK(Q97),ISBLANK(S97),ISBLANK(AE97),ISBLANK(AF97),ISBLANK(AH97),ISBLANK(AI97)),1,\"\")","v":1}]
[null,null,"時",null,"分","～",null,"時",null,"分",{"$f":"+IF(AND(ISNUMBER(B100),ISNUMBER(G100),INT((G100-B100)+(I100-D100)/60)>=0),INT((G100-B100)+(I100-D100)/60),\"\")","v":""},"時間",{"$f":"IF(AND(ISNUMBER(D100),ISNUMBER(I100)),ABS(D100-I100),\"\")","v":""},"分",{"$f":"IF(Q100+S100=0,\"\",Q100+S100)","v":""},"人",null,"人",null,"人","☐","農地維持","☐","資源向上(共同)","☐","調査・計画","☐","実践活動","☐","事務処理等",null,null,{"$f":"IF(ISNUMBER(AF100),VLOOKUP(AF100,$AQ$548:$AR$597,2,0),\"\")","v":""},null,null,null,{"$f":"IF(AND(ISBLANK(A100),ISBLANK(B100),ISBLANK(D100),ISBLANK(G100),ISBLANK(I100),ISBLANK(Q100),ISBLANK(S100),ISBLANK(AE100),ISBLANK(AF100),ISBLANK(AH100),ISBLANK(AI100)),1,\"\")","v":1}]
[null,null,null,null,null,null,null,null,null,null,null,null,null,null,null,null,null,null,null,null,"☐","資源向上(長寿命化)","☐","広域化・体制強化",null,null,"☐","啓発・普及","☐","研修・会議",null,null,null,null,null,null,{"$f":"IF(AND(ISBLANK(A100),ISBLANK(B100),ISBLANK(D100),ISBLANK(G100),ISBLANK(I100),ISBLANK(Q100),ISBLANK(S100),ISBLANK(AE100),ISBLANK(AF100),ISBLANK(AH100),ISBLANK(AI100)),1,\"\")","v":1}]
[null,null,null,null,null,null,null,null,null,null,null,null,null,null,null,null,null,null,null,null,"☐","資源保全プラン","☐","特例措置を適用した活動",null,null,"☐","設置等","☐","発注事務",null,null,null,null,null,null,{"$f":"IF(AND(ISBLANK(A100),ISBLANK(B100),ISBLANK(D100),ISBLANK(G100),ISBLANK(I100),ISBLANK(Q100),ISBLANK(S100),ISBLANK(AE100),ISBLANK(AF100),ISBLANK(AH100),ISBLANK(AI100)),1,\"\")","v":1}]
[null,null,"時",null,"分","～",null,"時",null,"分",{"$f":"+IF(AND(ISNUMBER(B103),ISNUMBER(G103),INT((G103-B103)+(I103-D103)/60)>=0),INT((G103-B103)+(I103-D103)/60),\"\")","v":""},"時間",{"$f":"IF(AND(ISNUMBER(D103),ISNUMBER(I103)),ABS(D103-I103),\"\")","v":""},"分",{"$f":"IF(Q103+S103=0,\"\",Q103+S103)","v":""},"人",null,"人",null,"人","☐","農地維持","☐","資源向上(共同)","☐","調査・計画","☐","実践活動","☐","事務処理等",null,null,{"$f":"IF(ISNUMBER(AF103),VLOOKUP(AF103,$AQ$548:$AR$597,2,0),\"\")","v":""},null,null,null,{"$f":"IF(AND(ISBLANK(A103),ISBLANK(B103),ISBLANK(D103),ISBLANK(G103),ISBLANK(I103),ISBLANK(Q103),ISBLANK(S103),ISBLANK(AE103),ISBLANK(AF103),ISBLANK(AH103),ISBLANK(AI103)),1,\"\")","v":1}]
[null,null,null,null,null,null,null,null,null,null,null,null,null,null,null,null,null,null,null,null,"☐","資源向上(長寿命化)","☐","広域化・体制強化",null,null,"☐","啓発・普及","☐","研修・会議",null,null,null,null,null,null,{"$f":"IF(AND(ISBLANK(A103),ISBLANK(B103),ISBLANK(D103),ISBLANK(G103),ISBLANK(I103),ISBLANK(Q103),ISBLANK(S103),ISBLANK(AE103),ISBLANK(AF103),ISBLANK(AH103),ISBLANK(AI103)),1,\"\")","v":1}]
[null,null,null,null,null,null,null,null,null,null,null,null,null,null,null,null,null,null,null,null,"☐","資源保全プラン","☐","特例措置を適用した活動",null,null,"☐","設置等","☐","発注事務",null,null,null,null,null,null,{"$f":"IF(AND(ISBLANK(A103),ISBLANK(B103),ISBLANK(D103),ISBLANK(G103),ISBLANK(I103),ISBLANK(Q103),ISBLANK(S103),ISBLANK(AE103),ISBLANK(AF103),ISBLANK(AH103),ISBLANK(AI103)),1,\"\")","v":1}]
[null,null,"時",null,"分","～",null,"時",null,"分",{"$f":"+IF(AND(ISNUMBER(B106),ISNUMBER(G106),INT((G106-B106)+(I106-D106)/60)>=0),INT((G106-B106)+(I106-D106)/60),\"\")","v":""},"時間",{"$f":"IF(AND(ISNUMBER(D106),ISNUMBER(I106)),ABS(D106-I106),\"\")","v":""},"分",{"$f":"IF(Q106+S106=0,\"\",Q106+S106)","v":""},"人",null,"人",null,"人","☐","農地維持","☐","資源向上(共同)","☐","調査・計画","☐","実践活動","☐","事務処理等",null,null,{"$f":"IF(ISNUMBER(AF106),VLOOKUP(AF106,$AQ$548:$AR$597,2,0),\"\")","v":""},null,null,null,{"$f":"IF(AND(ISBLANK(A106),ISBLANK(B106),ISBLANK(D106),ISBLANK(G106),ISBLANK(I106),ISBLANK(Q106),ISBLANK(S106),ISBLANK(AE106),ISBLANK(AF106),ISBLANK(AH106),ISBLANK(AI106)),1,\"\")","v":1}]
[null,null,null,null,null,null,null,null,null,null,null,null,null,null,null,null,null,null,null,null,"☐","資源向上(長寿命化)","☐","広域化・体制強化",null,null,"☐","啓発・普及","☐","研修・会議",null,null,null,null,null,null,{"$f":"IF(AND(ISBLANK(A106),ISBLANK(B106),ISBLANK(D106),ISBLANK(G106),ISBLANK(I106),ISBLANK(Q106),ISBLANK(S106),ISBLANK(AE106),ISBLANK(AF106),ISBLANK(AH106),ISBLANK(AI106)),1,\"\")","v":1}]
[null,null,null,null,null,null,null,null,null,null,null,null,null,null,null,null,null,null,null,null,"☐","資源保全プラン","☐","特例措置を適用した活動",null,null,"☐","設置等","☐","発注事務",null,null,null,null,null,null,{"$f":"IF(AND(ISBLANK(A106),ISBLANK(B106),ISBLANK(D106),ISBLANK(G106),ISBLANK(I106),ISBLANK(Q106),ISBLANK(S106),ISBLANK(AE106),ISBLANK(AF106),ISBLANK(AH106),ISBLANK(AI106)),1,\"\")","v":1}]
[null,null,"時",null,"分","～",null,"時",null,"分",{"$f":"+IF(AND(ISNUMBER(B109),ISNUMBER(G109),INT((G109-B109)+(I109-D109)/60)>=0),INT((G109-B109)+(I109-D109)/60),\"\")","v":""},"時間",{"$f":"IF(AND(ISNUMBER(D109),ISNUMBER(I109)),ABS(D109-I109),\"\")","v":""},"分",{"$f":"IF(Q109+S109=0,\"\",Q109+S109)","v":""},"人",null,"人",null,"人","☐","農地維持","☐","資源向上(共同)","☐","調査・計画","☐","実践活動","☐","事務処理等",null,null,{"$f":"IF(ISNUMBER(AF109),VLOOKUP(AF109,$AQ$548:$AR$597,2,0),\"\")","v":""},null,null,null,{"$f":"IF(AND(ISBLANK(A109),ISBLANK(B109),ISBLANK(D109),ISBLANK(G109),ISBLANK(I109),ISBLANK(Q109),ISBLANK(S109),ISBLANK(AE109),ISBLANK(AF109),ISBLANK(AH109),ISBLANK(AI109)),1,\"\")","v":1}]
[null,null,null,null,null,null,null,null,null,null,null,null,null,null,null,null,null,null,null,null,"☐","資源向上(長寿命化)","☐","広域化・体制強化",null,null,"☐","啓発・普及","☐","研修・会議",null,null,null,null,null,null,{"$f":"IF(AND(ISBLANK(A109),ISBLANK(B109),ISBLANK(D109),ISBLANK(G109),ISBLANK(I109),ISBLANK(Q109),ISBLANK(S109),ISBLANK(AE109),ISBLANK(AF109),ISBLANK(AH109),ISBLANK(AI109)),1,\"\")","v":1}]
[null,null,null,null,null,null,null,null,null,null,null,null,null,null,null,null,null,null,null,null,"☐","資源保全プラン","☐","特例措置を適用した活動",null,null,"☐","設置等","☐","発注事務",null,null,null,null,null,null,{"$f":"IF(AND(ISBLANK(A109),ISBLANK(B109),ISBLANK(D109),ISBLANK(G109),ISBLANK(I109),ISBLANK(Q109),ISBLANK(S109),ISBLANK(AE109),ISBLANK(AF109),ISBLANK(AH109),ISBLANK(AI109)),1,\"\")","v":1}]
[null,null,"時",null,"分","～",null,"時",null,"分",{"$f":"+IF(AND(ISNUMBER(B112),ISNUMBER(G112),INT((G112-B112)+(I112-D112)/60)>=0),INT((G112-B112)+(I112-D112)/60),\"\")","v":""},"時間",{"$f":"IF(AND(ISNUMBER(D112),ISNUMBER(I112)),ABS(D112-I112),\"\")","v":""},"分",{"$f":"IF(Q112+S112=0,\"\",Q112+S112)","v":""},"人",null,"人",null,"人","☐","農地維持","☐","資源向上(共同)","☐","調査・計画","☐","実践活動","☐","事務処理等",null,null,{"$f":"IF(ISNUMBER(AF112),VLOOKUP(AF112,$AQ$548:$AR$597,2,0),\"\")","v":""},null,null,null,{"$f":"IF(AND(ISBLANK(A112),ISBLANK(B112),ISBLANK(D112),ISBLANK(G112),ISBLANK(I112),ISBLANK(Q112),ISBLANK(S112),ISBLANK(AE112),ISBLANK(AF112),ISBLANK(AH112),ISBLANK(AI112)),1,\"\")","v":1}]
[null,null,null,null,null,null,null,null,null,null,null,null,null,null,null,null,null,null,null,null,"☐","資源向上(長寿命化)","☐","広域化・体制強化",null,null,"☐","啓発・普及","☐","研修・会議",null,null,null,null,null,null,{"$f":"IF(AND(ISBLANK(A112),ISBLANK(B112),ISBLANK(D112),ISBLANK(G112),ISBLANK(I112),ISBLANK(Q112),ISBLANK(S112),ISBLANK(AE112),ISBLANK(AF112),ISBLANK(AH112),ISBLANK(AI112)),1,\"\")","v":1}]
[null,null,null,null,null,null,null,null,null,null,null,null,null,null,null,null,null,null,null,null,"☐","資源保全プラン","☐","特例措置を適用した活動",null,null,"☐","設置等","☐","発注事務",null,null,null,null,null,null,{"$f":"IF(AND(ISBLANK(A112),ISBLANK(B112),ISBLANK(D112),ISBLANK(G112),ISBLANK(I112),ISBLANK(Q112),ISBLANK(S112),ISBLANK(AE112),ISBLANK(AF112),ISBLANK(AH112),ISBLANK(AI112)),1,\"\")","v":1}]
[null,null,"時",null,"分","～",null,"時",null,"分",{"$f":"+IF(AND(ISNUMBER(B115),ISNUMBER(G115),INT((G115-B115)+(I115-D115)/60)>=0),INT((G115-B115)+(I115-D115)/60),\"\")","v":""},"時間",{"$f":"IF(AND(ISNUMBER(D115),ISNUMBER(I115)),ABS(D115-I115),\"\")","v":""},"分",{"$f":"IF(Q115+S115=0,\"\",Q115+S115)","v":""},"人",null,"人",null,"人","☐","農地維持","☐","資源向上(共同)","☐","調査・計画","☐","実践活動","☐","事務処理等",null,null,{"$f":"IF(ISNUMBER(AF115),VLOOKUP(AF115,$AQ$548:$AR$597,2,0),\"\")","v":""},null,null,null,{"$f":"IF(AND(ISBLANK(A115),ISBLANK(B115),ISBLANK(D115),ISBLANK(G115),ISBLANK(I115),ISBLANK(Q115),ISBLANK(S115),ISBLANK(AE115),ISBLANK(AF115),ISBLANK(AH115),ISBLANK(AI115)),1,\"\")","v":1}]
[null,null,null,null,null,null,null,null,null,null,null,null,null,null,null,null,null,null,null,null,"☐","資源向上(長寿命化)","☐","広域化・体制強化",null,null,"☐","啓発・普及","☐","研修・会議",null,null,null,null,null,null,{"$f":"IF(AND(ISBLANK(A115),ISBLANK(B115),ISBLANK(D115),ISBLANK(G115),ISBLANK(I115),ISBLANK(Q115),ISBLANK(S115),ISBLANK(AE115),ISBLANK(AF115),ISBLANK(AH115),ISBLANK(AI115)),1,\"\")","v":1}]
[null,null,null,null,null,null,null,null,null,null,null,null,null,null,null,null,null,null,null,null,"☐","資源保全プラン","☐","特例措置を適用した活動",null,null,"☐","設置等","☐","発注事務",null,null,null,null,null,null,{"$f":"IF(AND(ISBLANK(A115),ISBLANK(B115),ISBLANK(D115),ISBLANK(G115),ISBLANK(I115),ISBLANK(Q115),ISBLANK(S115),ISBLANK(AE115),ISBLANK(AF115),ISBLANK(AH115),ISBLANK(AI115)),1,\"\")","v":1}]
[null,null,"時",null,"分","～",null,"時",null,"分",{"$f":"+IF(AND(ISNUMBER(B118),ISNUMBER(G118),INT((G118-B118)+(I118-D118)/60)>=0),INT((G118-B118)+(I118-D118)/60),\"\")","v":""},"時間",{"$f":"IF(AND(ISNUMBER(D118),ISNUMBER(I118)),ABS(D118-I118),\"\")","v":""},"分",{"$f":"IF(Q118+S118=0,\"\",Q118+S118)","v":""},"人",null,"人",null,"人","☐","農地維持","☐","資源向上(共同)","☐","調査・計画","☐","実践活動","☐","事務処理等",null,null,{"$f":"IF(ISNUMBER(AF118),VLOOKUP(AF118,$AQ$548:$AR$597,2,0),\"\")","v":""},null,null,null,{"$f":"IF(AND(ISBLANK(A118),ISBLANK(B118),ISBLANK(D118),ISBLANK(G118),ISBLANK(I118),ISBLANK(Q118),ISBLANK(S118),ISBLANK(AE118),ISBLANK(AF118),ISBLANK(AH118),ISBLANK(AI118)),1,\"\")","v":1}]
[null,null,null,null,null,null,null,null,null,null,null,null,null,null,null,null,null,null,null,null,"☐","資源向上(長寿命化)","☐","広域化・体制強化",null,null,"☐","啓発・普及","☐","研修・会議",null,null,null,null,null,null,{"$f":"IF(AND(ISBLANK(A118),ISBLANK(B118),ISBLANK(D118),ISBLANK(G118),ISBLANK(I118),ISBLANK(Q118),ISBLANK(S118),ISBLANK(AE118),ISBLANK(AF118),ISBLANK(AH118),ISBLANK(AI118)),1,\"\")","v":1}]
[null,null,null,null,null,null,null,null,null,null,null,null,null,null,null,null,null,null,null,null,"☐","資源保全プラン","☐","特例措置を適用した活動",null,null,"☐","設置等","☐","発注事務",null,null,null,null,null,null,{"$f":"IF(AND(ISBLANK(A118),ISBLANK(B118),ISBLANK(D118),ISBLANK(G118),ISBLANK(I118),ISBLANK(Q118),ISBLANK(S118),ISBLANK(AE118),ISBLANK(AF118),ISBLANK(AH118),ISBLANK(AI118)),1,\"\")","v":1}]
[null,null,"時",null,"分","～",null,"時",null,"分",{"$f":"+IF(AND(ISNUMBER(B121),ISNUMBER(G121),INT((G121-B121)+(I121-D121)/60)>=0),INT((G121-B121)+(I121-D121)/60),\"\")","v":""},"時間",{"$f":"IF(AND(ISNUMBER(D121),ISNUMBER(I121)),ABS(D121-I121),\"\")","v":""},"分",{"$f":"IF(Q121+S121=0,\"\",Q121+S121)","v":""},"人",null,"人",null,"人","☐","農地維持","☐","資源向上(共同)","☐","調査・計画","☐","実践活動","☐","事務処理等",null,null,{"$f":"IF(ISNUMBER(AF121),VLOOKUP(AF121,$AQ$548:$AR$597,2,0),\"\")","v":""},null,null,null,{"$f":"IF(AND(ISBLANK(A121),ISBLANK(B121),ISBLANK(D121),ISBLANK(G121),ISBLANK(I121),ISBLANK(Q121),ISBLANK(S121),ISBLANK(AE121),ISBLANK(AF121),ISBLANK(AH121),ISBLANK(AI121)),1,\"\")","v":1}]
[null,null,null,null,null,null,null,null,null,null,null,null,null,null,null,null,null,null,null,null,"☐","資源向上(長寿命化)","☐","広域化・体制強化",null,null,"☐","啓発・普及","☐","研修・会議",null,null,null,null,null,null,{"$f":"IF(AND(ISBLANK(A121),ISBLANK(B121),ISBLANK(D121),ISBLANK(G121),ISBLANK(I121),ISBLANK(Q121),ISBLANK(S121),ISBLANK(AE121),ISBLANK(AF121),ISBLANK(AH121),ISBLANK(AI121)),1,\"\")","v":1}]
[null,null,null,null,null,null,null,null,null,null,null,null,null,null,null,null,null,null,null,null,"☐","資源保全プラン","☐","特例措置を適用した活動",null,null,"☐","設置等","☐","発注事務",null,null,null,null,null,null,{"$f":"IF(AND(ISBLANK(A121),ISBLANK(B121),ISBLANK(D121),ISBLANK(G121),ISBLANK(I121),ISBLANK(Q121),ISBLANK(S121),ISBLANK(AE121),ISBLANK(AF121),ISBLANK(AH121),ISBLANK(AI121)),1,\"\")","v":1}]
[null,null,"時",null,"分","～",null,"時",null,"分",{"$f":"+IF(AND(ISNUMBER(B124),ISNUMBER(G124),INT((G124-B124)+(I124-D124)/60)>=0),INT((G124-B124)+(I124-D124)/60),\"\")","v":""},"時間",{"$f":"IF(AND(ISNUMBER(D124),ISNUMBER(I124)),ABS(D124-I124),\"\")","v":""},"分",{"$f":"IF(Q124+S124=0,\"\",Q124+S124)","v":""},"人",null,"人",null,"人","☐","農地維持","☐","資源向上(共同)","☐","調査・計画","☐","実践活動","☐","事務処理等",null,null,{"$f":"IF(ISNUMBER(AF124),VLOOKUP(AF124,$AQ$548:$AR$597,2,0),\"\")","v":""},null,null,null,{"$f":"IF(AND(ISBLANK(A124),ISBLANK(B124),ISBLANK(D124),ISBLANK(G124),ISBLANK(I124),ISBLANK(Q124),ISBLANK(S124),ISBLANK(AE124),ISBLANK(AF124),ISBLANK(AH124),ISBLANK(AI124)),1,\"\")","v":1}]
[null,null,null,null,null,null,null,null,null,null,null,null,null,null,null,null,null,null,null,null,"☐","資源向上(長寿命化)","☐","広域化・体制強化",null,null,"☐","啓発・普及","☐","研修・会議",null,null,null,null,null,null,{"$f":"IF(AND(ISBLANK(A124),ISBLANK(B124),ISBLANK(D124),ISBLANK(G124),ISBLANK(I124),ISBLANK(Q124),ISBLANK(S124),ISBLANK(AE124),ISBLANK(AF124),ISBLANK(AH124),ISBLANK(AI124)),1,\"\")","v":1}]
[null,null,null,null,null,null,null,null,null,null,null,null,null,null,null,null,null,null,null,null,"☐","資源保全プラン","☐","特例措置を適用した活動",null,null,"☐","設置等","☐","発注事務",null,null,null,null,null,null,{"$f":"IF(AND(ISBLANK(A124),ISBLANK(B124),ISBLANK(D124),ISBLANK(G124),ISBLANK(I124),ISBLANK(Q124),ISBLANK(S124),ISBLANK(AE124),ISBLANK(AF124),ISBLANK(AH124),ISBLANK(AI124)),1,\"\")","v":1}]
[null,null,"時",null,"分","～",null,"時",null,"分",{"$f":"+IF(AND(ISNUMBER(B127),ISNUMBER(G127),INT((G127-B127)+(I127-D127)/60)>=0),INT((G127-B127)+(I127-D127)/60),\"\")","v":""},"時間",{"$f":"IF(AND(ISNUMBER(D127),ISNUMBER(I127)),ABS(D127-I127),\"\")","v":""},"分",{"$f":"IF(Q127+S127=0,\"\",Q127+S127)","v":""},"人",null,"人",null,"人","☐","農地維持","☐","資源向上(共同)","☐","調査・計画","☐","実践活動","☐","事務処理等",null,null,{"$f":"IF(ISNUMBER(AF127),VLOOKUP(AF127,$AQ$548:$AR$597,2,0),\"\")","v":""},null,null,null,{"$f":"IF(AND(ISBLANK(A127),ISBLANK(B127),ISBLANK(D127),ISBLANK(G127),ISBLANK(I127),ISBLANK(Q127),ISBLANK(S127),ISBLANK(AE127),ISBLANK(AF127),ISBLANK(AH127),ISBLANK(AI127)),1,\"\")","v":1}]
[null,null,null,null,null,null,null,null,null,null,null,null,null,null,null,null,null,null,null,null,"☐","資源向上(長寿命化)","☐","広域化・体制強化",null,null,"☐","啓発・普及","☐","研修・会議",null,null,null,null,null,null,{"$f":"IF(AND(ISBLANK(A127),ISBLANK(B127),ISBLANK(D127),ISBLANK(G127),ISBLANK(I127),ISBLANK(Q127),ISBLANK(S127),ISBLANK(AE127),ISBLANK(AF127),ISBLANK(AH127),ISBLANK(AI127)),1,\"\")","v":1}]
[null,null,null,null,null,null,null,null,null,null,null,null,null,null,null,null,null,null,null,null,"☐","資源保全プラン","☐","特例措置を適用した活動",null,null,"☐","設置等","☐","発注事務",null,null,null,null,null,null,{"$f":"IF(AND(ISBLANK(A127),ISBLANK(B127),ISBLANK(D127),ISBLANK(G127),ISBLANK(I127),ISBLANK(Q127),ISBLANK(S127),ISBLANK(AE127),ISBLANK(AF127),ISBLANK(AH127),ISBLANK(AI127)),1,\"\")","v":1}]
[null,null,"時",null,"分","～",null,"時",null,"分",{"$f":"+IF(AND(ISNUMBER(B130),ISNUMBER(G130),INT((G130-B130)+(I130-D130)/60)>=0),INT((G130-B130)+(I130-D130)/60),\"\")","v":""},"時間",{"$f":"IF(AND(ISNUMBER(D130),ISNUMBER(I130)),ABS(D130-I130),\"\")","v":""},"分",{"$f":"IF(Q130+S130=0,\"\",Q130+S130)","v":""},"人",null,"人",null,"人","☐","農地維持","☐","資源向上(共同)","☐","調査・計画","☐","実践活動","☐","事務処理等",null,null,{"$f":"IF(ISNUMBER(AF130),VLOOKUP(AF130,$AQ$548:$AR$597,2,0),\"\")","v":""},null,null,null,{"$f":"IF(AND(ISBLANK(A130),ISBLANK(B130),ISBLANK(D130),ISBLANK(G130),ISBLANK(I130),ISBLANK(Q130),ISBLANK(S130),ISBLANK(AE130),ISBLANK(AF130),ISBLANK(AH130),ISBLANK(AI130)),1,\"\")","v":1}]
[null,null,null,null,null,null,null,null,null,null,null,null,null,null,null,null,null,null,null,null,"☐","資源向上(長寿命化)","☐","広域化・体制強化",null,null,"☐","啓発・普及","☐","研修・会議",null,null,null,null,null,null,{"$f":"IF(AND(ISBLANK(A130),ISBLANK(B130),ISBLANK(D130),ISBLANK(G130),ISBLANK(I130),ISBLANK(Q130),ISBLANK(S130),ISBLANK(AE130),ISBLANK(AF130),ISBLANK(AH130),ISBLANK(AI130)),1,\"\")","v":1}]
[null,null,null,null,null,null,null,null,null,null,null,null,null,null,null,null,null,null,null,null,"☐","資源保全プラン","☐","特例措置を適用した活動",null,null,"☐","設置等","☐","発注事務",null,null,null,null,null,null,{"$f":"IF(AND(ISBLANK(A130),ISBLANK(B130),ISBLANK(D130),ISBLANK(G130),ISBLANK(I130),ISBLANK(Q130),ISBLANK(S130),ISBLANK(AE130),ISBLANK(AF130),ISBLANK(AH130),ISBLANK(AI130)),1,\"\")","v":1}]
[null,null,"時",null,"分","～",null,"時",null,"分",{"$f":"+IF(AND(ISNUMBER(B133),ISNUMBER(G133),INT((G133-B133)+(I133-D133)/60)>=0),INT((G133-B133)+(I133-D133)/60),\"\")","v":""},"時間",{"$f":"IF(AND(ISNUMBER(D133),ISNUMBER(I133)),ABS(D133-I133),\"\")","v":""},"分",{"$f":"IF(Q133+S133=0,\"\",Q133+S133)","v":""},"人",null,"人",null,"人","☐","農地維持","☐","資源向上(共同)","☐","調査・計画","☐","実践活動","☐","事務処理等",null,null,{"$f":"IF(ISNUMBER(AF133),VLOOKUP(AF133,$AQ$548:$AR$597,2,0),\"\")","v":""},null,null,null,{"$f":"IF(AND(ISBLANK(A133),ISBLANK(B133),ISBLANK(D133),ISBLANK(G133),ISBLANK(I133),ISBLANK(Q133),ISBLANK(S133),ISBLANK(AE133),ISBLANK(AF133),ISBLANK(AH133),ISBLANK(AI133)),1,\"\")","v":1}]
[null,null,null,null,null,null,null,null,null,null,null,null,null,null,null,null,null,null,null,null,"☐","資源向上(長寿命化)","☐","広域化・体制強化",null,null,"☐","啓発・普及","☐","研修・会議",null,null,null,null,null,null,{"$f":"IF(AND(ISBLANK(A133),ISBLANK(B133),ISBLANK(D133),ISBLANK(G133),ISBLANK(I133),ISBLANK(Q133),ISBLANK(S133),ISBLANK(AE133),ISBLANK(AF133),ISBLANK(AH133),ISBLANK(AI133)),1,\"\")","v":1}]
[null,null,null,null,null,null,null,null,null,null,null,null,null,null,null,null,null,null,null,null,"☐","資源保全プラン","☐","特例措置を適用した活動",null,null,"☐","設置等","☐","発注事務",null,null,null,null,null,null,{"$f":"IF(AND(ISBLANK(A133),ISBLANK(B133),ISBLANK(D133),ISBLANK(G133),ISBLANK(I133),ISBLANK(Q133),ISBLANK(S133),ISBLANK(AE133),ISBLANK(AF133),ISBLANK(AH133),ISBLANK(AI133)),1,\"\")","v":1}]
[null,null,"時",null,"分","～",null,"時",null,"分",{"$f":"+IF(AND(ISNUMBER(B136),ISNUMBER(G136),INT((G136-B136)+(I136-D136)/60)>=0),INT((G136-B136)+(I136-D136)/60),\"\")","v":""},"時間",{"$f":"IF(AND(ISNUMBER(D136),ISNUMBER(I136)),ABS(D136-I136),\"\")","v":""},"分",{"$f":"IF(Q136+S136=0,\"\",Q136+S136)","v":""},"人",null,"人",null,"人","☐","農地維持","☐","資源向上(共同)","☐","調査・計画","☐","実践活動","☐","事務処理等",null,null,{"$f":"IF(ISNUMBER(AF136),VLOOKUP(AF136,$AQ$548:$AR$597,2,0),\"\")","v":""},null,null,null,{"$f":"IF(AND(ISBLANK(A136),ISBLANK(B136),ISBLANK(D136),ISBLANK(G136),ISBLANK(I136),ISBLANK(Q136),ISBLANK(S136),ISBLANK(AE136),ISBLANK(AF136),ISBLANK(AH136),ISBLANK(AI136)),1,\"\")","v":1}]
[null,null,null,null,null,null,null,null,null,null,null,null,null,null,null,null,null,null,null,null,"☐","資源向上(長寿命化)","☐","広域化・体制強化",null,null,"☐","啓発・普及","☐","研修・会議",null,null,null,null,null,null,{"$f":"IF(AND(ISBLANK(A136),ISBLANK(B136),ISBLANK(D136),ISBLANK(G136),ISBLANK(I136),ISBLANK(Q136),ISBLANK(S136),ISBLANK(AE136),ISBLANK(AF136),ISBLANK(AH136),ISBLANK(AI136)),1,\"\")","v":1}]
[null,null,null,null,null,null,null,null,null,null,null,null,null,null,null,null,null,null,null,null,"☐","資源保全プラン","☐","特例措置を適用した活動",null,null,"☐","設置等","☐","発注事務",null,null,null,null,null,null,{"$f":"IF(AND(ISBLANK(A136),ISBLANK(B136),ISBLANK(D136),ISBLANK(G136),ISBLANK(I136),ISBLANK(Q136),ISBLANK(S136),ISBLANK(AE136),ISBLANK(AF136),ISBLANK(AH136),ISBLANK(AI136)),1,\"\")","v":1}]
[null,null,"時",null,"分","～",null,"時",null,"分",{"$f":"+IF(AND(ISNUMBER(B139),ISNUMBER(G139),INT((G139-B139)+(I139-D139)/60)>=0),INT((G139-B139)+(I139-D139)/60),\"\")","v":""},"時間",{"$f":"IF(AND(ISNUMBER(D139),ISNUMBER(I139)),ABS(D139-I139),\"\")","v":""},"分",{"$f":"IF(Q139+S139=0,\"\",Q139+S139)","v":""},"人",null,"人",null,"人","☐","農地維持","☐","資源向上(共同)","☐","調査・計画","☐","実践活動","☐","事務処理等",null,null,{"$f":"IF(ISNUMBER(AF139),VLOOKUP(AF139,$AQ$548:$AR$597,2,0),\"\")","v":""},null,null,null,{"$f":"IF(AND(ISBLANK(A139),ISBLANK(B139),ISBLANK(D139),ISBLANK(G139),ISBLANK(I139),ISBLANK(Q139),ISBLANK(S139),ISBLANK(AE139),ISBLANK(AF139),ISBLANK(AH139),ISBLANK(AI139)),1,\"\")","v":1}]
[null,null,null,null,null,null,null,null,null,null,null,null,null,null,null,null,null,null,null,null,"☐","資源向上(長寿命化)","☐","広域化・体制強化",null,null,"☐","啓発・普及","☐","研修・会議",null,null,null,null,null,null,{"$f":"IF(AND(ISBLANK(A139),ISBLANK(B139),ISBLANK(D139),ISBLANK(G139),ISBLANK(I139),ISBLANK(Q139),ISBLANK(S139),ISBLANK(AE139),ISBLANK(AF139),ISBLANK(AH139),ISBLANK(AI139)),1,\"\")","v":1}]
[null,null,null,null,null,null,null,null,null,null,null,null,null,null,null,null,null,null,null,null,"☐","資源保全プラン","☐","特例措置を適用した活動",null,null,"☐","設置等","☐","発注事務",null,null,null,null,null,null,{"$f":"IF(AND(ISBLANK(A139),ISBLANK(B139),ISBLANK(D139),ISBLANK(G139),ISBLANK(I139),ISBLANK(Q139),ISBLANK(S139),ISBLANK(AE139),ISBLANK(AF139),ISBLANK(AH139),ISBLANK(AI139)),1,\"\")","v":1}]
[null,null,"時",null,"分","～",null,"時",null,"分",{"$f":"+IF(AND(ISNUMBER(B142),ISNUMBER(G142),INT((G142-B142)+(I142-D142)/60)>=0),INT((G142-B142)+(I142-D142)/60),\"\")","v":""},"時間",{"$f":"IF(AND(ISNUMBER(D142),ISNUMBER(I142)),ABS(D142-I142),\"\")","v":""},"分",{"$f":"IF(Q142+S142=0,\"\",Q142+S142)","v":""},"人",null,"人",null,"人","☐","農地維持","☐","資源向上(共同)","☐","調査・計画","☐","実践活動","☐","事務処理等",null,null,{"$f":"IF(ISNUMBER(AF142),VLOOKUP(AF142,$AQ$548:$AR$597,2,0),\"\")","v":""},null,null,null,{"$f":"IF(AND(ISBLANK(A142),ISBLANK(B142),ISBLANK(D142),ISBLANK(G142),ISBLANK(I142),ISBLANK(Q142),ISBLANK(S142),ISBLANK(AE142),ISBLANK(AF142),ISBLANK(AH142),ISBLANK(AI142)),1,\"\")","v":1}]
[null,null,null,null,null,null,null,null,null,null,null,null,null,null,null,null,null,null,null,null,"☐","資源向上(長寿命化)","☐","広域化・体制強化",null,null,"☐","啓発・普及","☐","研修・会議",null,null,null,null,null,null,{"$f":"IF(AND(ISBLANK(A142),ISBLANK(B142),ISBLANK(D142),ISBLANK(G142),ISBLANK(I142),ISBLANK(Q142),ISBLANK(S142),ISBLANK(AE142),ISBLANK(AF142),ISBLANK(AH142),ISBLANK(AI142)),1,\"\")","v":1}]
[null,null,null,null,null,null,null,null,null,null,null,null,null,null,null,null,null,null,null,null,"☐","資源保全プラン","☐","特例措置を適用した活動",null,null,"☐","設置等","☐","発注事務",null,null,null,null,null,null,{"$f":"IF(AND(ISBLANK(A142),ISBLANK(B142),ISBLANK(D142),ISBLANK(G142),ISBLANK(I142),ISBLANK(Q142),ISBLANK(S142),ISBLANK(AE142),ISBLANK(AF142),ISBLANK(AH142),ISBLANK(AI142)),1,\"\")","v":1}]
[null,null,"時",null,"分","～",null,"時",null,"分",{"$f":"+IF(AND(ISNUMBER(B145),ISNUMBER(G145),INT((G145-B145)+(I145-D145)/60)>=0),INT((G145-B145)+(I145-D145)/60),\"\")","v":""},"時間",{"$f":"IF(AND(ISNUMBER(D145),ISNUMBER(I145)),ABS(D145-I145),\"\")","v":""},"分",{"$f":"IF(Q145+S145=0,\"\",Q145+S145)","v":""},"人",null,"人",null,"人","☐","農地維持","☐","資源向上(共同)","☐","調査・計画","☐","実践活動","☐","事務処理等",null,null,{"$f":"IF(ISNUMBER(AF145),VLOOKUP(AF145,$AQ$548:$AR$597,2,0),\"\")","v":""},null,null,null,{"$f":"IF(AND(ISBLANK(A145),ISBLANK(B145),ISBLANK(D145),ISBLANK(G145),ISBLANK(I145),ISBLANK(Q145),ISBLANK(S145),ISBLANK(AE145),ISBLANK(AF145),ISBLANK(AH145),ISBLANK(AI145)),1,\"\")","v":1}]
[null,null,null,null,null,null,null,null,null,null,null,null,null,null,null,null,null,null,null,null,"☐","資源向上(長寿命化)","☐","広域化・体制強化",null,null,"☐","啓発・普及","☐","研修・会議",null,null,null,null,null,null,{"$f":"IF(AND(ISBLANK(A145),ISBLANK(B145),ISBLANK(D145),ISBLANK(G145),ISBLANK(I145),ISBLANK(Q145),ISBLANK(S145),ISBLANK(AE145),ISBLANK(AF145),ISBLANK(AH145),ISBLANK(AI145)),1,\"\")","v":1}]
[null,null,null,null,null,null,null,null,null,null,null,null,null,null,null,null,null,null,null,null,"☐","資源保全プラン","☐","特例措置を適用した活動",null,null,"☐","設置等","☐","発注事務",null,null,null,null,null,null,{"$f":"IF(AND(ISBLANK(A145),ISBLANK(B145),ISBLANK(D145),ISBLANK(G145),ISBLANK(I145),ISBLANK(Q145),ISBLANK(S145),ISBLANK(AE145),ISBLANK(AF145),ISBLANK(AH145),ISBLANK(AI145)),1,\"\")","v":1}]
[null,null,"時",null,"分","～",null,"時",null,"分",{"$f":"+IF(AND(ISNUMBER(B148),ISNUMBER(G148),INT((G148-B148)+(I148-D148)/60)>=0),INT((G148-B148)+(I148-D148)/60),\"\")","v":""},"時間",{"$f":"IF(AND(ISNUMBER(D148),ISNUMBER(I148)),ABS(D148-I148),\"\")","v":""},"分",{"$f":"IF(Q148+S148=0,\"\",Q148+S148)","v":""},"人",null,"人",null,"人","☐","農地維持","☐","資源向上(共同)","☐","調査・計画","☐","実践活動","☐","事務処理等",null,null,{"$f":"IF(ISNUMBER(AF148),VLOOKUP(AF148,$AQ$548:$AR$597,2,0),\"\")","v":""},null,null,null,{"$f":"IF(AND(ISBLANK(A148),ISBLANK(B148),ISBLANK(D148),ISBLANK(G148),ISBLANK(I148),ISBLANK(Q148),ISBLANK(S148),ISBLANK(AE148),ISBLANK(AF148),ISBLANK(AH148),ISBLANK(AI148)),1,\"\")","v":1}]
[null,null,null,null,null,null,null,null,null,null,null,null,null,null,null,null,null,null,null,null,"☐","資源向上(長寿命化)","☐","広域化・体制強化",null,null,"☐","啓発・普及","☐","研修・会議",null,null,null,null,null,null,{"$f":"IF(AND(ISBLANK(A148),ISBLANK(B148),ISBLANK(D148),ISBLANK(G148),ISBLANK(I148),ISBLANK(Q148),ISBLANK(S148),ISBLANK(AE148),ISBLANK(AF148),ISBLANK(AH148),ISBLANK(AI148)),1,\"\")","v":1}]
[null,null,null,null,null,null,null,null,null,null,null,null,null,null,null,null,null,null,null,null,"☐","資源保全プラン","☐","特例措置を適用した活動",null,null,"☐","設置等","☐","発注事務",null,null,null,null,null,null,{"$f":"IF(AND(ISBLANK(A148),ISBLANK(B148),ISBLANK(D148),ISBLANK(G148),ISBLANK(I148),ISBLANK(Q148),ISBLANK(S148),ISBLANK(AE148),ISBLANK(AF148),ISBLANK(AH148),ISBLANK(AI148)),1,\"\")","v":1}]
[null,null,"時",null,"分","～",null,"時",null,"分",{"$f":"+IF(AND(ISNUMBER(B151),ISNUMBER(G151),INT((G151-B151)+(I151-D151)/60)>=0),INT((G151-B151)+(I151-D151)/60),\"\")","v":""},"時間",{"$f":"IF(AND(ISNUMBER(D151),ISNUMBER(I151)),ABS(D151-I151),\"\")","v":""},"分",{"$f":"IF(Q151+S151=0,\"\",Q151+S151)","v":""},"人",null,"人",null,"人","☐","農地維持","☐","資源向上(共同)","☐","調査・計画","☐","実践活動","☐","事務処理等",null,null,{"$f":"IF(ISNUMBER(AF151),VLOOKUP(AF151,$AQ$548:$AR$597,2,0),\"\")","v":""},null,null,null,{"$f":"IF(AND(ISBLANK(A151),ISBLANK(B151),ISBLANK(D151),ISBLANK(G151),ISBLANK(I151),ISBLANK(Q151),ISBLANK(S151),ISBLANK(AE151),ISBLANK(AF151),ISBLANK(AH151),ISBLANK(AI151)),1,\"\")","v":1}]
[null,null,null,null,null,null,null,null,null,null,null,null,null,null,null,null,null,null,null,null,"☐","資源向上(長寿命化)","☐","広域化・体制強化",null,null,"☐","啓発・普及","☐","研修・会議",null,null,null,null,null,null,{"$f":"IF(AND(ISBLANK(A151),ISBLANK(B151),ISBLANK(D151),ISBLANK(G151),ISBLANK(I151),ISBLANK(Q151),ISBLANK(S151),ISBLANK(AE151),ISBLANK(AF151),ISBLANK(AH151),ISBLANK(AI151)),1,\"\")","v":1}]
[null,null,null,null,null,null,null,null,null,null,null,null,null,null,null,null,null,null,null,null,"☐","資源保全プラン","☐","特例措置を適用した活動",null,null,"☐","設置等","☐","発注事務",null,null,null,null,null,null,{"$f":"IF(AND(ISBLANK(A151),ISBLANK(B151),ISBLANK(D151),ISBLANK(G151),ISBLANK(I151),ISBLANK(Q151),ISBLANK(S151),ISBLANK(AE151),ISBLANK(AF151),ISBLANK(AH151),ISBLANK(AI151)),1,\"\")","v":1}]
[null,null,"時",null,"分","～",null,"時",null,"分",{"$f":"+IF(AND(ISNUMBER(B154),ISNUMBER(G154),INT((G154-B154)+(I154-D154)/60)>=0),INT((G154-B154)+(I154-D154)/60),\"\")","v":""},"時間",{"$f":"IF(AND(ISNUMBER(D154),ISNUMBER(I154)),ABS(D154-I154),\"\")","v":""},"分",{"$f":"IF(Q154+S154=0,\"\",Q154+S154)","v":""},"人",null,"人",null,"人","☐","農地維持","☐","資源向上(共同)","☐","調査・計画","☐","実践活動","☐","事務処理等",null,null,{"$f":"IF(ISNUMBER(AF154),VLOOKUP(AF154,$AQ$548:$AR$597,2,0),\"\")","v":""},null,null,null,{"$f":"IF(AND(ISBLANK(A154),ISBLANK(B154),ISBLANK(D154),ISBLANK(G154),ISBLANK(I154),ISBLANK(Q154),ISBLANK(S154),ISBLANK(AE154),ISBLANK(AF154),ISBLANK(AH154),ISBLANK(AI154)),1,\"\")","v":1}]
[null,null,null,null,null,null,null,null,null,null,null,null,null,null,null,null,null,null,null,null,"☐","資源向上(長寿命化)","☐","広域化・体制強化",null,null,"☐","啓発・普及","☐","研修・会議",null,null,null,null,null,null,{"$f":"IF(AND(ISBLANK(A154),ISBLANK(B154),ISBLANK(D154),ISBLANK(G154),ISBLANK(I154),ISBLANK(Q154),ISBLANK(S154),ISBLANK(AE154),ISBLANK(AF154),ISBLANK(AH154),ISBLANK(AI154)),1,\"\")","v":1}]
[null,null,null,null,null,null,null,null,null,null,null,null,null,null,null,null,null,null,null,null,"☐","資源保全プラン","☐","特例措置を適用した活動",null,null,"☐","設置等","☐","発注事務",null,null,null,null,null,null,{"$f":"IF(AND(ISBLANK(A154),ISBLANK(B154),ISBLANK(D154),ISBLANK(G154),ISBLANK(I154),ISBLANK(Q154),ISBLANK(S154),ISBLANK(AE154),ISBLANK(AF154),ISBLANK(AH154),ISBLANK(AI154)),1,\"\")","v":1}]
[null,null,"時",null,"分","～",null,"時",null,"分",{"$f":"+IF(AND(ISNUMBER(B157),ISNUMBER(G157),INT((G157-B157)+(I157-D157)/60)>=0),INT((G157-B157)+(I157-D157)/60),\"\")","v":""},"時間",{"$f":"IF(AND(ISNUMBER(D157),ISNUMBER(I157)),ABS(D157-I157),\"\")","v":""},"分",{"$f":"IF(Q157+S157=0,\"\",Q157+S157)","v":""},"人",null,"人",null,"人","☐","農地維持","☐","資源向上(共同)","☐","調査・計画","☐","実践活動","☐","事務処理等",null,null,{"$f":"IF(ISNUMBER(AF157),VLOOKUP(AF157,$AQ$548:$AR$597,2,0),\"\")","v":""},null,null,null,{"$f":"IF(AND(ISBLANK(A157),ISBLANK(B157),ISBLANK(D157),ISBLANK(G157),ISBLANK(I157),ISBLANK(Q157),ISBLANK(S157),ISBLANK(AE157),ISBLANK(AF157),ISBLANK(AH157),ISBLANK(AI157)),1,\"\")","v":1}]
[null,null,null,null,null,null,null,null,null,null,null,null,null,null,null,null,null,null,null,null,"☐","資源向上(長寿命化)","☐","広域化・体制強化",null,null,"☐","啓発・普及","☐","研修・会議",null,null,null,null,null,null,{"$f":"IF(AND(ISBLANK(A157),ISBLANK(B157),ISBLANK(D157),ISBLANK(G157),ISBLANK(I157),ISBLANK(Q157),ISBLANK(S157),ISBLANK(AE157),ISBLANK(AF157),ISBLANK(AH157),ISBLANK(AI157)),1,\"\")","v":1}]
[null,null,null,null,null,null,null,null,null,null,null,null,null,null,null,null,null,null,null,null,"☐","資源保全プラン","☐","特例措置を適用した活動",null,null,"☐","設置等","☐","発注事務",null,null,null,null,null,null,{"$f":"IF(AND(ISBLANK(A157),ISBLANK(B157),ISBLANK(D157),ISBLANK(G157),ISBLANK(I157),ISBLANK(Q157),ISBLANK(S157),ISBLANK(AE157),ISBLANK(AF157),ISBLANK(AH157),ISBLANK(AI157)),1,\"\")","v":1}]
[null,null,"時",null,"分","～",null,"時",null,"分",{"$f":"+IF(AND(ISNUMBER(B160),ISNUMBER(G160),INT((G160-B160)+(I160-D160)/60)>=0),INT((G160-B160)+(I160-D160)/60),\"\")","v":""},"時間",{"$f":"IF(AND(ISNUMBER(D160),ISNUMBER(I160)),ABS(D160-I160),\"\")","v":""},"分",{"$f":"IF(Q160+S160=0,\"\",Q160+S160)","v":""},"人",null,"人",null,"人","☐","農地維持","☐","資源向上(共同)","☐","調査・計画","☐","実践活動","☐","事務処理等",null,null,{"$f":"IF(ISNUMBER(AF160),VLOOKUP(AF160,$AQ$548:$AR$597,2,0),\"\")","v":""},null,null,null,{"$f":"IF(AND(ISBLANK(A160),ISBLANK(B160),ISBLANK(D160),ISBLANK(G160),ISBLANK(I160),ISBLANK(Q160),ISBLANK(S160),ISBLANK(AE160),ISBLANK(AF160),ISBLANK(AH160),ISBLANK(AI160)),1,\"\")","v":1}]
[null,null,null,null,null,null,null,null,null,null,null,null,null,null,null,null,null,null,null,null,"☐","資源向上(長寿命化)","☐","広域化・体制強化",null,null,"☐","啓発・普及","☐","研修・会議",null,null,null,null,null,null,{"$f":"IF(AND(ISBLANK(A160),ISBLANK(B160),ISBLANK(D160),ISBLANK(G160),ISBLANK(I160),ISBLANK(Q160),ISBLANK(S160),ISBLANK(AE160),ISBLANK(AF160),ISBLANK(AH160),ISBLANK(AI160)),1,\"\")","v":1}]
[null,null,null,null,null,null,null,null,null,null,null,null,null,null,null,null,null,null,null,null,"☐","資源保全プラン","☐","特例措置を適用した活動",null,null,"☐","設置等","☐","発注事務",null,null,null,null,null,null,{"$f":"IF(AND(ISBLANK(A160),ISBLANK(B160),ISBLANK(D160),ISBLANK(G160),ISBLANK(I160),ISBLANK(Q160),ISBLANK(S160),ISBLANK(AE160),ISBLANK(AF160),ISBLANK(AH160),ISBLANK(AI160)),1,\"\")","v":1}]
[null,null,"時",null,"分","～",null,"時",null,"分",{"$f":"+IF(AND(ISNUMBER(B163),ISNUMBER(G163),INT((G163-B163)+(I163-D163)/60)>=0),INT((G163-B163)+(I163-D163)/60),\"\")","v":""},"時間",{"$f":"IF(AND(ISNUMBER(D163),ISNUMBER(I163)),ABS(D163-I163),\"\")","v":""},"分",{"$f":"IF(Q163+S163=0,\"\",Q163+S163)","v":""},"人",null,"人",null,"人","☐","農地維持","☐","資源向上(共同)","☐","調査・計画","☐","実践活動","☐","事務処理等",null,null,{"$f":"IF(ISNUMBER(AF163),VLOOKUP(AF163,$AQ$548:$AR$597,2,0),\"\")","v":""},null,null,null,{"$f":"IF(AND(ISBLANK(A163),ISBLANK(B163),ISBLANK(D163),ISBLANK(G163),ISBLANK(I163),ISBLANK(Q163),ISBLANK(S163),ISBLANK(AE163),ISBLANK(AF163),ISBLANK(AH163),ISBLANK(AI163)),1,\"\")","v":1}]
[null,null,null,null,null,null,null,null,null,null,null,null,null,null,null,null,null,null,null,null,"☐","資源向上(長寿命化)","☐","広域化・体制強化",null,null,"☐","啓発・普及","☐","研修・会議",null,null,null,null,null,null,{"$f":"IF(AND(ISBLANK(A163),ISBLANK(B163),ISBLANK(D163),ISBLANK(G163),ISBLANK(I163),ISBLANK(Q163),ISBLANK(S163),ISBLANK(AE163),ISBLANK(AF163),ISBLANK(AH163),ISBLANK(AI163)),1,\"\")","v":1}]
[null,null,null,null,null,null,null,null,null,null,null,null,null,null,null,null,null,null,null,null,"☐","資源保全プラン","☐","特例措置を適用した活動",null,null,"☐","設置等","☐","発注事務",null,null,null,null,null,null,{"$f":"IF(AND(ISBLANK(A163),ISBLANK(B163),ISBLANK(D163),ISBLANK(G163),ISBLANK(I163),ISBLANK(Q163),ISBLANK(S163),ISBLANK(AE163),ISBLANK(AF163),ISBLANK(AH163),ISBLANK(AI163)),1,\"\")","v":1}]
[null,null,"時",null,"分","～",null,"時",null,"分",{"$f":"+IF(AND(ISNUMBER(B166),ISNUMBER(G166),INT((G166-B166)+(I166-D166)/60)>=0),INT((G166-B166)+(I166-D166)/60),\"\")","v":""},"時間",{"$f":"IF(AND(ISNUMBER(D166),ISNUMBER(I166)),ABS(D166-I166),\"\")","v":""},"分",{"$f":"IF(Q166+S166=0,\"\",Q166+S166)","v":""},"人",null,"人",null,"人","☐","農地維持","☐","資源向上(共同)","☐","調査・計画","☐","実践活動","☐","事務処理等",null,null,{"$f":"IF(ISNUMBER(AF166),VLOOKUP(AF166,$AQ$548:$AR$597,2,0),\"\")","v":""},null,null,null,{"$f":"IF(AND(ISBLANK(A166),ISBLANK(B166),ISBLANK(D166),ISBLANK(G166),ISBLANK(I166),ISBLANK(Q166),ISBLANK(S166),ISBLANK(AE166),ISBLANK(AF166),ISBLANK(AH166),ISBLANK(AI166)),1,\"\")","v":1}]
[null,null,null,null,null,null,null,null,null,null,null,null,null,null,null,null,null,null,null,null,"☐","資源向上(長寿命化)","☐","広域化・体制強化",null,null,"☐","啓発・普及","☐","研修・会議",null,null,null,null,null,null,{"$f":"IF(AND(ISBLANK(A166),ISBLANK(B166),ISBLANK(D166),ISBLANK(G166),ISBLANK(I166),ISBLANK(Q166),ISBLANK(S166),ISBLANK(AE166),ISBLANK(AF166),ISBLANK(AH166),ISBLANK(AI166)),1,\"\")","v":1}]
[null,null,null,null,null,null,null,null,null,null,null,null,null,null,null,null,null,null,null,null,"☐","資源保全プラン","☐","特例措置を適用した活動",null,null,"☐","設置等","☐","発注事務",null,null,null,null,null,null,{"$f":"IF(AND(ISBLANK(A166),ISBLANK(B166),ISBLANK(D166),ISBLANK(G166),ISBLANK(I166),ISBLANK(Q166),ISBLANK(S166),ISBLANK(AE166),ISBLANK(AF166),ISBLANK(AH166),ISBLANK(AI166)),1,\"\")","v":1}]
[null,null,"時",null,"分","～",null,"時",null,"分",{"$f":"+IF(AND(ISNUMBER(B169),ISNUMBER(G169),INT((G169-B169)+(I169-D169)/60)>=0),INT((G169-B169)+(I169-D169)/60),\"\")","v":""},"時間",{"$f":"IF(AND(ISNUMBER(D169),ISNUMBER(I169)),ABS(D169-I169),\"\")","v":""},"分",{"$f":"IF(Q169+S169=0,\"\",Q169+S169)","v":""},"人",null,"人",null,"人","☐","農地維持","☐","資源向上(共同)","☐","調査・計画","☐","実践活動","☐","事務処理等",null,null,{"$f":"IF(ISNUMBER(AF169),VLOOKUP(AF169,$AQ$548:$AR$597,2,0),\"\")","v":""},null,null,null,{"$f":"IF(AND(ISBLANK(A169),ISBLANK(B169),ISBLANK(D169),ISBLANK(G169),ISBLANK(I169),ISBLANK(Q169),ISBLANK(S169),ISBLANK(AE169),ISBLANK(AF169),ISBLANK(AH169),ISBLANK(AI169)),1,\"\")","v":1}]
[null,null,null,null,null,null,null,null,null,null,null,null,null,null,null,null,null,null,null,null,"☐","資源向上(長寿命化)","☐","広域化・体制強化",null,null,"☐","啓発・普及","☐","研修・会議",null,null,null,null,null,null,{"$f":"IF(AND(ISBLANK(A169),ISBLANK(B169),ISBLANK(D169),ISBLANK(G169),ISBLANK(I169),ISBLANK(Q169),ISBLANK(S169),ISBLANK(AE169),ISBLANK(AF169),ISBLANK(AH169),ISBLANK(AI169)),1,\"\")","v":1}]
[null,null,null,null,null,null,null,null,null,null,null,null,null,null,null,null,null,null,null,null,"☐","資源保全プラン","☐","特例措置を適用した活動",null,null,"☐","設置等","☐","発注事務",null,null,null,null,null,null,{"$f":"IF(AND(ISBLANK(A169),ISBLANK(B169),ISBLANK(D169),ISBLANK(G169),ISBLANK(I169),ISBLANK(Q169),ISBLANK(S169),ISBLANK(AE169),ISBLANK(AF169),ISBLANK(AH169),ISBLANK(AI169)),1,\"\")","v":1}]
[null,null,"時",null,"分","～",null,"時",null,"分",{"$f":"+IF(AND(ISNUMBER(B172),ISNUMBER(G172),INT((G172-B172)+(I172-D172)/60)>=0),INT((G172-B172)+(I172-D172)/60),\"\")","v":""},"時間",{"$f":"IF(AND(ISNUMBER(D172),ISNUMBER(I172)),ABS(D172-I172),\"\")","v":""},"分",{"$f":"IF(Q172+S172=0,\"\",Q172+S172)","v":""},"人",null,"人",null,"人","☐","農地維持","☐","資源向上(共同)","☐","調査・計画","☐","実践活動","☐","事務処理等",null,null,{"$f":"IF(ISNUMBER(AF172),VLOOKUP(AF172,$AQ$548:$AR$597,2,0),\"\")","v":""},null,null,null,{"$f":"IF(AND(ISBLANK(A172),ISBLANK(B172),ISBLANK(D172),ISBLANK(G172),ISBLANK(I172),ISBLANK(Q172),ISBLANK(S172),ISBLANK(AE172),ISBLANK(AF172),ISBLANK(AH172),ISBLANK(AI172)),1,\"\")","v":1}]
[null,null,null,null,null,null,null,null,null,null,null,null,null,null,null,null,null,null,null,null,"☐","資源向上(長寿命化)","☐","広域化・体制強化",null,null,"☐","啓発・普及","☐","研修・会議",null,null,null,null,null,null,{"$f":"IF(AND(ISBLANK(A172),ISBLANK(B172),ISBLANK(D172),ISBLANK(G172),ISBLANK(I172),ISBLANK(Q172),ISBLANK(S172),ISBLANK(AE172),ISBLANK(AF172),ISBLANK(AH172),ISBLANK(AI172)),1,\"\")","v":1}]
[null,null,null,null,null,null,null,null,null,null,null,null,null,null,null,null,null,null,null,null,"☐","資源保全プラン","☐","特例措置を適用した活動",null,null,"☐","設置等","☐","発注事務",null,null,null,null,null,null,{"$f":"IF(AND(ISBLANK(A172),ISBLANK(B172),ISBLANK(D172),ISBLANK(G172),ISBLANK(I172),ISBLANK(Q172),ISBLANK(S172),ISBLANK(AE172),ISBLANK(AF172),ISBLANK(AH172),ISBLANK(AI172)),1,\"\")","v":1}]
[null,null,"時",null,"分","～",null,"時",null,"分",{"$f":"+IF(AND(ISNUMBER(B175),ISNUMBER(G175),INT((G175-B175)+(I175-D175)/60)>=0),INT((G175-B175)+(I175-D175)/60),\"\")","v":""},"時間",{"$f":"IF(AND(ISNUMBER(D175),ISNUMBER(I175)),ABS(D175-I175),\"\")","v":""},"分",{"$f":"IF(Q175+S175=0,\"\",Q175+S175)","v":""},"人",null,"人",null,"人","☐","農地維持","☐","資源向上(共同)","☐","調査・計画","☐","実践活動","☐","事務処理等",null,null,{"$f":"IF(ISNUMBER(AF175),VLOOKUP(AF175,$AQ$548:$AR$597,2,0),\"\")","v":""},null,null,null,{"$f":"IF(AND(ISBLANK(A175),ISBLANK(B175),ISBLANK(D175),ISBLANK(G175),ISBLANK(I175),ISBLANK(Q175),ISBLANK(S175),ISBLANK(AE175),ISBLANK(AF175),ISBLANK(AH175),ISBLANK(AI175)),1,\"\")","v":1}]
[null,null,null,null,null,null,null,null,null,null,null,null,null,null,null,null,null,null,null,null,"☐","資源向上(長寿命化)","☐","広域化・体制強化",null,null,"☐","啓発・普及","☐","研修・会議",null,null,null,null,null,null,{"$f":"IF(AND(ISBLANK(A175),ISBLANK(B175),ISBLANK(D175),ISBLANK(G175),ISBLANK(I175),ISBLANK(Q175),ISBLANK(S175),ISBLANK(AE175),ISBLANK(AF175),ISBLANK(AH175),ISBLANK(AI175)),1,\"\")","v":1}]
[null,null,null,null,null,null,null,null,null,null,null,null,null,null,null,null,null,null,null,null,"☐","資源保全プラン","☐","特例措置を適用した活動",null,null,"☐","設置等","☐","発注事務",null,null,null,null,null,null,{"$f":"IF(AND(ISBLANK(A175),ISBLANK(B175),ISBLANK(D175),ISBLANK(G175),ISBLANK(I175),ISBLANK(Q175),ISBLANK(S175),ISBLANK(AE175),ISBLANK(AF175),ISBLANK(AH175),ISBLANK(AI175)),1,\"\")","v":1}]
[null,null,"時",null,"分","～",null,"時",null,"分",{"$f":"+IF(AND(ISNUMBER(B178),ISNUMBER(G178),INT((G178-B178)+(I178-D178)/60)>=0),INT((G178-B178)+(I178-D178)/60),\"\")","v":""},"時間",{"$f":"IF(AND(ISNUMBER(D178),ISNUMBER(I178)),ABS(D178-I178),\"\")","v":""},"分",{"$f":"IF(Q178+S178=0,\"\",Q178+S178)","v":""},"人",null,"人",null,"人","☐","農地維持","☐","資源向上(共同)","☐","調査・計画","☐","実践活動","☐","事務処理等",null,null,{"$f":"IF(ISNUMBER(AF178),VLOOKUP(AF178,$AQ$548:$AR$597,2,0),\"\")","v":""},null,null,null,{"$f":"IF(AND(ISBLANK(A178),ISBLANK(B178),ISBLANK(D178),ISBLANK(G178),ISBLANK(I178),ISBLANK(Q178),ISBLANK(S178),ISBLANK(AE178),ISBLANK(AF178),ISBLANK(AH178),ISBLANK(AI178)),1,\"\")","v":1}]
[null,null,null,null,null,null,null,null,null,null,null,null,null,null,null,null,null,null,null,null,"☐","資源向上(長寿命化)","☐","広域化・体制強化",null,null,"☐","啓発・普及","☐","研修・会議",null,null,null,null,null,null,{"$f":"IF(AND(ISBLANK(A178),ISBLANK(B178),ISBLANK(D178),ISBLANK(G178),ISBLANK(I178),ISBLANK(Q178),ISBLANK(S178),ISBLANK(AE178),ISBLANK(AF178),ISBLANK(AH178),ISBLANK(AI178)),1,\"\")","v":1}]
[null,null,null,null,null,null,null,null,null,null,null,null,null,null,null,null,null,null,null,null,"☐","資源保全プラン","☐","特例措置を適用した活動",null,null,"☐","設置等","☐","発注事務",null,null,null,null,null,null,{"$f":"IF(AND(ISBLANK(A178),ISBLANK(B178),ISBLANK(D178),ISBLANK(G178),ISBLANK(I178),ISBLANK(Q178),ISBLANK(S178),ISBLANK(AE178),ISBLANK(AF178),ISBLANK(AH178),ISBLANK(AI178)),1,\"\")","v":1}]
[null,null,"時",null,"分","～",null,"時",null,"分",{"$f":"+IF(AND(ISNUMBER(B181),ISNUMBER(G181),INT((G181-B181)+(I181-D181)/60)>=0),INT((G181-B181)+(I181-D181)/60),\"\")","v":""},"時間",{"$f":"IF(AND(ISNUMBER(D181),ISNUMBER(I181)),ABS(D181-I181),\"\")","v":""},"分",{"$f":"IF(Q181+S181=0,\"\",Q181+S181)","v":""},"人",null,"人",null,"人","☐","農地維持","☐","資源向上(共同)","☐","調査・計画","☐","実践活動","☐","事務処理等",null,null,{"$f":"IF(ISNUMBER(AF181),VLOOKUP(AF181,$AQ$548:$AR$597,2,0),\"\")","v":""},null,null,null,{"$f":"IF(AND(ISBLANK(A181),ISBLANK(B181),ISBLANK(D181),ISBLANK(G181),ISBLANK(I181),ISBLANK(Q181),ISBLANK(S181),ISBLANK(AE181),ISBLANK(AF181),ISBLANK(AH181),ISBLANK(AI181)),1,\"\")","v":1}]
[null,null,null,null,null,null,null,null,null,null,null,null,null,null,null,null,null,null,null,null,"☐","資源向上(長寿命化)","☐","広域化・体制強化",null,null,"☐","啓発・普及","☐","研修・会議",null,null,null,null,null,null,{"$f":"IF(AND(ISBLANK(A181),ISBLANK(B181),ISBLANK(D181),ISBLANK(G181),ISBLANK(I181),ISBLANK(Q181),ISBLANK(S181),ISBLANK(AE181),ISBLANK(AF181),ISBLANK(AH181),ISBLANK(AI181)),1,\"\")","v":1}]
[null,null,null,null,null,null,null,null,null,null,null,null,null,null,null,null,null,null,null,null,"☐","資源保全プラン","☐","特例措置を適用した活動",null,null,"☐","設置等","☐","発注事務",null,null,null,null,null,null,{"$f":"IF(AND(ISBLANK(A181),ISBLANK(B181),ISBLANK(D181),ISBLANK(G181),ISBLANK(I181),ISBLANK(Q181),ISBLANK(S181),ISBLANK(AE181),ISBLANK(AF181),ISBLANK(AH181),ISBLANK(AI181)),1,\"\")","v":1}]
[null,null,"時",null,"分","～",null,"時",null,"分",{"$f":"+IF(AND(ISNUMBER(B184),ISNUMBER(G184),INT((G184-B184)+(I184-D184)/60)>=0),INT((G184-B184)+(I184-D184)/60),\"\")","v":""},"時間",{"$f":"IF(AND(ISNUMBER(D184),ISNUMBER(I184)),ABS(D184-I184),\"\")","v":""},"分",{"$f":"IF(Q184+S184=0,\"\",Q184+S184)","v":""},"人",null,"人",null,"人","☐","農地維持","☐","資源向上(共同)","☐","調査・計画","☐","実践活動","☐","事務処理等",null,null,{"$f":"IF(ISNUMBER(AF184),VLOOKUP(AF184,$AQ$548:$AR$597,2,0),\"\")","v":""},null,null,null,{"$f":"IF(AND(ISBLANK(A184),ISBLANK(B184),ISBLANK(D184),ISBLANK(G184),ISBLANK(I184),ISBLANK(Q184),ISBLANK(S184),ISBLANK(AE184),ISBLANK(AF184),ISBLANK(AH184),ISBLANK(AI184)),1,\"\")","v":1}]
[null,null,null,null,null,null,null,null,null,null,null,null,null,null,null,null,null,null,null,null,"☐","資源向上(長寿命化)","☐","広域化・体制強化",null,null,"☐","啓発・普及","☐","研修・会議",null,null,null,null,null,null,{"$f":"IF(AND(ISBLANK(A184),ISBLANK(B184),ISBLANK(D184),ISBLANK(G184),ISBLANK(I184),ISBLANK(Q184),ISBLANK(S184),ISBLANK(AE184),ISBLANK(AF184),ISBLANK(AH184),ISBLANK(AI184)),1,\"\")","v":1}]
[null,null,null,null,null,null,null,null,null,null,null,null,null,null,null,null,null,null,null,null,"☐","資源保全プラン","☐","特例措置を適用した活動",null,null,"☐","設置等","☐","発注事務",null,null,null,null,null,null,{"$f":"IF(AND(ISBLANK(A184),ISBLANK(B184),ISBLANK(D184),ISBLANK(G184),ISBLANK(I184),ISBLANK(Q184),ISBLANK(S184),ISBLANK(AE184),ISBLANK(AF184),ISBLANK(AH184),ISBLANK(AI184)),1,\"\")","v":1}]
[null,null,"時",null,"分","～",null,"時",null,"分",{"$f":"+IF(AND(ISNUMBER(B187),ISNUMBER(G187),INT((G187-B187)+(I187-D187)/60)>=0),INT((G187-B187)+(I187-D187)/60),\"\")","v":""},"時間",{"$f":"IF(AND(ISNUMBER(D187),ISNUMBER(I187)),ABS(D187-I187),\"\")","v":""},"分",{"$f":"IF(Q187+S187=0,\"\",Q187+S187)","v":""},"人",null,"人",null,"人","☐","農地維持","☐","資源向上(共同)","☐","調査・計画","☐","実践活動","☐","事務処理等",null,null,{"$f":"IF(ISNUMBER(AF187),VLOOKUP(AF187,$AQ$548:$AR$597,2,0),\"\")","v":""},null,null,null,{"$f":"IF(AND(ISBLANK(A187),ISBLANK(B187),ISBLANK(D187),ISBLANK(G187),ISBLANK(I187),ISBLANK(Q187),ISBLANK(S187),ISBLANK(AE187),ISBLANK(AF187),ISBLANK(AH187),ISBLANK(AI187)),1,\"\")","v":1}]
[null,null,null,null,null,null,null,null,null,null,null,null,null,null,null,null,null,null,null,null,"☐","資源向上(長寿命化)","☐","広域化・体制強化",null,null,"☐","啓発・普及","☐","研修・会議",null,null,null,null,null,null,{"$f":"IF(AND(ISBLANK(A187),ISBLANK(B187),ISBLANK(D187),ISBLANK(G187),ISBLANK(I187),ISBLANK(Q187),ISBLANK(S187),ISBLANK(AE187),ISBLANK(AF187),ISBLANK(AH187),ISBLANK(AI187)),1,\"\")","v":1}]
[null,null,null,null,null,null,null,null,null,null,null,null,null,null,null,null,null,null,null,null,"☐","資源保全プラン","☐","特例措置を適用した活動",null,null,"☐","設置等","☐","発注事務",null,null,null,null,null,null,{"$f":"IF(AND(ISBLANK(A187),ISBLANK(B187),ISBLANK(D187),ISBLANK(G187),ISBLANK(I187),ISBLANK(Q187),ISBLANK(S187),ISBLANK(AE187),ISBLANK(AF187),ISBLANK(AH187),ISBLANK(AI187)),1,\"\")","v":1}]
[null,null,"時",null,"分","～",null,"時",null,"分",{"$f":"+IF(AND(ISNUMBER(B190),ISNUMBER(G190),INT((G190-B190)+(I190-D190)/60)>=0),INT((G190-B190)+(I190-D190)/60),\"\")","v":""},"時間",{"$f":"IF(AND(ISNUMBER(D190),ISNUMBER(I190)),ABS(D190-I190),\"\")","v":""},"分",{"$f":"IF(Q190+S190=0,\"\",Q190+S190)","v":""},"人",null,"人",null,"人","☐","農地維持","☐","資源向上(共同)","☐","調査・計画","☐","実践活動","☐","事務処理等",null,null,{"$f":"IF(ISNUMBER(AF190),VLOOKUP(AF190,$AQ$548:$AR$597,2,0),\"\")","v":""},null,null,null,{"$f":"IF(AND(ISBLANK(A190),ISBLANK(B190),ISBLANK(D190),ISBLANK(G190),ISBLANK(I190),ISBLANK(Q190),ISBLANK(S190),ISBLANK(AE190),ISBLANK(AF190),ISBLANK(AH190),ISBLANK(AI190)),1,\"\")","v":1}]
[null,null,null,null,null,null,null,null,null,null,null,null,null,null,null,null,null,null,null,null,"☐","資源向上(長寿命化)","☐","広域化・体制強化",null,null,"☐","啓発・普及","☐","研修・会議",null,null,null,null,null,null,{"$f":"IF(AND(ISBLANK(A190),ISBLANK(B190),ISBLANK(D190),ISBLANK(G190),ISBLANK(I190),ISBLANK(Q190),ISBLANK(S190),ISBLANK(AE190),ISBLANK(AF190),ISBLANK(AH190),ISBLANK(AI190)),1,\"\")","v":1}]
[null,null,null,null,null,null,null,null,null,null,null,null,null,null,null,null,null,null,null,null,"☐","資源保全プラン","☐","特例措置を適用した活動",null,null,"☐","設置等","☐","発注事務",null,null,null,null,null,null,{"$f":"IF(AND(ISBLANK(A190),ISBLANK(B190),ISBLANK(D190),ISBLANK(G190),ISBLANK(I190),ISBLANK(Q190),ISBLANK(S190),ISBLANK(AE190),ISBLANK(AF190),ISBLANK(AH190),ISBLANK(AI190)),1,\"\")","v":1}]
[null,null,"時",null,"分","～",null,"時",null,"分",{"$f":"+IF(AND(ISNUMBER(B193),ISNUMBER(G193),INT((G193-B193)+(I193-D193)/60)>=0),INT((G193-B193)+(I193-D193)/60),\"\")","v":""},"時間",{"$f":"IF(AND(ISNUMBER(D193),ISNUMBER(I193)),ABS(D193-I193),\"\")","v":""},"分",{"$f":"IF(Q193+S193=0,\"\",Q193+S193)","v":""},"人",null,"人",null,"人","☐","農地維持","☐","資源向上(共同)","☐","調査・計画","☐","実践活動","☐","事務処理等",null,null,{"$f":"IF(ISNUMBER(AF193),VLOOKUP(AF193,$AQ$548:$AR$597,2,0),\"\")","v":""},null,null,null,{"$f":"IF(AND(ISBLANK(A193),ISBLANK(B193),ISBLANK(D193),ISBLANK(G193),ISBLANK(I193),ISBLANK(Q193),ISBLANK(S193),ISBLANK(AE193),ISBLANK(AF193),ISBLANK(AH193),ISBLANK(AI193)),1,\"\")","v":1}]
[null,null,null,null,null,null,null,null,null,null,null,null,null,null,null,null,null,null,null,null,"☐","資源向上(長寿命化)","☐","広域化・体制強化",null,null,"☐","啓発・普及","☐","研修・会議",null,null,null,null,null,null,{"$f":"IF(AND(ISBLANK(A193),ISBLANK(B193),ISBLANK(D193),ISBLANK(G193),ISBLANK(I193),ISBLANK(Q193),ISBLANK(S193),ISBLANK(AE193),ISBLANK(AF193),ISBLANK(AH193),ISBLANK(AI193)),1,\"\")","v":1}]
[null,null,null,null,null,null,null,null,null,null,null,null,null,null,null,null,null,null,null,null,"☐","資源保全プラン","☐","特例措置を適用した活動",null,null,"☐","設置等","☐","発注事務",null,null,null,null,null,null,{"$f":"IF(AND(ISBLANK(A193),ISBLANK(B193),ISBLANK(D193),ISBLANK(G193),ISBLANK(I193),ISBLANK(Q193),ISBLANK(S193),ISBLANK(AE193),ISBLANK(AF193),ISBLANK(AH193),ISBLANK(AI193)),1,\"\")","v":1}]
[null,null,"時",null,"分","～",null,"時",null,"分",{"$f":"+IF(AND(ISNUMBER(B196),ISNUMBER(G196),INT((G196-B196)+(I196-D196)/60)>=0),INT((G196-B196)+(I196-D196)/60),\"\")","v":""},"時間",{"$f":"IF(AND(ISNUMBER(D196),ISNUMBER(I196)),ABS(D196-I196),\"\")","v":""},"分",{"$f":"IF(Q196+S196=0,\"\",Q196+S196)","v":""},"人",null,"人",null,"人","☐","農地維持","☐","資源向上(共同)","☐","調査・計画","☐","実践活動","☐","事務処理等",null,null,{"$f":"IF(ISNUMBER(AF196),VLOOKUP(AF196,$AQ$548:$AR$597,2,0),\"\")","v":""},null,null,null,{"$f":"IF(AND(ISBLANK(A196),ISBLANK(B196),ISBLANK(D196),ISBLANK(G196),ISBLANK(I196),ISBLANK(Q196),ISBLANK(S196),ISBLANK(AE196),ISBLANK(AF196),ISBLANK(AH196),ISBLANK(AI196)),1,\"\")","v":1}]
[null,null,null,null,null,null,null,null,null,null,null,null,null,null,null,null,null,null,null,null,"☐","資源向上(長寿命化)","☐","広域化・体制強化",null,null,"☐","啓発・普及","☐","研修・会議",null,null,null,null,null,null,{"$f":"IF(AND(ISBLANK(A196),ISBLANK(B196),ISBLANK(D196),ISBLANK(G196),ISBLANK(I196),ISBLANK(Q196),ISBLANK(S196),ISBLANK(AE196),ISBLANK(AF196),ISBLANK(AH196),ISBLANK(AI196)),1,\"\")","v":1}]
[null,null,null,null,null,null,null,null,null,null,null,null,null,null,null,null,null,null,null,null,"☐","資源保全プラン","☐","特例措置を適用した活動",null,null,"☐","設置等","☐","発注事務",null,null,null,null,null,null,{"$f":"IF(AND(ISBLANK(A196),ISBLANK(B196),ISBLANK(D196),ISBLANK(G196),ISBLANK(I196),ISBLANK(Q196),ISBLANK(S196),ISBLANK(AE196),ISBLANK(AF196),ISBLANK(AH196),ISBLANK(AI196)),1,\"\")","v":1}]
[null,null,"時",null,"分","～",null,"時",null,"分",{"$f":"+IF(AND(ISNUMBER(B199),ISNUMBER(G199),INT((G199-B199)+(I199-D199)/60)>=0),INT((G199-B199)+(I199-D199)/60),\"\")","v":""},"時間",{"$f":"IF(AND(ISNUMBER(D199),ISNUMBER(I199)),ABS(D199-I199),\"\")","v":""},"分",{"$f":"IF(Q199+S199=0,\"\",Q199+S199)","v":""},"人",null,"人",null,"人","☐","農地維持","☐","資源向上(共同)","☐","調査・計画","☐","実践活動","☐","事務処理等",null,null,{"$f":"IF(ISNUMBER(AF199),VLOOKUP(AF199,$AQ$548:$AR$597,2,0),\"\")","v":""},null,null,null,{"$f":"IF(AND(ISBLANK(A199),ISBLANK(B199),ISBLANK(D199),ISBLANK(G199),ISBLANK(I199),ISBLANK(Q199),ISBLANK(S199),ISBLANK(AE199),ISBLANK(AF199),ISBLANK(AH199),ISBLANK(AI199)),1,\"\")","v":1}]
[null,null,null,null,null,null,null,null,null,null,null,null,null,null,null,null,null,null,null,null,"☐","資源向上(長寿命化)","☐","広域化・体制強化",null,null,"☐","啓発・普及","☐","研修・会議",null,null,null,null,null,null,{"$f":"IF(AND(ISBLANK(A199),ISBLANK(B199),ISBLANK(D199),ISBLANK(G199),ISBLANK(I199),ISBLANK(Q199),ISBLANK(S199),ISBLANK(AE199),ISBLANK(AF199),ISBLANK(AH199),ISBLANK(AI199)),1,\"\")","v":1}]
[null,null,null,null,null,null,null,null,null,null,null,null,null,null,null,null,null,null,null,null,"☐","資源保全プラン","☐","特例措置を適用した活動",null,null,"☐","設置等","☐","発注事務",null,null,null,null,null,null,{"$f":"IF(AND(ISBLANK(A199),ISBLANK(B199),ISBLANK(D199),ISBLANK(G199),ISBLANK(I199),ISBLANK(Q199),ISBLANK(S199),ISBLANK(AE199),ISBLANK(AF199),ISBLANK(AH199),ISBLANK(AI199)),1,\"\")","v":1}]
[null,null,"時",null,"分","～",null,"時",null,"分",{"$f":"+IF(AND(ISNUMBER(B202),ISNUMBER(G202),INT((G202-B202)+(I202-D202)/60)>=0),INT((G202-B202)+(I202-D202)/60),\"\")","v":""},"時間",{"$f":"IF(AND(ISNUMBER(D202),ISNUMBER(I202)),ABS(D202-I202),\"\")","v":""},"分",{"$f":"IF(Q202+S202=0,\"\",Q202+S202)","v":""},"人",null,"人",null,"人","☐","農地維持","☐","資源向上(共同)","☐","調査・計画","☐","実践活動","☐","事務処理等",null,null,{"$f":"IF(ISNUMBER(AF202),VLOOKUP(AF202,$AQ$548:$AR$597,2,0),\"\")","v":""},null,null,null,{"$f":"IF(AND(ISBLANK(A202),ISBLANK(B202),ISBLANK(D202),ISBLANK(G202),ISBLANK(I202),ISBLANK(Q202),ISBLANK(S202),ISBLANK(AE202),ISBLANK(AF202),ISBLANK(AH202),ISBLANK(AI202)),1,\"\")","v":1}]
[null,null,null,null,null,null,null,null,null,null,null,null,null,null,null,null,null,null,null,null,"☐","資源向上(長寿命化)","☐","広域化・体制強化",null,null,"☐","啓発・普及","☐","研修・会議",null,null,null,null,null,null,{"$f":"IF(AND(ISBLANK(A202),ISBLANK(B202),ISBLANK(D202),ISBLANK(G202),ISBLANK(I202),ISBLANK(Q202),ISBLANK(S202),ISBLANK(AE202),ISBLANK(AF202),ISBLANK(AH202),ISBLANK(AI202)),1,\"\")","v":1}]
[null,null,null,null,null,null,null,null,null,null,null,null,null,null,null,null,null,null,null,null,"☐","資源保全プラン","☐","特例措置を適用した活動",null,null,"☐","設置等","☐","発注事務",null,null,null,null,null,null,{"$f":"IF(AND(ISBLANK(A202),ISBLANK(B202),ISBLANK(D202),ISBLANK(G202),ISBLANK(I202),ISBLANK(Q202),ISBLANK(S202),ISBLANK(AE202),ISBLANK(AF202),ISBLANK(AH202),ISBLANK(AI202)),1,\"\")","v":1}]
[null,null,"時",null,"分","～",null,"時",null,"分",{"$f":"+IF(AND(ISNUMBER(B205),ISNUMBER(G205),INT((G205-B205)+(I205-D205)/60)>=0),INT((G205-B205)+(I205-D205)/60),\"\")","v":""},"時間",{"$f":"IF(AND(ISNUMBER(D205),ISNUMBER(I205)),ABS(D205-I205),\"\")","v":""},"分",{"$f":"IF(Q205+S205=0,\"\",Q205+S205)","v":""},"人",null,"人",null,"人","☐","農地維持","☐","資源向上(共同)","☐","調査・計画","☐","実践活動","☐","事務処理等",null,null,{"$f":"IF(ISNUMBER(AF205),VLOOKUP(AF205,$AQ$548:$AR$597,2,0),\"\")","v":""},null,null,null,{"$f":"IF(AND(ISBLANK(A205),ISBLANK(B205),ISBLANK(D205),ISBLANK(G205),ISBLANK(I205),ISBLANK(Q205),ISBLANK(S205),ISBLANK(AE205),ISBLANK(AF205),ISBLANK(AH205),ISBLANK(AI205)),1,\"\")","v":1}]
[null,null,null,null,null,null,null,null,null,null,null,null,null,null,null,null,null,null,null,null,"☐","資源向上(長寿命化)","☐","広域化・体制強化",null,null,"☐","啓発・普及","☐","研修・会議",null,null,null,null,null,null,{"$f":"IF(AND(ISBLANK(A205),ISBLANK(B205),ISBLANK(D205),ISBLANK(G205),ISBLANK(I205),ISBLANK(Q205),ISBLANK(S205),ISBLANK(AE205),ISBLANK(AF205),ISBLANK(AH205),ISBLANK(AI205)),1,\"\")","v":1}]
[null,null,null,null,null,null,null,null,null,null,null,null,null,null,null,null,null,null,null,null,"☐","資源保全プラン","☐","特例措置を適用した活動",null,null,"☐","設置等","☐","発注事務",null,null,null,null,null,null,{"$f":"IF(AND(ISBLANK(A205),ISBLANK(B205),ISBLANK(D205),ISBLANK(G205),ISBLANK(I205),ISBLANK(Q205),ISBLANK(S205),ISBLANK(AE205),ISBLANK(AF205),ISBLANK(AH205),ISBLANK(AI205)),1,\"\")","v":1}]
[null,null,"時",null,"分","～",null,"時",null,"分",{"$f":"+IF(AND(ISNUMBER(B208),ISNUMBER(G208),INT((G208-B208)+(I208-D208)/60)>=0),INT((G208-B208)+(I208-D208)/60),\"\")","v":""},"時間",{"$f":"IF(AND(ISNUMBER(D208),ISNUMBER(I208)),ABS(D208-I208),\"\")","v":""},"分",{"$f":"IF(Q208+S208=0,\"\",Q208+S208)","v":""},"人",null,"人",null,"人","☐","農地維持","☐","資源向上(共同)","☐","調査・計画","☐","実践活動","☐","事務処理等",null,null,{"$f":"IF(ISNUMBER(AF208),VLOOKUP(AF208,$AQ$548:$AR$597,2,0),\"\")","v":""},null,null,null,{"$f":"IF(AND(ISBLANK(A208),ISBLANK(B208),ISBLANK(D208),ISBLANK(G208),ISBLANK(I208),ISBLANK(Q208),ISBLANK(S208),ISBLANK(AE208),ISBLANK(AF208),ISBLANK(AH208),ISBLANK(AI208)),1,\"\")","v":1}]
[null,null,null,null,null,null,null,null,null,null,null,null,null,null,null,null,null,null,null,null,"☐","資源向上(長寿命化)","☐","広域化・体制強化",null,null,"☐","啓発・普及","☐","研修・会議",null,null,null,null,null,null,{"$f":"IF(AND(ISBLANK(A208),ISBLANK(B208),ISBLANK(D208),ISBLANK(G208),ISBLANK(I208),ISBLANK(Q208),ISBLANK(S208),ISBLANK(AE208),ISBLANK(AF208),ISBLANK(AH208),ISBLANK(AI208)),1,\"\")","v":1}]
[null,null,null,null,null,null,null,null,null,null,null,null,null,null,null,null,null,null,null,null,"☐","資源保全プラン","☐","特例措置を適用した活動",null,null,"☐","設置等","☐","発注事務",null,null,null,null,null,null,{"$f":"IF(AND(ISBLANK(A208),ISBLANK(B208),ISBLANK(D208),ISBLANK(G208),ISBLANK(I208),ISBLANK(Q208),ISBLANK(S208),ISBLANK(AE208),ISBLANK(AF208),ISBLANK(AH208),ISBLANK(AI208)),1,\"\")","v":1}]
[null,null,"時",null,"分","～",null,"時",null,"分",{"$f":"+IF(AND(ISNUMBER(B211),ISNUMBER(G211),INT((G211-B211)+(I211-D211)/60)>=0),INT((G211-B211)+(I211-D211)/60),\"\")","v":""},"時間",{"$f":"IF(AND(ISNUMBER(D211),ISNUMBER(I211)),ABS(D211-I211),\"\")","v":""},"分",{"$f":"IF(Q211+S211=0,\"\",Q211+S211)","v":""},"人",null,"人",null,"人","☐","農地維持","☐","資源向上(共同)","☐","調査・計画","☐","実践活動","☐","事務処理等",null,null,{"$f":"IF(ISNUMBER(AF211),VLOOKUP(AF211,$AQ$548:$AR$597,2,0),\"\")","v":""},null,null,null,{"$f":"IF(AND(ISBLANK(A211),ISBLANK(B211),ISBLANK(D211),ISBLANK(G211),ISBLANK(I211),ISBLANK(Q211),ISBLANK(S211),ISBLANK(AE211),ISBLANK(AF211),ISBLANK(AH211),ISBLANK(AI211)),1,\"\")","v":1}]
[null,null,null,null,null,null,null,null,null,null,null,null,null,null,null,null,null,null,null,null,"☐","資源向上(長寿命化)","☐","広域化・体制強化",null,null,"☐","啓発・普及","☐","研修・会議",null,null,null,null,null,null,{"$f":"IF(AND(ISBLANK(A211),ISBLANK(B211),ISBLANK(D211),ISBLANK(G211),ISBLANK(I211),ISBLANK(Q211),ISBLANK(S211),ISBLANK(AE211),ISBLANK(AF211),ISBLANK(AH211),ISBLANK(AI211)),1,\"\")","v":1}]
[null,null,null,null,null,null,null,null,null,null,null,null,null,null,null,null,null,null,null,null,"☐","資源保全プラン","☐","特例措置を適用した活動",null,null,"☐","設置等","☐","発注事務",null,null,null,null,null,null,{"$f":"IF(AND(ISBLANK(A211),ISBLANK(B211),ISBLANK(D211),ISBLANK(G211),ISBLANK(I211),ISBLANK(Q211),ISBLANK(S211),ISBLANK(AE211),ISBLANK(AF211),ISBLANK(AH211),ISBLANK(AI211)),1,\"\")","v":1}]
[null,null,"時",null,"分","～",null,"時",null,"分",{"$f":"+IF(AND(ISNUMBER(B214),ISNUMBER(G214),INT((G214-B214)+(I214-D214)/60)>=0),INT((G214-B214)+(I214-D214)/60),\"\")","v":""},"時間",{"$f":"IF(AND(ISNUMBER(D214),ISNUMBER(I214)),ABS(D214-I214),\"\")","v":""},"分",{"$f":"IF(Q214+S214=0,\"\",Q214+S214)","v":""},"人",null,"人",null,"人","☐","農地維持","☐","資源向上(共同)","☐","調査・計画","☐","実践活動","☐","事務処理等",null,null,{"$f":"IF(ISNUMBER(AF214),VLOOKUP(AF214,$AQ$548:$AR$597,2,0),\"\")","v":""},null,null,null,{"$f":"IF(AND(ISBLANK(A214),ISBLANK(B214),ISBLANK(D214),ISBLANK(G214),ISBLANK(I214),ISBLANK(Q214),ISBLANK(S214),ISBLANK(AE214),ISBLANK(AF214),ISBLANK(AH214),ISBLANK(AI214)),1,\"\")","v":1}]
[null,null,null,null,null,null,null,null,null,null,null,null,null,null,null,null,null,null,null,null,"☐","資源向上(長寿命化)","☐","広域化・体制強化",null,null,"☐","啓発・普及","☐","研修・会議",null,null,null,null,null,null,{"$f":"IF(AND(ISBLANK(A214),ISBLANK(B214),ISBLANK(D214),ISBLANK(G214),ISBLANK(I214),ISBLANK(Q214),ISBLANK(S214),ISBLANK(AE214),ISBLANK(AF214),ISBLANK(AH214),ISBLANK(AI214)),1,\"\")","v":1}]
[null,null,null,null,null,null,null,null,null,null,null,null,null,null,null,null,null,null,null,null,"☐","資源保全プラン","☐","特例措置を適用した活動",null,null,"☐","設置等","☐","発注事務",null,null,null,null,null,null,{"$f":"IF(AND(ISBLANK(A214),ISBLANK(B214),ISBLANK(D214),ISBLANK(G214),ISBLANK(I214),ISBLANK(Q214),ISBLANK(S214),ISBLANK(AE214),ISBLANK(AF214),ISBLANK(AH214),ISBLANK(AI214)),1,\"\")","v":1}]
[null,null,"時",null,"分","～",null,"時",null,"分",{"$f":"+IF(AND(ISNUMBER(B217),ISNUMBER(G217),INT((G217-B217)+(I217-D217)/60)>=0),INT((G217-B217)+(I217-D217)/60),\"\")","v":""},"時間",{"$f":"IF(AND(ISNUMBER(D217),ISNUMBER(I217)),ABS(D217-I217),\"\")","v":""},"分",{"$f":"IF(Q217+S217=0,\"\",Q217+S217)","v":""},"人",null,"人",null,"人","☐","農地維持","☐","資源向上(共同)","☐","調査・計画","☐","実践活動","☐","事務処理等",null,null,{"$f":"IF(ISNUMBER(AF217),VLOOKUP(AF217,$AQ$548:$AR$597,2,0),\"\")","v":""},null,null,null,{"$f":"IF(AND(ISBLANK(A217),ISBLANK(B217),ISBLANK(D217),ISBLANK(G217),ISBLANK(I217),ISBLANK(Q217),ISBLANK(S217),ISBLANK(AE217),ISBLANK(AF217),ISBLANK(AH217),ISBLANK(AI217)),1,\"\")","v":1}]
[null,null,null,null,null,null,null,null,null,null,null,null,null,null,null,null,null,null,null,null,"☐","資源向上(長寿命化)","☐","広域化・体制強化",null,null,"☐","啓発・普及","☐","研修・会議",null,null,null,null,null,null,{"$f":"IF(AND(ISBLANK(A217),ISBLANK(B217),ISBLANK(D217),ISBLANK(G217),ISBLANK(I217),ISBLANK(Q217),ISBLANK(S217),ISBLANK(AE217),ISBLANK(AF217),ISBLANK(AH217),ISBLANK(AI217)),1,\"\")","v":1}]
[null,null,null,null,null,null,null,null,null,null,null,null,null,null,null,null,null,null,null,null,"☐","資源保全プラン","☐","特例措置を適用した活動",null,null,"☐","設置等","☐","発注事務",null,null,null,null,null,null,{"$f":"IF(AND(ISBLANK(A217),ISBLANK(B217),ISBLANK(D217),ISBLANK(G217),ISBLANK(I217),ISBLANK(Q217),ISBLANK(S217),ISBLANK(AE217),ISBLANK(AF217),ISBLANK(AH217),ISBLANK(AI217)),1,\"\")","v":1}]
[null,null,"時",null,"分","～",null,"時",null,"分",{"$f":"+IF(AND(ISNUMBER(B220),ISNUMBER(G220),INT((G220-B220)+(I220-D220)/60)>=0),INT((G220-B220)+(I220-D220)/60),\"\")","v":""},"時間",{"$f":"IF(AND(ISNUMBER(D220),ISNUMBER(I220)),ABS(D220-I220),\"\")","v":""},"分",{"$f":"IF(Q220+S220=0,\"\",Q220+S220)","v":""},"人",null,"人",null,"人","☐","農地維持","☐","資源向上(共同)","☐","調査・計画","☐","実践活動","☐","事務処理等",null,null,{"$f":"IF(ISNUMBER(AF220),VLOOKUP(AF220,$AQ$548:$AR$597,2,0),\"\")","v":""},null,null,null,{"$f":"IF(AND(ISBLANK(A220),ISBLANK(B220),ISBLANK(D220),ISBLANK(G220),ISBLANK(I220),ISBLANK(Q220),ISBLANK(S220),ISBLANK(AE220),ISBLANK(AF220),ISBLANK(AH220),ISBLANK(AI220)),1,\"\")","v":1}]
[null,null,null,null,null,null,null,null,null,null,null,null,null,null,null,null,null,null,null,null,"☐","資源向上(長寿命化)","☐","広域化・体制強化",null,null,"☐","啓発・普及","☐","研修・会議",null,null,null,null,null,null,{"$f":"IF(AND(ISBLANK(A220),ISBLANK(B220),ISBLANK(D220),ISBLANK(G220),ISBLANK(I220),ISBLANK(Q220),ISBLANK(S220),ISBLANK(AE220),ISBLANK(AF220),ISBLANK(AH220),ISBLANK(AI220)),1,\"\")","v":1}]
[null,null,null,null,null,null,null,null,null,null,null,null,null,null,null,null,null,null,null,null,"☐","資源保全プラン","☐","特例措置を適用した活動",null,null,"☐","設置等","☐","発注事務",null,null,null,null,null,null,{"$f":"IF(AND(ISBLANK(A220),ISBLANK(B220),ISBLANK(D220),ISBLANK(G220),ISBLANK(I220),ISBLANK(Q220),ISBLANK(S220),ISBLANK(AE220),ISBLANK(AF220),ISBLANK(AH220),ISBLANK(AI220)),1,\"\")","v":1}]
[null,null,"時",null,"分","～",null,"時",null,"分",{"$f":"+IF(AND(ISNUMBER(B223),ISNUMBER(G223),INT((G223-B223)+(I223-D223)/60)>=0),INT((G223-B223)+(I223-D223)/60),\"\")","v":""},"時間",{"$f":"IF(AND(ISNUMBER(D223),ISNUMBER(I223)),ABS(D223-I223),\"\")","v":""},"分",{"$f":"IF(Q223+S223=0,\"\",Q223+S223)","v":""},"人",null,"人",null,"人","☐","農地維持","☐","資源向上(共同)","☐","調査・計画","☐","実践活動","☐","事務処理等",null,null,{"$f":"IF(ISNUMBER(AF223),VLOOKUP(AF223,$AQ$548:$AR$597,2,0),\"\")","v":""},null,null,null,{"$f":"IF(AND(ISBLANK(A223),ISBLANK(B223),ISBLANK(D223),ISBLANK(G223),ISBLANK(I223),ISBLANK(Q223),ISBLANK(S223),ISBLANK(AE223),ISBLANK(AF223),ISBLANK(AH223),ISBLANK(AI223)),1,\"\")","v":1}]
[null,null,null,null,null,null,null,null,null,null,null,null,null,null,null,null,null,null,null,null,"☐","資源向上(長寿命化)","☐","広域化・体制強化",null,null,"☐","啓発・普及","☐","研修・会議",null,null,null,null,null,null,{"$f":"IF(AND(ISBLANK(A223),ISBLANK(B223),ISBLANK(D223),ISBLANK(G223),ISBLANK(I223),ISBLANK(Q223),ISBLANK(S223),ISBLANK(AE223),ISBLANK(AF223),ISBLANK(AH223),ISBLANK(AI223)),1,\"\")","v":1}]
[null,null,null,null,null,null,null,null,null,null,null,null,null,null,null,null,null,null,null,null,"☐","資源保全プラン","☐","特例措置を適用した活動",null,null,"☐","設置等","☐","発注事務",null,null,null,null,null,null,{"$f":"IF(AND(ISBLANK(A223),ISBLANK(B223),ISBLANK(D223),ISBLANK(G223),ISBLANK(I223),ISBLANK(Q223),ISBLANK(S223),ISBLANK(AE223),ISBLANK(AF223),ISBLANK(AH223),ISBLANK(AI223)),1,\"\")","v":1}]
[null,null,"時",null,"分","～",null,"時",null,"分",{"$f":"+IF(AND(ISNUMBER(B226),ISNUMBER(G226),INT((G226-B226)+(I226-D226)/60)>=0),INT((G226-B226)+(I226-D226)/60),\"\")","v":""},"時間",{"$f":"IF(AND(ISNUMBER(D226),ISNUMBER(I226)),ABS(D226-I226),\"\")","v":""},"分",{"$f":"IF(Q226+S226=0,\"\",Q226+S226)","v":""},"人",null,"人",null,"人","☐","農地維持","☐","資源向上(共同)","☐","調査・計画","☐","実践活動","☐","事務処理等",null,null,{"$f":"IF(ISNUMBER(AF226),VLOOKUP(AF226,$AQ$548:$AR$597,2,0),\"\")","v":""},null,null,null,{"$f":"IF(AND(ISBLANK(A226),ISBLANK(B226),ISBLANK(D226),ISBLANK(G226),ISBLANK(I226),ISBLANK(Q226),ISBLANK(S226),ISBLANK(AE226),ISBLANK(AF226),ISBLANK(AH226),ISBLANK(AI226)),1,\"\")","v":1}]
[null,null,null,null,null,null,null,null,null,null,null,null,null,null,null,null,null,null,null,null,"☐","資源向上(長寿命化)","☐","広域化・体制強化",null,null,"☐","啓発・普及","☐","研修・会議",null,null,null,null,null,null,{"$f":"IF(AND(ISBLANK(A226),ISBLANK(B226),ISBLANK(D226),ISBLANK(G226),ISBLANK(I226),ISBLANK(Q226),ISBLANK(S226),ISBLANK(AE226),ISBLANK(AF226),ISBLANK(AH226),ISBLANK(AI226)),1,\"\")","v":1}]
[null,null,null,null,null,null,null,null,null,null,null,null,null,null,null,null,null,null,null,null,"☐","資源保全プラン","☐","特例措置を適用した活動",null,null,"☐","設置等","☐","発注事務",null,null,null,null,null,null,{"$f":"IF(AND(ISBLANK(A226),ISBLANK(B226),ISBLANK(D226),ISBLANK(G226),ISBLANK(I226),ISBLANK(Q226),ISBLANK(S226),ISBLANK(AE226),ISBLANK(AF226),ISBLANK(AH226),ISBLANK(AI226)),1,\"\")","v":1}]
[null,null,"時",null,"分","～",null,"時",null,"分",{"$f":"+IF(AND(ISNUMBER(B229),ISNUMBER(G229),INT((G229-B229)+(I229-D229)/60)>=0),INT((G229-B229)+(I229-D229)/60),\"\")","v":""},"時間",{"$f":"IF(AND(ISNUMBER(D229),ISNUMBER(I229)),ABS(D229-I229),\"\")","v":""},"分",{"$f":"IF(Q229+S229=0,\"\",Q229+S229)","v":""},"人",null,"人",null,"人","☐","農地維持","☐","資源向上(共同)","☐","調査・計画","☐","実践活動","☐","事務処理等",null,null,{"$f":"IF(ISNUMBER(AF229),VLOOKUP(AF229,$AQ$548:$AR$597,2,0),\"\")","v":""},null,null,null,{"$f":"IF(AND(ISBLANK(A229),ISBLANK(B229),ISBLANK(D229),ISBLANK(G229),ISBLANK(I229),ISBLANK(Q229),ISBLANK(S229),ISBLANK(AE229),ISBLANK(AF229),ISBLANK(AH229),ISBLANK(AI229)),1,\"\")","v":1}]
[null,null,null,null,null,null,null,null,null,null,null,null,null,null,null,null,null,null,null,null,"☐","資源向上(長寿命化)","☐","広域化・体制強化",null,null,"☐","啓発・普及","☐","研修・会議",null,null,null,null,null,null,{"$f":"IF(AND(ISBLANK(A229),ISBLANK(B229),ISBLANK(D229),ISBLANK(G229),ISBLANK(I229),ISBLANK(Q229),ISBLANK(S229),ISBLANK(AE229),ISBLANK(AF229),ISBLANK(AH229),ISBLANK(AI229)),1,\"\")","v":1}]
[null,null,null,null,null,null,null,null,null,null,null,null,null,null,null,null,null,null,null,null,"☐","資源保全プラン","☐","特例措置を適用した活動",null,null,"☐","設置等","☐","発注事務",null,null,null,null,null,null,{"$f":"IF(AND(ISBLANK(A229),ISBLANK(B229),ISBLANK(D229),ISBLANK(G229),ISBLANK(I229),ISBLANK(Q229),ISBLANK(S229),ISBLANK(AE229),ISBLANK(AF229),ISBLANK(AH229),ISBLANK(AI229)),1,\"\")","v":1}]
[null,null,"時",null,"分","～",null,"時",null,"分",{"$f":"+IF(AND(ISNUMBER(B232),ISNUMBER(G232),INT((G232-B232)+(I232-D232)/60)>=0),INT((G232-B232)+(I232-D232)/60),\"\")","v":""},"時間",{"$f":"IF(AND(ISNUMBER(D232),ISNUMBER(I232)),ABS(D232-I232),\"\")","v":""},"分",{"$f":"IF(Q232+S232=0,\"\",Q232+S232)","v":""},"人",null,"人",null,"人","☐","農地維持","☐","資源向上(共同)","☐","調査・計画","☐","実践活動","☐","事務処理等",null,null,{"$f":"IF(ISNUMBER(AF232),VLOOKUP(AF232,$AQ$548:$AR$597,2,0),\"\")","v":""},null,null,null,{"$f":"IF(AND(ISBLANK(A232),ISBLANK(B232),ISBLANK(D232),ISBLANK(G232),ISBLANK(I232),ISBLANK(Q232),ISBLANK(S232),ISBLANK(AE232),ISBLANK(AF232),ISBLANK(AH232),ISBLANK(AI232)),1,\"\")","v":1}]
[null,null,null,null,null,null,null,null,null,null,null,null,null,null,null,null,null,null,null,null,"☐","資源向上(長寿命化)","☐","広域化・体制強化",null,null,"☐","啓発・普及","☐","研修・会議",null,null,null,null,null,null,{"$f":"IF(AND(ISBLANK(A232),ISBLANK(B232),ISBLANK(D232),ISBLANK(G232),ISBLANK(I232),ISBLANK(Q232),ISBLANK(S232),ISBLANK(AE232),ISBLANK(AF232),ISBLANK(AH232),ISBLANK(AI232)),1,\"\")","v":1}]
[null,null,null,null,null,null,null,null,null,null,null,null,null,null,null,null,null,null,null,null,"☐","資源保全プラン","☐","特例措置を適用した活動",null,null,"☐","設置等","☐","発注事務",null,null,null,null,null,null,{"$f":"IF(AND(ISBLANK(A232),ISBLANK(B232),ISBLANK(D232),ISBLANK(G232),ISBLANK(I232),ISBLANK(Q232),ISBLANK(S232),ISBLANK(AE232),ISBLANK(AF232),ISBLANK(AH232),ISBLANK(AI232)),1,\"\")","v":1}]
[null,null,"時",null,"分","～",null,"時",null,"分",{"$f":"+IF(AND(ISNUMBER(B235),ISNUMBER(G235),INT((G235-B235)+(I235-D235)/60)>=0),INT((G235-B235)+(I235-D235)/60),\"\")","v":""},"時間",{"$f":"IF(AND(ISNUMBER(D235),ISNUMBER(I235)),ABS(D235-I235),\"\")","v":""},"分",{"$f":"IF(Q235+S235=0,\"\",Q235+S235)","v":""},"人",null,"人",null,"人","☐","農地維持","☐","資源向上(共同)","☐","調査・計画","☐","実践活動","☐","事務処理等",null,null,{"$f":"IF(ISNUMBER(AF235),VLOOKUP(AF235,$AQ$548:$AR$597,2,0),\"\")","v":""},null,null,null,{"$f":"IF(AND(ISBLANK(A235),ISBLANK(B235),ISBLANK(D235),ISBLANK(G235),ISBLANK(I235),ISBLANK(Q235),ISBLANK(S235),ISBLANK(AE235),ISBLANK(AF235),ISBLANK(AH235),ISBLANK(AI235)),1,\"\")","v":1}]
[null,null,null,null,null,null,null,null,null,null,null,null,null,null,null,null,null,null,null,null,"☐","資源向上(長寿命化)","☐","広域化・体制強化",null,null,"☐","啓発・普及","☐","研修・会議",null,null,null,null,null,null,{"$f":"IF(AND(ISBLANK(A235),ISBLANK(B235),ISBLANK(D235),ISBLANK(G235),ISBLANK(I235),ISBLANK(Q235),ISBLANK(S235),ISBLANK(AE235),ISBLANK(AF235),ISBLANK(AH235),ISBLANK(AI235)),1,\"\")","v":1}]
[null,null,null,null,null,null,null,null,null,null,null,null,null,null,null,null,null,null,null,null,"☐","資源保全プラン","☐","特例措置を適用した活動",null,null,"☐","設置等","☐","発注事務",null,null,null,null,null,null,{"$f":"IF(AND(ISBLANK(A235),ISBLANK(B235),ISBLANK(D235),ISBLANK(G235),ISBLANK(I235),ISBLANK(Q235),ISBLANK(S235),ISBLANK(AE235),ISBLANK(AF235),ISBLANK(AH235),ISBLANK(AI235)),1,\"\")","v":1}]
[null,null,"時",null,"分","～",null,"時",null,"分",{"$f":"+IF(AND(ISNUMBER(B238),ISNUMBER(G238),INT((G238-B238)+(I238-D238)/60)>=0),INT((G238-B238)+(I238-D238)/60),\"\")","v":""},"時間",{"$f":"IF(AND(ISNUMBER(D238),ISNUMBER(I238)),ABS(D238-I238),\"\")","v":""},"分",{"$f":"IF(Q238+S238=0,\"\",Q238+S238)","v":""},"人",null,"人",null,"人","☐","農地維持","☐","資源向上(共同)","☐","調査・計画","☐","実践活動","☐","事務処理等",null,null,{"$f":"IF(ISNUMBER(AF238),VLOOKUP(AF238,$AQ$548:$AR$597,2,0),\"\")","v":""},null,null,null,{"$f":"IF(AND(ISBLANK(A238),ISBLANK(B238),ISBLANK(D238),ISBLANK(G238),ISBLANK(I238),ISBLANK(Q238),ISBLANK(S238),ISBLANK(AE238),ISBLANK(AF238),ISBLANK(AH238),ISBLANK(AI238)),1,\"\")","v":1}]
[null,null,null,null,null,null,null,null,null,null,null,null,null,null,null,null,null,null,null,null,"☐","資源向上(長寿命化)","☐","広域化・体制強化",null,null,"☐","啓発・普及","☐","研修・会議",null,null,null,null,null,null,{"$f":"IF(AND(ISBLANK(A238),ISBLANK(B238),ISBLANK(D238),ISBLANK(G238),ISBLANK(I238),ISBLANK(Q238),ISBLANK(S238),ISBLANK(AE238),ISBLANK(AF238),ISBLANK(AH238),ISBLANK(AI238)),1,\"\")","v":1}]
[null,null,null,null,null,null,null,null,null,null,null,null,null,null,null,null,null,null,null,null,"☐","資源保全プラン","☐","特例措置を適用した活動",null,null,"☐","設置等","☐","発注事務",null,null,null,null,null,null,{"$f":"IF(AND(ISBLANK(A238),ISBLANK(B238),ISBLANK(D238),ISBLANK(G238),ISBLANK(I238),ISBLANK(Q238),ISBLANK(S238),ISBLANK(AE238),ISBLANK(AF238),ISBLANK(AH238),ISBLANK(AI238)),1,\"\")","v":1}]
[null,null,"時",null,"分","～",null,"時",null,"分",{"$f":"+IF(AND(ISNUMBER(B241),ISNUMBER(G241),INT((G241-B241)+(I241-D241)/60)>=0),INT((G241-B241)+(I241-D241)/60),\"\")","v":""},"時間",{"$f":"IF(AND(ISNUMBER(D241),ISNUMBER(I241)),ABS(D241-I241),\"\")","v":""},"分",{"$f":"IF(Q241+S241=0,\"\",Q241+S241)","v":""},"人",null,"人",null,"人","☐","農地維持","☐","資源向上(共同)","☐","調査・計画","☐","実践活動","☐","事務処理等",null,null,{"$f":"IF(ISNUMBER(AF241),VLOOKUP(AF241,$AQ$548:$AR$597,2,0),\"\")","v":""},null,null,null,{"$f":"IF(AND(ISBLANK(A241),ISBLANK(B241),ISBLANK(D241),ISBLANK(G241),ISBLANK(I241),ISBLANK(Q241),ISBLANK(S241),ISBLANK(AE241),ISBLANK(AF241),ISBLANK(AH241),ISBLANK(AI241)),1,\"\")","v":1}]
[null,null,null,null,null,null,null,null,null,null,null,null,null,null,null,null,null,null,null,null,"☐","資源向上(長寿命化)","☐","広域化・体制強化",null,null,"☐","啓発・普及","☐","研修・会議",null,null,null,null,null,null,{"$f":"IF(AND(ISBLANK(A241),ISBLANK(B241),ISBLANK(D241),ISBLANK(G241),ISBLANK(I241),ISBLANK(Q241),ISBLANK(S241),ISBLANK(AE241),ISBLANK(AF241),ISBLANK(AH241),ISBLANK(AI241)),1,\"\")","v":1}]
[null,null,null,null,null,null,null,null,null,null,null,null,null,null,null,null,null,null,null,null,"☐","資源保全プラン","☐","特例措置を適用した活動",null,null,"☐","設置等","☐","発注事務",null,null,null,null,null,null,{"$f":"IF(AND(ISBLANK(A241),ISBLANK(B241),ISBLANK(D241),ISBLANK(G241),ISBLANK(I241),ISBLANK(Q241),ISBLANK(S241),ISBLANK(AE241),ISBLANK(AF241),ISBLANK(AH241),ISBLANK(AI241)),1,\"\")","v":1}]
[null,null,"時",null,"分","～",null,"時",null,"分",{"$f":"+IF(AND(ISNUMBER(B244),ISNUMBER(G244),INT((G244-B244)+(I244-D244)/60)>=0),INT((G244-B244)+(I244-D244)/60),\"\")","v":""},"時間",{"$f":"IF(AND(ISNUMBER(D244),ISNUMBER(I244)),ABS(D244-I244),\"\")","v":""},"分",{"$f":"IF(Q244+S244=0,\"\",Q244+S244)","v":""},"人",null,"人",null,"人","☐","農地維持","☐","資源向上(共同)","☐","調査・計画","☐","実践活動","☐","事務処理等",null,null,{"$f":"IF(ISNUMBER(AF244),VLOOKUP(AF244,$AQ$548:$AR$597,2,0),\"\")","v":""},null,null,null,{"$f":"IF(AND(ISBLANK(A244),ISBLANK(B244),ISBLANK(D244),ISBLANK(G244),ISBLANK(I244),ISBLANK(Q244),ISBLANK(S244),ISBLANK(AE244),ISBLANK(AF244),ISBLANK(AH244),ISBLANK(AI244)),1,\"\")","v":1}]
[null,null,null,null,null,null,null,null,null,null,null,null,null,null,null,null,null,null,null,null,"☐","資源向上(長寿命化)","☐","広域化・体制強化",null,null,"☐","啓発・普及","☐","研修・会議",null,null,null,null,null,null,{"$f":"IF(AND(ISBLANK(A244),ISBLANK(B244),ISBLANK(D244),ISBLANK(G244),ISBLANK(I244),ISBLANK(Q244),ISBLANK(S244),ISBLANK(AE244),ISBLANK(AF244),ISBLANK(AH244),ISBLANK(AI244)),1,\"\")","v":1}]
[null,null,null,null,null,null,null,null,null,null,null,null,null,null,null,null,null,null,null,null,"☐","資源保全プラン","☐","特例措置を適用した活動",null,null,"☐","設置等","☐","発注事務",null,null,null,null,null,null,{"$f":"IF(AND(ISBLANK(A244),ISBLANK(B244),ISBLANK(D244),ISBLANK(G244),ISBLANK(I244),ISBLANK(Q244),ISBLANK(S244),ISBLANK(AE244),ISBLANK(AF244),ISBLANK(AH244),ISBLANK(AI244)),1,\"\")","v":1}]
[null,null,"時",null,"分","～",null,"時",null,"分",{"$f":"+IF(AND(ISNUMBER(B247),ISNUMBER(G247),INT((G247-B247)+(I247-D247)/60)>=0),INT((G247-B247)+(I247-D247)/60),\"\")","v":""},"時間",{"$f":"IF(AND(ISNUMBER(D247),ISNUMBER(I247)),ABS(D247-I247),\"\")","v":""},"分",{"$f":"IF(Q247+S247=0,\"\",Q247+S247)","v":""},"人",null,"人",null,"人","☐","農地維持","☐","資源向上(共同)","☐","調査・計画","☐","実践活動","☐","事務処理等",null,null,{"$f":"IF(ISNUMBER(AF247),VLOOKUP(AF247,$AQ$548:$AR$597,2,0),\"\")","v":""},null,null,null,{"$f":"IF(AND(ISBLANK(A247),ISBLANK(B247),ISBLANK(D247),ISBLANK(G247),ISBLANK(I247),ISBLANK(Q247),ISBLANK(S247),ISBLANK(AE247),ISBLANK(AF247),ISBLANK(AH247),ISBLANK(AI247)),1,\"\")","v":1}]
[null,null,null,null,null,null,null,null,null,null,null,null,null,null,null,null,null,null,null,null,"☐","資源向上(長寿命化)","☐","広域化・体制強化",null,null,"☐","啓発・普及","☐","研修・会議",null,null,null,null,null,null,{"$f":"IF(AND(ISBLANK(A247),ISBLANK(B247),ISBLANK(D247),ISBLANK(G247),ISBLANK(I247),ISBLANK(Q247),ISBLANK(S247),ISBLANK(AE247),ISBLANK(AF247),ISBLANK(AH247),ISBLANK(AI247)),1,\"\")","v":1}]
[null,null,null,null,null,null,null,null,null,null,null,null,null,null,null,null,null,null,null,null,"☐","資源保全プラン","☐","特例措置を適用した活動",null,null,"☐","設置等","☐","発注事務",null,null,null,null,null,null,{"$f":"IF(AND(ISBLANK(A247),ISBLANK(B247),ISBLANK(D247),ISBLANK(G247),ISBLANK(I247),ISBLANK(Q247),ISBLANK(S247),ISBLANK(AE247),ISBLANK(AF247),ISBLANK(AH247),ISBLANK(AI247)),1,\"\")","v":1}]
[null,null,"時",null,"分","～",null,"時",null,"分",{"$f":"+IF(AND(ISNUMBER(B250),ISNUMBER(G250),INT((G250-B250)+(I250-D250)/60)>=0),INT((G250-B250)+(I250-D250)/60),\"\")","v":""},"時間",{"$f":"IF(AND(ISNUMBER(D250),ISNUMBER(I250)),ABS(D250-I250),\"\")","v":""},"分",{"$f":"IF(Q250+S250=0,\"\",Q250+S250)","v":""},"人",null,"人",null,"人","☐","農地維持","☐","資源向上(共同)","☐","調査・計画","☐","実践活動","☐","事務処理等",null,null,{"$f":"IF(ISNUMBER(AF250),VLOOKUP(AF250,$AQ$548:$AR$597,2,0),\"\")","v":""},null,null,null,{"$f":"IF(AND(ISBLANK(A250),ISBLANK(B250),ISBLANK(D250),ISBLANK(G250),ISBLANK(I250),ISBLANK(Q250),ISBLANK(S250),ISBLANK(AE250),ISBLANK(AF250),ISBLANK(AH250),ISBLANK(AI250)),1,\"\")","v":1}]
[null,null,null,null,null,null,null,null,null,null,null,null,null,null,null,null,null,null,null,null,"☐","資源向上(長寿命化)","☐","広域化・体制強化",null,null,"☐","啓発・普及","☐","研修・会議",null,null,null,null,null,null,{"$f":"IF(AND(ISBLANK(A250),ISBLANK(B250),ISBLANK(D250),ISBLANK(G250),ISBLANK(I250),ISBLANK(Q250),ISBLANK(S250),ISBLANK(AE250),ISBLANK(AF250),ISBLANK(AH250),ISBLANK(AI250)),1,\"\")","v":1}]
[null,null,null,null,null,null,null,null,null,null,null,null,null,null,null,null,null,null,null,null,"☐","資源保全プラン","☐","特例措置を適用した活動",null,null,"☐","設置等","☐","発注事務",null,null,null,null,null,null,{"$f":"IF(AND(ISBLANK(A250),ISBLANK(B250),ISBLANK(D250),ISBLANK(G250),ISBLANK(I250),ISBLANK(Q250),ISBLANK(S250),ISBLANK(AE250),ISBLANK(AF250),ISBLANK(AH250),ISBLANK(AI250)),1,\"\")","v":1}]
[null,null,"時",null,"分","～",null,"時",null,"分",{"$f":"+IF(AND(ISNUMBER(B253),ISNUMBER(G253),INT((G253-B253)+(I253-D253)/60)>=0),INT((G253-B253)+(I253-D253)/60),\"\")","v":""},"時間",{"$f":"IF(AND(ISNUMBER(D253),ISNUMBER(I253)),ABS(D253-I253),\"\")","v":""},"分",{"$f":"IF(Q253+S253=0,\"\",Q253+S253)","v":""},"人",null,"人",null,"人","☐","農地維持","☐","資源向上(共同)","☐","調査・計画","☐","実践活動","☐","事務処理等",null,null,{"$f":"IF(ISNUMBER(AF253),VLOOKUP(AF253,$AQ$548:$AR$597,2,0),\"\")","v":""},null,null,null,{"$f":"IF(AND(ISBLANK(A253),ISBLANK(B253),ISBLANK(D253),ISBLANK(G253),ISBLANK(I253),ISBLANK(Q253),ISBLANK(S253),ISBLANK(AE253),ISBLANK(AF253),ISBLANK(AH253),ISBLANK(AI253)),1,\"\")","v":1}]
[null,null,null,null,null,null,null,null,null,null,null,null,null,null,null,null,null,null,null,null,"☐","資源向上(長寿命化)","☐","広域化・体制強化",null,null,"☐","啓発・普及","☐","研修・会議",null,null,null,null,null,null,{"$f":"IF(AND(ISBLANK(A253),ISBLANK(B253),ISBLANK(D253),ISBLANK(G253),ISBLANK(I253),ISBLANK(Q253),ISBLANK(S253),ISBLANK(AE253),ISBLANK(AF253),ISBLANK(AH253),ISBLANK(AI253)),1,\"\")","v":1}]
[null,null,null,null,null,null,null,null,null,null,null,null,null,null,null,null,null,null,null,null,"☐","資源保全プラン","☐","特例措置を適用した活動",null,null,"☐","設置等","☐","発注事務",null,null,null,null,null,null,{"$f":"IF(AND(ISBLANK(A253),ISBLANK(B253),ISBLANK(D253),ISBLANK(G253),ISBLANK(I253),ISBLANK(Q253),ISBLANK(S253),ISBLANK(AE253),ISBLANK(AF253),ISBLANK(AH253),ISBLANK(AI253)),1,\"\")","v":1}]
[null,null,"時",null,"分","～",null,"時",null,"分",{"$f":"+IF(AND(ISNUMBER(B256),ISNUMBER(G256),INT((G256-B256)+(I256-D256)/60)>=0),INT((G256-B256)+(I256-D256)/60),\"\")","v":""},"時間",{"$f":"IF(AND(ISNUMBER(D256),ISNUMBER(I256)),ABS(D256-I256),\"\")","v":""},"分",{"$f":"IF(Q256+S256=0,\"\",Q256+S256)","v":""},"人",null,"人",null,"人","☐","農地維持","☐","資源向上(共同)","☐","調査・計画","☐","実践活動","☐","事務処理等",null,null,{"$f":"IF(ISNUMBER(AF256),VLOOKUP(AF256,$AQ$548:$AR$597,2,0),\"\")","v":""},null,null,null,{"$f":"IF(AND(ISBLANK(A256),ISBLANK(B256),ISBLANK(D256),ISBLANK(G256),ISBLANK(I256),ISBLANK(Q256),ISBLANK(S256),ISBLANK(AE256),ISBLANK(AF256),ISBLANK(AH256),ISBLANK(AI256)),1,\"\")","v":1}]
[null,null,null,null,null,null,null,null,null,null,null,null,null,null,null,null,null,null,null,null,"☐","資源向上(長寿命化)","☐","広域化・体制強化",null,null,"☐","啓発・普及","☐","研修・会議",null,null,null,null,null,null,{"$f":"IF(AND(ISBLANK(A256),ISBLANK(B256),ISBLANK(D256),ISBLANK(G256),ISBLANK(I256),ISBLANK(Q256),ISBLANK(S256),ISBLANK(AE256),ISBLANK(AF256),ISBLANK(AH256),ISBLANK(AI256)),1,\"\")","v":1}]
[null,null,null,null,null,null,null,null,null,null,null,null,null,null,null,null,null,null,null,null,"☐","資源保全プラン","☐","特例措置を適用した活動",null,null,"☐","設置等","☐","発注事務",null,null,null,null,null,null,{"$f":"IF(AND(ISBLANK(A256),ISBLANK(B256),ISBLANK(D256),ISBLANK(G256),ISBLANK(I256),ISBLANK(Q256),ISBLANK(S256),ISBLANK(AE256),ISBLANK(AF256),ISBLANK(AH256),ISBLANK(AI256)),1,\"\")","v":1}]
[null,null,"時",null,"分","～",null,"時",null,"分",{"$f":"+IF(AND(ISNUMBER(B259),ISNUMBER(G259),INT((G259-B259)+(I259-D259)/60)>=0),INT((G259-B259)+(I259-D259)/60),\"\")","v":""},"時間",{"$f":"IF(AND(ISNUMBER(D259),ISNUMBER(I259)),ABS(D259-I259),\"\")","v":""},"分",{"$f":"IF(Q259+S259=0,\"\",Q259+S259)","v":""},"人",null,"人",null,"人","☐","農地維持","☐","資源向上(共同)","☐","調査・計画","☐","実践活動","☐","事務処理等",null,null,{"$f":"IF(ISNUMBER(AF259),VLOOKUP(AF259,$AQ$548:$AR$597,2,0),\"\")","v":""},null,null,null,{"$f":"IF(AND(ISBLANK(A259),ISBLANK(B259),ISBLANK(D259),ISBLANK(G259),ISBLANK(I259),ISBLANK(Q259),ISBLANK(S259),ISBLANK(AE259),ISBLANK(AF259),ISBLANK(AH259),ISBLANK(AI259)),1,\"\")","v":1}]
[null,null,null,null,null,null,null,null,null,null,null,null,null,null,null,null,null,null,null,null,"☐","資源向上(長寿命化)","☐","広域化・体制強化",null,null,"☐","啓発・普及","☐","研修・会議",null,null,null,null,null,null,{"$f":"IF(AND(ISBLANK(A259),ISBLANK(B259),ISBLANK(D259),ISBLANK(G259),ISBLANK(I259),ISBLANK(Q259),ISBLANK(S259),ISBLANK(AE259),ISBLANK(AF259),ISBLANK(AH259),ISBLANK(AI259)),1,\"\")","v":1}]
[null,null,null,null,null,null,null,null,null,null,null,null,null,null,null,null,null,null,null,null,"☐","資源保全プラン","☐","特例措置を適用した活動",null,null,"☐","設置等","☐","発注事務",null,null,null,null,null,null,{"$f":"IF(AND(ISBLANK(A259),ISBLANK(B259),ISBLANK(D259),ISBLANK(G259),ISBLANK(I259),ISBLANK(Q259),ISBLANK(S259),ISBLANK(AE259),ISBLANK(AF259),ISBLANK(AH259),ISBLANK(AI259)),1,\"\")","v":1}]
[null,null,"時",null,"分","～",null,"時",null,"分",{"$f":"+IF(AND(ISNUMBER(B262),ISNUMBER(G262),INT((G262-B262)+(I262-D262)/60)>=0),INT((G262-B262)+(I262-D262)/60),\"\")","v":""},"時間",{"$f":"IF(AND(ISNUMBER(D262),ISNUMBER(I262)),ABS(D262-I262),\"\")","v":""},"分",{"$f":"IF(Q262+S262=0,\"\",Q262+S262)","v":""},"人",null,"人",null,"人","☐","農地維持","☐","資源向上(共同)","☐","調査・計画","☐","実践活動","☐","事務処理等",null,null,{"$f":"IF(ISNUMBER(AF262),VLOOKUP(AF262,$AQ$548:$AR$597,2,0),\"\")","v":""},null,null,null,{"$f":"IF(AND(ISBLANK(A262),ISBLANK(B262),ISBLANK(D262),ISBLANK(G262),ISBLANK(I262),ISBLANK(Q262),ISBLANK(S262),ISBLANK(AE262),ISBLANK(AF262),ISBLANK(AH262),ISBLANK(AI262)),1,\"\")","v":1}]
[null,null,null,null,null,null,null,null,null,null,null,null,null,null,null,null,null,null,null,null,"☐","資源向上(長寿命化)","☐","広域化・体制強化",null,null,"☐","啓発・普及","☐","研修・会議",null,null,null,null,null,null,{"$f":"IF(AND(ISBLANK(A262),ISBLANK(B262),ISBLANK(D262),ISBLANK(G262),ISBLANK(I262),ISBLANK(Q262),ISBLANK(S262),ISBLANK(AE262),ISBLANK(AF262),ISBLANK(AH262),ISBLANK(AI262)),1,\"\")","v":1}]
[null,null,null,null,null,null,null,null,null,null,null,null,null,null,null,null,null,null,null,null,"☐","資源保全プラン","☐","特例措置を適用した活動",null,null,"☐","設置等","☐","発注事務",null,null,null,null,null,null,{"$f":"IF(AND(ISBLANK(A262),ISBLANK(B262),ISBLANK(D262),ISBLANK(G262),ISBLANK(I262),ISBLANK(Q262),ISBLANK(S262),ISBLANK(AE262),ISBLANK(AF262),ISBLANK(AH262),ISBLANK(AI262)),1,\"\")","v":1}]
[null,null,"時",null,"分","～",null,"時",null,"分",{"$f":"+IF(AND(ISNUMBER(B265),ISNUMBER(G265),INT((G265-B265)+(I265-D265)/60)>=0),INT((G265-B265)+(I265-D265)/60),\"\")","v":""},"時間",{"$f":"IF(AND(ISNUMBER(D265),ISNUMBER(I265)),ABS(D265-I265),\"\")","v":""},"分",{"$f":"IF(Q265+S265=0,\"\",Q265+S265)","v":""},"人",null,"人",null,"人","☐","農地維持","☐","資源向上(共同)","☐","調査・計画","☐","実践活動","☐","事務処理等",null,null,{"$f":"IF(ISNUMBER(AF265),VLOOKUP(AF265,$AQ$548:$AR$597,2,0),\"\")","v":""},null,null,null,{"$f":"IF(AND(ISBLANK(A265),ISBLANK(B265),ISBLANK(D265),ISBLANK(G265),ISBLANK(I265),ISBLANK(Q265),ISBLANK(S265),ISBLANK(AE265),ISBLANK(AF265),ISBLANK(AH265),ISBLANK(AI265)),1,\"\")","v":1}]
[null,null,null,null,null,null,null,null,null,null,null,null,null,null,null,null,null,null,null,null,"☐","資源向上(長寿命化)","☐","広域化・体制強化",null,null,"☐","啓発・普及","☐","研修・会議",null,null,null,null,null,null,{"$f":"IF(AND(ISBLANK(A265),ISBLANK(B265),ISBLANK(D265),ISBLANK(G265),ISBLANK(I265),ISBLANK(Q265),ISBLANK(S265),ISBLANK(AE265),ISBLANK(AF265),ISBLANK(AH265),ISBLANK(AI265)),1,\"\")","v":1}]
[null,null,null,null,null,null,null,null,null,null,null,null,null,null,null,null,null,null,null,null,"☐","資源保全プラン","☐","特例措置を適用した活動",null,null,"☐","設置等","☐","発注事務",null,null,null,null,null,null,{"$f":"IF(AND(ISBLANK(A265),ISBLANK(B265),ISBLANK(D265),ISBLANK(G265),ISBLANK(I265),ISBLANK(Q265),ISBLANK(S265),ISBLANK(AE265),ISBLANK(AF265),ISBLANK(AH265),ISBLANK(AI265)),1,\"\")","v":1}]
[null,null,"時",null,"分","～",null,"時",null,"分",{"$f":"+IF(AND(ISNUMBER(B268),ISNUMBER(G268),INT((G268-B268)+(I268-D268)/60)>=0),INT((G268-B268)+(I268-D268)/60),\"\")","v":""},"時間",{"$f":"IF(AND(ISNUMBER(D268),ISNUMBER(I268)),ABS(D268-I268),\"\")","v":""},"分",{"$f":"IF(Q268+S268=0,\"\",Q268+S268)","v":""},"人",null,"人",null,"人","☐","農地維持","☐","資源向上(共同)","☐","調査・計画","☐","実践活動","☐","事務処理等",null,null,{"$f":"IF(ISNUMBER(AF268),VLOOKUP(AF268,$AQ$548:$AR$597,2,0),\"\")","v":""},null,null,null,{"$f":"IF(AND(ISBLANK(A268),ISBLANK(B268),ISBLANK(D268),ISBLANK(G268),ISBLANK(I268),ISBLANK(Q268),ISBLANK(S268),ISBLANK(AE268),ISBLANK(AF268),ISBLANK(AH268),ISBLANK(AI268)),1,\"\")","v":1}]
[null,null,null,null,null,null,null,null,null,null,null,null,null,null,null,null,null,null,null,null,"☐","資源向上(長寿命化)","☐","広域化・体制強化",null,null,"☐","啓発・普及","☐","研修・会議",null,null,null,null,null,null,{"$f":"IF(AND(ISBLANK(A268),ISBLANK(B268),ISBLANK(D268),ISBLANK(G268),ISBLANK(I268),ISBLANK(Q268),ISBLANK(S268),ISBLANK(AE268),ISBLANK(AF268),ISBLANK(AH268),ISBLANK(AI268)),1,\"\")","v":1}]
[null,null,null,null,null,null,null,null,null,null,null,null,null,null,null,null,null,null,null,null,"☐","資源保全プラン","☐","特例措置を適用した活動",null,null,"☐","設置等","☐","発注事務",null,null,null,null,null,null,{"$f":"IF(AND(ISBLANK(A268),ISBLANK(B268),ISBLANK(D268),ISBLANK(G268),ISBLANK(I268),ISBLANK(Q268),ISBLANK(S268),ISBLANK(AE268),ISBLANK(AF268),ISBLANK(AH268),ISBLANK(AI268)),1,\"\")","v":1}]
[null,null,"時",null,"分","～",null,"時",null,"分",{"$f":"+IF(AND(ISNUMBER(B271),ISNUMBER(G271),INT((G271-B271)+(I271-D271)/60)>=0),INT((G271-B271)+(I271-D271)/60),\"\")","v":""},"時間",{"$f":"IF(AND(ISNUMBER(D271),ISNUMBER(I271)),ABS(D271-I271),\"\")","v":""},"分",{"$f":"IF(Q271+S271=0,\"\",Q271+S271)","v":""},"人",null,"人",null,"人","☐","農地維持","☐","資源向上(共同)","☐","調査・計画","☐","実践活動","☐","事務処理等",null,null,{"$f":"IF(ISNUMBER(AF271),VLOOKUP(AF271,$AQ$548:$AR$597,2,0),\"\")","v":""},null,null,null,{"$f":"IF(AND(ISBLANK(A271),ISBLANK(B271),ISBLANK(D271),ISBLANK(G271),ISBLANK(I271),ISBLANK(Q271),ISBLANK(S271),ISBLANK(AE271),ISBLANK(AF271),ISBLANK(AH271),ISBLANK(AI271)),1,\"\")","v":1}]
[null,null,null,null,null,null,null,null,null,null,null,null,null,null,null,null,null,null,null,null,"☐","資源向上(長寿命化)","☐","広域化・体制強化",null,null,"☐","啓発・普及","☐","研修・会議",null,null,null,null,null,null,{"$f":"IF(AND(ISBLANK(A271),ISBLANK(B271),ISBLANK(D271),ISBLANK(G271),ISBLANK(I271),ISBLANK(Q271),ISBLANK(S271),ISBLANK(AE271),ISBLANK(AF271),ISBLANK(AH271),ISBLANK(AI271)),1,\"\")","v":1}]
[null,null,null,null,null,null,null,null,null,null,null,null,null,null,null,null,null,null,null,null,"☐","資源保全プラン","☐","特例措置を適用した活動",null,null,"☐","設置等","☐","発注事務",null,null,null,null,null,null,{"$f":"IF(AND(ISBLANK(A271),ISBLANK(B271),ISBLANK(D271),ISBLANK(G271),ISBLANK(I271),ISBLANK(Q271),ISBLANK(S271),ISBLANK(AE271),ISBLANK(AF271),ISBLANK(AH271),ISBLANK(AI271)),1,\"\")","v":1}]
[null,null,"時",null,"分","～",null,"時",null,"分",{"$f":"+IF(AND(ISNUMBER(B274),ISNUMBER(G274),INT((G274-B274)+(I274-D274)/60)>=0),INT((G274-B274)+(I274-D274)/60),\"\")","v":""},"時間",{"$f":"IF(AND(ISNUMBER(D274),ISNUMBER(I274)),ABS(D274-I274),\"\")","v":""},"分",{"$f":"IF(Q274+S274=0,\"\",Q274+S274)","v":""},"人",null,"人",null,"人","☐","農地維持","☐","資源向上(共同)","☐","調査・計画","☐","実践活動","☐","事務処理等",null,null,{"$f":"IF(ISNUMBER(AF274),VLOOKUP(AF274,$AQ$548:$AR$597,2,0),\"\")","v":""},null,null,null,{"$f":"IF(AND(ISBLANK(A274),ISBLANK(B274),ISBLANK(D274),ISBLANK(G274),ISBLANK(I274),ISBLANK(Q274),ISBLANK(S274),ISBLANK(AE274),ISBLANK(AF274),ISBLANK(AH274),ISBLANK(AI274)),1,\"\")","v":1}]
[null,null,null,null,null,null,null,null,null,null,null,null,null,null,null,null,null,null,null,null,"☐","資源向上(長寿命化)","☐","広域化・体制強化",null,null,"☐","啓発・普及","☐","研修・会議",null,null,null,null,null,null,{"$f":"IF(AND(ISBLANK(A274),ISBLANK(B274),ISBLANK(D274),ISBLANK(G274),ISBLANK(I274),ISBLANK(Q274),ISBLANK(S274),ISBLANK(AE274),ISBLANK(AF274),ISBLANK(AH274),ISBLANK(AI274)),1,\"\")","v":1}]
[null,null,null,null,null,null,null,null,null,null,null,null,null,null,null,null,null,null,null,null,"☐","資源保全プラン","☐","特例措置を適用した活動",null,null,"☐","設置等","☐","発注事務",null,null,null,null,null,null,{"$f":"IF(AND(ISBLANK(A274),ISBLANK(B274),ISBLANK(D274),ISBLANK(G274),ISBLANK(I274),ISBLANK(Q274),ISBLANK(S274),ISBLANK(AE274),ISBLANK(AF274),ISBLANK(AH274),ISBLANK(AI274)),1,\"\")","v":1}]
[null,null,"時",null,"分","～",null,"時",null,"分",{"$f":"+IF(AND(ISNUMBER(B277),ISNUMBER(G277),INT((G277-B277)+(I277-D277)/60)>=0),INT((G277-B277)+(I277-D277)/60),\"\")","v":""},"時間",{"$f":"IF(AND(ISNUMBER(D277),ISNUMBER(I277)),ABS(D277-I277),\"\")","v":""},"分",{"$f":"IF(Q277+S277=0,\"\",Q277+S277)","v":""},"人",null,"人",null,"人","☐","農地維持","☐","資源向上(共同)","☐","調査・計画","☐","実践活動","☐","事務処理等",null,null,{"$f":"IF(ISNUMBER(AF277),VLOOKUP(AF277,$AQ$548:$AR$597,2,0),\"\")","v":""},null,null,null,{"$f":"IF(AND(ISBLANK(A277),ISBLANK(B277),ISBLANK(D277),ISBLANK(G277),ISBLANK(I277),ISBLANK(Q277),ISBLANK(S277),ISBLANK(AE277),ISBLANK(AF277),ISBLANK(AH277),ISBLANK(AI277)),1,\"\")","v":1}]
[null,null,null,null,null,null,null,null,null,null,null,null,null,null,null,null,null,null,null,null,"☐","資源向上(長寿命化)","☐","広域化・体制強化",null,null,"☐","啓発・普及","☐","研修・会議",null,null,null,null,null,null,{"$f":"IF(AND(ISBLANK(A277),ISBLANK(B277),ISBLANK(D277),ISBLANK(G277),ISBLANK(I277),ISBLANK(Q277),ISBLANK(S277),ISBLANK(AE277),ISBLANK(AF277),ISBLANK(AH277),ISBLANK(AI277)),1,\"\")","v":1}]
[null,null,null,null,null,null,null,null,null,null,null,null,null,null,null,null,null,null,null,null,"☐","資源保全プラン","☐","特例措置を適用した活動",null,null,"☐","設置等","☐","発注事務",null,null,null,null,null,null,{"$f":"IF(AND(ISBLANK(A277),ISBLANK(B277),ISBLANK(D277),ISBLANK(G277),ISBLANK(I277),ISBLANK(Q277),ISBLANK(S277),ISBLANK(AE277),ISBLANK(AF277),ISBLANK(AH277),ISBLANK(AI277)),1,\"\")","v":1}]
[null,null,"時",null,"分","～",null,"時",null,"分",{"$f":"+IF(AND(ISNUMBER(B280),ISNUMBER(G280),INT((G280-B280)+(I280-D280)/60)>=0),INT((G280-B280)+(I280-D280)/60),\"\")","v":""},"時間",{"$f":"IF(AND(ISNUMBER(D280),ISNUMBER(I280)),ABS(D280-I280),\"\")","v":""},"分",{"$f":"IF(Q280+S280=0,\"\",Q280+S280)","v":""},"人",null,"人",null,"人","☐","農地維持","☐","資源向上(共同)","☐","調査・計画","☐","実践活動","☐","事務処理等",null,null,{"$f":"IF(ISNUMBER(AF280),VLOOKUP(AF280,$AQ$548:$AR$597,2,0),\"\")","v":""},null,null,null,{"$f":"IF(AND(ISBLANK(A280),ISBLANK(B280),ISBLANK(D280),ISBLANK(G280),ISBLANK(I280),ISBLANK(Q280),ISBLANK(S280),ISBLANK(AE280),ISBLANK(AF280),ISBLANK(AH280),ISBLANK(AI280)),1,\"\")","v":1}]
[null,null,null,null,null,null,null,null,null,null,null,null,null,null,null,null,null,null,null,null,"☐","資源向上(長寿命化)","☐","広域化・体制強化",null,null,"☐","啓発・普及","☐","研修・会議",null,null,null,null,null,null,{"$f":"IF(AND(ISBLANK(A280),ISBLANK(B280),ISBLANK(D280),ISBLANK(G280),ISBLANK(I280),ISBLANK(Q280),ISBLANK(S280),ISBLANK(AE280),ISBLANK(AF280),ISBLANK(AH280),ISBLANK(AI280)),1,\"\")","v":1}]
[null,null,null,null,null,null,null,null,null,null,null,null,null,null,null,null,null,null,null,null,"☐","資源保全プラン","☐","特例措置を適用した活動",null,null,"☐","設置等","☐","発注事務",null,null,null,null,null,null,{"$f":"IF(AND(ISBLANK(A280),ISBLANK(B280),ISBLANK(D280),ISBLANK(G280),ISBLANK(I280),ISBLANK(Q280),ISBLANK(S280),ISBLANK(AE280),ISBLANK(AF280),ISBLANK(AH280),ISBLANK(AI280)),1,\"\")","v":1}]
[null,null,"時",null,"分","～",null,"時",null,"分",{"$f":"+IF(AND(ISNUMBER(B283),ISNUMBER(G283),INT((G283-B283)+(I283-D283)/60)>=0),INT((G283-B283)+(I283-D283)/60),\"\")","v":""},"時間",{"$f":"IF(AND(ISNUMBER(D283),ISNUMBER(I283)),ABS(D283-I283),\"\")","v":""},"分",{"$f":"IF(Q283+S283=0,\"\",Q283+S283)","v":""},"人",null,"人",null,"人","☐","農地維持","☐","資源向上(共同)","☐","調査・計画","☐","実践活動","☐","事務処理等",null,null,{"$f":"IF(ISNUMBER(AF283),VLOOKUP(AF283,$AQ$548:$AR$597,2,0),\"\")","v":""},null,null,null,{"$f":"IF(AND(ISBLANK(A283),ISBLANK(B283),ISBLANK(D283),ISBLANK(G283),ISBLANK(I283),ISBLANK(Q283),ISBLANK(S283),ISBLANK(AE283),ISBLANK(AF283),ISBLANK(AH283),ISBLANK(AI283)),1,\"\")","v":1}]
[null,null,null,null,null,null,null,null,null,null,null,null,null,null,null,null,null,null,null,null,"☐","資源向上(長寿命化)","☐","広域化・体制強化",null,null,"☐","啓発・普及","☐","研修・会議",null,null,null,null,null,null,{"$f":"IF(AND(ISBLANK(A283),ISBLANK(B283),ISBLANK(D283),ISBLANK(G283),ISBLANK(I283),ISBLANK(Q283),ISBLANK(S283),ISBLANK(AE283),ISBLANK(AF283),ISBLANK(AH283),ISBLANK(AI283)),1,\"\")","v":1}]
[null,null,null,null,null,null,null,null,null,null,null,null,null,null,null,null,null,null,null,null,"☐","資源保全プラン","☐","特例措置を適用した活動",null,null,"☐","設置等","☐","発注事務",null,null,null,null,null,null,{"$f":"IF(AND(ISBLANK(A283),ISBLANK(B283),ISBLANK(D283),ISBLANK(G283),ISBLANK(I283),ISBLANK(Q283),ISBLANK(S283),ISBLANK(AE283),ISBLANK(AF283),ISBLANK(AH283),ISBLANK(AI283)),1,\"\")","v":1}]
[null,null,"時",null,"分","～",null,"時",null,"分",{"$f":"+IF(AND(ISNUMBER(B286),ISNUMBER(G286),INT((G286-B286)+(I286-D286)/60)>=0),INT((G286-B286)+(I286-D286)/60),\"\")","v":""},"時間",{"$f":"IF(AND(ISNUMBER(D286),ISNUMBER(I286)),ABS(D286-I286),\"\")","v":""},"分",{"$f":"IF(Q286+S286=0,\"\",Q286+S286)","v":""},"人",null,"人",null,"人","☐","農地維持","☐","資源向上(共同)","☐","調査・計画","☐","実践活動","☐","事務処理等",null,null,{"$f":"IF(ISNUMBER(AF286),VLOOKUP(AF286,$AQ$548:$AR$597,2,0),\"\")","v":""},null,null,null,{"$f":"IF(AND(ISBLANK(A286),ISBLANK(B286),ISBLANK(D286),ISBLANK(G286),ISBLANK(I286),ISBLANK(Q286),ISBLANK(S286),ISBLANK(AE286),ISBLANK(AF286),ISBLANK(AH286),ISBLANK(AI286)),1,\"\")","v":1}]
[null,null,null,null,null,null,null,null,null,null,null,null,null,null,null,null,null,null,null,null,"☐","資源向上(長寿命化)","☐","広域化・体制強化",null,null,"☐","啓発・普及","☐","研修・会議",null,null,null,null,null,null,{"$f":"IF(AND(ISBLANK(A286),ISBLANK(B286),ISBLANK(D286),ISBLANK(G286),ISBLANK(I286),ISBLANK(Q286),ISBLANK(S286),ISBLANK(AE286),ISBLANK(AF286),ISBLANK(AH286),ISBLANK(AI286)),1,\"\")","v":1}]
[null,null,null,null,null,null,null,null,null,null,null,null,null,null,null,null,null,null,null,null,"☐","資源保全プラン","☐","特例措置を適用した活動",null,null,"☐","設置等","☐","発注事務",null,null,null,null,null,null,{"$f":"IF(AND(ISBLANK(A286),ISBLANK(B286),ISBLANK(D286),ISBLANK(G286),ISBLANK(I286),ISBLANK(Q286),ISBLANK(S286),ISBLANK(AE286),ISBLANK(AF286),ISBLANK(AH286),ISBLANK(AI286)),1,\"\")","v":1}]
[null,null,"時",null,"分","～",null,"時",null,"分",{"$f":"+IF(AND(ISNUMBER(B289),ISNUMBER(G289),INT((G289-B289)+(I289-D289)/60)>=0),INT((G289-B289)+(I289-D289)/60),\"\")","v":""},"時間",{"$f":"IF(AND(ISNUMBER(D289),ISNUMBER(I289)),ABS(D289-I289),\"\")","v":""},"分",{"$f":"IF(Q289+S289=0,\"\",Q289+S289)","v":""},"人",null,"人",null,"人","☐","農地維持","☐","資源向上(共同)","☐","調査・計画","☐","実践活動","☐","事務処理等",null,null,{"$f":"IF(ISNUMBER(AF289),VLOOKUP(AF289,$AQ$548:$AR$597,2,0),\"\")","v":""},null,null,null,{"$f":"IF(AND(ISBLANK(A289),ISBLANK(B289),ISBLANK(D289),ISBLANK(G289),ISBLANK(I289),ISBLANK(Q289),ISBLANK(S289),ISBLANK(AE289),ISBLANK(AF289),ISBLANK(AH289),ISBLANK(AI289)),1,\"\")","v":1}]
[null,null,null,null,null,null,null,null,null,null,null,null,null,null,null,null,null,null,null,null,"☐","資源向上(長寿命化)","☐","広域化・体制強化",null,null,"☐","啓発・普及","☐","研修・会議",null,null,null,null,null,null,{"$f":"IF(AND(ISBLANK(A289),ISBLANK(B289),ISBLANK(D289),ISBLANK(G289),ISBLANK(I289),ISBLANK(Q289),ISBLANK(S289),ISBLANK(AE289),ISBLANK(AF289),ISBLANK(AH289),ISBLANK(AI289)),1,\"\")","v":1}]
[null,null,null,null,null,null,null,null,null,null,null,null,null,null,null,null,null,null,null,null,"☐","資源保全プラン","☐","特例措置を適用した活動",null,null,"☐","設置等","☐","発注事務",null,null,null,null,null,null,{"$f":"IF(AND(ISBLANK(A289),ISBLANK(B289),ISBLANK(D289),ISBLANK(G289),ISBLANK(I289),ISBLANK(Q289),ISBLANK(S289),ISBLANK(AE289),ISBLANK(AF289),ISBLANK(AH289),ISBLANK(AI289)),1,\"\")","v":1}]
[null,null,"時",null,"分","～",null,"時",null,"分",{"$f":"+IF(AND(ISNUMBER(B292),ISNUMBER(G292),INT((G292-B292)+(I292-D292)/60)>=0),INT((G292-B292)+(I292-D292)/60),\"\")","v":""},"時間",{"$f":"IF(AND(ISNUMBER(D292),ISNUMBER(I292)),ABS(D292-I292),\"\")","v":""},"分",{"$f":"IF(Q292+S292=0,\"\",Q292+S292)","v":""},"人",null,"人",null,"人","☐","農地維持","☐","資源向上(共同)","☐","調査・計画","☐","実践活動","☐","事務処理等",null,null,{"$f":"IF(ISNUMBER(AF292),VLOOKUP(AF292,$AQ$548:$AR$597,2,0),\"\")","v":""},null,null,null,{"$f":"IF(AND(ISBLANK(A292),ISBLANK(B292),ISBLANK(D292),ISBLANK(G292),ISBLANK(I292),ISBLANK(Q292),ISBLANK(S292),ISBLANK(AE292),ISBLANK(AF292),ISBLANK(AH292),ISBLANK(AI292)),1,\"\")","v":1}]
[null,null,null,null,null,null,null,null,null,null,null,null,null,null,null,null,null,null,null,null,"☐","資源向上(長寿命化)","☐","広域化・体制強化",null,null,"☐","啓発・普及","☐","研修・会議",null,null,null,null,null,null,{"$f":"IF(AND(ISBLANK(A292),ISBLANK(B292),ISBLANK(D292),ISBLANK(G292),ISBLANK(I292),ISBLANK(Q292),ISBLANK(S292),ISBLANK(AE292),ISBLANK(AF292),ISBLANK(AH292),ISBLANK(AI292)),1,\"\")","v":1}]
[null,null,null,null,null,null,null,null,null,null,null,null,null,null,null,null,null,null,null,null,"☐","資源保全プラン","☐","特例措置を適用した活動",null,null,"☐","設置等","☐","発注事務",null,null,null,null,null,null,{"$f":"IF(AND(ISBLANK(A292),ISBLANK(B292),ISBLANK(D292),ISBLANK(G292),ISBLANK(I292),ISBLANK(Q292),ISBLANK(S292),ISBLANK(AE292),ISBLANK(AF292),ISBLANK(AH292),ISBLANK(AI292)),1,\"\")","v":1}]
[null,null,"時",null,"分","～",null,"時",null,"分",{"$f":"+IF(AND(ISNUMBER(B295),ISNUMBER(G295),INT((G295-B295)+(I295-D295)/60)>=0),INT((G295-B295)+(I295-D295)/60),\"\")","v":""},"時間",{"$f":"IF(AND(ISNUMBER(D295),ISNUMBER(I295)),ABS(D295-I295),\"\")","v":""},"分",{"$f":"IF(Q295+S295=0,\"\",Q295+S295)","v":""},"人",null,"人",null,"人","☐","農地維持","☐","資源向上(共同)","☐","調査・計画","☐","実践活動","☐","事務処理等",null,null,{"$f":"IF(ISNUMBER(AF295),VLOOKUP(AF295,$AQ$548:$AR$597,2,0),\"\")","v":""},null,null,null,{"$f":"IF(AND(ISBLANK(A295),ISBLANK(B295),ISBLANK(D295),ISBLANK(G295),ISBLANK(I295),ISBLANK(Q295),ISBLANK(S295),ISBLANK(AE295),ISBLANK(AF295),ISBLANK(AH295),ISBLANK(AI295)),1,\"\")","v":1}]
[null,null,null,null,null,null,null,null,null,null,null,null,null,null,null,null,null,null,null,null,"☐","資源向上(長寿命化)","☐","広域化・体制強化",null,null,"☐","啓発・普及","☐","研修・会議",null,null,null,null,null,null,{"$f":"IF(AND(ISBLANK(A295),ISBLANK(B295),ISBLANK(D295),ISBLANK(G295),ISBLANK(I295),ISBLANK(Q295),ISBLANK(S295),ISBLANK(AE295),ISBLANK(AF295),ISBLANK(AH295),ISBLANK(AI295)),1,\"\")","v":1}]
[null,null,null,null,null,null,null,null,null,null,null,null,null,null,null,null,null,null,null,null,"☐","資源保全プラン","☐","特例措置を適用した活動",null,null,"☐","設置等","☐","発注事務",null,null,null,null,null,null,{"$f":"IF(AND(ISBLANK(A295),ISBLANK(B295),ISBLANK(D295),ISBLANK(G295),ISBLANK(I295),ISBLANK(Q295),ISBLANK(S295),ISBLANK(AE295),ISBLANK(AF295),ISBLANK(AH295),ISBLANK(AI295)),1,\"\")","v":1}]
[null,null,"時",null,"分","～",null,"時",null,"分",{"$f":"+IF(AND(ISNUMBER(B298),ISNUMBER(G298),INT((G298-B298)+(I298-D298)/60)>=0),INT((G298-B298)+(I298-D298)/60),\"\")","v":""},"時間",{"$f":"IF(AND(ISNUMBER(D298),ISNUMBER(I298)),ABS(D298-I298),\"\")","v":""},"分",{"$f":"IF(Q298+S298=0,\"\",Q298+S298)","v":""},"人",null,"人",null,"人","☐","農地維持","☐","資源向上(共同)","☐","調査・計画","☐","実践活動","☐","事務処理等",null,null,{"$f":"IF(ISNUMBER(AF298),VLOOKUP(AF298,$AQ$548:$AR$597,2,0),\"\")","v":""},null,null,null,{"$f":"IF(AND(ISBLANK(A298),ISBLANK(B298),ISBLANK(D298),ISBLANK(G298),ISBLANK(I298),ISBLANK(Q298),ISBLANK(S298),ISBLANK(AE298),ISBLANK(AF298),ISBLANK(AH298),ISBLANK(AI298)),1,\"\")","v":1}]
[null,null,null,null,null,null,null,null,null,null,null,null,null,null,null,null,null,null,null,null,"☐","資源向上(長寿命化)","☐","広域化・体制強化",null,null,"☐","啓発・普及","☐","研修・会議",null,null,null,null,null,null,{"$f":"IF(AND(ISBLANK(A298),ISBLANK(B298),ISBLANK(D298),ISBLANK(G298),ISBLANK(I298),ISBLANK(Q298),ISBLANK(S298),ISBLANK(AE298),ISBLANK(AF298),ISBLANK(AH298),ISBLANK(AI298)),1,\"\")","v":1}]
[null,null,null,null,null,null,null,null,null,null,null,null,null,null,null,null,null,null,null,null,"☐","資源保全プラン","☐","特例措置を適用した活動",null,null,"☐","設置等","☐","発注事務",null,null,null,null,null,null,{"$f":"IF(AND(ISBLANK(A298),ISBLANK(B298),ISBLANK(D298),ISBLANK(G298),ISBLANK(I298),ISBLANK(Q298),ISBLANK(S298),ISBLANK(AE298),ISBLANK(AF298),ISBLANK(AH298),ISBLANK(AI298)),1,\"\")","v":1}]
[null,null,"時",null,"分","～",null,"時",null,"分",{"$f":"+IF(AND(ISNUMBER(B301),ISNUMBER(G301),INT((G301-B301)+(I301-D301)/60)>=0),INT((G301-B301)+(I301-D301)/60),\"\")","v":""},"時間",{"$f":"IF(AND(ISNUMBER(D301),ISNUMBER(I301)),ABS(D301-I301),\"\")","v":""},"分",{"$f":"IF(Q301+S301=0,\"\",Q301+S301)","v":""},"人",null,"人",null,"人","☐","農地維持","☐","資源向上(共同)","☐","調査・計画","☐","実践活動","☐","事務処理等",null,null,{"$f":"IF(ISNUMBER(AF301),VLOOKUP(AF301,$AQ$548:$AR$597,2,0),\"\")","v":""},null,null,null,{"$f":"IF(AND(ISBLANK(A301),ISBLANK(B301),ISBLANK(D301),ISBLANK(G301),ISBLANK(I301),ISBLANK(Q301),ISBLANK(S301),ISBLANK(AE301),ISBLANK(AF301),ISBLANK(AH301),ISBLANK(AI301)),1,\"\")","v":1}]
[null,null,null,null,null,null,null,null,null,null,null,null,null,null,null,null,null,null,null,null,"☐","資源向上(長寿命化)","☐","広域化・体制強化",null,null,"☐","啓発・普及","☐","研修・会議",null,null,null,null,null,null,{"$f":"IF(AND(ISBLANK(A301),ISBLANK(B301),ISBLANK(D301),ISBLANK(G301),ISBLANK(I301),ISBLANK(Q301),ISBLANK(S301),ISBLANK(AE301),ISBLANK(AF301),ISBLANK(AH301),ISBLANK(AI301)),1,\"\")","v":1}]
[null,null,null,null,null,null,null,null,null,null,null,null,null,null,null,null,null,null,null,null,"☐","資源保全プラン","☐","特例措置を適用した活動",null,null,"☐","設置等","☐","発注事務",null,null,null,null,null,null,{"$f":"IF(AND(ISBLANK(A301),ISBLANK(B301),ISBLANK(D301),ISBLANK(G301),ISBLANK(I301),ISBLANK(Q301),ISBLANK(S301),ISBLANK(AE301),ISBLANK(AF301),ISBLANK(AH301),ISBLANK(AI301)),1,\"\")","v":1}]
[null,null,"時",null,"分","～",null,"時",null,"分",{"$f":"+IF(AND(ISNUMBER(B304),ISNUMBER(G304),INT((G304-B304)+(I304-D304)/60)>=0),INT((G304-B304)+(I304-D304)/60),\"\")","v":""},"時間",{"$f":"IF(AND(ISNUMBER(D304),ISNUMBER(I304)),ABS(D304-I304),\"\")","v":""},"分",{"$f":"IF(Q304+S304=0,\"\",Q304+S304)","v":""},"人",null,"人",null,"人","☐","農地維持","☐","資源向上(共同)","☐","調査・計画","☐","実践活動","☐","事務処理等",null,null,{"$f":"IF(ISNUMBER(AF304),VLOOKUP(AF304,$AQ$548:$AR$597,2,0),\"\")","v":""},null,null,null,{"$f":"IF(AND(ISBLANK(A304),ISBLANK(B304),ISBLANK(D304),ISBLANK(G304),ISBLANK(I304),ISBLANK(Q304),ISBLANK(S304),ISBLANK(AE304),ISBLANK(AF304),ISBLANK(AH304),ISBLANK(AI304)),1,\"\")","v":1}]
[null,null,null,null,null,null,null,null,null,null,null,null,null,null,null,null,null,null,null,null,"☐","資源向上(長寿命化)","☐","広域化・体制強化",null,null,"☐","啓発・普及","☐","研修・会議",null,null,null,null,null,null,{"$f":"IF(AND(ISBLANK(A304),ISBLANK(B304),ISBLANK(D304),ISBLANK(G304),ISBLANK(I304),ISBLANK(Q304),ISBLANK(S304),ISBLANK(AE304),ISBLANK(AF304),ISBLANK(AH304),ISBLANK(AI304)),1,\"\")","v":1}]
[null,null,null,null,null,null,null,null,null,null,null,null,null,null,null,null,null,null,null,null,"☐","資源保全プラン","☐","特例措置を適用した活動",null,null,"☐","設置等","☐","発注事務",null,null,null,null,null,null,{"$f":"IF(AND(ISBLANK(A304),ISBLANK(B304),ISBLANK(D304),ISBLANK(G304),ISBLANK(I304),ISBLANK(Q304),ISBLANK(S304),ISBLANK(AE304),ISBLANK(AF304),ISBLANK(AH304),ISBLANK(AI304)),1,\"\")","v":1}]
[null,null,"時",null,"分","～",null,"時",null,"分",{"$f":"+IF(AND(ISNUMBER(B307),ISNUMBER(G307),INT((G307-B307)+(I307-D307)/60)>=0),INT((G307-B307)+(I307-D307)/60),\"\")","v":""},"時間",{"$f":"IF(AND(ISNUMBER(D307),ISNUMBER(I307)),ABS(D307-I307),\"\")","v":""},"分",{"$f":"IF(Q307+S307=0,\"\",Q307+S307)","v":""},"人",null,"人",null,"人","☐","農地維持","☐","資源向上(共同)","☐","調査・計画","☐","実践活動","☐","事務処理等",null,null,{"$f":"IF(ISNUMBER(AF307),VLOOKUP(AF307,$AQ$548:$AR$597,2,0),\"\")","v":""},null,null,null,{"$f":"IF(AND(ISBLANK(A307),ISBLANK(B307),ISBLANK(D307),ISBLANK(G307),ISBLANK(I307),ISBLANK(Q307),ISBLANK(S307),ISBLANK(AE307),ISBLANK(AF307),ISBLANK(AH307),ISBLANK(AI307)),1,\"\")","v":1}]
[null,null,null,null,null,null,null,null,null,null,null,null,null,null,null,null,null,null,null,null,"☐","資源向上(長寿命化)","☐","広域化・体制強化",null,null,"☐","啓発・普及","☐","研修・会議",null,null,null,null,null,null,{"$f":"IF(AND(ISBLANK(A307),ISBLANK(B307),ISBLANK(D307),ISBLANK(G307),ISBLANK(I307),ISBLANK(Q307),ISBLANK(S307),ISBLANK(AE307),ISBLANK(AF307),ISBLANK(AH307),ISBLANK(AI307)),1,\"\")","v":1}]
[null,null,null,null,null,null,null,null,null,null,null,null,null,null,null,null,null,null,null,null,"☐","資源保全プラン","☐","特例措置を適用した活動",null,null,"☐","設置等","☐","発注事務",null,null,null,null,null,null,{"$f":"IF(AND(ISBLANK(A307),ISBLANK(B307),ISBLANK(D307),ISBLANK(G307),ISBLANK(I307),ISBLANK(Q307),ISBLANK(S307),ISBLANK(AE307),ISBLANK(AF307),ISBLANK(AH307),ISBLANK(AI307)),1,\"\")","v":1}]
[null,null,"時",null,"分","～",null,"時",null,"分",{"$f":"+IF(AND(ISNUMBER(B310),ISNUMBER(G310),INT((G310-B310)+(I310-D310)/60)>=0),INT((G310-B310)+(I310-D310)/60),\"\")","v":""},"時間",{"$f":"IF(AND(ISNUMBER(D310),ISNUMBER(I310)),ABS(D310-I310),\"\")","v":""},"分",{"$f":"IF(Q310+S310=0,\"\",Q310+S310)","v":""},"人",null,"人",null,"人","☐","農地維持","☐","資源向上(共同)","☐","調査・計画","☐","実践活動","☐","事務処理等",null,null,{"$f":"IF(ISNUMBER(AF310),VLOOKUP(AF310,$AQ$548:$AR$597,2,0),\"\")","v":""},null,null,null,{"$f":"IF(AND(ISBLANK(A310),ISBLANK(B310),ISBLANK(D310),ISBLANK(G310),ISBLANK(I310),ISBLANK(Q310),ISBLANK(S310),ISBLANK(AE310),ISBLANK(AF310),ISBLANK(AH310),ISBLANK(AI310)),1,\"\")","v":1}]
[null,null,null,null,null,null,null,null,null,null,null,null,null,null,null,null,null,null,null,null,"☐","資源向上(長寿命化)","☐","広域化・体制強化",null,null,"☐","啓発・普及","☐","研修・会議",null,null,null,null,null,null,{"$f":"IF(AND(ISBLANK(A310),ISBLANK(B310),ISBLANK(D310),ISBLANK(G310),ISBLANK(I310),ISBLANK(Q310),ISBLANK(S310),ISBLANK(AE310),ISBLANK(AF310),ISBLANK(AH310),ISBLANK(AI310)),1,\"\")","v":1}]
[null,null,null,null,null,null,null,null,null,null,null,null,null,null,null,null,null,null,null,null,"☐","資源保全プラン","☐","特例措置を適用した活動",null,null,"☐","設置等","☐","発注事務",null,null,null,null,null,null,{"$f":"IF(AND(ISBLANK(A310),ISBLANK(B310),ISBLANK(D310),ISBLANK(G310),ISBLANK(I310),ISBLANK(Q310),ISBLANK(S310),ISBLANK(AE310),ISBLANK(AF310),ISBLANK(AH310),ISBLANK(AI310)),1,\"\")","v":1}]
[null,null,"時",null,"分","～",null,"時",null,"分",{"$f":"+IF(AND(ISNUMBER(B313),ISNUMBER(G313),INT((G313-B313)+(I313-D313)/60)>=0),INT((G313-B313)+(I313-D313)/60),\"\")","v":""},"時間",{"$f":"IF(AND(ISNUMBER(D313),ISNUMBER(I313)),ABS(D313-I313),\"\")","v":""},"分",{"$f":"IF(Q313+S313=0,\"\",Q313+S313)","v":""},"人",null,"人",null,"人","☐","農地維持","☐","資源向上(共同)","☐","調査・計画","☐","実践活動","☐","事務処理等",null,null,{"$f":"IF(ISNUMBER(AF313),VLOOKUP(AF313,$AQ$548:$AR$597,2,0),\"\")","v":""},null,null,null,{"$f":"IF(AND(ISBLANK(A313),ISBLANK(B313),ISBLANK(D313),ISBLANK(G313),ISBLANK(I313),ISBLANK(Q313),ISBLANK(S313),ISBLANK(AE313),ISBLANK(AF313),ISBLANK(AH313),ISBLANK(AI313)),1,\"\")","v":1}]
[null,null,null,null,null,null,null,null,null,null,null,null,null,null,null,null,null,null,null,null,"☐","資源向上(長寿命化)","☐","広域化・体制強化",null,null,"☐","啓発・普及","☐","研修・会議",null,null,null,null,null,null,{"$f":"IF(AND(ISBLANK(A313),ISBLANK(B313),ISBLANK(D313),ISBLANK(G313),ISBLANK(I313),ISBLANK(Q313),ISBLANK(S313),ISBLANK(AE313),ISBLANK(AF313),ISBLANK(AH313),ISBLANK(AI313)),1,\"\")","v":1}]
[null,null,null,null,null,null,null,null,null,null,null,null,null,null,null,null,null,null,null,null,"☐","資源保全プラン","☐","特例措置を適用した活動",null,null,"☐","設置等","☐","発注事務",null,null,null,null,null,null,{"$f":"IF(AND(ISBLANK(A313),ISBLANK(B313),ISBLANK(D313),ISBLANK(G313),ISBLANK(I313),ISBLANK(Q313),ISBLANK(S313),ISBLANK(AE313),ISBLANK(AF313),ISBLANK(AH313),ISBLANK(AI313)),1,\"\")","v":1}]
[null,null,"時",null,"分","～",null,"時",null,"分",{"$f":"+IF(AND(ISNUMBER(B316),ISNUMBER(G316),INT((G316-B316)+(I316-D316)/60)>=0),INT((G316-B316)+(I316-D316)/60),\"\")","v":""},"時間",{"$f":"IF(AND(ISNUMBER(D316),ISNUMBER(I316)),ABS(D316-I316),\"\")","v":""},"分",{"$f":"IF(Q316+S316=0,\"\",Q316+S316)","v":""},"人",null,"人",null,"人","☐","農地維持","☐","資源向上(共同)","☐","調査・計画","☐","実践活動","☐","事務処理等",null,null,{"$f":"IF(ISNUMBER(AF316),VLOOKUP(AF316,$AQ$548:$AR$597,2,0),\"\")","v":""},null,null,null,{"$f":"IF(AND(ISBLANK(A316),ISBLANK(B316),ISBLANK(D316),ISBLANK(G316),ISBLANK(I316),ISBLANK(Q316),ISBLANK(S316),ISBLANK(AE316),ISBLANK(AF316),ISBLANK(AH316),ISBLANK(AI316)),1,\"\")","v":1}]
[null,null,null,null,null,null,null,null,null,null,null,null,null,null,null,null,null,null,null,null,"☐","資源向上(長寿命化)","☐","広域化・体制強化",null,null,"☐","啓発・普及","☐","研修・会議",null,null,null,null,null,null,{"$f":"IF(AND(ISBLANK(A316),ISBLANK(B316),ISBLANK(D316),ISBLANK(G316),ISBLANK(I316),ISBLANK(Q316),ISBLANK(S316),ISBLANK(AE316),ISBLANK(AF316),ISBLANK(AH316),ISBLANK(AI316)),1,\"\")","v":1}]
[null,null,null,null,null,null,null,null,null,null,null,null,null,null,null,null,null,null,null,null,"☐","資源保全プラン","☐","特例措置を適用した活動",null,null,"☐","設置等","☐","発注事務",null,null,null,null,null,null,{"$f":"IF(AND(ISBLANK(A316),ISBLANK(B316),ISBLANK(D316),ISBLANK(G316),ISBLANK(I316),ISBLANK(Q316),ISBLANK(S316),ISBLANK(AE316),ISBLANK(AF316),ISBLANK(AH316),ISBLANK(AI316)),1,\"\")","v":1}]
[null,null,"時",null,"分","～",null,"時",null,"分",{"$f":"+IF(AND(ISNUMBER(B319),ISNUMBER(G319),INT((G319-B319)+(I319-D319)/60)>=0),INT((G319-B319)+(I319-D319)/60),\"\")","v":""},"時間",{"$f":"IF(AND(ISNUMBER(D319),ISNUMBER(I319)),ABS(D319-I319),\"\")","v":""},"分",{"$f":"IF(Q319+S319=0,\"\",Q319+S319)","v":""},"人",null,"人",null,"人","☐","農地維持","☐","資源向上(共同)","☐","調査・計画","☐","実践活動","☐","事務処理等",null,null,{"$f":"IF(ISNUMBER(AF319),VLOOKUP(AF319,$AQ$548:$AR$597,2,0),\"\")","v":""},null,null,null,{"$f":"IF(AND(ISBLANK(A319),ISBLANK(B319),ISBLANK(D319),ISBLANK(G319),ISBLANK(I319),ISBLANK(Q319),ISBLANK(S319),ISBLANK(AE319),ISBLANK(AF319),ISBLANK(AH319),ISBLANK(AI319)),1,\"\")","v":1}]
[null,null,null,null,null,null,null,null,null,null,null,null,null,null,null,null,null,null,null,null,"☐","資源向上(長寿命化)","☐","広域化・体制強化",null,null,"☐","啓発・普及","☐","研修・会議",null,null,null,null,null,null,{"$f":"IF(AND(ISBLANK(A319),ISBLANK(B319),ISBLANK(D319),ISBLANK(G319),ISBLANK(I319),ISBLANK(Q319),ISBLANK(S319),ISBLANK(AE319),ISBLANK(AF319),ISBLANK(AH319),ISBLANK(AI319)),1,\"\")","v":1}]
[null,null,null,null,null,null,null,null,null,null,null,null,null,null,null,null,null,null,null,null,"☐","資源保全プラン","☐","特例措置を適用した活動",null,null,"☐","設置等","☐","発注事務",null,null,null,null,null,null,{"$f":"IF(AND(ISBLANK(A319),ISBLANK(B319),ISBLANK(D319),ISBLANK(G319),ISBLANK(I319),ISBLANK(Q319),ISBLANK(S319),ISBLANK(AE319),ISBLANK(AF319),ISBLANK(AH319),ISBLANK(AI319)),1,\"\")","v":1}]
[null,null,"時",null,"分","～",null,"時",null,"分",{"$f":"+IF(AND(ISNUMBER(B322),ISNUMBER(G322),INT((G322-B322)+(I322-D322)/60)>=0),INT((G322-B322)+(I322-D322)/60),\"\")","v":""},"時間",{"$f":"IF(AND(ISNUMBER(D322),ISNUMBER(I322)),ABS(D322-I322),\"\")","v":""},"分",{"$f":"IF(Q322+S322=0,\"\",Q322+S322)","v":""},"人",null,"人",null,"人","☐","農地維持","☐","資源向上(共同)","☐","調査・計画","☐","実践活動","☐","事務処理等",null,null,{"$f":"IF(ISNUMBER(AF322),VLOOKUP(AF322,$AQ$548:$AR$597,2,0),\"\")","v":""},null,null,null,{"$f":"IF(AND(ISBLANK(A322),ISBLANK(B322),ISBLANK(D322),ISBLANK(G322),ISBLANK(I322),ISBLANK(Q322),ISBLANK(S322),ISBLANK(AE322),ISBLANK(AF322),ISBLANK(AH322),ISBLANK(AI322)),1,\"\")","v":1}]
[null,null,null,null,null,null,null,null,null,null,null,null,null,null,null,null,null,null,null,null,"☐","資源向上(長寿命化)","☐","広域化・体制強化",null,null,"☐","啓発・普及","☐","研修・会議",null,null,null,null,null,null,{"$f":"IF(AND(ISBLANK(A322),ISBLANK(B322),ISBLANK(D322),ISBLANK(G322),ISBLANK(I322),ISBLANK(Q322),ISBLANK(S322),ISBLANK(AE322),ISBLANK(AF322),ISBLANK(AH322),ISBLANK(AI322)),1,\"\")","v":1}]
[null,null,null,null,null,null,null,null,null,null,null,null,null,null,null,null,null,null,null,null,"☐","資源保全プラン","☐","特例措置を適用した活動",null,null,"☐","設置等","☐","発注事務",null,null,null,null,null,null,{"$f":"IF(AND(ISBLANK(A322),ISBLANK(B322),ISBLANK(D322),ISBLANK(G322),ISBLANK(I322),ISBLANK(Q322),ISBLANK(S322),ISBLANK(AE322),ISBLANK(AF322),ISBLANK(AH322),ISBLANK(AI322)),1,\"\")","v":1}]
[null,null,"時",null,"分","～",null,"時",null,"分",{"$f":"+IF(AND(ISNUMBER(B325),ISNUMBER(G325),INT((G325-B325)+(I325-D325)/60)>=0),INT((G325-B325)+(I325-D325)/60),\"\")","v":""},"時間",{"$f":"IF(AND(ISNUMBER(D325),ISNUMBER(I325)),ABS(D325-I325),\"\")","v":""},"分",{"$f":"IF(Q325+S325=0,\"\",Q325+S325)","v":""},"人",null,"人",null,"人","☐","農地維持","☐","資源向上(共同)","☐","調査・計画","☐","実践活動","☐","事務処理等",null,null,{"$f":"IF(ISNUMBER(AF325),VLOOKUP(AF325,$AQ$548:$AR$597,2,0),\"\")","v":""},null,null,null,{"$f":"IF(AND(ISBLANK(A325),ISBLANK(B325),ISBLANK(D325),ISBLANK(G325),ISBLANK(I325),ISBLANK(Q325),ISBLANK(S325),ISBLANK(AE325),ISBLANK(AF325),ISBLANK(AH325),ISBLANK(AI325)),1,\"\")","v":1}]
[null,null,null,null,null,null,null,null,null,null,null,null,null,null,null,null,null,null,null,null,"☐","資源向上(長寿命化)","☐","広域化・体制強化",null,null,"☐","啓発・普及","☐","研修・会議",null,null,null,null,null,null,{"$f":"IF(AND(ISBLANK(A325),ISBLANK(B325),ISBLANK(D325),ISBLANK(G325),ISBLANK(I325),ISBLANK(Q325),ISBLANK(S325),ISBLANK(AE325),ISBLANK(AF325),ISBLANK(AH325),ISBLANK(AI325)),1,\"\")","v":1}]
[null,null,null,null,null,null,null,null,null,null,null,null,null,null,null,null,null,null,null,null,"☐","資源保全プラン","☐","特例措置を適用した活動",null,null,"☐","設置等","☐","発注事務",null,null,null,null,null,null,{"$f":"IF(AND(ISBLANK(A325),ISBLANK(B325),ISBLANK(D325),ISBLANK(G325),ISBLANK(I325),ISBLANK(Q325),ISBLANK(S325),ISBLANK(AE325),ISBLANK(AF325),ISBLANK(AH325),ISBLANK(AI325)),1,\"\")","v":1}]
[null,null,"時",null,"分","～",null,"時",null,"分",{"$f":"+IF(AND(ISNUMBER(B328),ISNUMBER(G328),INT((G328-B328)+(I328-D328)/60)>=0),INT((G328-B328)+(I328-D328)/60),\"\")","v":""},"時間",{"$f":"IF(AND(ISNUMBER(D328),ISNUMBER(I328)),ABS(D328-I328),\"\")","v":""},"分",{"$f":"IF(Q328+S328=0,\"\",Q328+S328)","v":""},"人",null,"人",null,"人","☐","農地維持","☐","資源向上(共同)","☐","調査・計画","☐","実践活動","☐","事務処理等",null,null,{"$f":"IF(ISNUMBER(AF328),VLOOKUP(AF328,$AQ$548:$AR$597,2,0),\"\")","v":""},null,null,null,{"$f":"IF(AND(ISBLANK(A328),ISBLANK(B328),ISBLANK(D328),ISBLANK(G328),ISBLANK(I328),ISBLANK(Q328),ISBLANK(S328),ISBLANK(AE328),ISBLANK(AF328),ISBLANK(AH328),ISBLANK(AI328)),1,\"\")","v":1}]
[null,null,null,null,null,null,null,null,null,null,null,null,null,null,null,null,null,null,null,null,"☐","資源向上(長寿命化)","☐","広域化・体制強化",null,null,"☐","啓発・普及","☐","研修・会議",null,null,null,null,null,null,{"$f":"IF(AND(ISBLANK(A328),ISBLANK(B328),ISBLANK(D328),ISBLANK(G328),ISBLANK(I328),ISBLANK(Q328),ISBLANK(S328),ISBLANK(AE328),ISBLANK(AF328),ISBLANK(AH328),ISBLANK(AI328)),1,\"\")","v":1}]
[null,null,null,null,null,null,null,null,null,null,null,null,null,null,null,null,null,null,null,null,"☐","資源保全プラン","☐","特例措置を適用した活動",null,null,"☐","設置等","☐","発注事務",null,null,null,null,null,null,{"$f":"IF(AND(ISBLANK(A328),ISBLANK(B328),ISBLANK(D328),ISBLANK(G328),ISBLANK(I328),ISBLANK(Q328),ISBLANK(S328),ISBLANK(AE328),ISBLANK(AF328),ISBLANK(AH328),ISBLANK(AI328)),1,\"\")","v":1}]
[null,null,"時",null,"分","～",null,"時",null,"分",{"$f":"+IF(AND(ISNUMBER(B331),ISNUMBER(G331),INT((G331-B331)+(I331-D331)/60)>=0),INT((G331-B331)+(I331-D331)/60),\"\")","v":""},"時間",{"$f":"IF(AND(ISNUMBER(D331),ISNUMBER(I331)),ABS(D331-I331),\"\")","v":""},"分",{"$f":"IF(Q331+S331=0,\"\",Q331+S331)","v":""},"人",null,"人",null,"人","☐","農地維持","☐","資源向上(共同)","☐","調査・計画","☐","実践活動","☐","事務処理等",null,null,{"$f":"IF(ISNUMBER(AF331),VLOOKUP(AF331,$AQ$548:$AR$597,2,0),\"\")","v":""},null,null,null,{"$f":"IF(AND(ISBLANK(A331),ISBLANK(B331),ISBLANK(D331),ISBLANK(G331),ISBLANK(I331),ISBLANK(Q331),ISBLANK(S331),ISBLANK(AE331),ISBLANK(AF331),ISBLANK(AH331),ISBLANK(AI331)),1,\"\")","v":1}]
[null,null,null,null,null,null,null,null,null,null,null,null,null,null,null,null,null,null,null,null,"☐","資源向上(長寿命化)","☐","広域化・体制強化",null,null,"☐","啓発・普及","☐","研修・会議",null,null,null,null,null,null,{"$f":"IF(AND(ISBLANK(A331),ISBLANK(B331),ISBLANK(D331),ISBLANK(G331),ISBLANK(I331),ISBLANK(Q331),ISBLANK(S331),ISBLANK(AE331),ISBLANK(AF331),ISBLANK(AH331),ISBLANK(AI331)),1,\"\")","v":1}]
[null,null,null,null,null,null,null,null,null,null,null,null,null,null,null,null,null,null,null,null,"☐","資源保全プラン","☐","特例措置を適用した活動",null,null,"☐","設置等","☐","発注事務",null,null,null,null,null,null,{"$f":"IF(AND(ISBLANK(A331),ISBLANK(B331),ISBLANK(D331),ISBLANK(G331),ISBLANK(I331),ISBLANK(Q331),ISBLANK(S331),ISBLANK(AE331),ISBLANK(AF331),ISBLANK(AH331),ISBLANK(AI331)),1,\"\")","v":1}]
[null,null,"時",null,"分","～",null,"時",null,"分",{"$f":"+IF(AND(ISNUMBER(B334),ISNUMBER(G334),INT((G334-B334)+(I334-D334)/60)>=0),INT((G334-B334)+(I334-D334)/60),\"\")","v":""},"時間",{"$f":"IF(AND(ISNUMBER(D334),ISNUMBER(I334)),ABS(D334-I334),\"\")","v":""},"分",{"$f":"IF(Q334+S334=0,\"\",Q334+S334)","v":""},"人",null,"人",null,"人","☐","農地維持","☐","資源向上(共同)","☐","調査・計画","☐","実践活動","☐","事務処理等",null,null,{"$f":"IF(ISNUMBER(AF334),VLOOKUP(AF334,$AQ$548:$AR$597,2,0),\"\")","v":""},null,null,null,{"$f":"IF(AND(ISBLANK(A334),ISBLANK(B334),ISBLANK(D334),ISBLANK(G334),ISBLANK(I334),ISBLANK(Q334),ISBLANK(S334),ISBLANK(AE334),ISBLANK(AF334),ISBLANK(AH334),ISBLANK(AI334)),1,\"\")","v":1}]
[null,null,null,null,null,null,null,null,null,null,null,null,null,null,null,null,null,null,null,null,"☐","資源向上(長寿命化)","☐","広域化・体制強化",null,null,"☐","啓発・普及","☐","研修・会議",null,null,null,null,null,null,{"$f":"IF(AND(ISBLANK(A334),ISBLANK(B334),ISBLANK(D334),ISBLANK(G334),ISBLANK(I334),ISBLANK(Q334),ISBLANK(S334),ISBLANK(AE334),ISBLANK(AF334),ISBLANK(AH334),ISBLANK(AI334)),1,\"\")","v":1}]
[null,null,null,null,null,null,null,null,null,null,null,null,null,null,null,null,null,null,null,null,"☐","資源保全プラン","☐","特例措置を適用した活動",null,null,"☐","設置等","☐","発注事務",null,null,null,null,null,null,{"$f":"IF(AND(ISBLANK(A334),ISBLANK(B334),ISBLANK(D334),ISBLANK(G334),ISBLANK(I334),ISBLANK(Q334),ISBLANK(S334),ISBLANK(AE334),ISBLANK(AF334),ISBLANK(AH334),ISBLANK(AI334)),1,\"\")","v":1}]
[null,null,"時",null,"分","～",null,"時",null,"分",{"$f":"+IF(AND(ISNUMBER(B337),ISNUMBER(G337),INT((G337-B337)+(I337-D337)/60)>=0),INT((G337-B337)+(I337-D337)/60),\"\")","v":""},"時間",{"$f":"IF(AND(ISNUMBER(D337),ISNUMBER(I337)),ABS(D337-I337),\"\")","v":""},"分",{"$f":"IF(Q337+S337=0,\"\",Q337+S337)","v":""},"人",null,"人",null,"人","☐","農地維持","☐","資源向上(共同)","☐","調査・計画","☐","実践活動","☐","事務処理等",null,null,{"$f":"IF(ISNUMBER(AF337),VLOOKUP(AF337,$AQ$548:$AR$597,2,0),\"\")","v":""},null,null,null,{"$f":"IF(AND(ISBLANK(A337),ISBLANK(B337),ISBLANK(D337),ISBLANK(G337),ISBLANK(I337),ISBLANK(Q337),ISBLANK(S337),ISBLANK(AE337),ISBLANK(AF337),ISBLANK(AH337),ISBLANK(AI337)),1,\"\")","v":1}]
[null,null,null,null,null,null,null,null,null,null,null,null,null,null,null,null,null,null,null,null,"☐","資源向上(長寿命化)","☐","広域化・体制強化",null,null,"☐","啓発・普及","☐","研修・会議",null,null,null,null,null,null,{"$f":"IF(AND(ISBLANK(A337),ISBLANK(B337),ISBLANK(D337),ISBLANK(G337),ISBLANK(I337),ISBLANK(Q337),ISBLANK(S337),ISBLANK(AE337),ISBLANK(AF337),ISBLANK(AH337),ISBLANK(AI337)),1,\"\")","v":1}]
[null,null,null,null,null,null,null,null,null,null,null,null,null,null,null,null,null,null,null,null,"☐","資源保全プラン","☐","特例措置を適用した活動",null,null,"☐","設置等","☐","発注事務",null,null,null,null,null,null,{"$f":"IF(AND(ISBLANK(A337),ISBLANK(B337),ISBLANK(D337),ISBLANK(G337),ISBLANK(I337),ISBLANK(Q337),ISBLANK(S337),ISBLANK(AE337),ISBLANK(AF337),ISBLANK(AH337),ISBLANK(AI337)),1,\"\")","v":1}]
[null,null,"時",null,"分","～",null,"時",null,"分",{"$f":"+IF(AND(ISNUMBER(B340),ISNUMBER(G340),INT((G340-B340)+(I340-D340)/60)>=0),INT((G340-B340)+(I340-D340)/60),\"\")","v":""},"時間",{"$f":"IF(AND(ISNUMBER(D340),ISNUMBER(I340)),ABS(D340-I340),\"\")","v":""},"分",{"$f":"IF(Q340+S340=0,\"\",Q340+S340)","v":""},"人",null,"人",null,"人","☐","農地維持","☐","資源向上(共同)","☐","調査・計画","☐","実践活動","☐","事務処理等",null,null,{"$f":"IF(ISNUMBER(AF340),VLOOKUP(AF340,$AQ$548:$AR$597,2,0),\"\")","v":""},null,null,null,{"$f":"IF(AND(ISBLANK(A340),ISBLANK(B340),ISBLANK(D340),ISBLANK(G340),ISBLANK(I340),ISBLANK(Q340),ISBLANK(S340),ISBLANK(AE340),ISBLANK(AF340),ISBLANK(AH340),ISBLANK(AI340)),1,\"\")","v":1}]
[null,null,null,null,null,null,null,null,null,null,null,null,null,null,null,null,null,null,null,null,"☐","資源向上(長寿命化)","☐","広域化・体制強化",null,null,"☐","啓発・普及","☐","研修・会議",null,null,null,null,null,null,{"$f":"IF(AND(ISBLANK(A340),ISBLANK(B340),ISBLANK(D340),ISBLANK(G340),ISBLANK(I340),ISBLANK(Q340),ISBLANK(S340),ISBLANK(AE340),ISBLANK(AF340),ISBLANK(AH340),ISBLANK(AI340)),1,\"\")","v":1}]
[null,null,null,null,null,null,null,null,null,null,null,null,null,null,null,null,null,null,null,null,"☐","資源保全プラン","☐","特例措置を適用した活動",null,null,"☐","設置等","☐","発注事務",null,null,null,null,null,null,{"$f":"IF(AND(ISBLANK(A340),ISBLANK(B340),ISBLANK(D340),ISBLANK(G340),ISBLANK(I340),ISBLANK(Q340),ISBLANK(S340),ISBLANK(AE340),ISBLANK(AF340),ISBLANK(AH340),ISBLANK(AI340)),1,\"\")","v":1}]
[null,null,"時",null,"分","～",null,"時",null,"分",{"$f":"+IF(AND(ISNUMBER(B343),ISNUMBER(G343),INT((G343-B343)+(I343-D343)/60)>=0),INT((G343-B343)+(I343-D343)/60),\"\")","v":""},"時間",{"$f":"IF(AND(ISNUMBER(D343),ISNUMBER(I343)),ABS(D343-I343),\"\")","v":""},"分",{"$f":"IF(Q343+S343=0,\"\",Q343+S343)","v":""},"人",null,"人",null,"人","☐","農地維持","☐","資源向上(共同)","☐","調査・計画","☐","実践活動","☐","事務処理等",null,null,{"$f":"IF(ISNUMBER(AF343),VLOOKUP(AF343,$AQ$548:$AR$597,2,0),\"\")","v":""},null,null,null,{"$f":"IF(AND(ISBLANK(A343),ISBLANK(B343),ISBLANK(D343),ISBLANK(G343),ISBLANK(I343),ISBLANK(Q343),ISBLANK(S343),ISBLANK(AE343),ISBLANK(AF343),ISBLANK(AH343),ISBLANK(AI343)),1,\"\")","v":1}]
[null,null,null,null,null,null,null,null,null,null,null,null,null,null,null,null,null,null,null,null,"☐","資源向上(長寿命化)","☐","広域化・体制強化",null,null,"☐","啓発・普及","☐","研修・会議",null,null,null,null,null,null,{"$f":"IF(AND(ISBLANK(A343),ISBLANK(B343),ISBLANK(D343),ISBLANK(G343),ISBLANK(I343),ISBLANK(Q343),ISBLANK(S343),ISBLANK(AE343),ISBLANK(AF343),ISBLANK(AH343),ISBLANK(AI343)),1,\"\")","v":1}]
[null,null,null,null,null,null,null,null,null,null,null,null,null,null,null,null,null,null,null,null,"☐","資源保全プラン","☐","特例措置を適用した活動",null,null,"☐","設置等","☐","発注事務",null,null,null,null,null,null,{"$f":"IF(AND(ISBLANK(A343),ISBLANK(B343),ISBLANK(D343),ISBLANK(G343),ISBLANK(I343),ISBLANK(Q343),ISBLANK(S343),ISBLANK(AE343),ISBLANK(AF343),ISBLANK(AH343),ISBLANK(AI343)),1,\"\")","v":1}]
[null,null,"時",null,"分","～",null,"時",null,"分",{"$f":"+IF(AND(ISNUMBER(B346),ISNUMBER(G346),INT((G346-B346)+(I346-D346)/60)>=0),INT((G346-B346)+(I346-D346)/60),\"\")","v":""},"時間",{"$f":"IF(AND(ISNUMBER(D346),ISNUMBER(I346)),ABS(D346-I346),\"\")","v":""},"分",{"$f":"IF(Q346+S346=0,\"\",Q346+S346)","v":""},"人",null,"人",null,"人","☐","農地維持","☐","資源向上(共同)","☐","調査・計画","☐","実践活動","☐","事務処理等",null,null,{"$f":"IF(ISNUMBER(AF346),VLOOKUP(AF346,$AQ$548:$AR$597,2,0),\"\")","v":""},null,null,null,{"$f":"IF(AND(ISBLANK(A346),ISBLANK(B346),ISBLANK(D346),ISBLANK(G346),ISBLANK(I346),ISBLANK(Q346),ISBLANK(S346),ISBLANK(AE346),ISBLANK(AF346),ISBLANK(AH346),ISBLANK(AI346)),1,\"\")","v":1}]
[null,null,null,null,null,null,null,null,null,null,null,null,null,null,null,null,null,null,null,null,"☐","資源向上(長寿命化)","☐","広域化・体制強化",null,null,"☐","啓発・普及","☐","研修・会議",null,null,null,null,null,null,{"$f":"IF(AND(ISBLANK(A346),ISBLANK(B346),ISBLANK(D346),ISBLANK(G346),ISBLANK(I346),ISBLANK(Q346),ISBLANK(S346),ISBLANK(AE346),ISBLANK(AF346),ISBLANK(AH346),ISBLANK(AI346)),1,\"\")","v":1}]
[null,null,null,null,null,null,null,null,null,null,null,null,null,null,null,null,null,null,null,null,"☐","資源保全プラン","☐","特例措置を適用した活動",null,null,"☐","設置等","☐","発注事務",null,null,null,null,null,null,{"$f":"IF(AND(ISBLANK(A346),ISBLANK(B346),ISBLANK(D346),ISBLANK(G346),ISBLANK(I346),ISBLANK(Q346),ISBLANK(S346),ISBLANK(AE346),ISBLANK(AF346),ISBLANK(AH346),ISBLANK(AI346)),1,\"\")","v":1}]
[null,null,"時",null,"分","～",null,"時",null,"分",{"$f":"+IF(AND(ISNUMBER(B349),ISNUMBER(G349),INT((G349-B349)+(I349-D349)/60)>=0),INT((G349-B349)+(I349-D349)/60),\"\")","v":""},"時間",{"$f":"IF(AND(ISNUMBER(D349),ISNUMBER(I349)),ABS(D349-I349),\"\")","v":""},"分",{"$f":"IF(Q349+S349=0,\"\",Q349+S349)","v":""},"人",null,"人",null,"人","☐","農地維持","☐","資源向上(共同)","☐","調査・計画","☐","実践活動","☐","事務処理等",null,null,{"$f":"IF(ISNUMBER(AF349),VLOOKUP(AF349,$AQ$548:$AR$597,2,0),\"\")","v":""},null,null,null,{"$f":"IF(AND(ISBLANK(A349),ISBLANK(B349),ISBLANK(D349),ISBLANK(G349),ISBLANK(I349),ISBLANK(Q349),ISBLANK(S349),ISBLANK(AE349),ISBLANK(AF349),ISBLANK(AH349),ISBLANK(AI349)),1,\"\")","v":1}]
[null,null,null,null,null,null,null,null,null,null,null,null,null,null,null,null,null,null,null,null,"☐","資源向上(長寿命化)","☐","広域化・体制強化",null,null,"☐","啓発・普及","☐","研修・会議",null,null,null,null,null,null,{"$f":"IF(AND(ISBLANK(A349),ISBLANK(B349),ISBLANK(D349),ISBLANK(G349),ISBLANK(I349),ISBLANK(Q349),ISBLANK(S349),ISBLANK(AE349),ISBLANK(AF349),ISBLANK(AH349),ISBLANK(AI349)),1,\"\")","v":1}]
[null,null,null,null,null,null,null,null,null,null,null,null,null,null,null,null,null,null,null,null,"☐","資源保全プラン","☐","特例措置を適用した活動",null,null,"☐","設置等","☐","発注事務",null,null,null,null,null,null,{"$f":"IF(AND(ISBLANK(A349),ISBLANK(B349),ISBLANK(D349),ISBLANK(G349),ISBLANK(I349),ISBLANK(Q349),ISBLANK(S349),ISBLANK(AE349),ISBLANK(AF349),ISBLANK(AH349),ISBLANK(AI349)),1,\"\")","v":1}]
[null,null,"時",null,"分","～",null,"時",null,"分",{"$f":"+IF(AND(ISNUMBER(B352),ISNUMBER(G352),INT((G352-B352)+(I352-D352)/60)>=0),INT((G352-B352)+(I352-D352)/60),\"\")","v":""},"時間",{"$f":"IF(AND(ISNUMBER(D352),ISNUMBER(I352)),ABS(D352-I352),\"\")","v":""},"分",{"$f":"IF(Q352+S352=0,\"\",Q352+S352)","v":""},"人",null,"人",null,"人","☐","農地維持","☐","資源向上(共同)","☐","調査・計画","☐","実践活動","☐","事務処理等",null,null,{"$f":"IF(ISNUMBER(AF352),VLOOKUP(AF352,$AQ$548:$AR$597,2,0),\"\")","v":""},null,null,null,{"$f":"IF(AND(ISBLANK(A352),ISBLANK(B352),ISBLANK(D352),ISBLANK(G352),ISBLANK(I352),ISBLANK(Q352),ISBLANK(S352),ISBLANK(AE352),ISBLANK(AF352),ISBLANK(AH352),ISBLANK(AI352)),1,\"\")","v":1}]
[null,null,null,null,null,null,null,null,null,null,null,null,null,null,null,null,null,null,null,null,"☐","資源向上(長寿命化)","☐","広域化・体制強化",null,null,"☐","啓発・普及","☐","研修・会議",null,null,null,null,null,null,{"$f":"IF(AND(ISBLANK(A352),ISBLANK(B352),ISBLANK(D352),ISBLANK(G352),ISBLANK(I352),ISBLANK(Q352),ISBLANK(S352),ISBLANK(AE352),ISBLANK(AF352),ISBLANK(AH352),ISBLANK(AI352)),1,\"\")","v":1}]
[null,null,null,null,null,null,null,null,null,null,null,null,null,null,null,null,null,null,null,null,"☐","資源保全プラン","☐","特例措置を適用した活動",null,null,"☐","設置等","☐","発注事務",null,null,null,null,null,null,{"$f":"IF(AND(ISBLANK(A352),ISBLANK(B352),ISBLANK(D352),ISBLANK(G352),ISBLANK(I352),ISBLANK(Q352),ISBLANK(S352),ISBLANK(AE352),ISBLANK(AF352),ISBLANK(AH352),ISBLANK(AI352)),1,\"\")","v":1}]
[null,null,"時",null,"分","～",null,"時",null,"分",{"$f":"+IF(AND(ISNUMBER(B355),ISNUMBER(G355),INT((G355-B355)+(I355-D355)/60)>=0),INT((G355-B355)+(I355-D355)/60),\"\")","v":""},"時間",{"$f":"IF(AND(ISNUMBER(D355),ISNUMBER(I355)),ABS(D355-I355),\"\")","v":""},"分",{"$f":"IF(Q355+S355=0,\"\",Q355+S355)","v":""},"人",null,"人",null,"人","☐","農地維持","☐","資源向上(共同)","☐","調査・計画","☐","実践活動","☐","事務処理等",null,null,{"$f":"IF(ISNUMBER(AF355),VLOOKUP(AF355,$AQ$548:$AR$597,2,0),\"\")","v":""},null,null,null,{"$f":"IF(AND(ISBLANK(A355),ISBLANK(B355),ISBLANK(D355),ISBLANK(G355),ISBLANK(I355),ISBLANK(Q355),ISBLANK(S355),ISBLANK(AE355),ISBLANK(AF355),ISBLANK(AH355),ISBLANK(AI355)),1,\"\")","v":1}]
[null,null,null,null,null,null,null,null,null,null,null,null,null,null,null,null,null,null,null,null,"☐","資源向上(長寿命化)","☐","広域化・体制強化",null,null,"☐","啓発・普及","☐","研修・会議",null,null,null,null,null,null,{"$f":"IF(AND(ISBLANK(A355),ISBLANK(B355),ISBLANK(D355),ISBLANK(G355),ISBLANK(I355),ISBLANK(Q355),ISBLANK(S355),ISBLANK(AE355),ISBLANK(AF355),ISBLANK(AH355),ISBLANK(AI355)),1,\"\")","v":1}]
[null,null,null,null,null,null,null,null,null,null,null,null,null,null,null,null,null,null,null,null,"☐","資源保全プラン","☐","特例措置を適用した活動",null,null,"☐","設置等","☐","発注事務",null,null,null,null,null,null,{"$f":"IF(AND(ISBLANK(A355),ISBLANK(B355),ISBLANK(D355),ISBLANK(G355),ISBLANK(I355),ISBLANK(Q355),ISBLANK(S355),ISBLANK(AE355),ISBLANK(AF355),ISBLANK(AH355),ISBLANK(AI355)),1,\"\")","v":1}]
[null,null,"時",null,"分","～",null,"時",null,"分",{"$f":"+IF(AND(ISNUMBER(B358),ISNUMBER(G358),INT((G358-B358)+(I358-D358)/60)>=0),INT((G358-B358)+(I358-D358)/60),\"\")","v":""},"時間",{"$f":"IF(AND(ISNUMBER(D358),ISNUMBER(I358)),ABS(D358-I358),\"\")","v":""},"分",{"$f":"IF(Q358+S358=0,\"\",Q358+S358)","v":""},"人",null,"人",null,"人","☐","農地維持","☐","資源向上(共同)","☐","調査・計画","☐","実践活動","☐","事務処理等",null,null,{"$f":"IF(ISNUMBER(AF358),VLOOKUP(AF358,$AQ$548:$AR$597,2,0),\"\")","v":""},null,null,null,{"$f":"IF(AND(ISBLANK(A358),ISBLANK(B358),ISBLANK(D358),ISBLANK(G358),ISBLANK(I358),ISBLANK(Q358),ISBLANK(S358),ISBLANK(AE358),ISBLANK(AF358),ISBLANK(AH358),ISBLANK(AI358)),1,\"\")","v":1}]
[null,null,null,null,null,null,null,null,null,null,null,null,null,null,null,null,null,null,null,null,"☐","資源向上(長寿命化)","☐","広域化・体制強化",null,null,"☐","啓発・普及","☐","研修・会議",null,null,null,null,null,null,{"$f":"IF(AND(ISBLANK(A358),ISBLANK(B358),ISBLANK(D358),ISBLANK(G358),ISBLANK(I358),ISBLANK(Q358),ISBLANK(S358),ISBLANK(AE358),ISBLANK(AF358),ISBLANK(AH358),ISBLANK(AI358)),1,\"\")","v":1}]
[null,null,null,null,null,null,null,null,null,null,null,null,null,null,null,null,null,null,null,null,"☐","資源保全プラン","☐","特例措置を適用した活動",null,null,"☐","設置等","☐","発注事務",null,null,null,null,null,null,{"$f":"IF(AND(ISBLANK(A358),ISBLANK(B358),ISBLANK(D358),ISBLANK(G358),ISBLANK(I358),ISBLANK(Q358),ISBLANK(S358),ISBLANK(AE358),ISBLANK(AF358),ISBLANK(AH358),ISBLANK(AI358)),1,\"\")","v":1}]
[null,null,"時",null,"分","～",null,"時",null,"分",{"$f":"+IF(AND(ISNUMBER(B361),ISNUMBER(G361),INT((G361-B361)+(I361-D361)/60)>=0),INT((G361-B361)+(I361-D361)/60),\"\")","v":""},"時間",{"$f":"IF(AND(ISNUMBER(D361),ISNUMBER(I361)),ABS(D361-I361),\"\")","v":""},"分",{"$f":"IF(Q361+S361=0,\"\",Q361+S361)","v":""},"人",null,"人",null,"人","☐","農地維持","☐","資源向上(共同)","☐","調査・計画","☐","実践活動","☐","事務処理等",null,null,{"$f":"IF(ISNUMBER(AF361),VLOOKUP(AF361,$AQ$548:$AR$597,2,0),\"\")","v":""},null,null,null,{"$f":"IF(AND(ISBLANK(A361),ISBLANK(B361),ISBLANK(D361),ISBLANK(G361),ISBLANK(I361),ISBLANK(Q361),ISBLANK(S361),ISBLANK(AE361),ISBLANK(AF361),ISBLANK(AH361),ISBLANK(AI361)),1,\"\")","v":1}]
[null,null,null,null,null,null,null,null,null,null,null,null,null,null,null,null,null,null,null,null,"☐","資源向上(長寿命化)","☐","広域化・体制強化",null,null,"☐","啓発・普及","☐","研修・会議",null,null,null,null,null,null,{"$f":"IF(AND(ISBLANK(A361),ISBLANK(B361),ISBLANK(D361),ISBLANK(G361),ISBLANK(I361),ISBLANK(Q361),ISBLANK(S361),ISBLANK(AE361),ISBLANK(AF361),ISBLANK(AH361),ISBLANK(AI361)),1,\"\")","v":1}]
[null,null,null,null,null,null,null,null,null,null,null,null,null,null,null,null,null,null,null,null,"☐","資源保全プラン","☐","特例措置を適用した活動",null,null,"☐","設置等","☐","発注事務",null,null,null,null,null,null,{"$f":"IF(AND(ISBLANK(A361),ISBLANK(B361),ISBLANK(D361),ISBLANK(G361),ISBLANK(I361),ISBLANK(Q361),ISBLANK(S361),ISBLANK(AE361),ISBLANK(AF361),ISBLANK(AH361),ISBLANK(AI361)),1,\"\")","v":1}]
[null,null,"時",null,"分","～",null,"時",null,"分",{"$f":"+IF(AND(ISNUMBER(B364),ISNUMBER(G364),INT((G364-B364)+(I364-D364)/60)>=0),INT((G364-B364)+(I364-D364)/60),\"\")","v":""},"時間",{"$f":"IF(AND(ISNUMBER(D364),ISNUMBER(I364)),ABS(D364-I364),\"\")","v":""},"分",{"$f":"IF(Q364+S364=0,\"\",Q364+S364)","v":""},"人",null,"人",null,"人","☐","農地維持","☐","資源向上(共同)","☐","調査・計画","☐","実践活動","☐","事務処理等",null,null,{"$f":"IF(ISNUMBER(AF364),VLOOKUP(AF364,$AQ$548:$AR$597,2,0),\"\")","v":""},null,null,null,{"$f":"IF(AND(ISBLANK(A364),ISBLANK(B364),ISBLANK(D364),ISBLANK(G364),ISBLANK(I364),ISBLANK(Q364),ISBLANK(S364),ISBLANK(AE364),ISBLANK(AF364),ISBLANK(AH364),ISBLANK(AI364)),1,\"\")","v":1}]
[null,null,null,null,null,null,null,null,null,null,null,null,null,null,null,null,null,null,null,null,"☐","資源向上(長寿命化)","☐","広域化・体制強化",null,null,"☐","啓発・普及","☐","研修・会議",null,null,null,null,null,null,{"$f":"IF(AND(ISBLANK(A364),ISBLANK(B364),ISBLANK(D364),ISBLANK(G364),ISBLANK(I364),ISBLANK(Q364),ISBLANK(S364),ISBLANK(AE364),ISBLANK(AF364),ISBLANK(AH364),ISBLANK(AI364)),1,\"\")","v":1}]
[null,null,null,null,null,null,null,null,null,null,null,null,null,null,null,null,null,null,null,null,"☐","資源保全プラン","☐","特例措置を適用した活動",null,null,"☐","設置等","☐","発注事務",null,null,null,null,null,null,{"$f":"IF(AND(ISBLANK(A364),ISBLANK(B364),ISBLANK(D364),ISBLANK(G364),ISBLANK(I364),ISBLANK(Q364),ISBLANK(S364),ISBLANK(AE364),ISBLANK(AF364),ISBLANK(AH364),ISBLANK(AI364)),1,\"\")","v":1}]
[null,null,"時",null,"分","～",null,"時",null,"分",{"$f":"+IF(AND(ISNUMBER(B367),ISNUMBER(G367),INT((G367-B367)+(I367-D367)/60)>=0),INT((G367-B367)+(I367-D367)/60),\"\")","v":""},"時間",{"$f":"IF(AND(ISNUMBER(D367),ISNUMBER(I367)),ABS(D367-I367),\"\")","v":""},"分",{"$f":"IF(Q367+S367=0,\"\",Q367+S367)","v":""},"人",null,"人",null,"人","☐","農地維持","☐","資源向上(共同)","☐","調査・計画","☐","実践活動","☐","事務処理等",null,null,{"$f":"IF(ISNUMBER(AF367),VLOOKUP(AF367,$AQ$548:$AR$597,2,0),\"\")","v":""},null,null,null,{"$f":"IF(AND(ISBLANK(A367),ISBLANK(B367),ISBLANK(D367),ISBLANK(G367),ISBLANK(I367),ISBLANK(Q367),ISBLANK(S367),ISBLANK(AE367),ISBLANK(AF367),ISBLANK(AH367),ISBLANK(AI367)),1,\"\")","v":1}]
[null,null,null,null,null,null,null,null,null,null,null,null,null,null,null,null,null,null,null,null,"☐","資源向上(長寿命化)","☐","広域化・体制強化",null,null,"☐","啓発・普及","☐","研修・会議",null,null,null,null,null,null,{"$f":"IF(AND(ISBLANK(A367),ISBLANK(B367),ISBLANK(D367),ISBLANK(G367),ISBLANK(I367),ISBLANK(Q367),ISBLANK(S367),ISBLANK(AE367),ISBLANK(AF367),ISBLANK(AH367),ISBLANK(AI367)),1,\"\")","v":1}]
[null,null,null,null,null,null,null,null,null,null,null,null,null,null,null,null,null,null,null,null,"☐","資源保全プラン","☐","特例措置を適用した活動",null,null,"☐","設置等","☐","発注事務",null,null,null,null,null,null,{"$f":"IF(AND(ISBLANK(A367),ISBLANK(B367),ISBLANK(D367),ISBLANK(G367),ISBLANK(I367),ISBLANK(Q367),ISBLANK(S367),ISBLANK(AE367),ISBLANK(AF367),ISBLANK(AH367),ISBLANK(AI367)),1,\"\")","v":1}]
[null,null,"時",null,"分","～",null,"時",null,"分",{"$f":"+IF(AND(ISNUMBER(B370),ISNUMBER(G370),INT((G370-B370)+(I370-D370)/60)>=0),INT((G370-B370)+(I370-D370)/60),\"\")","v":""},"時間",{"$f":"IF(AND(ISNUMBER(D370),ISNUMBER(I370)),ABS(D370-I370),\"\")","v":""},"分",{"$f":"IF(Q370+S370=0,\"\",Q370+S370)","v":""},"人",null,"人",null,"人","☐","農地維持","☐","資源向上(共同)","☐","調査・計画","☐","実践活動","☐","事務処理等",null,null,{"$f":"IF(ISNUMBER(AF370),VLOOKUP(AF370,$AQ$548:$AR$597,2,0),\"\")","v":""},null,null,null,{"$f":"IF(AND(ISBLANK(A370),ISBLANK(B370),ISBLANK(D370),ISBLANK(G370),ISBLANK(I370),ISBLANK(Q370),ISBLANK(S370),ISBLANK(AE370),ISBLANK(AF370),ISBLANK(AH370),ISBLANK(AI370)),1,\"\")","v":1}]
[null,null,null,null,null,null,null,null,null,null,null,null,null,null,null,null,null,null,null,null,"☐","資源向上(長寿命化)","☐","広域化・体制強化",null,null,"☐","啓発・普及","☐","研修・会議",null,null,null,null,null,null,{"$f":"IF(AND(ISBLANK(A370),ISBLANK(B370),ISBLANK(D370),ISBLANK(G370),ISBLANK(I370),ISBLANK(Q370),ISBLANK(S370),ISBLANK(AE370),ISBLANK(AF370),ISBLANK(AH370),ISBLANK(AI370)),1,\"\")","v":1}]
[null,null,null,null,null,null,null,null,null,null,null,null,null,null,null,null,null,null,null,null,"☐","資源保全プラン","☐","特例措置を適用した活動",null,null,"☐","設置等","☐","発注事務",null,null,null,null,null,null,{"$f":"IF(AND(ISBLANK(A370),ISBLANK(B370),ISBLANK(D370),ISBLANK(G370),ISBLANK(I370),ISBLANK(Q370),ISBLANK(S370),ISBLANK(AE370),ISBLANK(AF370),ISBLANK(AH370),ISBLANK(AI370)),1,\"\")","v":1}]
[null,null,"時",null,"分","～",null,"時",null,"分",{"$f":"+IF(AND(ISNUMBER(B373),ISNUMBER(G373),INT((G373-B373)+(I373-D373)/60)>=0),INT((G373-B373)+(I373-D373)/60),\"\")","v":""},"時間",{"$f":"IF(AND(ISNUMBER(D373),ISNUMBER(I373)),ABS(D373-I373),\"\")","v":""},"分",{"$f":"IF(Q373+S373=0,\"\",Q373+S373)","v":""},"人",null,"人",null,"人","☐","農地維持","☐","資源向上(共同)","☐","調査・計画","☐","実践活動","☐","事務処理等",null,null,{"$f":"IF(ISNUMBER(AF373),VLOOKUP(AF373,$AQ$548:$AR$597,2,0),\"\")","v":""},null,null,null,{"$f":"IF(AND(ISBLANK(A373),ISBLANK(B373),ISBLANK(D373),ISBLANK(G373),ISBLANK(I373),ISBLANK(Q373),ISBLANK(S373),ISBLANK(AE373),ISBLANK(AF373),ISBLANK(AH373),ISBLANK(AI373)),1,\"\")","v":1}]
[null,null,null,null,null,null,null,null,null,null,null,null,null,null,null,null,null,null,null,null,"☐","資源向上(長寿命化)","☐","広域化・体制強化",null,null,"☐","啓発・普及","☐","研修・会議",null,null,null,null,null,null,{"$f":"IF(AND(ISBLANK(A373),ISBLANK(B373),ISBLANK(D373),ISBLANK(G373),ISBLANK(I373),ISBLANK(Q373),ISBLANK(S373),ISBLANK(AE373),ISBLANK(AF373),ISBLANK(AH373),ISBLANK(AI373)),1,\"\")","v":1}]
[null,null,null,null,null,null,null,null,null,null,null,null,null,null,null,null,null,null,null,null,"☐","資源保全プラン","☐","特例措置を適用した活動",null,null,"☐","設置等","☐","発注事務",null,null,null,null,null,null,{"$f":"IF(AND(ISBLANK(A373),ISBLANK(B373),ISBLANK(D373),ISBLANK(G373),ISBLANK(I373),ISBLANK(Q373),ISBLANK(S373),ISBLANK(AE373),ISBLANK(AF373),ISBLANK(AH373),ISBLANK(AI373)),1,\"\")","v":1}]
[null,null,"時",null,"分","～",null,"時",null,"分",{"$f":"+IF(AND(ISNUMBER(B376),ISNUMBER(G376),INT((G376-B376)+(I376-D376)/60)>=0),INT((G376-B376)+(I376-D376)/60),\"\")","v":""},"時間",{"$f":"IF(AND(ISNUMBER(D376),ISNUMBER(I376)),ABS(D376-I376),\"\")","v":""},"分",{"$f":"IF(Q376+S376=0,\"\",Q376+S376)","v":""},"人",null,"人",null,"人","☐","農地維持","☐","資源向上(共同)","☐","調査・計画","☐","実践活動","☐","事務処理等",null,null,{"$f":"IF(ISNUMBER(AF376),VLOOKUP(AF376,$AQ$548:$AR$597,2,0),\"\")","v":""},null,null,null,{"$f":"IF(AND(ISBLANK(A376),ISBLANK(B376),ISBLANK(D376),ISBLANK(G376),ISBLANK(I376),ISBLANK(Q376),ISBLANK(S376),ISBLANK(AE376),ISBLANK(AF376),ISBLANK(AH376),ISBLANK(AI376)),1,\"\")","v":1}]
[null,null,null,null,null,null,null,null,null,null,null,null,null,null,null,null,null,null,null,null,"☐","資源向上(長寿命化)","☐","広域化・体制強化",null,null,"☐","啓発・普及","☐","研修・会議",null,null,null,null,null,null,{"$f":"IF(AND(ISBLANK(A376),ISBLANK(B376),ISBLANK(D376),ISBLANK(G376),ISBLANK(I376),ISBLANK(Q376),ISBLANK(S376),ISBLANK(AE376),ISBLANK(AF376),ISBLANK(AH376),ISBLANK(AI376)),1,\"\")","v":1}]
[null,null,null,null,null,null,null,null,null,null,null,null,null,null,null,null,null,null,null,null,"☐","資源保全プラン","☐","特例措置を適用した活動",null,null,"☐","設置等","☐","発注事務",null,null,null,null,null,null,{"$f":"IF(AND(ISBLANK(A376),ISBLANK(B376),ISBLANK(D376),ISBLANK(G376),ISBLANK(I376),ISBLANK(Q376),ISBLANK(S376),ISBLANK(AE376),ISBLANK(AF376),ISBLANK(AH376),ISBLANK(AI376)),1,\"\")","v":1}]
[null,null,"時",null,"分","～",null,"時",null,"分",{"$f":"+IF(AND(ISNUMBER(B379),ISNUMBER(G379),INT((G379-B379)+(I379-D379)/60)>=0),INT((G379-B379)+(I379-D379)/60),\"\")","v":""},"時間",{"$f":"IF(AND(ISNUMBER(D379),ISNUMBER(I379)),ABS(D379-I379),\"\")","v":""},"分",{"$f":"IF(Q379+S379=0,\"\",Q379+S379)","v":""},"人",null,"人",null,"人","☐","農地維持","☐","資源向上(共同)","☐","調査・計画","☐","実践活動","☐","事務処理等",null,null,{"$f":"IF(ISNUMBER(AF379),VLOOKUP(AF379,$AQ$548:$AR$597,2,0),\"\")","v":""},null,null,null,{"$f":"IF(AND(ISBLANK(A379),ISBLANK(B379),ISBLANK(D379),ISBLANK(G379),ISBLANK(I379),ISBLANK(Q379),ISBLANK(S379),ISBLANK(AE379),ISBLANK(AF379),ISBLANK(AH379),ISBLANK(AI379)),1,\"\")","v":1}]
[null,null,null,null,null,null,null,null,null,null,null,null,null,null,null,null,null,null,null,null,"☐","資源向上(長寿命化)","☐","広域化・体制強化",null,null,"☐","啓発・普及","☐","研修・会議",null,null,null,null,null,null,{"$f":"IF(AND(ISBLANK(A379),ISBLANK(B379),ISBLANK(D379),ISBLANK(G379),ISBLANK(I379),ISBLANK(Q379),ISBLANK(S379),ISBLANK(AE379),ISBLANK(AF379),ISBLANK(AH379),ISBLANK(AI379)),1,\"\")","v":1}]
[null,null,null,null,null,null,null,null,null,null,null,null,null,null,null,null,null,null,null,null,"☐","資源保全プラン","☐","特例措置を適用した活動",null,null,"☐","設置等","☐","発注事務",null,null,null,null,null,null,{"$f":"IF(AND(ISBLANK(A379),ISBLANK(B379),ISBLANK(D379),ISBLANK(G379),ISBLANK(I379),ISBLANK(Q379),ISBLANK(S379),ISBLANK(AE379),ISBLANK(AF379),ISBLANK(AH379),ISBLANK(AI379)),1,\"\")","v":1}]
[null,null,"時",null,"分","～",null,"時",null,"分",{"$f":"+IF(AND(ISNUMBER(B382),ISNUMBER(G382),INT((G382-B382)+(I382-D382)/60)>=0),INT((G382-B382)+(I382-D382)/60),\"\")","v":""},"時間",{"$f":"IF(AND(ISNUMBER(D382),ISNUMBER(I382)),ABS(D382-I382),\"\")","v":""},"分",{"$f":"IF(Q382+S382=0,\"\",Q382+S382)","v":""},"人",null,"人",null,"人","☐","農地維持","☐","資源向上(共同)","☐","調査・計画","☐","実践活動","☐","事務処理等",null,null,{"$f":"IF(ISNUMBER(AF382),VLOOKUP(AF382,$AQ$548:$AR$597,2,0),\"\")","v":""},null,null,null,{"$f":"IF(AND(ISBLANK(A382),ISBLANK(B382),ISBLANK(D382),ISBLANK(G382),ISBLANK(I382),ISBLANK(Q382),ISBLANK(S382),ISBLANK(AE382),ISBLANK(AF382),ISBLANK(AH382),ISBLANK(AI382)),1,\"\")","v":1}]
[null,null,null,null,null,null,null,null,null,null,null,null,null,null,null,null,null,null,null,null,"☐","資源向上(長寿命化)","☐","広域化・体制強化",null,null,"☐","啓発・普及","☐","研修・会議",null,null,null,null,null,null,{"$f":"IF(AND(ISBLANK(A382),ISBLANK(B382),ISBLANK(D382),ISBLANK(G382),ISBLANK(I382),ISBLANK(Q382),ISBLANK(S382),ISBLANK(AE382),ISBLANK(AF382),ISBLANK(AH382),ISBLANK(AI382)),1,\"\")","v":1}]
[null,null,null,null,null,null,null,null,null,null,null,null,null,null,null,null,null,null,null,null,"☐","資源保全プラン","☐","特例措置を適用した活動",null,null,"☐","設置等","☐","発注事務",null,null,null,null,null,null,{"$f":"IF(AND(ISBLANK(A382),ISBLANK(B382),ISBLANK(D382),ISBLANK(G382),ISBLANK(I382),ISBLANK(Q382),ISBLANK(S382),ISBLANK(AE382),ISBLANK(AF382),ISBLANK(AH382),ISBLANK(AI382)),1,\"\")","v":1}]
[null,null,"時",null,"分","～",null,"時",null,"分",{"$f":"+IF(AND(ISNUMBER(B385),ISNUMBER(G385),INT((G385-B385)+(I385-D385)/60)>=0),INT((G385-B385)+(I385-D385)/60),\"\")","v":""},"時間",{"$f":"IF(AND(ISNUMBER(D385),ISNUMBER(I385)),ABS(D385-I385),\"\")","v":""},"分",{"$f":"IF(Q385+S385=0,\"\",Q385+S385)","v":""},"人",null,"人",null,"人","☐","農地維持","☐","資源向上(共同)","☐","調査・計画","☐","実践活動","☐","事務処理等",null,null,{"$f":"IF(ISNUMBER(AF385),VLOOKUP(AF385,$AQ$548:$AR$597,2,0),\"\")","v":""},null,null,null,{"$f":"IF(AND(ISBLANK(A385),ISBLANK(B385),ISBLANK(D385),ISBLANK(G385),ISBLANK(I385),ISBLANK(Q385),ISBLANK(S385),ISBLANK(AE385),ISBLANK(AF385),ISBLANK(AH385),ISBLANK(AI385)),1,\"\")","v":1}]
[null,null,null,null,null,null,null,null,null,null,null,null,null,null,null,null,null,null,null,null,"☐","資源向上(長寿命化)","☐","広域化・体制強化",null,null,"☐","啓発・普及","☐","研修・会議",null,null,null,null,null,null,{"$f":"IF(AND(ISBLANK(A385),ISBLANK(B385),ISBLANK(D385),ISBLANK(G385),ISBLANK(I385),ISBLANK(Q385),ISBLANK(S385),ISBLANK(AE385),ISBLANK(AF385),ISBLANK(AH385),ISBLANK(AI385)),1,\"\")","v":1}]
[null,null,null,null,null,null,null,null,null,null,null,null,null,null,null,null,null,null,null,null,"☐","資源保全プラン","☐","特例措置を適用した活動",null,null,"☐","設置等","☐","発注事務",null,null,null,null,null,null,{"$f":"IF(AND(ISBLANK(A385),ISBLANK(B385),ISBLANK(D385),ISBLANK(G385),ISBLANK(I385),ISBLANK(Q385),ISBLANK(S385),ISBLANK(AE385),ISBLANK(AF385),ISBLANK(AH385),ISBLANK(AI385)),1,\"\")","v":1}]
[null,null,"時",null,"分","～",null,"時",null,"分",{"$f":"+IF(AND(ISNUMBER(B388),ISNUMBER(G388),INT((G388-B388)+(I388-D388)/60)>=0),INT((G388-B388)+(I388-D388)/60),\"\")","v":""},"時間",{"$f":"IF(AND(ISNUMBER(D388),ISNUMBER(I388)),ABS(D388-I388),\"\")","v":""},"分",{"$f":"IF(Q388+S388=0,\"\",Q388+S388)","v":""},"人",null,"人",null,"人","☐","農地維持","☐","資源向上(共同)","☐","調査・計画","☐","実践活動","☐","事務処理等",null,null,{"$f":"IF(ISNUMBER(AF388),VLOOKUP(AF388,$AQ$548:$AR$597,2,0),\"\")","v":""},null,null,null,{"$f":"IF(AND(ISBLANK(A388),ISBLANK(B388),ISBLANK(D388),ISBLANK(G388),ISBLANK(I388),ISBLANK(Q388),ISBLANK(S388),ISBLANK(AE388),ISBLANK(AF388),ISBLANK(AH388),ISBLANK(AI388)),1,\"\")","v":1}]
[null,null,null,null,null,null,null,null,null,null,null,null,null,null,null,null,null,null,null,null,"☐","資源向上(長寿命化)","☐","広域化・体制強化",null,null,"☐","啓発・普及","☐","研修・会議",null,null,null,null,null,null,{"$f":"IF(AND(ISBLANK(A388),ISBLANK(B388),ISBLANK(D388),ISBLANK(G388),ISBLANK(I388),ISBLANK(Q388),ISBLANK(S388),ISBLANK(AE388),ISBLANK(AF388),ISBLANK(AH388),ISBLANK(AI388)),1,\"\")","v":1}]
[null,null,null,null,null,null,null,null,null,null,null,null,null,null,null,null,null,null,null,null,"☐","資源保全プラン","☐","特例措置を適用した活動",null,null,"☐","設置等","☐","発注事務",null,null,null,null,null,null,{"$f":"IF(AND(ISBLANK(A388),ISBLANK(B388),ISBLANK(D388),ISBLANK(G388),ISBLANK(I388),ISBLANK(Q388),ISBLANK(S388),ISBLANK(AE388),ISBLANK(AF388),ISBLANK(AH388),ISBLANK(AI388)),1,\"\")","v":1}]
[null,null,"時",null,"分","～",null,"時",null,"分",{"$f":"+IF(AND(ISNUMBER(B391),ISNUMBER(G391),INT((G391-B391)+(I391-D391)/60)>=0),INT((G391-B391)+(I391-D391)/60),\"\")","v":""},"時間",{"$f":"IF(AND(ISNUMBER(D391),ISNUMBER(I391)),ABS(D391-I391),\"\")","v":""},"分",{"$f":"IF(Q391+S391=0,\"\",Q391+S391)","v":""},"人",null,"人",null,"人","☐","農地維持","☐","資源向上(共同)","☐","調査・計画","☐","実践活動","☐","事務処理等",null,null,{"$f":"IF(ISNUMBER(AF391),VLOOKUP(AF391,$AQ$548:$AR$597,2,0),\"\")","v":""},null,null,null,{"$f":"IF(AND(ISBLANK(A391),ISBLANK(B391),ISBLANK(D391),ISBLANK(G391),ISBLANK(I391),ISBLANK(Q391),ISBLANK(S391),ISBLANK(AE391),ISBLANK(AF391),ISBLANK(AH391),ISBLANK(AI391)),1,\"\")","v":1}]
[null,null,null,null,null,null,null,null,null,null,null,null,null,null,null,null,null,null,null,null,"☐","資源向上(長寿命化)","☐","広域化・体制強化",null,null,"☐","啓発・普及","☐","研修・会議",null,null,null,null,null,null,{"$f":"IF(AND(ISBLANK(A391),ISBLANK(B391),ISBLANK(D391),ISBLANK(G391),ISBLANK(I391),ISBLANK(Q391),ISBLANK(S391),ISBLANK(AE391),ISBLANK(AF391),ISBLANK(AH391),ISBLANK(AI391)),1,\"\")","v":1}]
[null,null,null,null,null,null,null,null,null,null,null,null,null,null,null,null,null,null,null,null,"☐","資源保全プラン","☐","特例措置を適用した活動",null,null,"☐","設置等","☐","発注事務",null,null,null,null,null,null,{"$f":"IF(AND(ISBLANK(A391),ISBLANK(B391),ISBLANK(D391),ISBLANK(G391),ISBLANK(I391),ISBLANK(Q391),ISBLANK(S391),ISBLANK(AE391),ISBLANK(AF391),ISBLANK(AH391),ISBLANK(AI391)),1,\"\")","v":1}]
[null,null,"時",null,"分","～",null,"時",null,"分",{"$f":"+IF(AND(ISNUMBER(B394),ISNUMBER(G394),INT((G394-B394)+(I394-D394)/60)>=0),INT((G394-B394)+(I394-D394)/60),\"\")","v":""},"時間",{"$f":"IF(AND(ISNUMBER(D394),ISNUMBER(I394)),ABS(D394-I394),\"\")","v":""},"分",{"$f":"IF(Q394+S394=0,\"\",Q394+S394)","v":""},"人",null,"人",null,"人","☐","農地維持","☐","資源向上(共同)","☐","調査・計画","☐","実践活動","☐","事務処理等",null,null,{"$f":"IF(ISNUMBER(AF394),VLOOKUP(AF394,$AQ$548:$AR$597,2,0),\"\")","v":""},null,null,null,{"$f":"IF(AND(ISBLANK(A394),ISBLANK(B394),ISBLANK(D394),ISBLANK(G394),ISBLANK(I394),ISBLANK(Q394),ISBLANK(S394),ISBLANK(AE394),ISBLANK(AF394),ISBLANK(AH394),ISBLANK(AI394)),1,\"\")","v":1}]
[null,null,null,null,null,null,null,null,null,null,null,null,null,null,null,null,null,null,null,null,"☐","資源向上(長寿命化)","☐","広域化・体制強化",null,null,"☐","啓発・普及","☐","研修・会議",null,null,null,null,null,null,{"$f":"IF(AND(ISBLANK(A394),ISBLANK(B394),ISBLANK(D394),ISBLANK(G394),ISBLANK(I394),ISBLANK(Q394),ISBLANK(S394),ISBLANK(AE394),ISBLANK(AF394),ISBLANK(AH394),ISBLANK(AI394)),1,\"\")","v":1}]
[null,null,null,null,null,null,null,null,null,null,null,null,null,null,null,null,null,null,null,null,"☐","資源保全プラン","☐","特例措置を適用した活動",null,null,"☐","設置等","☐","発注事務",null,null,null,null,null,null,{"$f":"IF(AND(ISBLANK(A394),ISBLANK(B394),ISBLANK(D394),ISBLANK(G394),ISBLANK(I394),ISBLANK(Q394),ISBLANK(S394),ISBLANK(AE394),ISBLANK(AF394),ISBLANK(AH394),ISBLANK(AI394)),1,\"\")","v":1}]
[null,null,"時",null,"分","～",null,"時",null,"分",{"$f":"+IF(AND(ISNUMBER(B397),ISNUMBER(G397),INT((G397-B397)+(I397-D397)/60)>=0),INT((G397-B397)+(I397-D397)/60),\"\")","v":""},"時間",{"$f":"IF(AND(ISNUMBER(D397),ISNUMBER(I397)),ABS(D397-I397),\"\")","v":""},"分",{"$f":"IF(Q397+S397=0,\"\",Q397+S397)","v":""},"人",null,"人",null,"人","☐","農地維持","☐","資源向上(共同)","☐","調査・計画","☐","実践活動","☐","事務処理等",null,null,{"$f":"IF(ISNUMBER(AF397),VLOOKUP(AF397,$AQ$548:$AR$597,2,0),\"\")","v":""},null,null,null,{"$f":"IF(AND(ISBLANK(A397),ISBLANK(B397),ISBLANK(D397),ISBLANK(G397),ISBLANK(I397),ISBLANK(Q397),ISBLANK(S397),ISBLANK(AE397),ISBLANK(AF397),ISBLANK(AH397),ISBLANK(AI397)),1,\"\")","v":1}]
[null,null,null,null,null,null,null,null,null,null,null,null,null,null,null,null,null,null,null,null,"☐","資源向上(長寿命化)","☐","広域化・体制強化",null,null,"☐","啓発・普及","☐","研修・会議",null,null,null,null,null,null,{"$f":"IF(AND(ISBLANK(A397),ISBLANK(B397),ISBLANK(D397),ISBLANK(G397),ISBLANK(I397),ISBLANK(Q397),ISBLANK(S397),ISBLANK(AE397),ISBLANK(AF397),ISBLANK(AH397),ISBLANK(AI397)),1,\"\")","v":1}]
[null,null,null,null,null,null,null,null,null,null,null,null,null,null,null,null,null,null,null,null,"☐","資源保全プラン","☐","特例措置を適用した活動",null,null,"☐","設置等","☐","発注事務",null,null,null,null,null,null,{"$f":"IF(AND(ISBLANK(A397),ISBLANK(B397),ISBLANK(D397),ISBLANK(G397),ISBLANK(I397),ISBLANK(Q397),ISBLANK(S397),ISBLANK(AE397),ISBLANK(AF397),ISBLANK(AH397),ISBLANK(AI397)),1,\"\")","v":1}]
[null,null,"時",null,"分","～",null,"時",null,"分",{"$f":"+IF(AND(ISNUMBER(B400),ISNUMBER(G400),INT((G400-B400)+(I400-D400)/60)>=0),INT((G400-B400)+(I400-D400)/60),\"\")","v":""},"時間",{"$f":"IF(AND(ISNUMBER(D400),ISNUMBER(I400)),ABS(D400-I400),\"\")","v":""},"分",{"$f":"IF(Q400+S400=0,\"\",Q400+S400)","v":""},"人",null,"人",null,"人","☐","農地維持","☐","資源向上(共同)","☐","調査・計画","☐","実践活動","☐","事務処理等",null,null,{"$f":"IF(ISNUMBER(AF400),VLOOKUP(AF400,$AQ$548:$AR$597,2,0),\"\")","v":""},null,null,null,{"$f":"IF(AND(ISBLANK(A400),ISBLANK(B400),ISBLANK(D400),ISBLANK(G400),ISBLANK(I400),ISBLANK(Q400),ISBLANK(S400),ISBLANK(AE400),ISBLANK(AF400),ISBLANK(AH400),ISBLANK(AI400)),1,\"\")","v":1}]
[null,null,null,null,null,null,null,null,null,null,null,null,null,null,null,null,null,null,null,null,"☐","資源向上(長寿命化)","☐","広域化・体制強化",null,null,"☐","啓発・普及","☐","研修・会議",null,null,null,null,null,null,{"$f":"IF(AND(ISBLANK(A400),ISBLANK(B400),ISBLANK(D400),ISBLANK(G400),ISBLANK(I400),ISBLANK(Q400),ISBLANK(S400),ISBLANK(AE400),ISBLANK(AF400),ISBLANK(AH400),ISBLANK(AI400)),1,\"\")","v":1}]
[null,null,null,null,null,null,null,null,null,null,null,null,null,null,null,null,null,null,null,null,"☐","資源保全プラン","☐","特例措置を適用した活動",null,null,"☐","設置等","☐","発注事務",null,null,null,null,null,null,{"$f":"IF(AND(ISBLANK(A400),ISBLANK(B400),ISBLANK(D400),ISBLANK(G400),ISBLANK(I400),ISBLANK(Q400),ISBLANK(S400),ISBLANK(AE400),ISBLANK(AF400),ISBLANK(AH400),ISBLANK(AI400)),1,\"\")","v":1}]
[null,null,"時",null,"分","～",null,"時",null,"分",{"$f":"+IF(AND(ISNUMBER(B403),ISNUMBER(G403),INT((G403-B403)+(I403-D403)/60)>=0),INT((G403-B403)+(I403-D403)/60),\"\")","v":""},"時間",{"$f":"IF(AND(ISNUMBER(D403),ISNUMBER(I403)),ABS(D403-I403),\"\")","v":""},"分",{"$f":"IF(Q403+S403=0,\"\",Q403+S403)","v":""},"人",null,"人",null,"人","☐","農地維持","☐","資源向上(共同)","☐","調査・計画","☐","実践活動","☐","事務処理等",null,null,{"$f":"IF(ISNUMBER(AF403),VLOOKUP(AF403,$AQ$548:$AR$597,2,0),\"\")","v":""},null,null,null,{"$f":"IF(AND(ISBLANK(A403),ISBLANK(B403),ISBLANK(D403),ISBLANK(G403),ISBLANK(I403),ISBLANK(Q403),ISBLANK(S403),ISBLANK(AE403),ISBLANK(AF403),ISBLANK(AH403),ISBLANK(AI403)),1,\"\")","v":1}]
[null,null,null,null,null,null,null,null,null,null,null,null,null,null,null,null,null,null,null,null,"☐","資源向上(長寿命化)","☐","広域化・体制強化",null,null,"☐","啓発・普及","☐","研修・会議",null,null,null,null,null,null,{"$f":"IF(AND(ISBLANK(A403),ISBLANK(B403),ISBLANK(D403),ISBLANK(G403),ISBLANK(I403),ISBLANK(Q403),ISBLANK(S403),ISBLANK(AE403),ISBLANK(AF403),ISBLANK(AH403),ISBLANK(AI403)),1,\"\")","v":1}]
[null,null,null,null,null,null,null,null,null,null,null,null,null,null,null,null,null,null,null,null,"☐","資源保全プラン","☐","特例措置を適用した活動",null,null,"☐","設置等","☐","発注事務",null,null,null,null,null,null,{"$f":"IF(AND(ISBLANK(A403),ISBLANK(B403),ISBLANK(D403),ISBLANK(G403),ISBLANK(I403),ISBLANK(Q403),ISBLANK(S403),ISBLANK(AE403),ISBLANK(AF403),ISBLANK(AH403),ISBLANK(AI403)),1,\"\")","v":1}]
[null,null,"時",null,"分","～",null,"時",null,"分",{"$f":"+IF(AND(ISNUMBER(B406),ISNUMBER(G406),INT((G406-B406)+(I406-D406)/60)>=0),INT((G406-B406)+(I406-D406)/60),\"\")","v":""},"時間",{"$f":"IF(AND(ISNUMBER(D406),ISNUMBER(I406)),ABS(D406-I406),\"\")","v":""},"分",{"$f":"IF(Q406+S406=0,\"\",Q406+S406)","v":""},"人",null,"人",null,"人","☐","農地維持","☐","資源向上(共同)","☐","調査・計画","☐","実践活動","☐","事務処理等",null,null,{"$f":"IF(ISNUMBER(AF406),VLOOKUP(AF406,$AQ$548:$AR$597,2,0),\"\")","v":""},null,null,null,{"$f":"IF(AND(ISBLANK(A406),ISBLANK(B406),ISBLANK(D406),ISBLANK(G406),ISBLANK(I406),ISBLANK(Q406),ISBLANK(S406),ISBLANK(AE406),ISBLANK(AF406),ISBLANK(AH406),ISBLANK(AI406)),1,\"\")","v":1}]
[null,null,null,null,null,null,null,null,null,null,null,null,null,null,null,null,null,null,null,null,"☐","資源向上(長寿命化)","☐","広域化・体制強化",null,null,"☐","啓発・普及","☐","研修・会議",null,null,null,null,null,null,{"$f":"IF(AND(ISBLANK(A406),ISBLANK(B406),ISBLANK(D406),ISBLANK(G406),ISBLANK(I406),ISBLANK(Q406),ISBLANK(S406),ISBLANK(AE406),ISBLANK(AF406),ISBLANK(AH406),ISBLANK(AI406)),1,\"\")","v":1}]
[null,null,null,null,null,null,null,null,null,null,null,null,null,null,null,null,null,null,null,null,"☐","資源保全プラン","☐","特例措置を適用した活動",null,null,"☐","設置等","☐","発注事務",null,null,null,null,null,null,{"$f":"IF(AND(ISBLANK(A406),ISBLANK(B406),ISBLANK(D406),ISBLANK(G406),ISBLANK(I406),ISBLANK(Q406),ISBLANK(S406),ISBLANK(AE406),ISBLANK(AF406),ISBLANK(AH406),ISBLANK(AI406)),1,\"\")","v":1}]
[null,null,"時",null,"分","～",null,"時",null,"分",{"$f":"+IF(AND(ISNUMBER(B409),ISNUMBER(G409),INT((G409-B409)+(I409-D409)/60)>=0),INT((G409-B409)+(I409-D409)/60),\"\")","v":""},"時間",{"$f":"IF(AND(ISNUMBER(D409),ISNUMBER(I409)),ABS(D409-I409),\"\")","v":""},"分",{"$f":"IF(Q409+S409=0,\"\",Q409+S409)","v":""},"人",null,"人",null,"人","☐","農地維持","☐","資源向上(共同)","☐","調査・計画","☐","実践活動","☐","事務処理等",null,null,{"$f":"IF(ISNUMBER(AF409),VLOOKUP(AF409,$AQ$548:$AR$597,2,0),\"\")","v":""},null,null,null,{"$f":"IF(AND(ISBLANK(A409),ISBLANK(B409),ISBLANK(D409),ISBLANK(G409),ISBLANK(I409),ISBLANK(Q409),ISBLANK(S409),ISBLANK(AE409),ISBLANK(AF409),ISBLANK(AH409),ISBLANK(AI409)),1,\"\")","v":1}]
[null,null,null,null,null,null,null,null,null,null,null,null,null,null,null,null,null,null,null,null,"☐","資源向上(長寿命化)","☐","広域化・体制強化",null,null,"☐","啓発・普及","☐","研修・会議",null,null,null,null,null,null,{"$f":"IF(AND(ISBLANK(A409),ISBLANK(B409),ISBLANK(D409),ISBLANK(G409),ISBLANK(I409),ISBLANK(Q409),ISBLANK(S409),ISBLANK(AE409),ISBLANK(AF409),ISBLANK(AH409),ISBLANK(AI409)),1,\"\")","v":1}]
[null,null,null,null,null,null,null,null,null,null,null,null,null,null,null,null,null,null,null,null,"☐","資源保全プラン","☐","特例措置を適用した活動",null,null,"☐","設置等","☐","発注事務",null,null,null,null,null,null,{"$f":"IF(AND(ISBLANK(A409),ISBLANK(B409),ISBLANK(D409),ISBLANK(G409),ISBLANK(I409),ISBLANK(Q409),ISBLANK(S409),ISBLANK(AE409),ISBLANK(AF409),ISBLANK(AH409),ISBLANK(AI409)),1,\"\")","v":1}]
[null,null,"時",null,"分","～",null,"時",null,"分",{"$f":"+IF(AND(ISNUMBER(B412),ISNUMBER(G412),INT((G412-B412)+(I412-D412)/60)>=0),INT((G412-B412)+(I412-D412)/60),\"\")","v":""},"時間",{"$f":"IF(AND(ISNUMBER(D412),ISNUMBER(I412)),ABS(D412-I412),\"\")","v":""},"分",{"$f":"IF(Q412+S412=0,\"\",Q412+S412)","v":""},"人",null,"人",null,"人","☐","農地維持","☐","資源向上(共同)","☐","調査・計画","☐","実践活動","☐","事務処理等",null,null,{"$f":"IF(ISNUMBER(AF412),VLOOKUP(AF412,$AQ$548:$AR$597,2,0),\"\")","v":""},null,null,null,{"$f":"IF(AND(ISBLANK(A412),ISBLANK(B412),ISBLANK(D412),ISBLANK(G412),ISBLANK(I412),ISBLANK(Q412),ISBLANK(S412),ISBLANK(AE412),ISBLANK(AF412),ISBLANK(AH412),ISBLANK(AI412)),1,\"\")","v":1}]
[null,null,null,null,null,null,null,null,null,null,null,null,null,null,null,null,null,null,null,null,"☐","資源向上(長寿命化)","☐","広域化・体制強化",null,null,"☐","啓発・普及","☐","研修・会議",null,null,null,null,null,null,{"$f":"IF(AND(ISBLANK(A412),ISBLANK(B412),ISBLANK(D412),ISBLANK(G412),ISBLANK(I412),ISBLANK(Q412),ISBLANK(S412),ISBLANK(AE412),ISBLANK(AF412),ISBLANK(AH412),ISBLANK(AI412)),1,\"\")","v":1}]
[null,null,null,null,null,null,null,null,null,null,null,null,null,null,null,null,null,null,null,null,"☐","資源保全プラン","☐","特例措置を適用した活動",null,null,"☐","設置等","☐","発注事務",null,null,null,null,null,null,{"$f":"IF(AND(ISBLANK(A412),ISBLANK(B412),ISBLANK(D412),ISBLANK(G412),ISBLANK(I412),ISBLANK(Q412),ISBLANK(S412),ISBLANK(AE412),ISBLANK(AF412),ISBLANK(AH412),ISBLANK(AI412)),1,\"\")","v":1}]
[null,null,"時",null,"分","～",null,"時",null,"分",{"$f":"+IF(AND(ISNUMBER(B415),ISNUMBER(G415),INT((G415-B415)+(I415-D415)/60)>=0),INT((G415-B415)+(I415-D415)/60),\"\")","v":""},"時間",{"$f":"IF(AND(ISNUMBER(D415),ISNUMBER(I415)),ABS(D415-I415),\"\")","v":""},"分",{"$f":"IF(Q415+S415=0,\"\",Q415+S415)","v":""},"人",null,"人",null,"人","☐","農地維持","☐","資源向上(共同)","☐","調査・計画","☐","実践活動","☐","事務処理等",null,null,{"$f":"IF(ISNUMBER(AF415),VLOOKUP(AF415,$AQ$548:$AR$597,2,0),\"\")","v":""},null,null,null,{"$f":"IF(AND(ISBLANK(A415),ISBLANK(B415),ISBLANK(D415),ISBLANK(G415),ISBLANK(I415),ISBLANK(Q415),ISBLANK(S415),ISBLANK(AE415),ISBLANK(AF415),ISBLANK(AH415),ISBLANK(AI415)),1,\"\")","v":1}]
[null,null,null,null,null,null,null,null,null,null,null,null,null,null,null,null,null,null,null,null,"☐","資源向上(長寿命化)","☐","広域化・体制強化",null,null,"☐","啓発・普及","☐","研修・会議",null,null,null,null,null,null,{"$f":"IF(AND(ISBLANK(A415),ISBLANK(B415),ISBLANK(D415),ISBLANK(G415),ISBLANK(I415),ISBLANK(Q415),ISBLANK(S415),ISBLANK(AE415),ISBLANK(AF415),ISBLANK(AH415),ISBLANK(AI415)),1,\"\")","v":1}]
[null,null,null,null,null,null,null,null,null,null,null,null,null,null,null,null,null,null,null,null,"☐","資源保全プラン","☐","特例措置を適用した活動",null,null,"☐","設置等","☐","発注事務",null,null,null,null,null,null,{"$f":"IF(AND(ISBLANK(A415),ISBLANK(B415),ISBLANK(D415),ISBLANK(G415),ISBLANK(I415),ISBLANK(Q415),ISBLANK(S415),ISBLANK(AE415),ISBLANK(AF415),ISBLANK(AH415),ISBLANK(AI415)),1,\"\")","v":1}]
[null,null,"時",null,"分","～",null,"時",null,"分",{"$f":"+IF(AND(ISNUMBER(B418),ISNUMBER(G418),INT((G418-B418)+(I418-D418)/60)>=0),INT((G418-B418)+(I418-D418)/60),\"\")","v":""},"時間",{"$f":"IF(AND(ISNUMBER(D418),ISNUMBER(I418)),ABS(D418-I418),\"\")","v":""},"分",{"$f":"IF(Q418+S418=0,\"\",Q418+S418)","v":""},"人",null,"人",null,"人","☐","農地維持","☐","資源向上(共同)","☐","調査・計画","☐","実践活動","☐","事務処理等",null,null,{"$f":"IF(ISNUMBER(AF418),VLOOKUP(AF418,$AQ$548:$AR$597,2,0),\"\")","v":""},null,null,null,{"$f":"IF(AND(ISBLANK(A418),ISBLANK(B418),ISBLANK(D418),ISBLANK(G418),ISBLANK(I418),ISBLANK(Q418),ISBLANK(S418),ISBLANK(AE418),ISBLANK(AF418),ISBLANK(AH418),ISBLANK(AI418)),1,\"\")","v":1}]
[null,null,null,null,null,null,null,null,null,null,null,null,null,null,null,null,null,null,null,null,"☐","資源向上(長寿命化)","☐","広域化・体制強化",null,null,"☐","啓発・普及","☐","研修・会議",null,null,null,null,null,null,{"$f":"IF(AND(ISBLANK(A418),ISBLANK(B418),ISBLANK(D418),ISBLANK(G418),ISBLANK(I418),ISBLANK(Q418),ISBLANK(S418),ISBLANK(AE418),ISBLANK(AF418),ISBLANK(AH418),ISBLANK(AI418)),1,\"\")","v":1}]
[null,null,null,null,null,null,null,null,null,null,null,null,null,null,null,null,null,null,null,null,"☐","資源保全プラン","☐","特例措置を適用した活動",null,null,"☐","設置等","☐","発注事務",null,null,null,null,null,null,{"$f":"IF(AND(ISBLANK(A418),ISBLANK(B418),ISBLANK(D418),ISBLANK(G418),ISBLANK(I418),ISBLANK(Q418),ISBLANK(S418),ISBLANK(AE418),ISBLANK(AF418),ISBLANK(AH418),ISBLANK(AI418)),1,\"\")","v":1}]
[null,null,"時",null,"分","～",null,"時",null,"分",{"$f":"+IF(AND(ISNUMBER(B421),ISNUMBER(G421),INT((G421-B421)+(I421-D421)/60)>=0),INT((G421-B421)+(I421-D421)/60),\"\")","v":""},"時間",{"$f":"IF(AND(ISNUMBER(D421),ISNUMBER(I421)),ABS(D421-I421),\"\")","v":""},"分",{"$f":"IF(Q421+S421=0,\"\",Q421+S421)","v":""},"人",null,"人",null,"人","☐","農地維持","☐","資源向上(共同)","☐","調査・計画","☐","実践活動","☐","事務処理等",null,null,{"$f":"IF(ISNUMBER(AF421),VLOOKUP(AF421,$AQ$548:$AR$597,2,0),\"\")","v":""},null,null,null,{"$f":"IF(AND(ISBLANK(A421),ISBLANK(B421),ISBLANK(D421),ISBLANK(G421),ISBLANK(I421),ISBLANK(Q421),ISBLANK(S421),ISBLANK(AE421),ISBLANK(AF421),ISBLANK(AH421),ISBLANK(AI421)),1,\"\")","v":1}]
[null,null,null,null,null,null,null,null,null,null,null,null,null,null,null,null,null,null,null,null,"☐","資源向上(長寿命化)","☐","広域化・体制強化",null,null,"☐","啓発・普及","☐","研修・会議",null,null,null,null,null,null,{"$f":"IF(AND(ISBLANK(A421),ISBLANK(B421),ISBLANK(D421),ISBLANK(G421),ISBLANK(I421),ISBLANK(Q421),ISBLANK(S421),ISBLANK(AE421),ISBLANK(AF421),ISBLANK(AH421),ISBLANK(AI421)),1,\"\")","v":1}]
[null,null,null,null,null,null,null,null,null,null,null,null,null,null,null,null,null,null,null,null,"☐","資源保全プラン","☐","特例措置を適用した活動",null,null,"☐","設置等","☐","発注事務",null,null,null,null,null,null,{"$f":"IF(AND(ISBLANK(A421),ISBLANK(B421),ISBLANK(D421),ISBLANK(G421),ISBLANK(I421),ISBLANK(Q421),ISBLANK(S421),ISBLANK(AE421),ISBLANK(AF421),ISBLANK(AH421),ISBLANK(AI421)),1,\"\")","v":1}]
[null,null,"時",null,"分","～",null,"時",null,"分",{"$f":"+IF(AND(ISNUMBER(B424),ISNUMBER(G424),INT((G424-B424)+(I424-D424)/60)>=0),INT((G424-B424)+(I424-D424)/60),\"\")","v":""},"時間",{"$f":"IF(AND(ISNUMBER(D424),ISNUMBER(I424)),ABS(D424-I424),\"\")","v":""},"分",{"$f":"IF(Q424+S424=0,\"\",Q424+S424)","v":""},"人",null,"人",null,"人","☐","農地維持","☐","資源向上(共同)","☐","調査・計画","☐","実践活動","☐","事務処理等",null,null,{"$f":"IF(ISNUMBER(AF424),VLOOKUP(AF424,$AQ$548:$AR$597,2,0),\"\")","v":""},null,null,null,{"$f":"IF(AND(ISBLANK(A424),ISBLANK(B424),ISBLANK(D424),ISBLANK(G424),ISBLANK(I424),ISBLANK(Q424),ISBLANK(S424),ISBLANK(AE424),ISBLANK(AF424),ISBLANK(AH424),ISBLANK(AI424)),1,\"\")","v":1}]
[null,null,null,null,null,null,null,null,null,null,null,null,null,null,null,null,null,null,null,null,"☐","資源向上(長寿命化)","☐","広域化・体制強化",null,null,"☐","啓発・普及","☐","研修・会議",null,null,null,null,null,null,{"$f":"IF(AND(ISBLANK(A424),ISBLANK(B424),ISBLANK(D424),ISBLANK(G424),ISBLANK(I424),ISBLANK(Q424),ISBLANK(S424),ISBLANK(AE424),ISBLANK(AF424),ISBLANK(AH424),ISBLANK(AI424)),1,\"\")","v":1}]
[null,null,null,null,null,null,null,null,null,null,null,null,null,null,null,null,null,null,null,null,"☐","資源保全プラン","☐","特例措置を適用した活動",null,null,"☐","設置等","☐","発注事務",null,null,null,null,null,null,{"$f":"IF(AND(ISBLANK(A424),ISBLANK(B424),ISBLANK(D424),ISBLANK(G424),ISBLANK(I424),ISBLANK(Q424),ISBLANK(S424),ISBLANK(AE424),ISBLANK(AF424),ISBLANK(AH424),ISBLANK(AI424)),1,\"\")","v":1}]
[null,null,"時",null,"分","～",null,"時",null,"分",{"$f":"+IF(AND(ISNUMBER(B427),ISNUMBER(G427),INT((G427-B427)+(I427-D427)/60)>=0),INT((G427-B427)+(I427-D427)/60),\"\")","v":""},"時間",{"$f":"IF(AND(ISNUMBER(D427),ISNUMBER(I427)),ABS(D427-I427),\"\")","v":""},"分",{"$f":"IF(Q427+S427=0,\"\",Q427+S427)","v":""},"人",null,"人",null,"人","☐","農地維持","☐","資源向上(共同)","☐","調査・計画","☐","実践活動","☐","事務処理等",null,null,{"$f":"IF(ISNUMBER(AF427),VLOOKUP(AF427,$AQ$548:$AR$597,2,0),\"\")","v":""},null,null,null,{"$f":"IF(AND(ISBLANK(A427),ISBLANK(B427),ISBLANK(D427),ISBLANK(G427),ISBLANK(I427),ISBLANK(Q427),ISBLANK(S427),ISBLANK(AE427),ISBLANK(AF427),ISBLANK(AH427),ISBLANK(AI427)),1,\"\")","v":1}]
[null,null,null,null,null,null,null,null,null,null,null,null,null,null,null,null,null,null,null,null,"☐","資源向上(長寿命化)","☐","広域化・体制強化",null,null,"☐","啓発・普及","☐","研修・会議",null,null,null,null,null,null,{"$f":"IF(AND(ISBLANK(A427),ISBLANK(B427),ISBLANK(D427),ISBLANK(G427),ISBLANK(I427),ISBLANK(Q427),ISBLANK(S427),ISBLANK(AE427),ISBLANK(AF427),ISBLANK(AH427),ISBLANK(AI427)),1,\"\")","v":1}]
[null,null,null,null,null,null,null,null,null,null,null,null,null,null,null,null,null,null,null,null,"☐","資源保全プラン","☐","特例措置を適用した活動",null,null,"☐","設置等","☐","発注事務",null,null,null,null,null,null,{"$f":"IF(AND(ISBLANK(A427),ISBLANK(B427),ISBLANK(D427),ISBLANK(G427),ISBLANK(I427),ISBLANK(Q427),ISBLANK(S427),ISBLANK(AE427),ISBLANK(AF427),ISBLANK(AH427),ISBLANK(AI427)),1,\"\")","v":1}]
[null,null,"時",null,"分","～",null,"時",null,"分",{"$f":"+IF(AND(ISNUMBER(B430),ISNUMBER(G430),INT((G430-B430)+(I430-D430)/60)>=0),INT((G430-B430)+(I430-D430)/60),\"\")","v":""},"時間",{"$f":"IF(AND(ISNUMBER(D430),ISNUMBER(I430)),ABS(D430-I430),\"\")","v":""},"分",{"$f":"IF(Q430+S430=0,\"\",Q430+S430)","v":""},"人",null,"人",null,"人","☐","農地維持","☐","資源向上(共同)","☐","調査・計画","☐","実践活動","☐","事務処理等",null,null,{"$f":"IF(ISNUMBER(AF430),VLOOKUP(AF430,$AQ$548:$AR$597,2,0),\"\")","v":""},null,null,null,{"$f":"IF(AND(ISBLANK(A430),ISBLANK(B430),ISBLANK(D430),ISBLANK(G430),ISBLANK(I430),ISBLANK(Q430),ISBLANK(S430),ISBLANK(AE430),ISBLANK(AF430),ISBLANK(AH430),ISBLANK(AI430)),1,\"\")","v":1}]
[null,null,null,null,null,null,null,null,null,null,null,null,null,null,null,null,null,null,null,null,"☐","資源向上(長寿命化)","☐","広域化・体制強化",null,null,"☐","啓発・普及","☐","研修・会議",null,null,null,null,null,null,{"$f":"IF(AND(ISBLANK(A430),ISBLANK(B430),ISBLANK(D430),ISBLANK(G430),ISBLANK(I430),ISBLANK(Q430),ISBLANK(S430),ISBLANK(AE430),ISBLANK(AF430),ISBLANK(AH430),ISBLANK(AI430)),1,\"\")","v":1}]
[null,null,null,null,null,null,null,null,null,null,null,null,null,null,null,null,null,null,null,null,"☐","資源保全プラン","☐","特例措置を適用した活動",null,null,"☐","設置等","☐","発注事務",null,null,null,null,null,null,{"$f":"IF(AND(ISBLANK(A430),ISBLANK(B430),ISBLANK(D430),ISBLANK(G430),ISBLANK(I430),ISBLANK(Q430),ISBLANK(S430),ISBLANK(AE430),ISBLANK(AF430),ISBLANK(AH430),ISBLANK(AI430)),1,\"\")","v":1}]
[null,null,"時",null,"分","～",null,"時",null,"分",{"$f":"+IF(AND(ISNUMBER(B433),ISNUMBER(G433),INT((G433-B433)+(I433-D433)/60)>=0),INT((G433-B433)+(I433-D433)/60),\"\")","v":""},"時間",{"$f":"IF(AND(ISNUMBER(D433),ISNUMBER(I433)),ABS(D433-I433),\"\")","v":""},"分",{"$f":"IF(Q433+S433=0,\"\",Q433+S433)","v":""},"人",null,"人",null,"人","☐","農地維持","☐","資源向上(共同)","☐","調査・計画","☐","実践活動","☐","事務処理等",null,null,{"$f":"IF(ISNUMBER(AF433),VLOOKUP(AF433,$AQ$548:$AR$597,2,0),\"\")","v":""},null,null,null,{"$f":"IF(AND(ISBLANK(A433),ISBLANK(B433),ISBLANK(D433),ISBLANK(G433),ISBLANK(I433),ISBLANK(Q433),ISBLANK(S433),ISBLANK(AE433),ISBLANK(AF433),ISBLANK(AH433),ISBLANK(AI433)),1,\"\")","v":1}]
[null,null,null,null,null,null,null,null,null,null,null,null,null,null,null,null,null,null,null,null,"☐","資源向上(長寿命化)","☐","広域化・体制強化",null,null,"☐","啓発・普及","☐","研修・会議",null,null,null,null,null,null,{"$f":"IF(AND(ISBLANK(A433),ISBLANK(B433),ISBLANK(D433),ISBLANK(G433),ISBLANK(I433),ISBLANK(Q433),ISBLANK(S433),ISBLANK(AE433),ISBLANK(AF433),ISBLANK(AH433),ISBLANK(AI433)),1,\"\")","v":1}]
[null,null,null,null,null,null,null,null,null,null,null,null,null,null,null,null,null,null,null,null,"☐","資源保全プラン","☐","特例措置を適用した活動",null,null,"☐","設置等","☐","発注事務",null,null,null,null,null,null,{"$f":"IF(AND(ISBLANK(A433),ISBLANK(B433),ISBLANK(D433),ISBLANK(G433),ISBLANK(I433),ISBLANK(Q433),ISBLANK(S433),ISBLANK(AE433),ISBLANK(AF433),ISBLANK(AH433),ISBLANK(AI433)),1,\"\")","v":1}]
[null,null,"時",null,"分","～",null,"時",null,"分",{"$f":"+IF(AND(ISNUMBER(B436),ISNUMBER(G436),INT((G436-B436)+(I436-D436)/60)>=0),INT((G436-B436)+(I436-D436)/60),\"\")","v":""},"時間",{"$f":"IF(AND(ISNUMBER(D436),ISNUMBER(I436)),ABS(D436-I436),\"\")","v":""},"分",{"$f":"IF(Q436+S436=0,\"\",Q436+S436)","v":""},"人",null,"人",null,"人","☐","農地維持","☐","資源向上(共同)","☐","調査・計画","☐","実践活動","☐","事務処理等",null,null,{"$f":"IF(ISNUMBER(AF436),VLOOKUP(AF436,$AQ$548:$AR$597,2,0),\"\")","v":""},null,null,null,{"$f":"IF(AND(ISBLANK(A436),ISBLANK(B436),ISBLANK(D436),ISBLANK(G436),ISBLANK(I436),ISBLANK(Q436),ISBLANK(S436),ISBLANK(AE436),ISBLANK(AF436),ISBLANK(AH436),ISBLANK(AI436)),1,\"\")","v":1}]
[null,null,null,null,null,null,null,null,null,null,null,null,null,null,null,null,null,null,null,null,"☐","資源向上(長寿命化)","☐","広域化・体制強化",null,null,"☐","啓発・普及","☐","研修・会議",null,null,null,null,null,null,{"$f":"IF(AND(ISBLANK(A436),ISBLANK(B436),ISBLANK(D436),ISBLANK(G436),ISBLANK(I436),ISBLANK(Q436),ISBLANK(S436),ISBLANK(AE436),ISBLANK(AF436),ISBLANK(AH436),ISBLANK(AI436)),1,\"\")","v":1}]
[null,null,null,null,null,null,null,null,null,null,null,null,null,null,null,null,null,null,null,null,"☐","資源保全プラン","☐","特例措置を適用した活動",null,null,"☐","設置等","☐","発注事務",null,null,null,null,null,null,{"$f":"IF(AND(ISBLANK(A436),ISBLANK(B436),ISBLANK(D436),ISBLANK(G436),ISBLANK(I436),ISBLANK(Q436),ISBLANK(S436),ISBLANK(AE436),ISBLANK(AF436),ISBLANK(AH436),ISBLANK(AI436)),1,\"\")","v":1}]
[null,null,"時",null,"分","～",null,"時",null,"分",{"$f":"+IF(AND(ISNUMBER(B439),ISNUMBER(G439),INT((G439-B439)+(I439-D439)/60)>=0),INT((G439-B439)+(I439-D439)/60),\"\")","v":""},"時間",{"$f":"IF(AND(ISNUMBER(D439),ISNUMBER(I439)),ABS(D439-I439),\"\")","v":""},"分",{"$f":"IF(Q439+S439=0,\"\",Q439+S439)","v":""},"人",null,"人",null,"人","☐","農地維持","☐","資源向上(共同)","☐","調査・計画","☐","実践活動","☐","事務処理等",null,null,{"$f":"IF(ISNUMBER(AF439),VLOOKUP(AF439,$AQ$548:$AR$597,2,0),\"\")","v":""},null,null,null,{"$f":"IF(AND(ISBLANK(A439),ISBLANK(B439),ISBLANK(D439),ISBLANK(G439),ISBLANK(I439),ISBLANK(Q439),ISBLANK(S439),ISBLANK(AE439),ISBLANK(AF439),ISBLANK(AH439),ISBLANK(AI439)),1,\"\")","v":1}]
[null,null,null,null,null,null,null,null,null,null,null,null,null,null,null,null,null,null,null,null,"☐","資源向上(長寿命化)","☐","広域化・体制強化",null,null,"☐","啓発・普及","☐","研修・会議",null,null,null,null,null,null,{"$f":"IF(AND(ISBLANK(A439),ISBLANK(B439),ISBLANK(D439),ISBLANK(G439),ISBLANK(I439),ISBLANK(Q439),ISBLANK(S439),ISBLANK(AE439),ISBLANK(AF439),ISBLANK(AH439),ISBLANK(AI439)),1,\"\")","v":1}]
[null,null,null,null,null,null,null,null,null,null,null,null,null,null,null,null,null,null,null,null,"☐","資源保全プラン","☐","特例措置を適用した活動",null,null,"☐","設置等","☐","発注事務",null,null,null,null,null,null,{"$f":"IF(AND(ISBLANK(A439),ISBLANK(B439),ISBLANK(D439),ISBLANK(G439),ISBLANK(I439),ISBLANK(Q439),ISBLANK(S439),ISBLANK(AE439),ISBLANK(AF439),ISBLANK(AH439),ISBLANK(AI439)),1,\"\")","v":1}]
[null,null,"時",null,"分","～",null,"時",null,"分",{"$f":"+IF(AND(ISNUMBER(B442),ISNUMBER(G442),INT((G442-B442)+(I442-D442)/60)>=0),INT((G442-B442)+(I442-D442)/60),\"\")","v":""},"時間",{"$f":"IF(AND(ISNUMBER(D442),ISNUMBER(I442)),ABS(D442-I442),\"\")","v":""},"分",{"$f":"IF(Q442+S442=0,\"\",Q442+S442)","v":""},"人",null,"人",null,"人","☐","農地維持","☐","資源向上(共同)","☐","調査・計画","☐","実践活動","☐","事務処理等",null,null,{"$f":"IF(ISNUMBER(AF442),VLOOKUP(AF442,$AQ$548:$AR$597,2,0),\"\")","v":""},null,null,null,{"$f":"IF(AND(ISBLANK(A442),ISBLANK(B442),ISBLANK(D442),ISBLANK(G442),ISBLANK(I442),ISBLANK(Q442),ISBLANK(S442),ISBLANK(AE442),ISBLANK(AF442),ISBLANK(AH442),ISBLANK(AI442)),1,\"\")","v":1}]
[null,null,null,null,null,null,null,null,null,null,null,null,null,null,null,null,null,null,null,null,"☐","資源向上(長寿命化)","☐","広域化・体制強化",null,null,"☐","啓発・普及","☐","研修・会議",null,null,null,null,null,null,{"$f":"IF(AND(ISBLANK(A442),ISBLANK(B442),ISBLANK(D442),ISBLANK(G442),ISBLANK(I442),ISBLANK(Q442),ISBLANK(S442),ISBLANK(AE442),ISBLANK(AF442),ISBLANK(AH442),ISBLANK(AI442)),1,\"\")","v":1}]
[null,null,null,null,null,null,null,null,null,null,null,null,null,null,null,null,null,null,null,null,"☐","資源保全プラン","☐","特例措置を適用した活動",null,null,"☐","設置等","☐","発注事務",null,null,null,null,null,null,{"$f":"IF(AND(ISBLANK(A442),ISBLANK(B442),ISBLANK(D442),ISBLANK(G442),ISBLANK(I442),ISBLANK(Q442),ISBLANK(S442),ISBLANK(AE442),ISBLANK(AF442),ISBLANK(AH442),ISBLANK(AI442)),1,\"\")","v":1}]
[null,null,"時",null,"分","～",null,"時",null,"分",{"$f":"+IF(AND(ISNUMBER(B445),ISNUMBER(G445),INT((G445-B445)+(I445-D445)/60)>=0),INT((G445-B445)+(I445-D445)/60),\"\")","v":""},"時間",{"$f":"IF(AND(ISNUMBER(D445),ISNUMBER(I445)),ABS(D445-I445),\"\")","v":""},"分",{"$f":"IF(Q445+S445=0,\"\",Q445+S445)","v":""},"人",null,"人",null,"人","☐","農地維持","☐","資源向上(共同)","☐","調査・計画","☐","実践活動","☐","事務処理等",null,null,{"$f":"IF(ISNUMBER(AF445),VLOOKUP(AF445,$AQ$548:$AR$597,2,0),\"\")","v":""},null,null,null,{"$f":"IF(AND(ISBLANK(A445),ISBLANK(B445),ISBLANK(D445),ISBLANK(G445),ISBLANK(I445),ISBLANK(Q445),ISBLANK(S445),ISBLANK(AE445),ISBLANK(AF445),ISBLANK(AH445),ISBLANK(AI445)),1,\"\")","v":1}]
[null,null,null,null,null,null,null,null,null,null,null,null,null,null,null,null,null,null,null,null,"☐","資源向上(長寿命化)","☐","広域化・体制強化",null,null,"☐","啓発・普及","☐","研修・会議",null,null,null,null,null,null,{"$f":"IF(AND(ISBLANK(A445),ISBLANK(B445),ISBLANK(D445),ISBLANK(G445),ISBLANK(I445),ISBLANK(Q445),ISBLANK(S445),ISBLANK(AE445),ISBLANK(AF445),ISBLANK(AH445),ISBLANK(AI445)),1,\"\")","v":1}]
[null,null,null,null,null,null,null,null,null,null,null,null,null,null,null,null,null,null,null,null,"☐","資源保全プラン","☐","特例措置を適用した活動",null,null,"☐","設置等","☐","発注事務",null,null,null,null,null,null,{"$f":"IF(AND(ISBLANK(A445),ISBLANK(B445),ISBLANK(D445),ISBLANK(G445),ISBLANK(I445),ISBLANK(Q445),ISBLANK(S445),ISBLANK(AE445),ISBLANK(AF445),ISBLANK(AH445),ISBLANK(AI445)),1,\"\")","v":1}]
[null,null,"時",null,"分","～",null,"時",null,"分",{"$f":"+IF(AND(ISNUMBER(B448),ISNUMBER(G448),INT((G448-B448)+(I448-D448)/60)>=0),INT((G448-B448)+(I448-D448)/60),\"\")","v":""},"時間",{"$f":"IF(AND(ISNUMBER(D448),ISNUMBER(I448)),ABS(D448-I448),\"\")","v":""},"分",{"$f":"IF(Q448+S448=0,\"\",Q448+S448)","v":""},"人",null,"人",null,"人","☐","農地維持","☐","資源向上(共同)","☐","調査・計画","☐","実践活動","☐","事務処理等",null,null,{"$f":"IF(ISNUMBER(AF448),VLOOKUP(AF448,$AQ$548:$AR$597,2,0),\"\")","v":""},null,null,null,{"$f":"IF(AND(ISBLANK(A448),ISBLANK(B448),ISBLANK(D448),ISBLANK(G448),ISBLANK(I448),ISBLANK(Q448),ISBLANK(S448),ISBLANK(AE448),ISBLANK(AF448),ISBLANK(AH448),ISBLANK(AI448)),1,\"\")","v":1}]
[null,null,null,null,null,null,null,null,null,null,null,null,null,null,null,null,null,null,null,null,"☐","資源向上(長寿命化)","☐","広域化・体制強化",null,null,"☐","啓発・普及","☐","研修・会議",null,null,null,null,null,null,{"$f":"IF(AND(ISBLANK(A448),ISBLANK(B448),ISBLANK(D448),ISBLANK(G448),ISBLANK(I448),ISBLANK(Q448),ISBLANK(S448),ISBLANK(AE448),ISBLANK(AF448),ISBLANK(AH448),ISBLANK(AI448)),1,\"\")","v":1}]
[null,null,null,null,null,null,null,null,null,null,null,null,null,null,null,null,null,null,null,null,"☐","資源保全プラン","☐","特例措置を適用した活動",null,null,"☐","設置等","☐","発注事務",null,null,null,null,null,null,{"$f":"IF(AND(ISBLANK(A448),ISBLANK(B448),ISBLANK(D448),ISBLANK(G448),ISBLANK(I448),ISBLANK(Q448),ISBLANK(S448),ISBLANK(AE448),ISBLANK(AF448),ISBLANK(AH448),ISBLANK(AI448)),1,\"\")","v":1}]
[null,null,"時",null,"分","～",null,"時",null,"分",{"$f":"+IF(AND(ISNUMBER(B451),ISNUMBER(G451),INT((G451-B451)+(I451-D451)/60)>=0),INT((G451-B451)+(I451-D451)/60),\"\")","v":""},"時間",{"$f":"IF(AND(ISNUMBER(D451),ISNUMBER(I451)),ABS(D451-I451),\"\")","v":""},"分",{"$f":"IF(Q451+S451=0,\"\",Q451+S451)","v":""},"人",null,"人",null,"人","☐","農地維持","☐","資源向上(共同)","☐","調査・計画","☐","実践活動","☐","事務処理等",null,null,{"$f":"IF(ISNUMBER(AF451),VLOOKUP(AF451,$AQ$548:$AR$597,2,0),\"\")","v":""},null,null,null,{"$f":"IF(AND(ISBLANK(A451),ISBLANK(B451),ISBLANK(D451),ISBLANK(G451),ISBLANK(I451),ISBLANK(Q451),ISBLANK(S451),ISBLANK(AE451),ISBLANK(AF451),ISBLANK(AH451),ISBLANK(AI451)),1,\"\")","v":1}]
[null,null,null,null,null,null,null,null,null,null,null,null,null,null,null,null,null,null,null,null,"☐","資源向上(長寿命化)","☐","広域化・体制強化",null,null,"☐","啓発・普及","☐","研修・会議",null,null,null,null,null,null,{"$f":"IF(AND(ISBLANK(A451),ISBLANK(B451),ISBLANK(D451),ISBLANK(G451),ISBLANK(I451),ISBLANK(Q451),ISBLANK(S451),ISBLANK(AE451),ISBLANK(AF451),ISBLANK(AH451),ISBLANK(AI451)),1,\"\")","v":1}]
[null,null,null,null,null,null,null,null,null,null,null,null,null,null,null,null,null,null,null,null,"☐","資源保全プラン","☐","特例措置を適用した活動",null,null,"☐","設置等","☐","発注事務",null,null,null,null,null,null,{"$f":"IF(AND(ISBLANK(A451),ISBLANK(B451),ISBLANK(D451),ISBLANK(G451),ISBLANK(I451),ISBLANK(Q451),ISBLANK(S451),ISBLANK(AE451),ISBLANK(AF451),ISBLANK(AH451),ISBLANK(AI451)),1,\"\")","v":1}]
[null,null,"時",null,"分","～",null,"時",null,"分",{"$f":"+IF(AND(ISNUMBER(B454),ISNUMBER(G454),INT((G454-B454)+(I454-D454)/60)>=0),INT((G454-B454)+(I454-D454)/60),\"\")","v":""},"時間",{"$f":"IF(AND(ISNUMBER(D454),ISNUMBER(I454)),ABS(D454-I454),\"\")","v":""},"分",{"$f":"IF(Q454+S454=0,\"\",Q454+S454)","v":""},"人",null,"人",null,"人","☐","農地維持","☐","資源向上(共同)","☐","調査・計画","☐","実践活動","☐","事務処理等",null,null,{"$f":"IF(ISNUMBER(AF454),VLOOKUP(AF454,$AQ$548:$AR$597,2,0),\"\")","v":""},null,null,null,{"$f":"IF(AND(ISBLANK(A454),ISBLANK(B454),ISBLANK(D454),ISBLANK(G454),ISBLANK(I454),ISBLANK(Q454),ISBLANK(S454),ISBLANK(AE454),ISBLANK(AF454),ISBLANK(AH454),ISBLANK(AI454)),1,\"\")","v":1}]
[null,null,null,null,null,null,null,null,null,null,null,null,null,null,null,null,null,null,null,null,"☐","資源向上(長寿命化)","☐","広域化・体制強化",null,null,"☐","啓発・普及","☐","研修・会議",null,null,null,null,null,null,{"$f":"IF(AND(ISBLANK(A454),ISBLANK(B454),ISBLANK(D454),ISBLANK(G454),ISBLANK(I454),ISBLANK(Q454),ISBLANK(S454),ISBLANK(AE454),ISBLANK(AF454),ISBLANK(AH454),ISBLANK(AI454)),1,\"\")","v":1}]
[null,null,null,null,null,null,null,null,null,null,null,null,null,null,null,null,null,null,null,null,"☐","資源保全プラン","☐","特例措置を適用した活動",null,null,"☐","設置等","☐","発注事務",null,null,null,null,null,null,{"$f":"IF(AND(ISBLANK(A454),ISBLANK(B454),ISBLANK(D454),ISBLANK(G454),ISBLANK(I454),ISBLANK(Q454),ISBLANK(S454),ISBLANK(AE454),ISBLANK(AF454),ISBLANK(AH454),ISBLANK(AI454)),1,\"\")","v":1}]
[null,null,"時",null,"分","～",null,"時",null,"分",{"$f":"+IF(AND(ISNUMBER(B457),ISNUMBER(G457),INT((G457-B457)+(I457-D457)/60)>=0),INT((G457-B457)+(I457-D457)/60),\"\")","v":""},"時間",{"$f":"IF(AND(ISNUMBER(D457),ISNUMBER(I457)),ABS(D457-I457),\"\")","v":""},"分",{"$f":"IF(Q457+S457=0,\"\",Q457+S457)","v":""},"人",null,"人",null,"人","☐","農地維持","☐","資源向上(共同)","☐","調査・計画","☐","実践活動","☐","事務処理等",null,null,{"$f":"IF(ISNUMBER(AF457),VLOOKUP(AF457,$AQ$548:$AR$597,2,0),\"\")","v":""},null,null,null,{"$f":"IF(AND(ISBLANK(A457),ISBLANK(B457),ISBLANK(D457),ISBLANK(G457),ISBLANK(I457),ISBLANK(Q457),ISBLANK(S457),ISBLANK(AE457),ISBLANK(AF457),ISBLANK(AH457),ISBLANK(AI457)),1,\"\")","v":1}]
[null,null,null,null,null,null,null,null,null,null,null,null,null,null,null,null,null,null,null,null,"☐","資源向上(長寿命化)","☐","広域化・体制強化",null,null,"☐","啓発・普及","☐","研修・会議",null,null,null,null,null,null,{"$f":"IF(AND(ISBLANK(A457),ISBLANK(B457),ISBLANK(D457),ISBLANK(G457),ISBLANK(I457),ISBLANK(Q457),ISBLANK(S457),ISBLANK(AE457),ISBLANK(AF457),ISBLANK(AH457),ISBLANK(AI457)),1,\"\")","v":1}]
[null,null,null,null,null,null,null,null,null,null,null,null,null,null,null,null,null,null,null,null,"☐","資源保全プラン","☐","特例措置を適用した活動",null,null,"☐","設置等","☐","発注事務",null,null,null,null,null,null,{"$f":"IF(AND(ISBLANK(A457),ISBLANK(B457),ISBLANK(D457),ISBLANK(G457),ISBLANK(I457),ISBLANK(Q457),ISBLANK(S457),ISBLANK(AE457),ISBLANK(AF457),ISBLANK(AH457),ISBLANK(AI457)),1,\"\")","v":1}]
[null,null,"時",null,"分","～",null,"時",null,"分",{"$f":"+IF(AND(ISNUMBER(B460),ISNUMBER(G460),INT((G460-B460)+(I460-D460)/60)>=0),INT((G460-B460)+(I460-D460)/60),\"\")","v":""},"時間",{"$f":"IF(AND(ISNUMBER(D460),ISNUMBER(I460)),ABS(D460-I460),\"\")","v":""},"分",{"$f":"IF(Q460+S460=0,\"\",Q460+S460)","v":""},"人",null,"人",null,"人","☐","農地維持","☐","資源向上(共同)","☐","調査・計画","☐","実践活動","☐","事務処理等",null,null,{"$f":"IF(ISNUMBER(AF460),VLOOKUP(AF460,$AQ$548:$AR$597,2,0),\"\")","v":""},null,null,null,{"$f":"IF(AND(ISBLANK(A460),ISBLANK(B460),ISBLANK(D460),ISBLANK(G460),ISBLANK(I460),ISBLANK(Q460),ISBLANK(S460),ISBLANK(AE460),ISBLANK(AF460),ISBLANK(AH460),ISBLANK(AI460)),1,\"\")","v":1}]
[null,null,null,null,null,null,null,null,null,null,null,null,null,null,null,null,null,null,null,null,"☐","資源向上(長寿命化)","☐","広域化・体制強化",null,null,"☐","啓発・普及","☐","研修・会議",null,null,null,null,null,null,{"$f":"IF(AND(ISBLANK(A460),ISBLANK(B460),ISBLANK(D460),ISBLANK(G460),ISBLANK(I460),ISBLANK(Q460),ISBLANK(S460),ISBLANK(AE460),ISBLANK(AF460),ISBLANK(AH460),ISBLANK(AI460)),1,\"\")","v":1}]
[null,null,null,null,null,null,null,null,null,null,null,null,null,null,null,null,null,null,null,null,"☐","資源保全プラン","☐","特例措置を適用した活動",null,null,"☐","設置等","☐","発注事務",null,null,null,null,null,null,{"$f":"IF(AND(ISBLANK(A460),ISBLANK(B460),ISBLANK(D460),ISBLANK(G460),ISBLANK(I460),ISBLANK(Q460),ISBLANK(S460),ISBLANK(AE460),ISBLANK(AF460),ISBLANK(AH460),ISBLANK(AI460)),1,\"\")","v":1}]
[null,null,"時",null,"分","～",null,"時",null,"分",{"$f":"+IF(AND(ISNUMBER(B463),ISNUMBER(G463),INT((G463-B463)+(I463-D463)/60)>=0),INT((G463-B463)+(I463-D463)/60),\"\")","v":""},"時間",{"$f":"IF(AND(ISNUMBER(D463),ISNUMBER(I463)),ABS(D463-I463),\"\")","v":""},"分",{"$f":"IF(Q463+S463=0,\"\",Q463+S463)","v":""},"人",null,"人",null,"人","☐","農地維持","☐","資源向上(共同)","☐","調査・計画","☐","実践活動","☐","事務処理等",null,null,{"$f":"IF(ISNUMBER(AF463),VLOOKUP(AF463,$AQ$548:$AR$597,2,0),\"\")","v":""},null,null,null,{"$f":"IF(AND(ISBLANK(A463),ISBLANK(B463),ISBLANK(D463),ISBLANK(G463),ISBLANK(I463),ISBLANK(Q463),ISBLANK(S463),ISBLANK(AE463),ISBLANK(AF463),ISBLANK(AH463),ISBLANK(AI463)),1,\"\")","v":1}]
[null,null,null,null,null,null,null,null,null,null,null,null,null,null,null,null,null,null,null,null,"☐","資源向上(長寿命化)","☐","広域化・体制強化",null,null,"☐","啓発・普及","☐","研修・会議",null,null,null,null,null,null,{"$f":"IF(AND(ISBLANK(A463),ISBLANK(B463),ISBLANK(D463),ISBLANK(G463),ISBLANK(I463),ISBLANK(Q463),ISBLANK(S463),ISBLANK(AE463),ISBLANK(AF463),ISBLANK(AH463),ISBLANK(AI463)),1,\"\")","v":1}]
[null,null,null,null,null,null,null,null,null,null,null,null,null,null,null,null,null,null,null,null,"☐","資源保全プラン","☐","特例措置を適用した活動",null,null,"☐","設置等","☐","発注事務",null,null,null,null,null,null,{"$f":"IF(AND(ISBLANK(A463),ISBLANK(B463),ISBLANK(D463),ISBLANK(G463),ISBLANK(I463),ISBLANK(Q463),ISBLANK(S463),ISBLANK(AE463),ISBLANK(AF463),ISBLANK(AH463),ISBLANK(AI463)),1,\"\")","v":1}]
[null,null,"時",null,"分","～",null,"時",null,"分",{"$f":"+IF(AND(ISNUMBER(B466),ISNUMBER(G466),INT((G466-B466)+(I466-D466)/60)>=0),INT((G466-B466)+(I466-D466)/60),\"\")","v":""},"時間",{"$f":"IF(AND(ISNUMBER(D466),ISNUMBER(I466)),ABS(D466-I466),\"\")","v":""},"分",{"$f":"IF(Q466+S466=0,\"\",Q466+S466)","v":""},"人",null,"人",null,"人","☐","農地維持","☐","資源向上(共同)","☐","調査・計画","☐","実践活動","☐","事務処理等",null,null,{"$f":"IF(ISNUMBER(AF466),VLOOKUP(AF466,$AQ$548:$AR$597,2,0),\"\")","v":""},null,null,null,{"$f":"IF(AND(ISBLANK(A466),ISBLANK(B466),ISBLANK(D466),ISBLANK(G466),ISBLANK(I466),ISBLANK(Q466),ISBLANK(S466),ISBLANK(AE466),ISBLANK(AF466),ISBLANK(AH466),ISBLANK(AI466)),1,\"\")","v":1}]
[null,null,null,null,null,null,null,null,null,null,null,null,null,null,null,null,null,null,null,null,"☐","資源向上(長寿命化)","☐","広域化・体制強化",null,null,"☐","啓発・普及","☐","研修・会議",null,null,null,null,null,null,{"$f":"IF(AND(ISBLANK(A466),ISBLANK(B466),ISBLANK(D466),ISBLANK(G466),ISBLANK(I466),ISBLANK(Q466),ISBLANK(S466),ISBLANK(AE466),ISBLANK(AF466),ISBLANK(AH466),ISBLANK(AI466)),1,\"\")","v":1}]
[null,null,null,null,null,null,null,null,null,null,null,null,null,null,null,null,null,null,null,null,"☐","資源保全プラン","☐","特例措置を適用した活動",null,null,"☐","設置等","☐","発注事務",null,null,null,null,null,null,{"$f":"IF(AND(ISBLANK(A466),ISBLANK(B466),ISBLANK(D466),ISBLANK(G466),ISBLANK(I466),ISBLANK(Q466),ISBLANK(S466),ISBLANK(AE466),ISBLANK(AF466),ISBLANK(AH466),ISBLANK(AI466)),1,\"\")","v":1}]
[null,null,"時",null,"分","～",null,"時",null,"分",{"$f":"+IF(AND(ISNUMBER(B469),ISNUMBER(G469),INT((G469-B469)+(I469-D469)/60)>=0),INT((G469-B469)+(I469-D469)/60),\"\")","v":""},"時間",{"$f":"IF(AND(ISNUMBER(D469),ISNUMBER(I469)),ABS(D469-I469),\"\")","v":""},"分",{"$f":"IF(Q469+S469=0,\"\",Q469+S469)","v":""},"人",null,"人",null,"人","☐","農地維持","☐","資源向上(共同)","☐","調査・計画","☐","実践活動","☐","事務処理等",null,null,{"$f":"IF(ISNUMBER(AF469),VLOOKUP(AF469,$AQ$548:$AR$597,2,0),\"\")","v":""},null,null,null,{"$f":"IF(AND(ISBLANK(A469),ISBLANK(B469),ISBLANK(D469),ISBLANK(G469),ISBLANK(I469),ISBLANK(Q469),ISBLANK(S469),ISBLANK(AE469),ISBLANK(AF469),ISBLANK(AH469),ISBLANK(AI469)),1,\"\")","v":1}]
[null,null,null,null,null,null,null,null,null,null,null,null,null,null,null,null,null,null,null,null,"☐","資源向上(長寿命化)","☐","広域化・体制強化",null,null,"☐","啓発・普及","☐","研修・会議",null,null,null,null,null,null,{"$f":"IF(AND(ISBLANK(A469),ISBLANK(B469),ISBLANK(D469),ISBLANK(G469),ISBLANK(I469),ISBLANK(Q469),ISBLANK(S469),ISBLANK(AE469),ISBLANK(AF469),ISBLANK(AH469),ISBLANK(AI469)),1,\"\")","v":1}]
[null,null,null,null,null,null,null,null,null,null,null,null,null,null,null,null,null,null,null,null,"☐","資源保全プラン","☐","特例措置を適用した活動",null,null,"☐","設置等","☐","発注事務",null,null,null,null,null,null,{"$f":"IF(AND(ISBLANK(A469),ISBLANK(B469),ISBLANK(D469),ISBLANK(G469),ISBLANK(I469),ISBLANK(Q469),ISBLANK(S469),ISBLANK(AE469),ISBLANK(AF469),ISBLANK(AH469),ISBLANK(AI469)),1,\"\")","v":1}]
[null,null,"時",null,"分","～",null,"時",null,"分",{"$f":"+IF(AND(ISNUMBER(B472),ISNUMBER(G472),INT((G472-B472)+(I472-D472)/60)>=0),INT((G472-B472)+(I472-D472)/60),\"\")","v":""},"時間",{"$f":"IF(AND(ISNUMBER(D472),ISNUMBER(I472)),ABS(D472-I472),\"\")","v":""},"分",{"$f":"IF(Q472+S472=0,\"\",Q472+S472)","v":""},"人",null,"人",null,"人","☐","農地維持","☐","資源向上(共同)","☐","調査・計画","☐","実践活動","☐","事務処理等",null,null,{"$f":"IF(ISNUMBER(AF472),VLOOKUP(AF472,$AQ$548:$AR$597,2,0),\"\")","v":""},null,null,null,{"$f":"IF(AND(ISBLANK(A472),ISBLANK(B472),ISBLANK(D472),ISBLANK(G472),ISBLANK(I472),ISBLANK(Q472),ISBLANK(S472),ISBLANK(AE472),ISBLANK(AF472),ISBLANK(AH472),ISBLANK(AI472)),1,\"\")","v":1}]
[null,null,null,null,null,null,null,null,null,null,null,null,null,null,null,null,null,null,null,null,"☐","資源向上(長寿命化)","☐","広域化・体制強化",null,null,"☐","啓発・普及","☐","研修・会議",null,null,null,null,null,null,{"$f":"IF(AND(ISBLANK(A472),ISBLANK(B472),ISBLANK(D472),ISBLANK(G472),ISBLANK(I472),ISBLANK(Q472),ISBLANK(S472),ISBLANK(AE472),ISBLANK(AF472),ISBLANK(AH472),ISBLANK(AI472)),1,\"\")","v":1}]
[null,null,null,null,null,null,null,null,null,null,null,null,null,null,null,null,null,null,null,null,"☐","資源保全プラン","☐","特例措置を適用した活動",null,null,"☐","設置等","☐","発注事務",null,null,null,null,null,null,{"$f":"IF(AND(ISBLANK(A472),ISBLANK(B472),ISBLANK(D472),ISBLANK(G472),ISBLANK(I472),ISBLANK(Q472),ISBLANK(S472),ISBLANK(AE472),ISBLANK(AF472),ISBLANK(AH472),ISBLANK(AI472)),1,\"\")","v":1}]
[null,null,"時",null,"分","～",null,"時",null,"分",{"$f":"+IF(AND(ISNUMBER(B475),ISNUMBER(G475),INT((G475-B475)+(I475-D475)/60)>=0),INT((G475-B475)+(I475-D475)/60),\"\")","v":""},"時間",{"$f":"IF(AND(ISNUMBER(D475),ISNUMBER(I475)),ABS(D475-I475),\"\")","v":""},"分",{"$f":"IF(Q475+S475=0,\"\",Q475+S475)","v":""},"人",null,"人",null,"人","☐","農地維持","☐","資源向上(共同)","☐","調査・計画","☐","実践活動","☐","事務処理等",null,null,{"$f":"IF(ISNUMBER(AF475),VLOOKUP(AF475,$AQ$548:$AR$597,2,0),\"\")","v":""},null,null,null,{"$f":"IF(AND(ISBLANK(A475),ISBLANK(B475),ISBLANK(D475),ISBLANK(G475),ISBLANK(I475),ISBLANK(Q475),ISBLANK(S475),ISBLANK(AE475),ISBLANK(AF475),ISBLANK(AH475),ISBLANK(AI475)),1,\"\")","v":1}]
[null,null,null,null,null,null,null,null,null,null,null,null,null,null,null,null,null,null,null,null,"☐","資源向上(長寿命化)","☐","広域化・体制強化",null,null,"☐","啓発・普及","☐","研修・会議",null,null,null,null,null,null,{"$f":"IF(AND(ISBLANK(A475),ISBLANK(B475),ISBLANK(D475),ISBLANK(G475),ISBLANK(I475),ISBLANK(Q475),ISBLANK(S475),ISBLANK(AE475),ISBLANK(AF475),ISBLANK(AH475),ISBLANK(AI475)),1,\"\")","v":1}]
[null,null,null,null,null,null,null,null,null,null,null,null,null,null,null,null,null,null,null,null,"☐","資源保全プラン","☐","特例措置を適用した活動",null,null,"☐","設置等","☐","発注事務",null,null,null,null,null,null,{"$f":"IF(AND(ISBLANK(A475),ISBLANK(B475),ISBLANK(D475),ISBLANK(G475),ISBLANK(I475),ISBLANK(Q475),ISBLANK(S475),ISBLANK(AE475),ISBLANK(AF475),ISBLANK(AH475),ISBLANK(AI475)),1,\"\")","v":1}]
[null,null,"時",null,"分","～",null,"時",null,"分",{"$f":"+IF(AND(ISNUMBER(B478),ISNUMBER(G478),INT((G478-B478)+(I478-D478)/60)>=0),INT((G478-B478)+(I478-D478)/60),\"\")","v":""},"時間",{"$f":"IF(AND(ISNUMBER(D478),ISNUMBER(I478)),ABS(D478-I478),\"\")","v":""},"分",{"$f":"IF(Q478+S478=0,\"\",Q478+S478)","v":""},"人",null,"人",null,"人","☐","農地維持","☐","資源向上(共同)","☐","調査・計画","☐","実践活動","☐","事務処理等",null,null,{"$f":"IF(ISNUMBER(AF478),VLOOKUP(AF478,$AQ$548:$AR$597,2,0),\"\")","v":""},null,null,null,{"$f":"IF(AND(ISBLANK(A478),ISBLANK(B478),ISBLANK(D478),ISBLANK(G478),ISBLANK(I478),ISBLANK(Q478),ISBLANK(S478),ISBLANK(AE478),ISBLANK(AF478),ISBLANK(AH478),ISBLANK(AI478)),1,\"\")","v":1}]
[null,null,null,null,null,null,null,null,null,null,null,null,null,null,null,null,null,null,null,null,"☐","資源向上(長寿命化)","☐","広域化・体制強化",null,null,"☐","啓発・普及","☐","研修・会議",null,null,null,null,null,null,{"$f":"IF(AND(ISBLANK(A478),ISBLANK(B478),ISBLANK(D478),ISBLANK(G478),ISBLANK(I478),ISBLANK(Q478),ISBLANK(S478),ISBLANK(AE478),ISBLANK(AF478),ISBLANK(AH478),ISBLANK(AI478)),1,\"\")","v":1}]
[null,null,null,null,null,null,null,null,null,null,null,null,null,null,null,null,null,null,null,null,"☐","資源保全プラン","☐","特例措置を適用した活動",null,null,"☐","設置等","☐","発注事務",null,null,null,null,null,null,{"$f":"IF(AND(ISBLANK(A478),ISBLANK(B478),ISBLANK(D478),ISBLANK(G478),ISBLANK(I478),ISBLANK(Q478),ISBLANK(S478),ISBLANK(AE478),ISBLANK(AF478),ISBLANK(AH478),ISBLANK(AI478)),1,\"\")","v":1}]
[null,null,"時",null,"分","～",null,"時",null,"分",{"$f":"+IF(AND(ISNUMBER(B481),ISNUMBER(G481),INT((G481-B481)+(I481-D481)/60)>=0),INT((G481-B481)+(I481-D481)/60),\"\")","v":""},"時間",{"$f":"IF(AND(ISNUMBER(D481),ISNUMBER(I481)),ABS(D481-I481),\"\")","v":""},"分",{"$f":"IF(Q481+S481=0,\"\",Q481+S481)","v":""},"人",null,"人",null,"人","☐","農地維持","☐","資源向上(共同)","☐","調査・計画","☐","実践活動","☐","事務処理等",null,null,{"$f":"IF(ISNUMBER(AF481),VLOOKUP(AF481,$AQ$548:$AR$597,2,0),\"\")","v":""},null,null,null,{"$f":"IF(AND(ISBLANK(A481),ISBLANK(B481),ISBLANK(D481),ISBLANK(G481),ISBLANK(I481),ISBLANK(Q481),ISBLANK(S481),ISBLANK(AE481),ISBLANK(AF481),ISBLANK(AH481),ISBLANK(AI481)),1,\"\")","v":1}]
[null,null,null,null,null,null,null,null,null,null,null,null,null,null,null,null,null,null,null,null,"☐","資源向上(長寿命化)","☐","広域化・体制強化",null,null,"☐","啓発・普及","☐","研修・会議",null,null,null,null,null,null,{"$f":"IF(AND(ISBLANK(A481),ISBLANK(B481),ISBLANK(D481),ISBLANK(G481),ISBLANK(I481),ISBLANK(Q481),ISBLANK(S481),ISBLANK(AE481),ISBLANK(AF481),ISBLANK(AH481),ISBLANK(AI481)),1,\"\")","v":1}]
[null,null,null,null,null,null,null,null,null,null,null,null,null,null,null,null,null,null,null,null,"☐","資源保全プラン","☐","特例措置を適用した活動",null,null,"☐","設置等","☐","発注事務",null,null,null,null,null,null,{"$f":"IF(AND(ISBLANK(A481),ISBLANK(B481),ISBLANK(D481),ISBLANK(G481),ISBLANK(I481),ISBLANK(Q481),ISBLANK(S481),ISBLANK(AE481),ISBLANK(AF481),ISBLANK(AH481),ISBLANK(AI481)),1,\"\")","v":1}]
[null,null,"時",null,"分","～",null,"時",null,"分",{"$f":"+IF(AND(ISNUMBER(B484),ISNUMBER(G484),INT((G484-B484)+(I484-D484)/60)>=0),INT((G484-B484)+(I484-D484)/60),\"\")","v":""},"時間",{"$f":"IF(AND(ISNUMBER(D484),ISNUMBER(I484)),ABS(D484-I484),\"\")","v":""},"分",{"$f":"IF(Q484+S484=0,\"\",Q484+S484)","v":""},"人",null,"人",null,"人","☐","農地維持","☐","資源向上(共同)","☐","調査・計画","☐","実践活動","☐","事務処理等",null,null,{"$f":"IF(ISNUMBER(AF484),VLOOKUP(AF484,$AQ$548:$AR$597,2,0),\"\")","v":""},null,null,null,{"$f":"IF(AND(ISBLANK(A484),ISBLANK(B484),ISBLANK(D484),ISBLANK(G484),ISBLANK(I484),ISBLANK(Q484),ISBLANK(S484),ISBLANK(AE484),ISBLANK(AF484),ISBLANK(AH484),ISBLANK(AI484)),1,\"\")","v":1}]
[null,null,null,null,null,null,null,null,null,null,null,null,null,null,null,null,null,null,null,null,"☐","資源向上(長寿命化)","☐","広域化・体制強化",null,null,"☐","啓発・普及","☐","研修・会議",null,null,null,null,null,null,{"$f":"IF(AND(ISBLANK(A484),ISBLANK(B484),ISBLANK(D484),ISBLANK(G484),ISBLANK(I484),ISBLANK(Q484),ISBLANK(S484),ISBLANK(AE484),ISBLANK(AF484),ISBLANK(AH484),ISBLANK(AI484)),1,\"\")","v":1}]
[null,null,null,null,null,null,null,null,null,null,null,null,null,null,null,null,null,null,null,null,"☐","資源保全プラン","☐","特例措置を適用した活動",null,null,"☐","設置等","☐","発注事務",null,null,null,null,null,null,{"$f":"IF(AND(ISBLANK(A484),ISBLANK(B484),ISBLANK(D484),ISBLANK(G484),ISBLANK(I484),ISBLANK(Q484),ISBLANK(S484),ISBLANK(AE484),ISBLANK(AF484),ISBLANK(AH484),ISBLANK(AI484)),1,\"\")","v":1}]
[null,null,"時",null,"分","～",null,"時",null,"分",{"$f":"+IF(AND(ISNUMBER(B487),ISNUMBER(G487),INT((G487-B487)+(I487-D487)/60)>=0),INT((G487-B487)+(I487-D487)/60),\"\")","v":""},"時間",{"$f":"IF(AND(ISNUMBER(D487),ISNUMBER(I487)),ABS(D487-I487),\"\")","v":""},"分",{"$f":"IF(Q487+S487=0,\"\",Q487+S487)","v":""},"人",null,"人",null,"人","☐","農地維持","☐","資源向上(共同)","☐","調査・計画","☐","実践活動","☐","事務処理等",null,null,{"$f":"IF(ISNUMBER(AF487),VLOOKUP(AF487,$AQ$548:$AR$597,2,0),\"\")","v":""},null,null,null,{"$f":"IF(AND(ISBLANK(A487),ISBLANK(B487),ISBLANK(D487),ISBLANK(G487),ISBLANK(I487),ISBLANK(Q487),ISBLANK(S487),ISBLANK(AE487),ISBLANK(AF487),ISBLANK(AH487),ISBLANK(AI487)),1,\"\")","v":1}]
[null,null,null,null,null,null,null,null,null,null,null,null,null,null,null,null,null,null,null,null,"☐","資源向上(長寿命化)","☐","広域化・体制強化",null,null,"☐","啓発・普及","☐","研修・会議",null,null,null,null,null,null,{"$f":"IF(AND(ISBLANK(A487),ISBLANK(B487),ISBLANK(D487),ISBLANK(G487),ISBLANK(I487),ISBLANK(Q487),ISBLANK(S487),ISBLANK(AE487),ISBLANK(AF487),ISBLANK(AH487),ISBLANK(AI487)),1,\"\")","v":1}]
[null,null,null,null,null,null,null,null,null,null,null,null,null,null,null,null,null,null,null,null,"☐","資源保全プラン","☐","特例措置を適用した活動",null,null,"☐","設置等","☐","発注事務",null,null,null,null,null,null,{"$f":"IF(AND(ISBLANK(A487),ISBLANK(B487),ISBLANK(D487),ISBLANK(G487),ISBLANK(I487),ISBLANK(Q487),ISBLANK(S487),ISBLANK(AE487),ISBLANK(AF487),ISBLANK(AH487),ISBLANK(AI487)),1,\"\")","v":1}]
[null,null,"時",null,"分","～",null,"時",null,"分",{"$f":"+IF(AND(ISNUMBER(B490),ISNUMBER(G490),INT((G490-B490)+(I490-D490)/60)>=0),INT((G490-B490)+(I490-D490)/60),\"\")","v":""},"時間",{"$f":"IF(AND(ISNUMBER(D490),ISNUMBER(I490)),ABS(D490-I490),\"\")","v":""},"分",{"$f":"IF(Q490+S490=0,\"\",Q490+S490)","v":""},"人",null,"人",null,"人","☐","農地維持","☐","資源向上(共同)","☐","調査・計画","☐","実践活動","☐","事務処理等",null,null,{"$f":"IF(ISNUMBER(AF490),VLOOKUP(AF490,$AQ$548:$AR$597,2,0),\"\")","v":""},null,null,null,{"$f":"IF(AND(ISBLANK(A490),ISBLANK(B490),ISBLANK(D490),ISBLANK(G490),ISBLANK(I490),ISBLANK(Q490),ISBLANK(S490),ISBLANK(AE490),ISBLANK(AF490),ISBLANK(AH490),ISBLANK(AI490)),1,\"\")","v":1}]
[null,null,null,null,null,null,null,null,null,null,null,null,null,null,null,null,null,null,null,null,"☐","資源向上(長寿命化)","☐","広域化・体制強化",null,null,"☐","啓発・普及","☐","研修・会議",null,null,null,null,null,null,{"$f":"IF(AND(ISBLANK(A490),ISBLANK(B490),ISBLANK(D490),ISBLANK(G490),ISBLANK(I490),ISBLANK(Q490),ISBLANK(S490),ISBLANK(AE490),ISBLANK(AF490),ISBLANK(AH490),ISBLANK(AI490)),1,\"\")","v":1}]
[null,null,null,null,null,null,null,null,null,null,null,null,null,null,null,null,null,null,null,null,"☐","資源保全プラン","☐","特例措置を適用した活動",null,null,"☐","設置等","☐","発注事務",null,null,null,null,null,null,{"$f":"IF(AND(ISBLANK(A490),ISBLANK(B490),ISBLANK(D490),ISBLANK(G490),ISBLANK(I490),ISBLANK(Q490),ISBLANK(S490),ISBLANK(AE490),ISBLANK(AF490),ISBLANK(AH490),ISBLANK(AI490)),1,\"\")","v":1}]
[null,null,"時",null,"分","～",null,"時",null,"分",{"$f":"+IF(AND(ISNUMBER(B493),ISNUMBER(G493),INT((G493-B493)+(I493-D493)/60)>=0),INT((G493-B493)+(I493-D493)/60),\"\")","v":""},"時間",{"$f":"IF(AND(ISNUMBER(D493),ISNUMBER(I493)),ABS(D493-I493),\"\")","v":""},"分",{"$f":"IF(Q493+S493=0,\"\",Q493+S493)","v":""},"人",null,"人",null,"人","☐","農地維持","☐","資源向上(共同)","☐","調査・計画","☐","実践活動","☐","事務処理等",null,null,{"$f":"IF(ISNUMBER(AF493),VLOOKUP(AF493,$AQ$548:$AR$597,2,0),\"\")","v":""},null,null,null,{"$f":"IF(AND(ISBLANK(A493),ISBLANK(B493),ISBLANK(D493),ISBLANK(G493),ISBLANK(I493),ISBLANK(Q493),ISBLANK(S493),ISBLANK(AE493),ISBLANK(AF493),ISBLANK(AH493),ISBLANK(AI493)),1,\"\")","v":1}]
[null,null,null,null,null,null,null,null,null,null,null,null,null,null,null,null,null,null,null,null,"☐","資源向上(長寿命化)","☐","広域化・体制強化",null,null,"☐","啓発・普及","☐","研修・会議",null,null,null,null,null,null,{"$f":"IF(AND(ISBLANK(A493),ISBLANK(B493),ISBLANK(D493),ISBLANK(G493),ISBLANK(I493),ISBLANK(Q493),ISBLANK(S493),ISBLANK(AE493),ISBLANK(AF493),ISBLANK(AH493),ISBLANK(AI493)),1,\"\")","v":1}]
[null,null,null,null,null,null,null,null,null,null,null,null,null,null,null,null,null,null,null,null,"☐","資源保全プラン","☐","特例措置を適用した活動",null,null,"☐","設置等","☐","発注事務",null,null,null,null,null,null,{"$f":"IF(AND(ISBLANK(A493),ISBLANK(B493),ISBLANK(D493),ISBLANK(G493),ISBLANK(I493),ISBLANK(Q493),ISBLANK(S493),ISBLANK(AE493),ISBLANK(AF493),ISBLANK(AH493),ISBLANK(AI493)),1,\"\")","v":1}]
[null,null,"時",null,"分","～",null,"時",null,"分",{"$f":"+IF(AND(ISNUMBER(B496),ISNUMBER(G496),INT((G496-B496)+(I496-D496)/60)>=0),INT((G496-B496)+(I496-D496)/60),\"\")","v":""},"時間",{"$f":"IF(AND(ISNUMBER(D496),ISNUMBER(I496)),ABS(D496-I496),\"\")","v":""},"分",{"$f":"IF(Q496+S496=0,\"\",Q496+S496)","v":""},"人",null,"人",null,"人","☐","農地維持","☐","資源向上(共同)","☐","調査・計画","☐","実践活動","☐","事務処理等",null,null,{"$f":"IF(ISNUMBER(AF496),VLOOKUP(AF496,$AQ$548:$AR$597,2,0),\"\")","v":""},null,null,null,{"$f":"IF(AND(ISBLANK(A496),ISBLANK(B496),ISBLANK(D496),ISBLANK(G496),ISBLANK(I496),ISBLANK(Q496),ISBLANK(S496),ISBLANK(AE496),ISBLANK(AF496),ISBLANK(AH496),ISBLANK(AI496)),1,\"\")","v":1}]
[null,null,null,null,null,null,null,null,null,null,null,null,null,null,null,null,null,null,null,null,"☐","資源向上(長寿命化)","☐","広域化・体制強化",null,null,"☐","啓発・普及","☐","研修・会議",null,null,null,null,null,null,{"$f":"IF(AND(ISBLANK(A496),ISBLANK(B496),ISBLANK(D496),ISBLANK(G496),ISBLANK(I496),ISBLANK(Q496),ISBLANK(S496),ISBLANK(AE496),ISBLANK(AF496),ISBLANK(AH496),ISBLANK(AI496)),1,\"\")","v":1}]
[null,null,null,null,null,null,null,null,null,null,null,null,null,null,null,null,null,null,null,null,"☐","資源保全プラン","☐","特例措置を適用した活動",null,null,"☐","設置等","☐","発注事務",null,null,null,null,null,null,{"$f":"IF(AND(ISBLANK(A496),ISBLANK(B496),ISBLANK(D496),ISBLANK(G496),ISBLANK(I496),ISBLANK(Q496),ISBLANK(S496),ISBLANK(AE496),ISBLANK(AF496),ISBLANK(AH496),ISBLANK(AI496)),1,\"\")","v":1}]
[null,null,"時",null,"分","～",null,"時",null,"分",{"$f":"+IF(AND(ISNUMBER(B499),ISNUMBER(G499),INT((G499-B499)+(I499-D499)/60)>=0),INT((G499-B499)+(I499-D499)/60),\"\")","v":""},"時間",{"$f":"IF(AND(ISNUMBER(D499),ISNUMBER(I499)),ABS(D499-I499),\"\")","v":""},"分",{"$f":"IF(Q499+S499=0,\"\",Q499+S499)","v":""},"人",null,"人",null,"人","☐","農地維持","☐","資源向上(共同)","☐","調査・計画","☐","実践活動","☐","事務処理等",null,null,{"$f":"IF(ISNUMBER(AF499),VLOOKUP(AF499,$AQ$548:$AR$597,2,0),\"\")","v":""},null,null,null,{"$f":"IF(AND(ISBLANK(A499),ISBLANK(B499),ISBLANK(D499),ISBLANK(G499),ISBLANK(I499),ISBLANK(Q499),ISBLANK(S499),ISBLANK(AE499),ISBLANK(AF499),ISBLANK(AH499),ISBLANK(AI499)),1,\"\")","v":1}]
[null,null,null,null,null,null,null,null,null,null,null,null,null,null,null,null,null,null,null,null,"☐","資源向上(長寿命化)","☐","広域化・体制強化",null,null,"☐","啓発・普及","☐","研修・会議",null,null,null,null,null,null,{"$f":"IF(AND(ISBLANK(A499),ISBLANK(B499),ISBLANK(D499),ISBLANK(G499),ISBLANK(I499),ISBLANK(Q499),ISBLANK(S499),ISBLANK(AE499),ISBLANK(AF499),ISBLANK(AH499),ISBLANK(AI499)),1,\"\")","v":1}]
[null,null,null,null,null,null,null,null,null,null,null,null,null,null,null,null,null,null,null,null,"☐","資源保全プラン","☐","特例措置を適用した活動",null,null,"☐","設置等","☐","発注事務",null,null,null,null,null,null,{"$f":"IF(AND(ISBLANK(A499),ISBLANK(B499),ISBLANK(D499),ISBLANK(G499),ISBLANK(I499),ISBLANK(Q499),ISBLANK(S499),ISBLANK(AE499),ISBLANK(AF499),ISBLANK(AH499),ISBLANK(AI499)),1,\"\")","v":1}]
[null,null,"時",null,"分","～",null,"時",null,"分",{"$f":"+IF(AND(ISNUMBER(B502),ISNUMBER(G502),INT((G502-B502)+(I502-D502)/60)>=0),INT((G502-B502)+(I502-D502)/60),\"\")","v":""},"時間",{"$f":"IF(AND(ISNUMBER(D502),ISNUMBER(I502)),ABS(D502-I502),\"\")","v":""},"分",{"$f":"IF(Q502+S502=0,\"\",Q502+S502)","v":""},"人",null,"人",null,"人","☐","農地維持","☐","資源向上(共同)","☐","調査・計画","☐","実践活動","☐","事務処理等",null,null,{"$f":"IF(ISNUMBER(AF502),VLOOKUP(AF502,$AQ$548:$AR$597,2,0),\"\")","v":""},null,null,null,{"$f":"IF(AND(ISBLANK(A502),ISBLANK(B502),ISBLANK(D502),ISBLANK(G502),ISBLANK(I502),ISBLANK(Q502),ISBLANK(S502),ISBLANK(AE502),ISBLANK(AF502),ISBLANK(AH502),ISBLANK(AI502)),1,\"\")","v":1}]
[null,null,null,null,null,null,null,null,null,null,null,null,null,null,null,null,null,null,null,null,"☐","資源向上(長寿命化)","☐","広域化・体制強化",null,null,"☐","啓発・普及","☐","研修・会議",null,null,null,null,null,null,{"$f":"IF(AND(ISBLANK(A502),ISBLANK(B502),ISBLANK(D502),ISBLANK(G502),ISBLANK(I502),ISBLANK(Q502),ISBLANK(S502),ISBLANK(AE502),ISBLANK(AF502),ISBLANK(AH502),ISBLANK(AI502)),1,\"\")","v":1}]
[null,null,null,null,null,null,null,null,null,null,null,null,null,null,null,null,null,null,null,null,"☐","資源保全プラン","☐","特例措置を適用した活動",null,null,"☐","設置等","☐","発注事務",null,null,null,null,null,null,{"$f":"IF(AND(ISBLANK(A502),ISBLANK(B502),ISBLANK(D502),ISBLANK(G502),ISBLANK(I502),ISBLANK(Q502),ISBLANK(S502),ISBLANK(AE502),ISBLANK(AF502),ISBLANK(AH502),ISBLANK(AI502)),1,\"\")","v":1}]
[null,null,"時",null,"分","～",null,"時",null,"分",{"$f":"+IF(AND(ISNUMBER(B505),ISNUMBER(G505),INT((G505-B505)+(I505-D505)/60)>=0),INT((G505-B505)+(I505-D505)/60),\"\")","v":""},"時間",{"$f":"IF(AND(ISNUMBER(D505),ISNUMBER(I505)),ABS(D505-I505),\"\")","v":""},"分",{"$f":"IF(Q505+S505=0,\"\",Q505+S505)","v":""},"人",null,"人",null,"人","☐","農地維持","☐","資源向上(共同)","☐","調査・計画","☐","実践活動","☐","事務処理等",null,null,{"$f":"IF(ISNUMBER(AF505),VLOOKUP(AF505,$AQ$548:$AR$597,2,0),\"\")","v":""},null,null,null,{"$f":"IF(AND(ISBLANK(A505),ISBLANK(B505),ISBLANK(D505),ISBLANK(G505),ISBLANK(I505),ISBLANK(Q505),ISBLANK(S505),ISBLANK(AE505),ISBLANK(AF505),ISBLANK(AH505),ISBLANK(AI505)),1,\"\")","v":1}]
[null,null,null,null,null,null,null,null,null,null,null,null,null,null,null,null,null,null,null,null,"☐","資源向上(長寿命化)","☐","広域化・体制強化",null,null,"☐","啓発・普及","☐","研修・会議",null,null,null,null,null,null,{"$f":"IF(AND(ISBLANK(A505),ISBLANK(B505),ISBLANK(D505),ISBLANK(G505),ISBLANK(I505),ISBLANK(Q505),ISBLANK(S505),ISBLANK(AE505),ISBLANK(AF505),ISBLANK(AH505),ISBLANK(AI505)),1,\"\")","v":1}]
[null,null,null,null,null,null,null,null,null,null,null,null,null,null,null,null,null,null,null,null,"☐","資源保全プラン","☐","特例措置を適用した活動",null,null,"☐","設置等","☐","発注事務",null,null,null,null,null,null,{"$f":"IF(AND(ISBLANK(A505),ISBLANK(B505),ISBLANK(D505),ISBLANK(G505),ISBLANK(I505),ISBLANK(Q505),ISBLANK(S505),ISBLANK(AE505),ISBLANK(AF505),ISBLANK(AH505),ISBLANK(AI505)),1,\"\")","v":1}]
[null,null,"時",null,"分","～",null,"時",null,"分",{"$f":"+IF(AND(ISNUMBER(B508),ISNUMBER(G508),INT((G508-B508)+(I508-D508)/60)>=0),INT((G508-B508)+(I508-D508)/60),\"\")","v":""},"時間",{"$f":"IF(AND(ISNUMBER(D508),ISNUMBER(I508)),ABS(D508-I508),\"\")","v":""},"分",{"$f":"IF(Q508+S508=0,\"\",Q508+S508)","v":""},"人",null,"人",null,"人","☐","農地維持","☐","資源向上(共同)","☐","調査・計画","☐","実践活動","☐","事務処理等",null,null,{"$f":"IF(ISNUMBER(AF508),VLOOKUP(AF508,$AQ$548:$AR$597,2,0),\"\")","v":""},null,null,null,{"$f":"IF(AND(ISBLANK(A508),ISBLANK(B508),ISBLANK(D508),ISBLANK(G508),ISBLANK(I508),ISBLANK(Q508),ISBLANK(S508),ISBLANK(AE508),ISBLANK(AF508),ISBLANK(AH508),ISBLANK(AI508)),1,\"\")","v":1}]
[null,null,null,null,null,null,null,null,null,null,null,null,null,null,null,null,null,null,null,null,"☐","資源向上(長寿命化)","☐","広域化・体制強化",null,null,"☐","啓発・普及","☐","研修・会議",null,null,null,null,null,null,{"$f":"IF(AND(ISBLANK(A508),ISBLANK(B508),ISBLANK(D508),ISBLANK(G508),ISBLANK(I508),ISBLANK(Q508),ISBLANK(S508),ISBLANK(AE508),ISBLANK(AF508),ISBLANK(AH508),ISBLANK(AI508)),1,\"\")","v":1}]
[null,null,null,null,null,null,null,null,null,null,null,null,null,null,null,null,null,null,null,null,"☐","資源保全プラン","☐","特例措置を適用した活動",null,null,"☐","設置等","☐","発注事務",null,null,null,null,null,null,{"$f":"IF(AND(ISBLANK(A508),ISBLANK(B508),ISBLANK(D508),ISBLANK(G508),ISBLANK(I508),ISBLANK(Q508),ISBLANK(S508),ISBLANK(AE508),ISBLANK(AF508),ISBLANK(AH508),ISBLANK(AI508)),1,\"\")","v":1}]
[null,null,"時",null,"分","～",null,"時",null,"分",{"$f":"+IF(AND(ISNUMBER(B511),ISNUMBER(G511),INT((G511-B511)+(I511-D511)/60)>=0),INT((G511-B511)+(I511-D511)/60),\"\")","v":""},"時間",{"$f":"IF(AND(ISNUMBER(D511),ISNUMBER(I511)),ABS(D511-I511),\"\")","v":""},"分",{"$f":"IF(Q511+S511=0,\"\",Q511+S511)","v":""},"人",null,"人",null,"人","☐","農地維持","☐","資源向上(共同)","☐","調査・計画","☐","実践活動","☐","事務処理等",null,null,{"$f":"IF(ISNUMBER(AF511),VLOOKUP(AF511,$AQ$548:$AR$597,2,0),\"\")","v":""},null,null,null,{"$f":"IF(AND(ISBLANK(A511),ISBLANK(B511),ISBLANK(D511),ISBLANK(G511),ISBLANK(I511),ISBLANK(Q511),ISBLANK(S511),ISBLANK(AE511),ISBLANK(AF511),ISBLANK(AH511),ISBLANK(AI511)),1,\"\")","v":1}]
[null,null,null,null,null,null,null,null,null,null,null,null,null,null,null,null,null,null,null,null,"☐","資源向上(長寿命化)","☐","広域化・体制強化",null,null,"☐","啓発・普及","☐","研修・会議",null,null,null,null,null,null,{"$f":"IF(AND(ISBLANK(A511),ISBLANK(B511),ISBLANK(D511),ISBLANK(G511),ISBLANK(I511),ISBLANK(Q511),ISBLANK(S511),ISBLANK(AE511),ISBLANK(AF511),ISBLANK(AH511),ISBLANK(AI511)),1,\"\")","v":1}]
[null,null,null,null,null,null,null,null,null,null,null,null,null,null,null,null,null,null,null,null,"☐","資源保全プラン","☐","特例措置を適用した活動",null,null,"☐","設置等","☐","発注事務",null,null,null,null,null,null,{"$f":"IF(AND(ISBLANK(A511),ISBLANK(B511),ISBLANK(D511),ISBLANK(G511),ISBLANK(I511),ISBLANK(Q511),ISBLANK(S511),ISBLANK(AE511),ISBLANK(AF511),ISBLANK(AH511),ISBLANK(AI511)),1,\"\")","v":1}]
[null,null,"時",null,"分","～",null,"時",null,"分",{"$f":"+IF(AND(ISNUMBER(B514),ISNUMBER(G514),INT((G514-B514)+(I514-D514)/60)>=0),INT((G514-B514)+(I514-D514)/60),\"\")","v":""},"時間",{"$f":"IF(AND(ISNUMBER(D514),ISNUMBER(I514)),ABS(D514-I514),\"\")","v":""},"分",{"$f":"IF(Q514+S514=0,\"\",Q514+S514)","v":""},"人",null,"人",null,"人","☐","農地維持","☐","資源向上(共同)","☐","調査・計画","☐","実践活動","☐","事務処理等",null,null,{"$f":"IF(ISNUMBER(AF514),VLOOKUP(AF514,$AQ$548:$AR$597,2,0),\"\")","v":""},null,null,null,{"$f":"IF(AND(ISBLANK(A514),ISBLANK(B514),ISBLANK(D514),ISBLANK(G514),ISBLANK(I514),ISBLANK(Q514),ISBLANK(S514),ISBLANK(AE514),ISBLANK(AF514),ISBLANK(AH514),ISBLANK(AI514)),1,\"\")","v":1}]
[null,null,null,null,null,null,null,null,null,null,null,null,null,null,null,null,null,null,null,null,"☐","資源向上(長寿命化)","☐","広域化・体制強化",null,null,"☐","啓発・普及","☐","研修・会議",null,null,null,null,null,null,{"$f":"IF(AND(ISBLANK(A514),ISBLANK(B514),ISBLANK(D514),ISBLANK(G514),ISBLANK(I514),ISBLANK(Q514),ISBLANK(S514),ISBLANK(AE514),ISBLANK(AF514),ISBLANK(AH514),ISBLANK(AI514)),1,\"\")","v":1}]
[null,null,null,null,null,null,null,null,null,null,null,null,null,null,null,null,null,null,null,null,"☐","資源保全プラン","☐","特例措置を適用した活動",null,null,"☐","設置等","☐","発注事務",null,null,null,null,null,null,{"$f":"IF(AND(ISBLANK(A514),ISBLANK(B514),ISBLANK(D514),ISBLANK(G514),ISBLANK(I514),ISBLANK(Q514),ISBLANK(S514),ISBLANK(AE514),ISBLANK(AF514),ISBLANK(AH514),ISBLANK(AI514)),1,\"\")","v":1}]
[null,null,"時",null,"分","～",null,"時",null,"分",{"$f":"+IF(AND(ISNUMBER(B517),ISNUMBER(G517),INT((G517-B517)+(I517-D517)/60)>=0),INT((G517-B517)+(I517-D517)/60),\"\")","v":""},"時間",{"$f":"IF(AND(ISNUMBER(D517),ISNUMBER(I517)),ABS(D517-I517),\"\")","v":""},"分",{"$f":"IF(Q517+S517=0,\"\",Q517+S517)","v":""},"人",null,"人",null,"人","☐","農地維持","☐","資源向上(共同)","☐","調査・計画","☐","実践活動","☐","事務処理等",null,null,{"$f":"IF(ISNUMBER(AF517),VLOOKUP(AF517,$AQ$548:$AR$597,2,0),\"\")","v":""},null,null,null,{"$f":"IF(AND(ISBLANK(A517),ISBLANK(B517),ISBLANK(D517),ISBLANK(G517),ISBLANK(I517),ISBLANK(Q517),ISBLANK(S517),ISBLANK(AE517),ISBLANK(AF517),ISBLANK(AH517),ISBLANK(AI517)),1,\"\")","v":1}]
[null,null,null,null,null,null,null,null,null,null,null,null,null,null,null,null,null,null,null,null,"☐","資源向上(長寿命化)","☐","広域化・体制強化",null,null,"☐","啓発・普及","☐","研修・会議",null,null,null,null,null,null,{"$f":"IF(AND(ISBLANK(A517),ISBLANK(B517),ISBLANK(D517),ISBLANK(G517),ISBLANK(I517),ISBLANK(Q517),ISBLANK(S517),ISBLANK(AE517),ISBLANK(AF517),ISBLANK(AH517),ISBLANK(AI517)),1,\"\")","v":1}]
[null,null,null,null,null,null,null,null,null,null,null,null,null,null,null,null,null,null,null,null,"☐","資源保全プラン","☐","特例措置を適用した活動",null,null,"☐","設置等","☐","発注事務",null,null,null,null,null,null,{"$f":"IF(AND(ISBLANK(A517),ISBLANK(B517),ISBLANK(D517),ISBLANK(G517),ISBLANK(I517),ISBLANK(Q517),ISBLANK(S517),ISBLANK(AE517),ISBLANK(AF517),ISBLANK(AH517),ISBLANK(AI517)),1,\"\")","v":1}]
[null,null,"時",null,"分","～",null,"時",null,"分",{"$f":"+IF(AND(ISNUMBER(B520),ISNUMBER(G520),INT((G520-B520)+(I520-D520)/60)>=0),INT((G520-B520)+(I520-D520)/60),\"\")","v":""},"時間",{"$f":"IF(AND(ISNUMBER(D520),ISNUMBER(I520)),ABS(D520-I520),\"\")","v":""},"分",{"$f":"IF(Q520+S520=0,\"\",Q520+S520)","v":""},"人",null,"人",null,"人","☐","農地維持","☐","資源向上(共同)","☐","調査・計画","☐","実践活動","☐","事務処理等",null,null,{"$f":"IF(ISNUMBER(AF520),VLOOKUP(AF520,$AQ$548:$AR$597,2,0),\"\")","v":""},null,null,null,{"$f":"IF(AND(ISBLANK(A520),ISBLANK(B520),ISBLANK(D520),ISBLANK(G520),ISBLANK(I520),ISBLANK(Q520),ISBLANK(S520),ISBLANK(AE520),ISBLANK(AF520),ISBLANK(AH520),ISBLANK(AI520)),1,\"\")","v":1}]
[null,null,null,null,null,null,null,null,null,null,null,null,null,null,null,null,null,null,null,null,"☐","資源向上(長寿命化)","☐","広域化・体制強化",null,null,"☐","啓発・普及","☐","研修・会議",null,null,null,null,null,null,{"$f":"IF(AND(ISBLANK(A520),ISBLANK(B520),ISBLANK(D520),ISBLANK(G520),ISBLANK(I520),ISBLANK(Q520),ISBLANK(S520),ISBLANK(AE520),ISBLANK(AF520),ISBLANK(AH520),ISBLANK(AI520)),1,\"\")","v":1}]
[null,null,null,null,null,null,null,null,null,null,null,null,null,null,null,null,null,null,null,null,"☐","資源保全プラン","☐","特例措置を適用した活動",null,null,"☐","設置等","☐","発注事務",null,null,null,null,null,null,{"$f":"IF(AND(ISBLANK(A520),ISBLANK(B520),ISBLANK(D520),ISBLANK(G520),ISBLANK(I520),ISBLANK(Q520),ISBLANK(S520),ISBLANK(AE520),ISBLANK(AF520),ISBLANK(AH520),ISBLANK(AI520)),1,\"\")","v":1}]
[]
[]
[]
[]
[]
[]
[]
[]
[]
[]
[]
[]
[]
[]
[]
[]
[]
[]
[]
[]
[]
[]
[]
[]
[null,null,null,null,null,null,null,null,null,null,null,null,null,null,null,null,null,null,null,null,null,null,null,null,null,null,null,null,null,null,null,null,null,null,null,null,null,null,null,null,null,"施設","番号","対象活動","取組内容（例）"]
[null,null,null,null,null,null,null,null,null,null,null,null,null,null,null,null,null,null,null,null,null,null,null,null,null,null,null,null,null,null,null,null,null,null,null,null,null,null,null,null,null,"－",0,"－","＜記入例＞"]
[null,null,null,null,null,null,null,null,null,null,null,null,null,null,null,null,null,null,null,null,null,null,null,null,null,null,null,null,null,null,null,null,null,null,null,null,null,null,null,null,null,"水路",1,"水路の破損部分の補修","現地調査"]
[null,null,null,null,null,null,null,null,null,null,null,null,null,null,null,null,null,null,null,null,null,null,null,null,null,null,null,null,null,null,null,null,null,null,null,null,null,null,null,null,null,"農道",2,"水路の老朽化部分の補修","入札事務"]
[null,null,null,null,null,null,null,null,null,null,null,null,null,null,null,null,null,null,null,null,null,null,null,null,null,null,null,null,null,null,null,null,null,null,null,null,null,null,null,null,null,"ため池",3,"水路側壁の嵩上げ","契約事務"]
[null,null,null,null,null,null,null,null,null,null,null,null,null,null,null,null,null,null,null,null,null,null,null,null,null,null,null,null,null,null,null,null,null,null,null,null,null,null,null,null,null,"農地に係る\n施設",4,"Ｕ字フリューム等既設水路の再布設","現場監督"]
[null,null,null,null,null,null,null,null,null,null,null,null,null,null,null,null,null,null,null,null,null,null,null,null,null,null,null,null,null,null,null,null,null,null,null,null,null,null,null,null,null,null,5,"素掘り水路からコンクリート水路への更新","竣工検査"]
[null,null,null,null,null,null,null,null,null,null,null,null,null,null,null,null,null,null,null,null,null,null,null,null,null,null,null,null,null,null,null,null,null,null,null,null,null,null,null,null,null,null,6,"水路の更新（一路線全体）","支払事務"]
[null,null,null,null,null,null,null,null,null,null,null,null,null,null,null,null,null,null,null,null,null,null,null,null,null,null,null,null,null,null,null,null,null,null,null,null,null,null,null,null,null,null,7,"集水枡、分水枡の補修","会議資料作成"]
[null,null,null,null,null,null,null,null,null,null,null,null,null,null,null,null,null,null,null,null,null,null,null,null,null,null,null,null,null,null,null,null,null,null,null,null,null,null,null,null,null,null,8,"ゲートの補修","提出書類作成"]
[null,null,null,null,null,null,null,null,null,null,null,null,null,null,null,null,null,null,null,null,null,null,null,null,null,null,null,null,null,null,null,null,null,null,null,null,null,null,null,null,null,null,9,"ポンプの補修","会計事務"]
[null,null,null,null,null,null,null,null,null,null,null,null,null,null,null,null,null,null,null,null,null,null,null,null,null,null,null,null,null,null,null,null,null,null,null,null,null,null,null,null,null,null,10,"安全施設の補修","その他（任意に入力）"]
[null,null,null,null,null,null,null,null,null,null,null,null,null,null,null,null,null,null,null,null,null,null,null,null,null,null,null,null,null,null,null,null,null,null,null,null,null,null,null,null,null,null,11,"取水施設の補修"]
[null,null,null,null,null,null,null,null,null,null,null,null,null,null,null,null,null,null,null,null,null,null,null,null,null,null,null,null,null,null,null,null,null,null,null,null,null,null,null,null,null,null,12,"除塵施設の補修"]
[null,null,null,null,null,null,null,null,null,null,null,null,null,null,null,null,null,null,null,null,null,null,null,null,null,null,null,null,null,null,null,null,null,null,null,null,null,null,null,null,null,null,13,"水路法面の補修"]
[null,null,null,null,null,null,null,null,null,null,null,null,null,null,null,null,null,null,null,null,null,null,null,null,null,null,null,null,null,null,null,null,null,null,null,null,null,null,null,null,null,null,14,"空気弁、バルブの補修"]
[null,null,null,null,null,null,null,null,null,null,null,null,null,null,null,null,null,null,null,null,null,null,null,null,null,null,null,null,null,null,null,null,null,null,null,null,null,null,null,null,null,null,15,"制御施設等の補修"]
[null,null,null,null,null,null,null,null,null,null,null,null,null,null,null,null,null,null,null,null,null,null,null,null,null,null,null,null,null,null,null,null,null,null,null,null,null,null,null,null,null,null,16,"ゲートの更新"]
[null,null,null,null,null,null,null,null,null,null,null,null,null,null,null,null,null,null,null,null,null,null,null,null,null,null,null,null,null,null,null,null,null,null,null,null,null,null,null,null,null,null,17,"ポンプの更新"]
[null,null,null,null,null,null,null,null,null,null,null,null,null,null,null,null,null,null,null,null,null,null,null,null,null,null,null,null,null,null,null,null,null,null,null,null,null,null,null,null,null,null,18,"安全施設の設置"]
[null,null,null,null,null,null,null,null,null,null,null,null,null,null,null,null,null,null,null,null,null,null,null,null,null,null,null,null,null,null,null,null,null,null,null,null,null,null,null,null,null,null,19,"取水施設の更新"]
[null,null,null,null,null,null,null,null,null,null,null,null,null,null,null,null,null,null,null,null,null,null,null,null,null,null,null,null,null,null,null,null,null,null,null,null,null,null,null,null,null,null,20,"除塵施設の更新"]
[null,null,null,null,null,null,null,null,null,null,null,null,null,null,null,null,null,null,null,null,null,null,null,null,null,null,null,null,null,null,null,null,null,null,null,null,null,null,null,null,null,null,21,"集水枡、分水枡の更新"]
[null,null,null,null,null,null,null,null,null,null,null,null,null,null,null,null,null,null,null,null,null,null,null,null,null,null,null,null,null,null,null,null,null,null,null,null,null,null,null,null,null,null,22,"甲蓋の設置"]
[null,null,null,null,null,null,null,null,null,null,null,null,null,null,null,null,null,null,null,null,null,null,null,null,null,null,null,null,null,null,null,null,null,null,null,null,null,null,null,null,null,null,23,"空気弁、バルブの更新"]
[null,null,null,null,null,null,null,null,null,null,null,null,null,null,null,null,null,null,null,null,null,null,null,null,null,null,null,null,null,null,null,null,null,null,null,null,null,null,null,null,null,null,24,"制御施設等の更新"]
[null,null,null,null,null,null,null,null,null,null,null,null,null,null,null,null,null,null,null,null,null,null,null,null,null,null,null,null,null,null,null,null,null,null,null,null,null,null,null,null,null,null,25,"農道路肩、農道法面の補修"]
[null,null,null,null,null,null,null,null,null,null,null,null,null,null,null,null,null,null,null,null,null,null,null,null,null,null,null,null,null,null,null,null,null,null,null,null,null,null,null,null,null,null,26,"舗装の打換え（一部）"]
[null,null,null,null,null,null,null,null,null,null,null,null,null,null,null,null,null,null,null,null,null,null,null,null,null,null,null,null,null,null,null,null,null,null,null,null,null,null,null,null,null,null,27,"未舗装農道を舗装（砂利）"]
[null,null,null,null,null,null,null,null,null,null,null,null,null,null,null,null,null,null,null,null,null,null,null,null,null,null,null,null,null,null,null,null,null,null,null,null,null,null,null,null,null,null,28,"未舗装農道を舗装（コンクリート）"]
[null,null,null,null,null,null,null,null,null,null,null,null,null,null,null,null,null,null,null,null,null,null,null,null,null,null,null,null,null,null,null,null,null,null,null,null,null,null,null,null,null,null,29,"未舗装農道を舗装（アスファルト）"]
[null,null,null,null,null,null,null,null,null,null,null,null,null,null,null,null,null,null,null,null,null,null,null,null,null,null,null,null,null,null,null,null,null,null,null,null,null,null,null,null,null,null,30,"農道側溝の補修"]
[null,null,null,null,null,null,null,null,null,null,null,null,null,null,null,null,null,null,null,null,null,null,null,null,null,null,null,null,null,null,null,null,null,null,null,null,null,null,null,null,null,null,31,"側溝蓋の設置"]
[null,null,null,null,null,null,null,null,null,null,null,null,null,null,null,null,null,null,null,null,null,null,null,null,null,null,null,null,null,null,null,null,null,null,null,null,null,null,null,null,null,null,32,"土側溝をコンクリート側溝に更新"]
[null,null,null,null,null,null,null,null,null,null,null,null,null,null,null,null,null,null,null,null,null,null,null,null,null,null,null,null,null,null,null,null,null,null,null,null,null,null,null,null,null,null,33,"洗掘箇所の補修"]
[null,null,null,null,null,null,null,null,null,null,null,null,null,null,null,null,null,null,null,null,null,null,null,null,null,null,null,null,null,null,null,null,null,null,null,null,null,null,null,null,null,null,34,"漏水箇所の補修"]
[null,null,null,null,null,null,null,null,null,null,null,null,null,null,null,null,null,null,null,null,null,null,null,null,null,null,null,null,null,null,null,null,null,null,null,null,null,null,null,null,null,null,35,"取水施設の補修"]
[null,null,null,null,null,null,null,null,null,null,null,null,null,null,null,null,null,null,null,null,null,null,null,null,null,null,null,null,null,null,null,null,null,null,null,null,null,null,null,null,null,null,36,"洪水吐の補修"]
[null,null,null,null,null,null,null,null,null,null,null,null,null,null,null,null,null,null,null,null,null,null,null,null,null,null,null,null,null,null,null,null,null,null,null,null,null,null,null,null,null,null,37,"安全施設の補修"]
[null,null,null,null,null,null,null,null,null,null,null,null,null,null,null,null,null,null,null,null,null,null,null,null,null,null,null,null,null,null,null,null,null,null,null,null,null,null,null,null,null,null,38,"ゲート、バルブの更新"]
[null,null,null,null,null,null,null,null,null,null,null,null,null,null,null,null,null,null,null,null,null,null,null,null,null,null,null,null,null,null,null,null,null,null,null,null,null,null,null,null,null,null,39,"安全施設の設置"]
[null,null,null,null,null,null,null,null,null,null,null,null,null,null,null,null,null,null,null,null,null,null,null,null,null,null,null,null,null,null,null,null,null,null,null,null,null,null,null,null,null,null,40,"波除護岸の更新"]
[null,null,null,null,null,null,null,null,null,null,null,null,null,null,null,null,null,null,null,null,null,null,null,null,null,null,null,null,null,null,null,null,null,null,null,null,null,null,null,null,null,null,41,"洪水吐の更新"]
[null,null,null,null,null,null,null,null,null,null,null,null,null,null,null,null,null,null,null,null,null,null,null,null,null,null,null,null,null,null,null,null,null,null,null,null,null,null,null,null,null,null,42,"暗渠排水・排水口の補修"]
[null,null,null,null,null,null,null,null,null,null,null,null,null,null,null,null,null,null,null,null,null,null,null,null,null,null,null,null,null,null,null,null,null,null,null,null,null,null,null,null,null,null,43,"給排水施設の補修"]
[null,null,null,null,null,null,null,null,null,null,null,null,null,null,null,null,null,null,null,null,null,null,null,null,null,null,null,null,null,null,null,null,null,null,null,null,null,null,null,null,null,null,44,"固定式散水施設の補修"]
[null,null,null,null,null,null,null,null,null,null,null,null,null,null,null,null,null,null,null,null,null,null,null,null,null,null,null,null,null,null,null,null,null,null,null,null,null,null,null,null,null,null,45,"鳥獣害防護柵の補修"]
[null,null,null,null,null,null,null,null,null,null,null,null,null,null,null,null,null,null,null,null,null,null,null,null,null,null,null,null,null,null,null,null,null,null,null,null,null,null,null,null,null,null,46,"暗渠排水・排水口の更新"]
[null,null,null,null,null,null,null,null,null,null,null,null,null,null,null,null,null,null,null,null,null,null,null,null,null,null,null,null,null,null,null,null,null,null,null,null,null,null,null,null,null,null,47,"給排水施設の更新"]
[null,null,null,null,null,null,null,null,null,null,null,null,null,null,null,null,null,null,null,null,null,null,null,null,null,null,null,null,null,null,null,null,null,null,null,null,null,null,null,null,null,null,48,"固定式散水施設の更新"]
[null,null,null,null,null,null,null,null,null,null,null,null,null,null,null,null,null,null,null,null,null,null,null,null,null,null,null,null,null,null,null,null,null,null,null,null,null,null,null,null,null,null,49,"鳥獣害防護柵の更新"]

{"sheet":"地域活動指針（資源向上・長寿命化）","index":1,"n_rows":53,"n_cols":8,"rows_kept":53,"cut":false,"hidden":false,"merged":[[0,0,0,4],[19,2,27,2],[8,2,9,2],[10,1,27,1],[10,2,18,2],[3,0,3,1],[3,2,3,3],[4,0,27,0],[4,1,9,1],[4,2,7,2],[28,0,35,0],[28,1,32,1],[28,2,29,2],[30,2,32,2],[33,1,35,1],[34,2,35,2],[45,0,52,1],[49,2,52,2],[38,2,40,2],[41,2,44,2],[45,2,48,2],[36,0,44,0],[36,1,37,1],[36,2,37,2],[38,1,44,1]]}
["長野県の地域活動指針\n [資源向上活動：施設の長寿命化のための活動]"]
[]
["■施設の長寿命化のための活動"]
["対象施設",null,"対象活動",null,"番号"]
["水路\n(開水路)\n(ﾊﾟｲﾌﾟﾗｲﾝ)","水路本体","補修","　水路の破損部分の補修",1,null,null,{"$f":"MATCH(E5,'様式第1-6号'!$AF$13:$AF$600,0)","v":{"$error":"#N/A"}}]
[null,null,null,"　水路の老朽化部分の補修",2,null,null,{"$f":"MATCH(E6,'様式第1-6号'!$AF$13:$AF$600,0)","v":{"$error":"#N/A"}}]
[null,null,null,"　水路側壁の嵩上げ",3,null,null,{"$f":"MATCH(E7,'様式第1-6号'!$AF$13:$AF$600,0)","v":{"$error":"#N/A"}}]
[null,null,null,"　Ｕ字フリューム等既設水路の再布設",4,null,null,{"$f":"MATCH(E8,'様式第1-6号'!$AF$13:$AF$600,0)","v":{"$error":"#N/A"}}]
[null,null,"更新等","　素掘り水路からコンクリート水路への更新",5,null,null,{"$f":"MATCH(E9,'様式第1-6号'!$AF$13:$AF$600,0)","v":{"$error":"#N/A"}}]
[null,null,null,"　水路の更新（一路線全体）",6,null,null,{"$f":"MATCH(E10,'様式第1-6号'!$AF$13:$AF$600,0)","v":{"$error":"#N/A"}}]
[null,"附帯施設","補修","　集水枡、分水枡の補修",7,null,null,{"$f":"MATCH(E11,'様式第1-6号'!$AF$13:$AF$600,0)","v":{"$error":"#N/A"}}]
[null,null,null,"　ゲートの補修",8,null,null,{"$f":"MATCH(E12,'様式第1-6号'!$AF$13:$AF$600,0)","v":{"$error":"#N/A"}}]
[null,null,null,"　ポンプの補修",9,null,null,{"$f":"MATCH(E13,'様式第1-6号'!$AF$13:$AF$600,0)","v":{"$error":"#N/A"}}]
[null,null,null,"　安全施設の補修",10,null,null,{"$f":"MATCH(E14,'様式第1-6号'!$AF$13:$AF$600,0)","v":{"$error":"#N/A"}}]
[null,null,null,"　取水施設の補修　　　　　　　　　　　　　　　＜県追加＞",11,null,null,{"$f":"MATCH(E15,'様式第1-6号'!$AF$13:$AF$600,0)","v":{"$error":"#N/A"}}]
[null,null,null,"　除塵施設（スクリーン等）の補修　　　　　　　＜県追加＞",12,null,null,{"$f":"MATCH(E16,'様式第1-6号'!$AF$13:$AF$600,0)","v":{"$error":"#N/A"}}]
[null,null,null,"　水路法面の補修　　　　　　　　　　　　　　　＜県追加＞",13,null,null,{"$f":"MATCH(E17,'様式第1-6号'!$AF$13:$AF$600,0)","v":{"$error":"#N/A"}}]
[null,null,null,"　空気弁、バルブの補修　　　　　　　　　　　　＜県追加＞",14,null,null,{"$f":"MATCH(E18,'様式第1-6号'!$AF$13:$AF$600,0)","v":{"$error":"#N/A"}}]
[null,null,null,"　制御施設等の補修　　　　　　　　　　　　　　＜県追加＞",15,null,null,{"$f":"MATCH(E19,'様式第1-6号'!$AF$13:$AF$600,0)","v":{"$error":"#N/A"}}]
[null,null,"更新等","　ゲートの更新",16,null,null,{"$f":"MATCH(E20,'様式第1-6号'!$AF$13:$AF$600,0)","v":{"$error":"#N/A"}}]
[null,null,null,"　ポンプの更新",17,null,null,{"$f":"MATCH(E21,'様式第1-6号'!$AF$13:$AF$600,0)","v":{"$error":"#N/A"}}]
[null,null,null,"　安全施設の設置",18,null,null,{"$f":"MATCH(E22,'様式第1-6号'!$AF$13:$AF$600,0)","v":{"$error":"#N/A"}}]
[null,null,null,"　取水施設の更新　　　　　　　　　　　　　　　＜県追加＞",19,null,null,{"$f":"MATCH(E23,'様式第1-6号'!$AF$13:$AF$600,0)","v":{"$error":"#N/A"}}]
[null,null,null,"　除塵施設（スクリーン等）の更新　　　　　　　＜県追加＞",20,null,null,{"$f":"MATCH(E24,'様式第1-6号'!$AF$13:$AF$600,0)","v":{"$error":"#N/A"}}]
[null,null,null,"　集水枡、分水枡の更新　　　　　　　　　　　　＜県追加＞",21,null,null,{"$f":"MATCH(E25,'様式第1-6号'!$AF$13:$AF$600,0)","v":{"$error":"#N/A"}}]
[null,null,null,"　甲蓋の設置　　　　　　　　　　　　　　　　　＜県追加＞",22,null,null,{"$f":"MATCH(E26,'様式第1-6号'!$AF$13:$AF$600,0)","v":{"$error":"#N/A"}}]
[null,null,null,"　空気弁、バルブの更新　　　　　　　　　　　　＜県追加＞",23,null,null,{"$f":"MATCH(E27,'様式第1-6号'!$AF$13:$AF$600,0)","v":{"$error":"#N/A"}}]
[null,null,null,"　制御施設等の更新　　　　　　　　　　　　　　＜県追加＞",24,null,null,{"$f":"MATCH(E28,'様式第1-6号'!$AF$13:$AF$600,0)","v":{"$error":"#N/A"}}]
["農道","農道本体","補修","　農道路肩、農道法面の補修",25,null,null,{"$f":"MATCH(E29,'様式第1-6号'!$AF$13:$AF$600,0)","v":{"$error":"#N/A"}}]
[null,null,null,"　舗装の打換え（一部）",26,null,null,{"$f":"MATCH(E30,'様式第1-6号'!$AF$13:$AF$600,0)","v":{"$error":"#N/A"}}]
[null,null,"更新等","　未舗装農道を舗装（砂利）",27,null,null,{"$f":"MATCH(E31,'様式第1-6号'!$AF$13:$AF$600,0)","v":{"$error":"#N/A"}}]
[null,null,null,"　未舗装農道を舗装（コンクリート）",28,null,null,{"$f":"MATCH(E32,'様式第1-6号'!$AF$13:$AF$600,0)","v":{"$error":"#N/A"}}]
[null,null,null,"　未舗装農道を舗装（アスファルト）",29,null,null,{"$f":"MATCH(E33,'様式第1-6号'!$AF$13:$AF$600,0)","v":{"$error":"#N/A"}}]
[null,"附帯施設","補修","　農道側溝の補修",30,null,null,{"$f":"MATCH(E34,'様式第1-6号'!$AF$13:$AF$600,0)","v":{"$error":"#N/A"}}]
[null,null,"更新等","　側溝蓋の設置",31,null,null,{"$f":"MATCH(E35,'様式第1-6号'!$AF$13:$AF$600,0)","v":{"$error":"#N/A"}}]
[null,null,null,"　土側溝をコンクリート側溝に更新",32,null,null,{"$f":"MATCH(E36,'様式第1-6号'!$AF$13:$AF$600,0)","v":{"$error":"#N/A"}}]
["ため池","ため池本体","補修","　洗掘箇所の補修",33,null,null,{"$f":"MATCH(E37,'様式第1-6号'!$AF$13:$AF$600,0)","v":{"$error":"#N/A"}}]
[null,null,null,"　漏水箇所の補修",34,null,null,{"$f":"MATCH(E38,'様式第1-6号'!$AF$13:$AF$600,0)","v":{"$error":"#N/A"}}]
[null,"附帯施設","補修","　取水施設の補修",35,null,null,{"$f":"MATCH(E39,'様式第1-6号'!$AF$13:$AF$600,0)","v":{"$error":"#N/A"}}]
[null,null,null,"　洪水吐の補修",36,null,null,{"$f":"MATCH(E40,'様式第1-6号'!$AF$13:$AF$600,0)","v":{"$error":"#N/A"}}]
[null,null,null,"　安全施設の補修",37,null,null,{"$f":"MATCH(E41,'様式第1-6号'!$AF$13:$AF$600,0)","v":{"$error":"#N/A"}}]
[null,null,"更新等","　ゲート、バルブの更新",38,null,null,{"$f":"MATCH(E42,'様式第1-6号'!$AF$13:$AF$600,0)","v":{"$error":"#N/A"}}]
[null,null,null,"　安全施設の設置",39,null,null,{"$f":"MATCH(E43,'様式第1-6号'!$AF$13:$AF$600,0)","v":{"$error":"#N/A"}}]
[null,null,null,"　波除護岸の更新　　　　　　　　　　　　　　　＜県追加＞",40,null,null,{"$f":"MATCH(E44,'様式第1-6号'!$AF$13:$AF$600,0)","v":{"$error":"#N/A"}}]
[null,null,null,"　洪水吐の更新　　　　　　　　　　　　　　　　＜県追加＞",41,null,null,{"$f":"MATCH(E45,'様式第1-6号'!$AF$13:$AF$600,0)","v":{"$error":"#N/A"}}]
["農地に係る施設",null,"補修","　暗渠排水・排水口の補修　　　　　　　　　　　＜県追加＞",42,null,null,{"$f":"MATCH(E46,'様式第1-6号'!$AF$13:$AF$600,0)","v":{"$error":"#N/A"}}]
[null,null,null,"　給排水施設の補修　　　　　　　　　　　　　　＜県追加＞",43,null,null,{"$f":"MATCH(E47,'様式第1-6号'!$AF$13:$AF$600,0)","v":{"$error":"#N/A"}}]
[null,null,null,"　固定式散水施設（ヘッドまで）の補修　　　　　＜県追加＞",44,null,null,{"$f":"MATCH(E48,'様式第1-6号'!$AF$13:$AF$600,0)","v":{"$error":"#N/A"}}]
[null,null,null,"　鳥獣害防護柵の補修　　　　　　　　　　　　　＜県追加＞",45,null,null,{"$f":"MATCH(E49,'様式第1-6号'!$AF$13:$AF$600,0)","v":{"$error":"#N/A"}}]
[null,null,"更新等","　暗渠排水・排水口の更新　　　　　　　　　　　＜県追加＞",46,null,null,{"$f":"MATCH(E50,'様式第1-6号'!$AF$13:$AF$600,0)","v":{"$error":"#N/A"}}]
[null,null,null,"　給排水施設の更新　　　　　　　　　　　　　　＜県追加＞",47,null,null,{"$f":"MATCH(E51,'様式第1-6号'!$AF$13:$AF$600,0)","v":{"$error":"#N/A"}}]
[null,null,null,"　固定式散水施設（ヘッドまで）の更新　　　　　＜県追加＞",48,null,null,{"$f":"MATCH(E52,'様式第1-6号'!$AF$13:$AF$600,0)","v":{"$error":"#N/A"}}]
[null,null,null,"　鳥獣害防護柵の更新　　　　　　　　　　　　　＜県追加＞",49,null,null,{"$f":"MATCH(E53,'様式第1-6号'!$AF$13:$AF$600,0)","v":{"$error":"#N/A"}}]